Workbook

Sheet Instructions & Notes
A1: Pennsylvania Plan and Insurer Summary Workbook - 2019 ACA-Compliant Health Insurance Rate Filings in the Individual and Small Group Markets
A3: Below is a brief description of each tab in the file and any comments regarding the use of these tabs.
A5: Plans by County
B6: A summary of the number of plans by metal level in each county based on the selected Market/Exchange drop-downs.
A8: Issuers by County
B9: A summary of the number of unique issuers (parent companies) by metal level in each county based on the selected Market/Exchange drop-downs.
B10: For reference, parent companies that filed to offer Affordable Care Act-compliant comprehensive health insurance in Pennsylvania in 2019 are listed in the table below.
A12: Rate by County
B13: The non-tobacco rates for every plan by county for the selected age (first quarter rates for small group plans).
B14: Note that rates are calculated by multiplying the 21-year-old rate by the federally-established age factor and may vary slightly from the actual rate due to rounding.
A16: Plan Map
B17: A visual summary of the number of plans in each county based on the selected Market/Exchange drop-downs.
B18: Every time the tab is selected or a drop-down is changed, the map will automatically refresh; alternatively, the "Update Map" button can be pressed.
A20: Issuer Map
B21: A visual summary of the number of unique issuers (parent companies) in each county based on the selected Market/Exchange drop-downs.
B22: Every time the tab is selected or a drop-down is changed, the map will automatically refresh; alternatively, the "Update Map" button can be pressed.
A24: Service Area Map
B25: A visual summary of an insurer's prior and current service area based on the Parent Company/Market drop-downs.
B26: Every time the tab is selected or a drop-down is changed, the map will automatically refresh; alternatively, the "Update Map" button can be pressed.
A28: Membership Map
B29: The membership shown is total covered lives as of February 1, 2018.
B30: A visual summary of the number of members in each county based on the selected Market drop-down.
B31: Every time the tab is selected or a drop-down is changed, the map will automatically refresh; alternatively, the "Update Map" button can be pressed.
A33: List of Insurers that Filed to Offer Affordable Care Act-Compliant Comprehensive Health Insurance in Pennsylvania in 2019
B34: Parent Company | C34: Company Name (Legal Entity) | D34: Individual Market | E34: Small Group Market
B35: Aetna | C35: Aetna Health, Inc. | E35: X
C36: Aetna HealthAssurance, PA | E36: X
C37: Aetna Life Insurance Co. | E37: X
B38: Capital Blue Cross | C38: Capital Advantage Assurance Company (CAAC) | D38: X | E38: X
C39: Capital Advantage Insurance Company (CAIC) | D39: X | E39: X
C40: Keystone Health Plan Central (KHPC) | D40: X | E40: X
B41: Centene | C41: Pennsylvania Health and Wellness | D41: X
B42: Geisinger Health | C42: Geisinger Health Plan | D42: X | E42: X
C43: Geisinger Quality Options | D43: X | E43: X
B44: Highmark | C44: First Priority Health | D44: X
C45: First Priority Life Insurance Company | D45: X | E45: X
C46: Highmark, Inc. | D46: X | E46: X
C47: Highmark Benefits Group | E47: X
C48: Highmark Choice Co | D48: X | E48: X
C49: Highmark Coverage Advantage | E49: X
C50: Highmark Health Insurance Company (HHIC) | D50: X | E50: X
C51: Highmark Select Resources Inc. | D51: X
B52: Independence Blue Cross | C52: Keystone Health Plan East (KHPE) | D52: X | E52: X
C53: QCC Insurance Company (QCC) | D53: X | E53: X
B54: UPMC | C54: UPMC Health Coverage, Inc. | D54: X | E54: X
C55: UPMC Health Options, Inc. | D55: X | E55: X
C56: UPMC Health Benefits, Inc. | E56: X
B57: United Healthcare | C57: United Healthcare Insurance Company | E57: X
C58: United Healthcare of Pennsylvania, Inc. | E58: X
A60: Pennsylvania Rating Areas

Sheet Inputs (hidden)
A1: User Inputs
D2: Prior Year | E2: 2018 | G2: Prior Data Last Updated: | H2: 2018-10-11T14:41:18
D3: Current Year | E3: 2019 | G3: Current Data Last Updated: | H3: 2018-10-11T14:41:25 | J3: MANUAL INPUT NEEDED
G4: Report Data Last Updated: | H4: 2018-10-11T14:41:27
B5: Filing Submissions
G6: ="Prior Filings ("&year_prior&")" -> Prior Filings (2018) | I6: ="Current Filings ("&year_current&")" -> Current Filings (2019)
C7: Parent Company | D7: Legal Entity | E7: =year_current&" SERFF ID" -> 2019 SERFF ID | F7: Market | G7: PA Plan Design Summary and Rate Tables | H7: PA Actuarial Memorandum Rate Exhibits | I7: PA Plan Design Summary and Rate Tables | J7: PA Actuarial Memorandum Rate Exhibits
C8: Aetna | D8: Aetna | E8: AETN-131455854 | F8: Small Group | G8: G:\PA Map Reporting Tool\2018 Plan Design Summary and Rate Tables\Aetna Health, Inc. Small Group Rates Table.xlsm | H8: G:\PA Map Reporting Tool\2018 PA Actuarial Memorandum Rate Exhibits\Aetna Health, Inc. Small Group ActMemo.xlsm | I8: G:\PA Map&Reporting Tool R2.xlsm\2019 PD Summary and Rate Tables\2019_SmGrp_AetnaHealthInc_PDSRateTable_Q1_08012018.xlsm | J8: G:\PA Map&Reporting Tool R2.xlsm\2019 Actuarial Memorandum Exhibits\2019_SmGrp_AetnaHealthInc_PAAMExhibits_08142018.xlsm | L8: Populate Prior Plan, Current Plan, and Report Data (current data in the tool will be erased)
C9: Aetna | D9: Aetna | E9: AETN-131455851 | F9: Small Group | G9: G:\PA Map Reporting Tool\2018 Plan Design Summary and Rate Tables\Aetna HealthAssurance of PA Small Group Rates Table.xlsm | H9: G:\PA Map Reporting Tool\2018 PA Actuarial Memorandum Rate Exhibits\Aetna HealthAssurance of PA Small Group ActMemo.xlsm | I9: G:\PA Map&Reporting Tool R2.xlsm\2019 PD Summary and Rate Tables\2019_SmGrp_AetnaHealthAssuranceOfPennsylvania_PDSRateTable_Q1_08012018.xlsm | J9: G:\PA Map&Reporting Tool R2.xlsm\2019 Actuarial Memorandum Exhibits\2019_SmGrp_AetnaHealthAssuranceOfPennsylvania_PAAMExhibits_08012018.xlsm
C10: Aetna | D10: Aetna | E10: AETN-131455780 | F10: Small Group | G10: G:\PA Map Reporting Tool\2018 Plan Design Summary and Rate Tables\Aetna Life Insurance Company Small Group Rates Table.xlsm | H10: G:\PA Map Reporting Tool\2018 PA Actuarial Memorandum Rate Exhibits\Aetna Life Insurance Company Small Group ActMemo.xlsm | I10: G:\PA Map&Reporting Tool R2.xlsm\2019 PD Summary and Rate Tables\2019_SmGrp_AetnaLifeInsuranceCo_PDSRateTable_Q1_08012018.xlsm | J10: G:\PA Map&Reporting Tool R2.xlsm\2019 Actuarial Memorandum Exhibits\2019_SmGrp_AetnaLifeInsuranceCo_PAAMExhibits_08012018.xlsm
C11: Capital Blue Cross | D11: Capital Blue Cross | E11: CABC-131454875 | F11: Individual | G11: G:\PA Map Reporting Tool\2018 Plan Design Summary and Rate Tables\Capital Advantage Assurance Company Individual Rates Table.xlsm | H11: G:\PA Map Reporting Tool\2018 PA Actuarial Memorandum Rate Exhibits\Capital Advantage Assurance Company Individual ActMemo.xlsm | I11: G:\PA Map&Reporting Tool R2.xlsm\2019 PD Summary and Rate Tables\Ind_18-12_Revised_CAAC_PPO_PARateTables_RateRule_20180815.xlsm | J11: G:\PA Map&Reporting Tool R2.xlsm\2019 Actuarial Memorandum Exhibits\Ind_18-12_Revised_CAAC_PPO_PARateandMemoExhibits_Supporting_20180815.xlsm
C12: Capital Blue Cross | D12: Capital Blue Cross | E12: CABC-131454888 | F12: Individual | G12: G:\PA Map Reporting Tool\2018 Plan Design Summary and Rate Tables\Capital Advantage Insurance Company Individual Rates Table.xlsm | H12: G:\PA Map Reporting Tool\2018 PA Actuarial Memorandum Rate Exhibits\Capital Advantage Insurance Company Individual ActMemo.xlsm | I12: G:\PA Map&Reporting Tool R2.xlsm\2019 PD Summary and Rate Tables\Ind_18-13_Revised_CAIC_PPO_PARateTables_RateRule_20180815.xlsm | J12: G:\PA Map&Reporting Tool R2.xlsm\2019 Actuarial Memorandum Exhibits\Ind_18-13_Revised_CAIC_PPO_PARateandMemoExhibits_Supporting_20180719.xlsm
C13: Capital Blue Cross | D13: Capital Blue Cross | E13: CABC-131454728 | F13: Individual | G13: G:\PA Map Reporting Tool\2018 Plan Design Summary and Rate Tables\Keystone Health Plan Central Individual Rates Table.xlsm | H13: G:\PA Map Reporting Tool\2018 PA Actuarial Memorandum Rate Exhibits\Keystone Health Plan Central Individual ActMemo.xlsm | I13: G:\PA Map&Reporting Tool R2.xlsm\2019 PD Summary and Rate Tables\Ind_18-11_Revised_KHP_HMO_PARateTables_RateRule_20180815.xlsm | J13: G:\PA Map&Reporting Tool R2.xlsm\2019 Actuarial Memorandum Exhibits\Ind_18-11_Revised_KHP_HMO_PARateandMemoExhibits_Supporting_20180716.xlsm
C14: Capital Blue Cross | D14: Capital Blue Cross | E14: CABC-131455101 | F14: Small Group | G14: G:\PA Map Reporting Tool\2018 Plan Design Summary and Rate Tables\Capital Advantage Assurance Company Small Group Rates Table.xlsm | H14: G:\PA Map Reporting Tool\2018 PA Actuarial Memorandum Rate Exhibits\Capital Advantage Assurance Company Small Group ActMemo.xlsm | I14: G:\PA Map&Reporting Tool R2.xlsm\2019 PD Summary and Rate Tables\SG_18-19_Revised_CAAC_PPO_PARateTables_RateRule_20180815.xlsm | J14: G:\PA Map&Reporting Tool R2.xlsm\2019 Actuarial Memorandum Exhibits\SG_18-19_Revised_CAAC_PPO_PARateandMemoExhibits_Supporting_20180815.xlsm | L14: Remove Prior Plan, Current Plan, and Report Data
C15: Capital Blue Cross | D15: Capital Blue Cross | E15: CABC-131455106 | F15: Small Group | G15: G:\PA Map Reporting Tool\2018 Plan Design Summary and Rate Tables\Capital Advantage Insurance Company Small Group Rates Table.xlsm | H15: G:\PA Map Reporting Tool\2018 PA Actuarial Memorandum Rate Exhibits\Capital Advantage Insurance Company Small Group ActMemo.xlsm | I15: G:\PA Map&Reporting Tool R2.xlsm\2019 PD Summary and Rate Tables\SG_18-20_Revised_CAIC_PPO_PARateTables_RateRule_20180723.xlsm | J15: G:\PA Map&Reporting Tool R2.xlsm\2019 Actuarial Memorandum Exhibits\SG_18-20_Revised_CAIC_PPO_PARateandMemoExhibits_Supporting_20180719.xlsm
C16: Capital Blue Cross | D16: Capital Blue Cross | E16: CABC-131455108 | F16: Small Group | G16: G:\PA Map Reporting Tool\2018 Plan Design Summary and Rate Tables\Keystone Health Plan Central Small Group Rates Table.xlsm | H16: G:\PA Map Reporting Tool\2018 PA Actuarial Memorandum Rate Exhibits\Keystone Health Plan Central Small Group ActMemo.xlsm | I16: G:\PA Map&Reporting Tool R2.xlsm\2019 PD Summary and Rate Tables\SG_18-18_Revised_KHP_HMO_PARateTables_RateRule_20180723.xlsm | J16: G:\PA Map&Reporting Tool R2.xlsm\2019 Actuarial Memorandum Exhibits\SG_18-18_Initial_KHP_HMO_PARateandMemoExhibits_Supporting_20180518.xlsm
C17: Centene | D17: Centene | E17: CECO-131500564 | F17: Individual | I17: G:\PA Map&Reporting Tool R2.xlsm\2019 PD Summary and Rate Tables\2019_PA_Health_and_Wellness_Inc_Plan_Design_Summary_and_Rate_Tables_20180807.xlsm | J17: G:\PA Map&Reporting Tool R2.xlsm\2019 Actuarial Memorandum Exhibits\2019_PA_Health_and_Wellness_Inc_Actuarial_Memorandum_Rate_Exhibits_20180807.xlsm
C18: Geisinger Health | D18: Geisinger Health | E18: GSHP-131501956 | F18: Individual | G18: G:\PA Map Reporting Tool\2018 Plan Design Summary and Rate Tables\Geisinger Health Plan Individual Rates Table.xlsm | H18: G:\PA Map Reporting Tool\2018 PA Actuarial Memorandum Rate Exhibits\Geisinger Health Plan Individual ActMemo.xlsm | I18: G:\PA Map&Reporting Tool R2.xlsm\2019 PD Summary and Rate Tables\PDS_Exhibits_GHP_Indiv_20180924.xlsm | J18: G:\PA Map&Reporting Tool R2.xlsm\2019 Actuarial Memorandum Exhibits\PA_Act_Memo_Rate_Exhibits_GHP_Indiv_20180813.xlsm
C19: Geisinger Health | D19: Geisinger Health | E19: GSHP-131501975 | F19: Individual | G19: G:\PA Map Reporting Tool\2018 Plan Design Summary and Rate Tables\Geisinger Quality Options Individual Rates Table.xlsm | H19: G:\PA Map Reporting Tool\2018 PA Actuarial Memorandum Rate Exhibits\Geisinger Quality Options Individual ActMemo.xlsm | I19: G:\PA Map&Reporting Tool R2.xlsm\2019 PD Summary and Rate Tables\PDS_Exhibits_GQO_Indiv_20180924.xlsm | J19: G:\PA Map&Reporting Tool R2.xlsm\2019 Actuarial Memorandum Exhibits\PA_Act_Memo_Rate_Exhibits_GQO_Indiv_20180813.xlsm
C20: Geisinger Health | D20: Geisinger Health | E20: GSHP-131502009 | F20: Small Group | G20: G:\PA Map Reporting Tool\2018 Plan Design Summary and Rate Tables\Geisinger Health Plan Small Group Rates Table.xlsm | H20: G:\PA Map Reporting Tool\2018 PA Actuarial Memorandum Rate Exhibits\Geisinger Health Plan Small Group ActMemo.xlsm | I20: G:\PA Map&Reporting Tool R2.xlsm\2019 PD Summary and Rate Tables\PDS_Exhibits_GHP_SG_20180813.xlsm | J20: G:\PA Map&Reporting Tool R2.xlsm\2019 Actuarial Memorandum Exhibits\PA_Act_Memo_Rate_Exhibits_GHP_SG_20180813.xlsm
C21: Geisinger Health | D21: Geisinger Health | E21: GSHP-131502028 | F21: Small Group | G21: G:\PA Map Reporting Tool\2018 Plan Design Summary and Rate Tables\Geisinger Quality Options Small Group Rates Table.xlsm | H21: G:\PA Map Reporting Tool\2018 PA Actuarial Memorandum Rate Exhibits\Geisinger Quality Options Small Group ActMemo.xlsm | I21: G:\PA Map&Reporting Tool R2.xlsm\2019 PD Summary and Rate Tables\PDS_Exhibits_GQO_SG_20180813.xlsm | J21: G:\PA Map&Reporting Tool R2.xlsm\2019 Actuarial Memorandum Exhibits\PA_Act_Memo_Rate_Exhibits_GQO_SG_20180813.xlsm
C22: Highmark | D22: Highmark | E22: HGHM-131475735 | F22: Individual | G22: G:\PA Map Reporting Tool\2018 Plan Design Summary and Rate Tables\First Priority Health Individual Rates Table.xlsm | H22: G:\PA Map Reporting Tool\2018 PA Actuarial Memorandum Rate Exhibits\First Priority Health Individual ActMemo.xlsm | I22: G:\PA Map&Reporting Tool R2.xlsm\2019 PD Summary and Rate Tables\FPH 2019_Indiv_FPH_PDSRateTable_080718.xlsm | J22: G:\PA Map&Reporting Tool R2.xlsm\2019 Actuarial Memorandum Exhibits\FPH 2019_Indiv_FPH_PAAMExhibits_080718.xlsm
C23: Highmark | D23: Highmark | E23: HGHM-131475736 | F23: Individual | G23: G:\PA Map Reporting Tool\2018 Plan Design Summary and Rate Tables\First Priority Life Insurance Company Individual Rates Table.xlsm | H23: G:\PA Map Reporting Tool\2018 PA Actuarial Memorandum Rate Exhibits\First Priority Life Insurance Company Individual ActMemo.xlsm | I23: G:\PA Map&Reporting Tool R2.xlsm\2019 PD Summary and Rate Tables\FPLIC 2019_Indiv_FPLIC_PDSRateTable_080718.xlsm | J23: G:\PA Map&Reporting Tool R2.xlsm\2019 Actuarial Memorandum Exhibits\FPLIC 2019_Indiv_FPLIC_PAAMExhibits_080718.xlsm
C24: Highmark | D24: Highmark | E24: HGHM-131475752 | F24: Individual | G24: G:\PA Map Reporting Tool\2018 Plan Design Summary and Rate Tables\HHIC Individual Rates Table.xlsm | H24: G:\PA Map Reporting Tool\2018 PA Actuarial Memorandum Rate Exhibits\HHIC Individual ActMemo.xlsm | I24: G:\PA Map&Reporting Tool R2.xlsm\2019 PD Summary and Rate Tables\HHIC 2019_Indiv_HHIC_PDSRateTable_080718.xlsm | J24: G:\PA Map&Reporting Tool R2.xlsm\2019 Actuarial Memorandum Exhibits\HHIC 2019_Indiv_HHIC_PAAMExhibits_080718.xlsm
C25: Highmark | D25: Highmark | E25: HGHM-131475734 | F25: Individual | G25: G:\PA Map Reporting Tool\2018 Plan Design Summary and Rate Tables\Highmark Choice Co Individual Rates Table.xlsm | H25: G:\PA Map Reporting Tool\2018 PA Actuarial Memorandum Rate Exhibits\Highmark Choice Co Individual ActMemo.xlsm | I25: G:\PA Map&Reporting Tool R2.xlsm\2019 PD Summary and Rate Tables\hcc 2019_Indiv_HCC_PDSRateTable_080718.xlsm | J25: G:\PA Map&Reporting Tool R2.xlsm\2019 Actuarial Memorandum Exhibits\HCC 2019_Indiv_HCC_PAAMExhibits_080718.xlsm
C26: Highmark | D26: Highmark | E26: HGHM-131475762 | F26: Individual | G26: G:\PA Map Reporting Tool\2018 Plan Design Summary and Rate Tables\Highmark Select Resources Inc. Individual Rates Table.xlsm | H26: G:\PA Map Reporting Tool\2018 PA Actuarial Memorandum Rate Exhibits\Highmark Select Resources Inc. Individual ActMemo.xlsm | I26: G:\PA Map&Reporting Tool R2.xlsm\2019 PD Summary and Rate Tables\HSR 2019_Indiv_HSR_PDSRateTable_071318.xlsm | J26: G:\PA Map&Reporting Tool R2.xlsm\2019 Actuarial Memorandum Exhibits\HSR 2019_Indiv_HSR_PAAMExhibits_071318.xlsm
C27: Highmark | D27: Highmark | E27: HGHM-131475700 | F27: Individual | G27: G:\PA Map Reporting Tool\2018 Plan Design Summary and Rate Tables\Highmark Individual Rates Table.xlsm | H27: G:\PA Map Reporting Tool\2018 PA Actuarial Memorandum Rate Exhibits\Highmark Individual ActMemo.xlsm | I27: G:\PA Map&Reporting Tool R2.xlsm\2019 PD Summary and Rate Tables\HI 2019_Indiv_HI_PDSRateTable_080718.xlsm | J27: G:\PA Map&Reporting Tool R2.xlsm\2019 Actuarial Memorandum Exhibits\HI 2019_Indiv_HI_PAAMExhibits_080718.xlsm
C28: Highmark | D28: Highmark | E28: HGHM-131496216 | F28: Small Group | G28: G:\PA Map Reporting Tool\2018 Plan Design Summary and Rate Tables\First Priority Life Insurance Company Small Group Rates Table.xlsm | H28: G:\PA Map Reporting Tool\2018 PA Actuarial Memorandum Rate Exhibits\First Priority Life Insurance Company Small Group ActMemo.xlsm | I28: G:\PA Map&Reporting Tool R2.xlsm\2019 PD Summary and Rate Tables\FPLIC 2019_SmGrp_FPLIC_PDSRateTable_052118 v3.xlsm | J28: G:\PA Map&Reporting Tool R2.xlsm\2019 Actuarial Memorandum Exhibits\FPLIC 2019_SmGrp_FPLIC_PAAMExhibits_051818 v3.xlsm
C29: Highmark | D29: Highmark | E29: HGHM-131496229 | F29: Small Group | G29: G:\PA Map Reporting Tool\2018 Plan Design Summary and Rate Tables\HHIC Small Group Rates Table.xlsm | H29: G:\PA Map Reporting Tool\2018 PA Actuarial Memorandum Rate Exhibits\HHIC Small Group ActMemo.xlsm | I29: G:\PA Map&Reporting Tool R2.xlsm\2019 PD Summary and Rate Tables\hhic 2019_SmGrp_HHIC_PDSRateTable_05182018 v2.xlsm | J29: G:\PA Map&Reporting Tool R2.xlsm\2019 Actuarial Memorandum Exhibits\hhic 2019_SmGrp_HHIC_PAAMExhibits_051818 v2.xlsm
C30: Highmark | D30: Highmark | E30: HGHM-131496086 | F30: Small Group | G30: G:\PA Map Reporting Tool\2018 Plan Design Summary and Rate Tables\Highmark Benefits Group Small Group Rates Table.xlsm | H30: G:\PA Map Reporting Tool\2018 PA Actuarial Memorandum Rate Exhibits\Highmark Benefits Group Small Group ActMemo.xlsm | I30: G:\PA Map&Reporting Tool R2.xlsm\2019 PD Summary and Rate Tables\HBG 2019_SmGrp_HBG_PDSRateTable_051818.xlsm | J30: G:\PA Map&Reporting Tool R2.xlsm\2019 Actuarial Memorandum Exhibits\HBG 2019_SmGrp_HBG_PAAMExhibits_051818 v2.xlsm
C31: Highmark | D31: Highmark | E31: HGHM-131496326 | F31: Small Group | G31: G:\PA Map Reporting Tool\2018 Plan Design Summary and Rate Tables\Highmark Choice Co Small Group Rates Table.xlsm | H31: G:\PA Map Reporting Tool\2018 PA Actuarial Memorandum Rate Exhibits\Highmark Choice Co Small Group ActMemo.xlsm | I31: G:\PA Map&Reporting Tool R2.xlsm\2019 PD Summary and Rate Tables\hcc 2019_SmGrp_HCC_PDSRateTable_051818_v2.xlsm | J31: G:\PA Map&Reporting Tool R2.xlsm\2019 Actuarial Memorandum Exhibits\hcc 2019_SmGrp_HCC_PAAMExhibits_051818_v2.xlsm
C32: Highmark | D32: Highmark | E32: HGHM-131496215 | F32: Small Group | G32: G:\PA Map Reporting Tool\2018 Plan Design Summary and Rate Tables\Highmark Coverage Advantage Small Group Rates Table.xlsm | H32: G:\PA Map Reporting Tool\2018 PA Actuarial Memorandum Rate Exhibits\Highmark Coverage Advantage Small Group ActMemo.xlsm | I32: G:\PA Map&Reporting Tool R2.xlsm\2019 PD Summary and Rate Tables\HCA 2019_SmGrp_HCA_PDSRateTable_0518218 v2.xlsm | J32: G:\PA Map&Reporting Tool R2.xlsm\2019 Actuarial Memorandum Exhibits\HCA 2019_SmGrp_HCA_PAAMExhibits_051818 v3.xlsm
C33: Highmark | D33: Highmark | E33: HGHM-131496088 | F33: Small Group | G33: G:\PA Map Reporting Tool\2018 Plan Design Summary and Rate Tables\Highmark Small Group Rates Table.xlsm | H33: G:\PA Map Reporting Tool\2018 PA Actuarial Memorandum Rate Exhibits\Highmark Small Group ActMemo.xlsm | I33: G:\PA Map&Reporting Tool R2.xlsm\2019 PD Summary and Rate Tables\HI 2019_SmGrp_HMK_PDSRateTable_052118 v2.xlsm | J33: G:\PA Map&Reporting Tool R2.xlsm\2019 Actuarial Memorandum Exhibits\HI 2019_SmGrp_Highmark_PAAMExhibits_052118 v3.xlsm
C34: Independence Blue Cross | D34: Independence Blue Cross | E34: INAC-131476931 | F34: Individual | G34: G:\PA Map Reporting Tool\2018 Plan Design Summary and Rate Tables\KHPE Individual Rates Table.xlsm | H34: G:\PA Map Reporting Tool\2018 PA Actuarial Memorandum Rate Exhibits\KHPE Individual ActMemo.xlsm | I34: G:\PA Map&Reporting Tool R2.xlsm\2019 PD Summary and Rate Tables\2019_Indiv_KHPE_PDSRateTable_080718.xlsm | J34: G:\PA Map&Reporting Tool R2.xlsm\2019 Actuarial Memorandum Exhibits\2019_Indiv_KHPE_PAAMExhibits_080718_Trend.xlsm
C35: Independence Blue Cross | D35: Independence Blue Cross | E35: INAC-131478475 | F35: Individual | G35: G:\PA Map Reporting Tool\2018 Plan Design Summary and Rate Tables\QCC Individual Rates Table.xlsm | H35: G:\PA Map Reporting Tool\2018 PA Actuarial Memorandum Rate Exhibits\QCC Individual ActMemo.xlsm | I35: G:\PA Map&Reporting Tool R2.xlsm\2019 PD Summary and Rate Tables\2019_Indiv_QCC_PDSRateTable_080718.xlsm | J35: G:\PA Map&Reporting Tool R2.xlsm\2019 Actuarial Memorandum Exhibits\2019_Indiv_QCC_PAAMExhibits_080718.xlsm
C36: Independence Blue Cross | D36: Independence Blue Cross | E36: INAC-131478481 | F36: Small Group | G36: G:\PA Map Reporting Tool\2018 Plan Design Summary and Rate Tables\KHPE Small Group Rates Table.xlsm | H36: G:\PA Map Reporting Tool\2018 PA Actuarial Memorandum Rate Exhibits\KHPE Small Group ActMemo.xlsm | I36: G:\PA Map&Reporting Tool R2.xlsm\2019 PD Summary and Rate Tables\2019_SmGrp_KHPE_PDSRateTable_062518_Q1.xlsm | J36: G:\PA Map&Reporting Tool R2.xlsm\2019 Actuarial Memorandum Exhibits\2019_SmGrp_KHPE_PAAMExhibits_062118.xlsm
C37: Independence Blue Cross | D37: Independence Blue Cross | E37: INAC-131478429 | F37: Small Group | G37: G:\PA Map Reporting Tool\2018 Plan Design Summary and Rate Tables\QCC Small Group Rates Table.xlsm | H37: G:\PA Map Reporting Tool\2018 PA Actuarial Memorandum Rate Exhibits\QCC Small Group ActMemo.xlsm | I37: G:\PA Map&Reporting Tool R2.xlsm\2019 PD Summary and Rate Tables\2019_SmGrp_QCC_PDSRateTable_062518_Q1.xlsm | J37: G:\PA Map&Reporting Tool R2.xlsm\2019 Actuarial Memorandum Exhibits\2019_SmGrp_QCC_PAAMExhibits_062118.xlsm
C38: UnitedHealthcare | D38: UnitedHealthcare | E38: UHLC-131482147 | F38: Small Group | G38: G:\PA Map Reporting Tool\2018 Plan Design Summary and Rate Tables\UnitedHealthcare Insurance Company Small Group Rates Table.xlsm | H38: G:\PA Map Reporting Tool\2018 PA Actuarial Memorandum Rate Exhibits\UnitedHealthcare Insurance Company Small Group ActMemo.xlsm | I38: G:\PA Map&Reporting Tool R2.xlsm\2019 PD Summary and Rate Tables\UHIC 2019_SmGrp_UHIC_PDSRateTable_080218_Q1 v3.xlsm | J38: G:\PA Map&Reporting Tool R2.xlsm\2019 Actuarial Memorandum Exhibits\UHIC 2019_SmGrp_UHIC_PAAMExhibits_080218.xlsm
C39: UnitedHealthcare | D39: UnitedHealthcare | E39: UHLC-131482151 | F39: Small Group | I39: G:\PA Map&Reporting Tool R2.xlsm\2019 PD Summary and Rate Tables\UHCPA 2019_SmGrp_UHCPA_PDSRateTable_080218_Q1 v3.xlsm | J39: G:\PA Map&Reporting Tool R2.xlsm\2019 Actuarial Memorandum Exhibits\UHCPA 2019_SmGrp_UHCPA_PAAMExhibits_080218.xlsm
C40: UPMC | D40: UPMC | E40: UPMC-131496004 | F40: Individual | G40: G:\PA Map Reporting Tool\2018 Plan Design Summary and Rate Tables\UPMC Health Coverage, Inc. Individual Rates Table.xlsm | H40: G:\PA Map Reporting Tool\2018 PA Actuarial Memorandum Rate Exhibits\UPMC Health Coverage, Inc. Individual ActMemo.xlsm | I40: G:\PA Map&Reporting Tool R2.xlsm\2019 PD Summary and Rate Tables\2019_Indiv_UPMCHealthCoverage_PDSRateTable_080718.xlsm | J40: G:\PA Map&Reporting Tool R2.xlsm\2019 Actuarial Memorandum Exhibits\2019_Indiv_UPMCHealthCoverage_PAAMExhibits_080718.xlsm
C41: UPMC | D41: UPMC | E41: UPMC-131495924 | F41: Individual | G41: G:\PA Map Reporting Tool\2018 Plan Design Summary and Rate Tables\UPMC Health Options, Inc. Individual Rates Table.xlsm | H41: G:\PA Map Reporting Tool\2018 PA Actuarial Memorandum Rate Exhibits\UPMC Health Options, Inc. Individual ActMemo.xlsm | I41: G:\PA Map&Reporting Tool R2.xlsm\2019 PD Summary and Rate Tables\2019_Indiv_UPMCHealthOptions_PDSRateTable_080718.xlsm | J41: G:\PA Map&Reporting Tool R2.xlsm\2019 Actuarial Memorandum Exhibits\2019_Indiv_UPMCHealthOptions_PAAMExhibits_080718.xlsm
C42: UPMC | D42: UPMC | E42: UPMC-131496028 | F42: Small Group | I42: G:\PA Map&Reporting Tool R2.xlsm\2019 PD Summary and Rate Tables\2019_SmGrp_UPMCHealthBenefits_PDSRateTable_080718.xlsm | J42: G:\PA Map&Reporting Tool R2.xlsm\2019 Actuarial Memorandum Exhibits\2019_SmGrp_UPMCHealthBenefits_PAAMExhibits_080718.xlsm
C43: UPMC | D43: UPMC | E43: UPMC-131496011 | F43: Small Group | G43: G:\PA Map Reporting Tool\2018 Plan Design Summary and Rate Tables\UPMC Health Coverage, Inc. Small Group Rates Table.xlsm | H43: G:\PA Map Reporting Tool\2018 PA Actuarial Memorandum Rate Exhibits\UPMC Health Coverage, Inc. Small Group ActMemo.xlsm | I43: G:\PA Map&Reporting Tool R2.xlsm\2019 PD Summary and Rate Tables\2019_SmGrp_UPMCHealthCoverage_PDSRateTable_071618.xlsm | J43: G:\PA Map&Reporting Tool R2.xlsm\2019 Actuarial Memorandum Exhibits\2019_SmGrp_UPMCHealthCoverage_PAAMExhibits_071618.xlsm
C44: UPMC | D44: UPMC | E44: UPMC-131495951 | F44: Small Group | G44: G:\PA Map Reporting Tool\2018 Plan Design Summary and Rate Tables\UPMC Health Options, Inc. Small Group Rates Table.xlsm | H44: G:\PA Map Reporting Tool\2018 PA Actuarial Memorandum Rate Exhibits\UPMC Health Options, Inc. Small Group ActMemo.xlsm | I44: G:\PA Map&Reporting Tool R2.xlsm\2019 PD Summary and Rate Tables\2019_SmGrp_UPMCHealthOptions_PDSRateTable_071618.xlsm | J44: G:\PA Map&Reporting Tool R2.xlsm\2019 Actuarial Memorandum Exhibits\2019_SmGrp_UPMCHealthOptions_PAAMExhibits_071618.xlsm

Sheet Prior Plans (hidden)
A1: PRIOR RATES FOR AGE 21, NON-TOBACCO USER, BY RATING AREA AND COUNTY
B4: Inputs Tab | C4: Inputs Tab | D4: Inputs Tab | E4: Prior Rate Tables; Plan Design Summary Tab | F4: Prior Rate Tables; Plan Design Summary Tab | G4: Prior Rate Tables; Plan Design Summary Tab | H4: Prior Rate Tables; Plan Design Summary Tab | I4: Prior Rate Tables; Plan Design Summary Tab | J4: Prior Rate Tables; Rates by County Tab | K4: Prior Rate Tables; Rates by County Tab | L4: Prior Rate Tables; Rates by County Tab | M4: Prior Rate Tables; Rates by County Tab | N4: Prior Rate Tables; Rates by County Tab | O4: Prior Rate Tables; Rates by County Tab | P4: Prior Rate Tables; Rates by County Tab | Q4: Prior Rate Tables; Rates by County Tab | R4: Prior Rate Tables; Rates by County Tab | S4: Prior Rate Tables; Rates by County Tab | T4: Prior Rate Tables; Rates by County Tab | U4: Prior Rate Tables; Rates by County Tab | V4: Prior Rate Tables; Rates by County Tab | W4: Prior Rate Tables; Rates by County Tab | X4: Prior Rate Tables; Rates by County Tab | Y4: Prior Rate Tables; Rates by County Tab | Z4: Prior Rate Tables; Rates by County Tab | AA4: Prior Rate Tables; Rates by County Tab | AB4: Prior Rate Tables; Rates by County Tab | AC4: Prior Rate Tables; Rates by County Tab | AD4: Prior Rate Tables; Rates by County Tab | AE4: Prior Rate Tables; Rates by County Tab | AF4: Prior Rate Tables; Rates by County Tab | AG4: Prior Rate Tables; Rates by County Tab | AH4: Prior Rate Tables; Rates by County Tab | AI4: Prior Rate Tables; Rates by County Tab | AJ4: Prior Rate Tables; Rates by County Tab | AK4: Prior Rate Tables; Rates by County Tab | AL4: Prior Rate Tables; Rates by County Tab | AM4: Prior Rate Tables; Rates by County Tab | AN4: Prior Rate Tables; Rates by County Tab | AO4: Prior Rate Tables; Rates by County Tab | AP4: Prior Rate Tables; Rates by County Tab | AQ4: Prior Rate Tables; Rates by County Tab | AR4: Prior Rate Tables; Rates by County Tab | AS4: Prior Rate Tables; Rates by County Tab | AT4: Prior Rate Tables; Rates by County Tab | AU4: Prior Rate Tables; Rates by County Tab | AV4: Prior Rate Tables; Rates by County Tab | AW4: Prior Rate Tables; Rates by County Tab | AX4: Prior Rate Tables; Rates by County Tab | AY4: Prior Rate Tables; Rates by County Tab | AZ4: Prior Rate Tables; Rates by County Tab | BA4: Prior Rate Tables; Rates by County Tab | BB4: Prior Rate Tables; Rates by County Tab | BC4: Prior Rate Tables; Rates by County Tab | BD4: Prior Rate Tables; Rates by County Tab | BE4: Prior Rate Tables; Rates by County Tab | BF4: Prior Rate Tables; Rates by County Tab | BG4: Prior Rate Tables; Rates by County Tab | BH4: Prior Rate Tables; Rates by County Tab | BI4: Prior Rate Tables; Rates by County Tab | BJ4: Prior Rate Tables; Rates by County Tab | BK4: Prior Rate Tables; Rates by County Tab | BL4: Prior Rate Tables; Rates by County Tab | BM4: Prior Rate Tables; Rates by County Tab | BN4: Prior Rate Tables; Rates by County Tab | BO4: Prior Rate Tables; Rates by County Tab | BP4: Prior Rate Tables; Rates by County Tab | BQ4: Prior Rate Tables; Rates by County Tab | BR4: Prior Rate Tables; Rates by County Tab | BS4: Prior Rate Tables; Rates by County Tab | BT4: Prior Rate Tables; Rates by County Tab | BU4: Prior Rate Tables; Rates by County Tab | BV4: Prior Rate Tables; Rates by County Tab | BW4: Prior Rate Tables; Rates by County Tab | BX4: Prior Rate Tables; Rates by County Tab
J6: =INDEX(Lookups!$B:$B,MATCH(J$7,Lookups!$A:$A,0),1) -> Rating Area 1 | K6: =INDEX(Lookups!$B:$B,MATCH(K$7,Lookups!$A:$A,0),1) -> Rating Area 1 | L6: =INDEX(Lookups!$B:$B,MATCH(L$7,Lookups!$A:$A,0),1) -> Rating Area 1 | M6: =INDEX(Lookups!$B:$B,MATCH(M$7,Lookups!$A:$A,0),1) -> Rating Area 1 | N6: =INDEX(Lookups!$B:$B,MATCH(N$7,Lookups!$A:$A,0),1) -> Rating Area 1 | O6: =INDEX(Lookups!$B:$B,MATCH(O$7,Lookups!$A:$A,0),1) -> Rating Area 1 | P6: =INDEX(Lookups!$B:$B,MATCH(P$7,Lookups!$A:$A,0),1) -> Rating Area 1 | Q6: =INDEX(Lookups!$B:$B,MATCH(Q$7,Lookups!$A:$A,0),1) -> Rating Area 1 | R6: =INDEX(Lookups!$B:$B,MATCH(R$7,Lookups!$A:$A,0),1) -> Rating Area 2 | S6: =INDEX(Lookups!$B:$B,MATCH(S$7,Lookups!$A:$A,0),1) -> Rating Area 2 | T6: =INDEX(Lookups!$B:$B,MATCH(T$7,Lookups!$A:$A,0),1) -> Rating Area 2 | U6: =INDEX(Lookups!$B:$B,MATCH(U$7,Lookups!$A:$A,0),1) -> Rating Area 3 | V6: =INDEX(Lookups!$B:$B,MATCH(V$7,Lookups!$A:$A,0),1) -> Rating Area 3 | W6: =INDEX(Lookups!$B:$B,MATCH(W$7,Lookups!$A:$A,0),1) -> Rating Area 3 | X6: =INDEX(Lookups!$B:$B,MATCH(X$7,Lookups!$A:$A,0),1) -> Rating Area 3 | Y6: =INDEX(Lookups!$B:$B,MATCH(Y$7,Lookups!$A:$A,0),1) -> Rating Area 3 | Z6: =INDEX(Lookups!$B:$B,MATCH(Z$7,Lookups!$A:$A,0),1) -> Rating Area 3 | AA6: =INDEX(Lookups!$B:$B,MATCH(AA$7,Lookups!$A:$A,0),1) -> Rating Area 3 | AB6: =INDEX(Lookups!$B:$B,MATCH(AB$7,Lookups!$A:$A,0),1) -> Rating Area 3 | AC6: =INDEX(Lookups!$B:$B,MATCH(AC$7,Lookups!$A:$A,0),1) -> Rating Area 3 | AD6: =INDEX(Lookups!$B:$B,MATCH(AD$7,Lookups!$A:$A,0),1) -> Rating Area 3 | AE6: =INDEX(Lookups!$B:$B,MATCH(AE$7,Lookups!$A:$A,0),1) -> Rating Area 3 | AF6: =INDEX(Lookups!$B:$B,MATCH(AF$7,Lookups!$A:$A,0),1) -> Rating Area 3 | AG6: =INDEX(Lookups!$B:$B,MATCH(AG$7,Lookups!$A:$A,0),1) -> Rating Area 3 | AH6: =INDEX(Lookups!$B:$B,MATCH(AH$7,Lookups!$A:$A,0),1) -> Rating Area 4 | AI6: =INDEX(Lookups!$B:$B,MATCH(AI$7,Lookups!$A:$A,0),1) -> Rating Area 4 | AJ6: =INDEX(Lookups!$B:$B,MATCH(AJ$7,Lookups!$A:$A,0),1) -> Rating Area 4 | AK6: =INDEX(Lookups!$B:$B,MATCH(AK$7,Lookups!$A:$A,0),1) -> Rating Area 4 | AL6: =INDEX(Lookups!$B:$B,MATCH(AL$7,Lookups!$A:$A,0),1) -> Rating Area 4 | AM6: =INDEX(Lookups!$B:$B,MATCH(AM$7,Lookups!$A:$A,0),1) -> Rating Area 4 | AN6: =INDEX(Lookups!$B:$B,MATCH(AN$7,Lookups!$A:$A,0),1) -> Rating Area 4 | AO6: =INDEX(Lookups!$B:$B,MATCH(AO$7,Lookups!$A:$A,0),1) -> Rating Area 4 | AP6: =INDEX(Lookups!$B:$B,MATCH(AP$7,Lookups!$A:$A,0),1) -> Rating Area 4 | AQ6: =INDEX(Lookups!$B:$B,MATCH(AQ$7,Lookups!$A:$A,0),1) -> Rating Area 4 | AR6: =INDEX(Lookups!$B:$B,MATCH(AR$7,Lookups!$A:$A,0),1) -> Rating Area 5 | AS6: =INDEX(Lookups!$B:$B,MATCH(AS$7,Lookups!$A:$A,0),1) -> Rating Area 5 | AT6: =INDEX(Lookups!$B:$B,MATCH(AT$7,Lookups!$A:$A,0),1) -> Rating Area 5 | AU6: =INDEX(Lookups!$B:$B,MATCH(AU$7,Lookups!$A:$A,0),1) -> Rating Area 5 | AV6: =INDEX(Lookups!$B:$B,MATCH(AV$7,Lookups!$A:$A,0),1) -> Rating Area 5 | AW6: =INDEX(Lookups!$B:$B,MATCH(AW$7,Lookups!$A:$A,0),1) -> Rating Area 5 | AX6: =INDEX(Lookups!$B:$B,MATCH(AX$7,Lookups!$A:$A,0),1) -> Rating Area 5 | AY6: =INDEX(Lookups!$B:$B,MATCH(AY$7,Lookups!$A:$A,0),1) -> Rating Area 6 | AZ6: =INDEX(Lookups!$B:$B,MATCH(AZ$7,Lookups!$A:$A,0),1) -> Rating Area 6 | BA6: =INDEX(Lookups!$B:$B,MATCH(BA$7,Lookups!$A:$A,0),1) -> Rating Area 6 | BB6: =INDEX(Lookups!$B:$B,MATCH(BB$7,Lookups!$A:$A,0),1) -> Rating Area 6 | BC6: =INDEX(Lookups!$B:$B,MATCH(BC$7,Lookups!$A:$A,0),1) -> Rating Area 6 | BD6: =INDEX(Lookups!$B:$B,MATCH(BD$7,Lookups!$A:$A,0),1) -> Rating Area 6 | BE6: =INDEX(Lookups!$B:$B,MATCH(BE$7,Lookups!$A:$A,0),1) -> Rating Area 6 | BF6: =INDEX(Lookups!$B:$B,MATCH(BF$7,Lookups!$A:$A,0),1) -> Rating Area 6 | BG6: =INDEX(Lookups!$B:$B,MATCH(BG$7,Lookups!$A:$A,0),1) -> Rating Area 6 | BH6: =INDEX(Lookups!$B:$B,MATCH(BH$7,Lookups!$A:$A,0),1) -> Rating Area 6 | BI6: =INDEX(Lookups!$B:$B,MATCH(BI$7,Lookups!$A:$A,0),1) -> Rating Area 7 | BJ6: =INDEX(Lookups!$B:$B,MATCH(BJ$7,Lookups!$A:$A,0),1) -> Rating Area 7 | BK6: =INDEX(Lookups!$B:$B,MATCH(BK$7,Lookups!$A:$A,0),1) -> Rating Area 7 | BL6: =INDEX(Lookups!$B:$B,MATCH(BL$7,Lookups!$A:$A,0),1) -> Rating Area 7 | BM6: =INDEX(Lookups!$B:$B,MATCH(BM$7,Lookups!$A:$A,0),1) -> Rating Area 8 | BN6: =INDEX(Lookups!$B:$B,MATCH(BN$7,Lookups!$A:$A,0),1) -> Rating Area 8 | BO6: =INDEX(Lookups!$B:$B,MATCH(BO$7,Lookups!$A:$A,0),1) -> Rating Area 8 | BP6: =INDEX(Lookups!$B:$B,MATCH(BP$7,Lookups!$A:$A,0),1) -> Rating Area 8 | BQ6: =INDEX(Lookups!$B:$B,MATCH(BQ$7,Lookups!$A:$A,0),1) -> Rating Area 8 | BR6: =INDEX(Lookups!$B:$B,MATCH(BR$7,Lookups!$A:$A,0),1) -> Rating Area 9 | BS6: =INDEX(Lookups!$B:$B,MATCH(BS$7,Lookups!$A:$A,0),1) -> Rating Area 9 | BT6: =INDEX(Lookups!$B:$B,MATCH(BT$7,Lookups!$A:$A,0),1) -> Rating Area 9 | BU6: =INDEX(Lookups!$B:$B,MATCH(BU$7,Lookups!$A:$A,0),1) -> Rating Area 9 | BV6: =INDEX(Lookups!$B:$B,MATCH(BV$7,Lookups!$A:$A,0),1) -> Rating Area 9 | BW6: =INDEX(Lookups!$B:$B,MATCH(BW$7,Lookups!$A:$A,0),1) -> Rating Area 9 | BX6: =INDEX(Lookups!$B:$B,MATCH(BX$7,Lookups!$A:$A,0),1) -> Rating Area 9 | CA6: Individual | CG6: Small Group
B7: Parent Company | C7: Legal Entity | D7: Market | E7: HIOS Plan ID | F7: Plan Marketing Name | G7: Product | H7: Metal | I7: On/Off | J7: Clarion | K7: Crawford | L7: Erie | M7: Forest | N7: McKean | O7: Mercer | P7: Venango | Q7: Warren | R7: Cameron | S7: Elk | T7: Potter | U7: Bradford | V7: Carbon | W7: Clinton | X7: Lackawanna | Y7: Luzerne | Z7: Lycoming | AA7: Monroe | AB7: Pike | AC7: Sullivan | AD7: Susquehanna | AE7: Tioga | AF7: Wayne | AG7: Wyoming | AH7: Allegheny | AI7: Armstrong | AJ7: Beaver | AK7: Butler | AL7: Fayette | AM7: Greene | AN7: Indiana | AO7: Lawrence | AP7: Washington | AQ7: Westmoreland | AR7: Bedford | AS7: Blair | AT7: Cambria | AU7: Clearfield | AV7: Huntingdon | AW7: Jefferson | AX7: Somerset | AY7: Centre | AZ7: Columbia | BA7: Lehigh | BB7: Mifflin | BC7: Montour | BD7: Northampton | BE7: Northumberland | BF7: Schuylkill | BG7: Snyder | BH7: Union | BI7: Adams | BJ7: Berks | BK7: Lancaster | BL7: York | BM7: Bucks | BN7: Chester | BO7: Delaware | BP7: Montgomery | BQ7: Philadelphia | BR7: Cumberland | BS7: Dauphin | BT7: Franklin | BU7: Fulton | BV7: Juniata | BW7: Lebanon | BX7: Perry | BZ7: County | CA7: Catastrophic | CB7: Bronze | CC7: Silver | CD7: Gold | CE7: Platinum | CF7: 2nd Lowest Silver | CG7: Catastrophic | CH7: Bronze | CI7: Silver | CJ7: Gold | CK7: Platinum | CL7: 2nd Lowest Silver
B8: Aetna | C8: Aetna | D8: Small Group | E8: 64844PA0060126 | F8: PA Silver QPOS 5000 80/50 | G8: QPOS | H8: Silver | I8: Off | J8: 313.79 | K8: 0 | L8: 0 | M8: 313.79 | N8: 313.79 | O8: 0 | P8: 313.79 | Q8: 0 | R8: 316.51 | S8: 316.51 | T8: 316.51 | U8: 399 | V8: 399 | W8: 399 | X8: 399 | Y8: 399 | Z8: 399 | AA8: 399 | AB8: 399 | AC8: 399 | AD8: 399 | AE8: 399 | AF8: 399 | AG8: 399 | AH8: 0 | AI8: 0 | AJ8: 0 | AK8: 0 | AL8: 0 | AM8: 0 | AN8: 0 | AO8: 0 | AP8: 0 | AQ8: 0 | AR8: 0 | AS8: 311.78 | AT8: 311.78 | AU8: 311.78 | AV8: 311.78 | AW8: 311.78 | AX8: 0 | AY8: 392.93 | AZ8: 392.93 | BA8: 392.93 | BB8: 392.93 | BC8: 392.93 | BD8: 392.93 | BE8: 392.93 | BF8: 392.93 | BG8: 392.93 | BH8: 392.93 | BI8: 393.25 | BJ8: 393.25 | BK8: 393.25 | BL8: 393.25 | BM8: 399.72 | BN8: 399.72 | BO8: 399.72 | BP8: 399.72 | BQ8: 399.72 | BR8: 373.04 | BS8: 373.04 | BT8: 373.04 | BU8: 373.04 | BV8: 373.04 | BW8: 373.04 | BX8: 373.04 | BZ8: Clarion | CA8: =MIN(IF((PriorPlansTable[Market]=$CA$6)*(PriorPlansTable[Metal]=CA$7)*(INDIRECT("PriorPlansTable["&$BZ8&"]")>0),INDIRECT("PriorPlansTable["&$BZ8&"]"))) -> 205.7 | CB8: =MIN(IF((PriorPlansTable[Market]=$CA$6)*(PriorPlansTable[Metal]=CB$7)*(INDIRECT("PriorPlansTable["&$BZ8&"]")>0),INDIRECT("PriorPlansTable["&$BZ8&"]"))) -> 205.78 | CC8: =MIN(IF((PriorPlansTable[Market]=$CA$6)*(PriorPlansTable[Metal]=CC$7)*(INDIRECT("PriorPlansTable["&$BZ8&"]")>0),INDIRECT("PriorPlansTable["&$BZ8&"]"))) -> 263.78 | CD8: =MIN(IF((PriorPlansTable[Market]=$CA$6)*(PriorPlansTable[Metal]=CD$7)*(INDIRECT("PriorPlansTable["&$BZ8&"]")>0),INDIRECT("PriorPlansTable["&$BZ8&"]"))) -> 332.61 | CE8: =MIN(IF((PriorPlansTable[Market]=$CA$6)*(PriorPlansTable[Metal]=CE$7)*(INDIRECT("PriorPlansTable["&$BZ8&"]")>0),INDIRECT("PriorPlansTable["&$BZ8&"]"))) -> 581.41 | CF8: =MIN(IF((PriorPlansTable[Market]=$CA$6)*(PriorPlansTable[Metal]="Silver")*(INDIRECT("PriorPlansTable["&$BZ8&"]")>CC8),INDIRECT("PriorPlansTable["&$BZ8&"]"))) -> 345.42 | CG8: =MIN(IF((PriorPlansTable[Market]=$CG$6)*(PriorPlansTable[Metal]=CG$7)*(INDIRECT("PriorPlansTable["&$BZ8&"]")>0),INDIRECT("PriorPlansTable["&$BZ8&"]"))) -> 0 | CH8: =MIN(IF((PriorPlansTable[Market]=$CG$6)*(PriorPlansTable[Metal]=CH$7)*(INDIRECT("PriorPlansTable["&$BZ8&"]")>0),INDIRECT("PriorPlansTable["&$BZ8&"]"))) -> 189.44 | CI8: =MIN(IF((PriorPlansTable[Market]=$CG$6)*(PriorPlansTable[Metal]=CI$7)*(INDIRECT("PriorPlansTable["&$BZ8&"]")>0),INDIRECT("PriorPlansTable["&$BZ8&"]"))) -> 209.57 | CJ8: =MIN(IF((PriorPlansTable[Market]=$CG$6)*(PriorPlansTable[Metal]=CJ$7)*(INDIRECT("PriorPlansTable["&$BZ8&"]")>0),INDIRECT("PriorPlansTable["&$BZ8&"]"))) -> 246.05 | CK8: =MIN(IF((PriorPlansTable[Market]=$CG$6)*(PriorPlansTable[Metal]=CK$7)*(INDIRECT("PriorPlansTable["&$BZ8&"]")>0),INDIRECT("PriorPlansTable["&$BZ8&"]"))) -> 313.68 | CL8: =MIN(IF((PriorPlansTable[Market]=$CG$6)*(PriorPlansTable[Metal]="Silver")*(INDIRECT("PriorPlansTable["&$BZ8&"]")>CI8),INDIRECT("PriorPlansTable["&$BZ8&"]"))) -> 209.75
B9: Aetna | C9: Aetna | D9: Small Group | E9: 64844PA0070142 | F9: PA Silver HMO 5000 80% | G9: HMO | H9: Silver | I9: Off | J9: 307.32 | K9: 0 | L9: 0 | M9: 307.32 | N9: 307.32 | O9: 0 | P9: 307.32 | Q9: 0 | R9: 309.98 | S9: 309.98 | T9: 309.98 | U9: 390.77 | V9: 390.77 | W9: 390.77 | X9: 390.77 | Y9: 390.77 | Z9: 390.77 | AA9: 390.77 | AB9: 390.77 | AC9: 390.77 | AD9: 390.77 | AE9: 390.77 | AF9: 390.77 | AG9: 390.77 | AH9: 0 | AI9: 0 | AJ9: 0 | AK9: 0 | AL9: 0 | AM9: 0 | AN9: 0 | AO9: 0 | AP9: 0 | AQ9: 0 | AR9: 0 | AS9: 305.35 | AT9: 305.35 | AU9: 305.35 | AV9: 305.35 | AW9: 305.35 | AX9: 0 | AY9: 384.83 | AZ9: 384.83 | BA9: 384.83 | BB9: 384.83 | BC9: 384.83 | BD9: 384.83 | BE9: 384.83 | BF9: 384.83 | BG9: 384.83 | BH9: 384.83 | BI9: 385.14 | BJ9: 385.14 | BK9: 385.14 | BL9: 385.14 | BM9: 391.48 | BN9: 391.48 | BO9: 391.48 | BP9: 391.48 | BQ9: 391.48 | BR9: 365.35 | BS9: 365.35 | BT9: 365.35 | BU9: 365.35 | BV9: 365.35 | BW9: 365.35 | BX9: 365.35 | BZ9: Crawford | CA9: =MIN(IF((PriorPlansTable[Market]=$CA$6)*(PriorPlansTable[Metal]=CA$7)*(INDIRECT("PriorPlansTable["&$BZ9&"]")>0),INDIRECT("PriorPlansTable["&$BZ9&"]"))) -> 205.7 | CB9: =MIN(IF((PriorPlansTable[Market]=$CA$6)*(PriorPlansTable[Metal]=CB$7)*(INDIRECT("PriorPlansTable["&$BZ9&"]")>0),INDIRECT("PriorPlansTable["&$BZ9&"]"))) -> 205.78 | CC9: =MIN(IF((PriorPlansTable[Market]=$CA$6)*(PriorPlansTable[Metal]=CC$7)*(INDIRECT("PriorPlansTable["&$BZ9&"]")>0),INDIRECT("PriorPlansTable["&$BZ9&"]"))) -> 259.97 | CD9: =MIN(IF((PriorPlansTable[Market]=$CA$6)*(PriorPlansTable[Metal]=CD$7)*(INDIRECT("PriorPlansTable["&$BZ9&"]")>0),INDIRECT("PriorPlansTable["&$BZ9&"]"))) -> 327.07 | CE9: =MIN(IF((PriorPlansTable[Market]=$CA$6)*(PriorPlansTable[Metal]=CE$7)*(INDIRECT("PriorPlansTable["&$BZ9&"]")>0),INDIRECT("PriorPlansTable["&$BZ9&"]"))) -> 577.97 | CF9: =MIN(IF((PriorPlansTable[Market]=$CA$6)*(PriorPlansTable[Metal]="Silver")*(INDIRECT("PriorPlansTable["&$BZ9&"]")>CC9),INDIRECT("PriorPlansTable["&$BZ9&"]"))) -> 310.7 | CG9: =MIN(IF((PriorPlansTable[Market]=$CG$6)*(PriorPlansTable[Metal]=CG$7)*(INDIRECT("PriorPlansTable["&$BZ9&"]")>0),INDIRECT("PriorPlansTable["&$BZ9&"]"))) -> 0 | CH9: =MIN(IF((PriorPlansTable[Market]=$CG$6)*(PriorPlansTable[Metal]=CH$7)*(INDIRECT("PriorPlansTable["&$BZ9&"]")>0),INDIRECT("PriorPlansTable["&$BZ9&"]"))) -> 189.44 | CI9: =MIN(IF((PriorPlansTable[Market]=$CG$6)*(PriorPlansTable[Metal]=CI$7)*(INDIRECT("PriorPlansTable["&$BZ9&"]")>0),INDIRECT("PriorPlansTable["&$BZ9&"]"))) -> 209.57 | CJ9: =MIN(IF((PriorPlansTable[Market]=$CG$6)*(PriorPlansTable[Metal]=CJ$7)*(INDIRECT("PriorPlansTable["&$BZ9&"]")>0),INDIRECT("PriorPlansTable["&$BZ9&"]"))) -> 246.05 | CK9: =MIN(IF((PriorPlansTable[Market]=$CG$6)*(PriorPlansTable[Metal]=CK$7)*(INDIRECT("PriorPlansTable["&$BZ9&"]")>0),INDIRECT("PriorPlansTable["&$BZ9&"]"))) -> 313.68 | CL9: =MIN(IF((PriorPlansTable[Market]=$CG$6)*(PriorPlansTable[Metal]="Silver")*(INDIRECT("PriorPlansTable["&$BZ9&"]")>CI9),INDIRECT("PriorPlansTable["&$BZ9&"]"))) -> 209.75
B10: Aetna | C10: Aetna | D10: Small Group | E10: 18939PA0010025 | F10: PA Silver PPO 5000 80/50 | G10: PPO | H10: Silver | I10: Off | J10: 319.89 | K10: 0 | L10: 0 | M10: 319.89 | N10: 319.89 | O10: 0 | P10: 319.89 | Q10: 0 | R10: 322.65 | S10: 322.65 | T10: 322.65 | U10: 406.75 | V10: 406.75 | W10: 406.75 | X10: 406.75 | Y10: 406.75 | Z10: 406.75 | AA10: 406.75 | AB10: 406.75 | AC10: 406.75 | AD10: 406.75 | AE10: 406.75 | AF10: 406.75 | AG10: 406.75 | AH10: 0 | AI10: 0 | AJ10: 0 | AK10: 0 | AL10: 0 | AM10: 0 | AN10: 0 | AO10: 0 | AP10: 0 | AQ10: 0 | AR10: 0 | AS10: 317.83 | AT10: 317.83 | AU10: 317.83 | AV10: 317.83 | AW10: 317.83 | AX10: 0 | AY10: 400.56 | AZ10: 400.56 | BA10: 400.56 | BB10: 400.56 | BC10: 400.56 | BD10: 400.56 | BE10: 400.56 | BF10: 400.56 | BG10: 400.56 | BH10: 400.56 | BI10: 400.89 | BJ10: 400.89 | BK10: 400.89 | BL10: 400.89 | BM10: 407.49 | BN10: 407.49 | BO10: 407.49 | BP10: 407.49 | BQ10: 407.49 | BR10: 380.28 | BS10: 380.28 | BT10: 380.28 | BU10: 380.28 | BV10: 380.28 | BW10: 380.28 | BX10: 380.28 | BZ10: Erie | CA10: =MIN(IF((PriorPlansTable[Market]=$CA$6)*(PriorPlansTable[Metal]=CA$7)*(INDIRECT("PriorPlansTable["&$BZ10&"]")>0),INDIRECT("PriorPlansTable["&$BZ10&"]"))) -> 162.98 | CB10: =MIN(IF((PriorPlansTable[Market]=$CA$6)*(PriorPlansTable[Metal]=CB$7)*(INDIRECT("PriorPlansTable["&$BZ10&"]")>0),INDIRECT("PriorPlansTable["&$BZ10&"]"))) -> 190.33 | CC10: =MIN(IF((PriorPlansTable[Market]=$CA$6)*(PriorPlansTable[Metal]=CC$7)*(INDIRECT("PriorPlansTable["&$BZ10&"]")>0),INDIRECT("PriorPlansTable["&$BZ10&"]"))) -> 208.98 | CD10: =MIN(IF((PriorPlansTable[Market]=$CA$6)*(PriorPlansTable[Metal]=CD$7)*(INDIRECT("PriorPlansTable["&$BZ10&"]")>0),INDIRECT("PriorPlansTable["&$BZ10&"]"))) -> 263.53 | CE10: =MIN(IF((PriorPlansTable[Market]=$CA$6)*(PriorPlansTable[Metal]=CE$7)*(INDIRECT("PriorPlansTable["&$BZ10&"]")>0),INDIRECT("PriorPlansTable["&$BZ10&"]"))) -> 460.65 | CF10: =MIN(IF((PriorPlansTable[Market]=$CA$6)*(PriorPlansTable[Metal]="Silver")*(INDIRECT("PriorPlansTable["&$BZ10&"]")>CC10),INDIRECT("PriorPlansTable["&$BZ10&"]"))) -> 263.78 | CG10: =MIN(IF((PriorPlansTable[Market]=$CG$6)*(PriorPlansTable[Metal]=CG$7)*(INDIRECT("PriorPlansTable["&$BZ10&"]")>0),INDIRECT("PriorPlansTable["&$BZ10&"]"))) -> 0 | CH10: =MIN(IF((PriorPlansTable[Market]=$CG$6)*(PriorPlansTable[Metal]=CH$7)*(INDIRECT("PriorPlansTable["&$BZ10&"]")>0),INDIRECT("PriorPlansTable["&$BZ10&"]"))) -> 189.44 | CI10: =MIN(IF((PriorPlansTable[Market]=$CG$6)*(PriorPlansTable[Metal]=CI$7)*(INDIRECT("PriorPlansTable["&$BZ10&"]")>0),INDIRECT("PriorPlansTable["&$BZ10&"]"))) -> 201.72 | CJ10: =MIN(IF((PriorPlansTable[Market]=$CG$6)*(PriorPlansTable[Metal]=CJ$7)*(INDIRECT("PriorPlansTable["&$BZ10&"]")>0),INDIRECT("PriorPlansTable["&$BZ10&"]"))) -> 245.5 | CK10: =MIN(IF((PriorPlansTable[Market]=$CG$6)*(PriorPlansTable[Metal]=CK$7)*(INDIRECT("PriorPlansTable["&$BZ10&"]")>0),INDIRECT("PriorPlansTable["&$BZ10&"]"))) -> 313.68 | CL10: =MIN(IF((PriorPlansTable[Market]=$CG$6)*(PriorPlansTable[Metal]="Silver")*(INDIRECT("PriorPlansTable["&$BZ10&"]")>CI10),INDIRECT("PriorPlansTable["&$BZ10&"]"))) -> 202.06
B11: Aetna | C11: Aetna | D11: Small Group | E11: 33906PA0090128 | F11: PA Silver PPO 5000 80/50 | G11: PPO | H11: Silver | I11: Off | J11: 319.89 | K11: 0 | L11: 0 | M11: 319.89 | N11: 319.89 | O11: 0 | P11: 319.89 | Q11: 0 | R11: 322.65 | S11: 322.65 | T11: 322.65 | U11: 406.75 | V11: 406.75 | W11: 406.75 | X11: 406.75 | Y11: 406.75 | Z11: 406.75 | AA11: 406.75 | AB11: 406.75 | AC11: 406.75 | AD11: 406.75 | AE11: 406.75 | AF11: 406.75 | AG11: 406.75 | AH11: 0 | AI11: 0 | AJ11: 0 | AK11: 0 | AL11: 0 | AM11: 0 | AN11: 0 | AO11: 0 | AP11: 0 | AQ11: 0 | AR11: 0 | AS11: 317.83 | AT11: 317.83 | AU11: 317.83 | AV11: 317.83 | AW11: 317.83 | AX11: 0 | AY11: 400.56 | AZ11: 400.56 | BA11: 400.56 | BB11: 400.56 | BC11: 400.56 | BD11: 400.56 | BE11: 400.56 | BF11: 400.56 | BG11: 400.56 | BH11: 400.56 | BI11: 400.89 | BJ11: 400.89 | BK11: 400.89 | BL11: 400.89 | BM11: 407.49 | BN11: 407.49 | BO11: 407.49 | BP11: 407.49 | BQ11: 407.49 | BR11: 380.28 | BS11: 380.28 | BT11: 380.28 | BU11: 380.28 | BV11: 380.28 | BW11: 380.28 | BX11: 380.28 | BZ11: Forest | CA11: =MIN(IF((PriorPlansTable[Market]=$CA$6)*(PriorPlansTable[Metal]=CA$7)*(INDIRECT("PriorPlansTable["&$BZ11&"]")>0),INDIRECT("PriorPlansTable["&$BZ11&"]"))) -> 205.7 | CB11: =MIN(IF((PriorPlansTable[Market]=$CA$6)*(PriorPlansTable[Metal]=CB$7)*(INDIRECT("PriorPlansTable["&$BZ11&"]")>0),INDIRECT("PriorPlansTable["&$BZ11&"]"))) -> 205.78 | CC11: =MIN(IF((PriorPlansTable[Market]=$CA$6)*(PriorPlansTable[Metal]=CC$7)*(INDIRECT("PriorPlansTable["&$BZ11&"]")>0),INDIRECT("PriorPlansTable["&$BZ11&"]"))) -> 263.78 | CD11: =MIN(IF((PriorPlansTable[Market]=$CA$6)*(PriorPlansTable[Metal]=CD$7)*(INDIRECT("PriorPlansTable["&$BZ11&"]")>0),INDIRECT("PriorPlansTable["&$BZ11&"]"))) -> 332.61 | CE11: =MIN(IF((PriorPlansTable[Market]=$CA$6)*(PriorPlansTable[Metal]=CE$7)*(INDIRECT("PriorPlansTable["&$BZ11&"]")>0),INDIRECT("PriorPlansTable["&$BZ11&"]"))) -> 581.41 | CF11: =MIN(IF((PriorPlansTable[Market]=$CA$6)*(PriorPlansTable[Metal]="Silver")*(INDIRECT("PriorPlansTable["&$BZ11&"]")>CC11),INDIRECT("PriorPlansTable["&$BZ11&"]"))) -> 345.42 | CG11: =MIN(IF((PriorPlansTable[Market]=$CG$6)*(PriorPlansTable[Metal]=CG$7)*(INDIRECT("PriorPlansTable["&$BZ11&"]")>0),INDIRECT("PriorPlansTable["&$BZ11&"]"))) -> 0 | CH11: =MIN(IF((PriorPlansTable[Market]=$CG$6)*(PriorPlansTable[Metal]=CH$7)*(INDIRECT("PriorPlansTable["&$BZ11&"]")>0),INDIRECT("PriorPlansTable["&$BZ11&"]"))) -> 189.44 | CI11: =MIN(IF((PriorPlansTable[Market]=$CG$6)*(PriorPlansTable[Metal]=CI$7)*(INDIRECT("PriorPlansTable["&$BZ11&"]")>0),INDIRECT("PriorPlansTable["&$BZ11&"]"))) -> 209.57 | CJ11: =MIN(IF((PriorPlansTable[Market]=$CG$6)*(PriorPlansTable[Metal]=CJ$7)*(INDIRECT("PriorPlansTable["&$BZ11&"]")>0),INDIRECT("PriorPlansTable["&$BZ11&"]"))) -> 246.05 | CK11: =MIN(IF((PriorPlansTable[Market]=$CG$6)*(PriorPlansTable[Metal]=CK$7)*(INDIRECT("PriorPlansTable["&$BZ11&"]")>0),INDIRECT("PriorPlansTable["&$BZ11&"]"))) -> 313.68 | CL11: =MIN(IF((PriorPlansTable[Market]=$CG$6)*(PriorPlansTable[Metal]="Silver")*(INDIRECT("PriorPlansTable["&$BZ11&"]")>CI11),INDIRECT("PriorPlansTable["&$BZ11&"]"))) -> 209.75
B12: Capital Blue Cross | C12: Capital Blue Cross | D12: Individual | E12: 45127PA0020008 | F12: Silver PPO 5000/10/30 | Combined w/Med | G12: PPO | H12: Silver | I12: On/Off | J12: 0 | K12: 0 | L12: 0 | M12: 0 | N12: 0 | O12: 0 | P12: 0 | Q12: 0 | R12: 0 | S12: 0 | T12: 0 | U12: 0 | V12: 0 | W12: 0 | X12: 0 | Y12: 0 | Z12: 0 | AA12: 0 | AB12: 0 | AC12: 0 | AD12: 0 | AE12: 0 | AF12: 0 | AG12: 0 | AH12: 0 | AI12: 0 | AJ12: 0 | AK12: 0 | AL12: 0 | AM12: 0 | AN12: 0 | AO12: 0 | AP12: 0 | AQ12: 0 | AR12: 0 | AS12: 0 | AT12: 0 | AU12: 0 | AV12: 0 | AW12: 0 | AX12: 0 | AY12: 618.2 | AZ12: 618.2 | BA12: 618.2 | BB12: 618.2 | BC12: 0 | BD12: 618.2 | BE12: 618.2 | BF12: 618.2 | BG12: 618.2 | BH12: 618.2 | BI12: 636.74 | BJ12: 636.74 | BK12: 636.74 | BL12: 636.74 | BM12: 0 | BN12: 0 | BO12: 0 | BP12: 0 | BQ12: 0 | BR12: 667.65 | BS12: 667.65 | BT12: 667.65 | BU12: 667.65 | BV12: 667.65 | BW12: 0 | BX12: 667.65 | BZ12: McKean | CA12: =MIN(IF((PriorPlansTable[Market]=$CA$6)*(PriorPlansTable[Metal]=CA$7)*(INDIRECT("PriorPlansTable["&$BZ12&"]")>0),INDIRECT("PriorPlansTable["&$BZ12&"]"))) -> 205.7 | CB12: =MIN(IF((PriorPlansTable[Market]=$CA$6)*(PriorPlansTable[Metal]=CB$7)*(INDIRECT("PriorPlansTable["&$BZ12&"]")>0),INDIRECT("PriorPlansTable["&$BZ12&"]"))) -> 205.78 | CC12: =MIN(IF((PriorPlansTable[Market]=$CA$6)*(PriorPlansTable[Metal]=CC$7)*(INDIRECT("PriorPlansTable["&$BZ12&"]")>0),INDIRECT("PriorPlansTable["&$BZ12&"]"))) -> 263.78 | CD12: =MIN(IF((PriorPlansTable[Market]=$CA$6)*(PriorPlansTable[Metal]=CD$7)*(INDIRECT("PriorPlansTable["&$BZ12&"]")>0),INDIRECT("PriorPlansTable["&$BZ12&"]"))) -> 332.61 | CE12: =MIN(IF((PriorPlansTable[Market]=$CA$6)*(PriorPlansTable[Metal]=CE$7)*(INDIRECT("PriorPlansTable["&$BZ12&"]")>0),INDIRECT("PriorPlansTable["&$BZ12&"]"))) -> 581.41 | CF12: =MIN(IF((PriorPlansTable[Market]=$CA$6)*(PriorPlansTable[Metal]="Silver")*(INDIRECT("PriorPlansTable["&$BZ12&"]")>CC12),INDIRECT("PriorPlansTable["&$BZ12&"]"))) -> 345.42 | CG12: =MIN(IF((PriorPlansTable[Market]=$CG$6)*(PriorPlansTable[Metal]=CG$7)*(INDIRECT("PriorPlansTable["&$BZ12&"]")>0),INDIRECT("PriorPlansTable["&$BZ12&"]"))) -> 0 | CH12: =MIN(IF((PriorPlansTable[Market]=$CG$6)*(PriorPlansTable[Metal]=CH$7)*(INDIRECT("PriorPlansTable["&$BZ12&"]")>0),INDIRECT("PriorPlansTable["&$BZ12&"]"))) -> 189.44 | CI12: =MIN(IF((PriorPlansTable[Market]=$CG$6)*(PriorPlansTable[Metal]=CI$7)*(INDIRECT("PriorPlansTable["&$BZ12&"]")>0),INDIRECT("PriorPlansTable["&$BZ12&"]"))) -> 209.57 | CJ12: =MIN(IF((PriorPlansTable[Market]=$CG$6)*(PriorPlansTable[Metal]=CJ$7)*(INDIRECT("PriorPlansTable["&$BZ12&"]")>0),INDIRECT("PriorPlansTable["&$BZ12&"]"))) -> 246.05 | CK12: =MIN(IF((PriorPlansTable[Market]=$CG$6)*(PriorPlansTable[Metal]=CK$7)*(INDIRECT("PriorPlansTable["&$BZ12&"]")>0),INDIRECT("PriorPlansTable["&$BZ12&"]"))) -> 313.68 | CL12: =MIN(IF((PriorPlansTable[Market]=$CG$6)*(PriorPlansTable[Metal]="Silver")*(INDIRECT("PriorPlansTable["&$BZ12&"]")>CI12),INDIRECT("PriorPlansTable["&$BZ12&"]"))) -> 209.75
B13: Capital Blue Cross | C13: Capital Blue Cross | D13: Individual | E13: 45127PA0020013 | F13: Gold PPO 2000/10/20 | Combined w/Med | G13: PPO | H13: Gold | I13: On/Off | J13: 0 | K13: 0 | L13: 0 | M13: 0 | N13: 0 | O13: 0 | P13: 0 | Q13: 0 | R13: 0 | S13: 0 | T13: 0 | U13: 0 | V13: 0 | W13: 0 | X13: 0 | Y13: 0 | Z13: 0 | AA13: 0 | AB13: 0 | AC13: 0 | AD13: 0 | AE13: 0 | AF13: 0 | AG13: 0 | AH13: 0 | AI13: 0 | AJ13: 0 | AK13: 0 | AL13: 0 | AM13: 0 | AN13: 0 | AO13: 0 | AP13: 0 | AQ13: 0 | AR13: 0 | AS13: 0 | AT13: 0 | AU13: 0 | AV13: 0 | AW13: 0 | AX13: 0 | AY13: 563.36 | AZ13: 563.36 | BA13: 563.36 | BB13: 563.36 | BC13: 0 | BD13: 563.36 | BE13: 563.36 | BF13: 563.36 | BG13: 563.36 | BH13: 563.36 | BI13: 580.26 | BJ13: 580.26 | BK13: 580.26 | BL13: 580.26 | BM13: 0 | BN13: 0 | BO13: 0 | BP13: 0 | BQ13: 0 | BR13: 608.43 | BS13: 608.43 | BT13: 608.43 | BU13: 608.43 | BV13: 608.43 | BW13: 0 | BX13: 608.43 | BZ13: Mercer | CA13: =MIN(IF((PriorPlansTable[Market]=$CA$6)*(PriorPlansTable[Metal]=CA$7)*(INDIRECT("PriorPlansTable["&$BZ13&"]")>0),INDIRECT("PriorPlansTable["&$BZ13&"]"))) -> 162.98 | CB13: =MIN(IF((PriorPlansTable[Market]=$CA$6)*(PriorPlansTable[Metal]=CB$7)*(INDIRECT("PriorPlansTable["&$BZ13&"]")>0),INDIRECT("PriorPlansTable["&$BZ13&"]"))) -> 190.33 | CC13: =MIN(IF((PriorPlansTable[Market]=$CA$6)*(PriorPlansTable[Metal]=CC$7)*(INDIRECT("PriorPlansTable["&$BZ13&"]")>0),INDIRECT("PriorPlansTable["&$BZ13&"]"))) -> 208.98 | CD13: =MIN(IF((PriorPlansTable[Market]=$CA$6)*(PriorPlansTable[Metal]=CD$7)*(INDIRECT("PriorPlansTable["&$BZ13&"]")>0),INDIRECT("PriorPlansTable["&$BZ13&"]"))) -> 263.53 | CE13: =MIN(IF((PriorPlansTable[Market]=$CA$6)*(PriorPlansTable[Metal]=CE$7)*(INDIRECT("PriorPlansTable["&$BZ13&"]")>0),INDIRECT("PriorPlansTable["&$BZ13&"]"))) -> 460.65 | CF13: =MIN(IF((PriorPlansTable[Market]=$CA$6)*(PriorPlansTable[Metal]="Silver")*(INDIRECT("PriorPlansTable["&$BZ13&"]")>CC13),INDIRECT("PriorPlansTable["&$BZ13&"]"))) -> 263.78 | CG13: =MIN(IF((PriorPlansTable[Market]=$CG$6)*(PriorPlansTable[Metal]=CG$7)*(INDIRECT("PriorPlansTable["&$BZ13&"]")>0),INDIRECT("PriorPlansTable["&$BZ13&"]"))) -> 0 | CH13: =MIN(IF((PriorPlansTable[Market]=$CG$6)*(PriorPlansTable[Metal]=CH$7)*(INDIRECT("PriorPlansTable["&$BZ13&"]")>0),INDIRECT("PriorPlansTable["&$BZ13&"]"))) -> 189.44 | CI13: =MIN(IF((PriorPlansTable[Market]=$CG$6)*(PriorPlansTable[Metal]=CI$7)*(INDIRECT("PriorPlansTable["&$BZ13&"]")>0),INDIRECT("PriorPlansTable["&$BZ13&"]"))) -> 201.72 | CJ13: =MIN(IF((PriorPlansTable[Market]=$CG$6)*(PriorPlansTable[Metal]=CJ$7)*(INDIRECT("PriorPlansTable["&$BZ13&"]")>0),INDIRECT("PriorPlansTable["&$BZ13&"]"))) -> 245.5 | CK13: =MIN(IF((PriorPlansTable[Market]=$CG$6)*(PriorPlansTable[Metal]=CK$7)*(INDIRECT("PriorPlansTable["&$BZ13&"]")>0),INDIRECT("PriorPlansTable["&$BZ13&"]"))) -> 313.68 | CL13: =MIN(IF((PriorPlansTable[Market]=$CG$6)*(PriorPlansTable[Metal]="Silver")*(INDIRECT("PriorPlansTable["&$BZ13&"]")>CI13),INDIRECT("PriorPlansTable["&$BZ13&"]"))) -> 202.06
B14: Capital Blue Cross | C14: Capital Blue Cross | D14: Individual | E14: 45127PA0020020 | F14: Bronze PPO 7350/0/60 | Combined w/Med | G14: PPO | H14: Bronze | I14: On/Off | J14: 0 | K14: 0 | L14: 0 | M14: 0 | N14: 0 | O14: 0 | P14: 0 | Q14: 0 | R14: 0 | S14: 0 | T14: 0 | U14: 0 | V14: 0 | W14: 0 | X14: 0 | Y14: 0 | Z14: 0 | AA14: 0 | AB14: 0 | AC14: 0 | AD14: 0 | AE14: 0 | AF14: 0 | AG14: 0 | AH14: 0 | AI14: 0 | AJ14: 0 | AK14: 0 | AL14: 0 | AM14: 0 | AN14: 0 | AO14: 0 | AP14: 0 | AQ14: 0 | AR14: 0 | AS14: 0 | AT14: 0 | AU14: 0 | AV14: 0 | AW14: 0 | AX14: 0 | AY14: 414.3 | AZ14: 414.3 | BA14: 414.3 | BB14: 414.3 | BC14: 0 | BD14: 414.3 | BE14: 414.3 | BF14: 414.3 | BG14: 414.3 | BH14: 414.3 | BI14: 426.73 | BJ14: 426.73 | BK14: 426.73 | BL14: 426.73 | BM14: 0 | BN14: 0 | BO14: 0 | BP14: 0 | BQ14: 0 | BR14: 447.44 | BS14: 447.44 | BT14: 447.44 | BU14: 447.44 | BV14: 447.44 | BW14: 0 | BX14: 447.44 | BZ14: Venango | CA14: =MIN(IF((PriorPlansTable[Market]=$CA$6)*(PriorPlansTable[Metal]=CA$7)*(INDIRECT("PriorPlansTable["&$BZ14&"]")>0),INDIRECT("PriorPlansTable["&$BZ14&"]"))) -> 162.98 | CB14: =MIN(IF((PriorPlansTable[Market]=$CA$6)*(PriorPlansTable[Metal]=CB$7)*(INDIRECT("PriorPlansTable["&$BZ14&"]")>0),INDIRECT("PriorPlansTable["&$BZ14&"]"))) -> 190.33 | CC14: =MIN(IF((PriorPlansTable[Market]=$CA$6)*(PriorPlansTable[Metal]=CC$7)*(INDIRECT("PriorPlansTable["&$BZ14&"]")>0),INDIRECT("PriorPlansTable["&$BZ14&"]"))) -> 208.98 | CD14: =MIN(IF((PriorPlansTable[Market]=$CA$6)*(PriorPlansTable[Metal]=CD$7)*(INDIRECT("PriorPlansTable["&$BZ14&"]")>0),INDIRECT("PriorPlansTable["&$BZ14&"]"))) -> 263.53 | CE14: =MIN(IF((PriorPlansTable[Market]=$CA$6)*(PriorPlansTable[Metal]=CE$7)*(INDIRECT("PriorPlansTable["&$BZ14&"]")>0),INDIRECT("PriorPlansTable["&$BZ14&"]"))) -> 460.65 | CF14: =MIN(IF((PriorPlansTable[Market]=$CA$6)*(PriorPlansTable[Metal]="Silver")*(INDIRECT("PriorPlansTable["&$BZ14&"]")>CC14),INDIRECT("PriorPlansTable["&$BZ14&"]"))) -> 263.78 | CG14: =MIN(IF((PriorPlansTable[Market]=$CG$6)*(PriorPlansTable[Metal]=CG$7)*(INDIRECT("PriorPlansTable["&$BZ14&"]")>0),INDIRECT("PriorPlansTable["&$BZ14&"]"))) -> 0 | CH14: =MIN(IF((PriorPlansTable[Market]=$CG$6)*(PriorPlansTable[Metal]=CH$7)*(INDIRECT("PriorPlansTable["&$BZ14&"]")>0),INDIRECT("PriorPlansTable["&$BZ14&"]"))) -> 189.44 | CI14: =MIN(IF((PriorPlansTable[Market]=$CG$6)*(PriorPlansTable[Metal]=CI$7)*(INDIRECT("PriorPlansTable["&$BZ14&"]")>0),INDIRECT("PriorPlansTable["&$BZ14&"]"))) -> 201.72 | CJ14: =MIN(IF((PriorPlansTable[Market]=$CG$6)*(PriorPlansTable[Metal]=CJ$7)*(INDIRECT("PriorPlansTable["&$BZ14&"]")>0),INDIRECT("PriorPlansTable["&$BZ14&"]"))) -> 245.5 | CK14: =MIN(IF((PriorPlansTable[Market]=$CG$6)*(PriorPlansTable[Metal]=CK$7)*(INDIRECT("PriorPlansTable["&$BZ14&"]")>0),INDIRECT("PriorPlansTable["&$BZ14&"]"))) -> 313.68 | CL14: =MIN(IF((PriorPlansTable[Market]=$CG$6)*(PriorPlansTable[Metal]="Silver")*(INDIRECT("PriorPlansTable["&$BZ14&"]")>CI14),INDIRECT("PriorPlansTable["&$BZ14&"]"))) -> 202.06
B15: Capital Blue Cross | C15: Capital Blue Cross | D15: Individual | E15: 45127PA0020021 | F15: Silver PPO 4950/10/30 | Combined w/Med | G15: PPO | H15: Silver | I15: Off | J15: 0 | K15: 0 | L15: 0 | M15: 0 | N15: 0 | O15: 0 | P15: 0 | Q15: 0 | R15: 0 | S15: 0 | T15: 0 | U15: 0 | V15: 0 | W15: 0 | X15: 0 | Y15: 0 | Z15: 0 | AA15: 0 | AB15: 0 | AC15: 0 | AD15: 0 | AE15: 0 | AF15: 0 | AG15: 0 | AH15: 0 | AI15: 0 | AJ15: 0 | AK15: 0 | AL15: 0 | AM15: 0 | AN15: 0 | AO15: 0 | AP15: 0 | AQ15: 0 | AR15: 0 | AS15: 0 | AT15: 0 | AU15: 0 | AV15: 0 | AW15: 0 | AX15: 0 | AY15: 469.02 | AZ15: 469.02 | BA15: 469.02 | BB15: 469.02 | BC15: 0 | BD15: 469.02 | BE15: 469.02 | BF15: 469.02 | BG15: 469.02 | BH15: 469.02 | BI15: 483.09 | BJ15: 483.09 | BK15: 483.09 | BL15: 483.09 | BM15: 0 | BN15: 0 | BO15: 0 | BP15: 0 | BQ15: 0 | BR15: 506.54 | BS15: 506.54 | BT15: 506.54 | BU15: 506.54 | BV15: 506.54 | BW15: 0 | BX15: 506.54 | BZ15: Warren | CA15: =MIN(IF((PriorPlansTable[Market]=$CA$6)*(PriorPlansTable[Metal]=CA$7)*(INDIRECT("PriorPlansTable["&$BZ15&"]")>0),INDIRECT("PriorPlansTable["&$BZ15&"]"))) -> 205.7 | CB15: =MIN(IF((PriorPlansTable[Market]=$CA$6)*(PriorPlansTable[Metal]=CB$7)*(INDIRECT("PriorPlansTable["&$BZ15&"]")>0),INDIRECT("PriorPlansTable["&$BZ15&"]"))) -> 205.78 | CC15: =MIN(IF((PriorPlansTable[Market]=$CA$6)*(PriorPlansTable[Metal]=CC$7)*(INDIRECT("PriorPlansTable["&$BZ15&"]")>0),INDIRECT("PriorPlansTable["&$BZ15&"]"))) -> 263.78 | CD15: =MIN(IF((PriorPlansTable[Market]=$CA$6)*(PriorPlansTable[Metal]=CD$7)*(INDIRECT("PriorPlansTable["&$BZ15&"]")>0),INDIRECT("PriorPlansTable["&$BZ15&"]"))) -> 332.61 | CE15: =MIN(IF((PriorPlansTable[Market]=$CA$6)*(PriorPlansTable[Metal]=CE$7)*(INDIRECT("PriorPlansTable["&$BZ15&"]")>0),INDIRECT("PriorPlansTable["&$BZ15&"]"))) -> 581.41 | CF15: =MIN(IF((PriorPlansTable[Market]=$CA$6)*(PriorPlansTable[Metal]="Silver")*(INDIRECT("PriorPlansTable["&$BZ15&"]")>CC15),INDIRECT("PriorPlansTable["&$BZ15&"]"))) -> 345.42 | CG15: =MIN(IF((PriorPlansTable[Market]=$CG$6)*(PriorPlansTable[Metal]=CG$7)*(INDIRECT("PriorPlansTable["&$BZ15&"]")>0),INDIRECT("PriorPlansTable["&$BZ15&"]"))) -> 0 | CH15: =MIN(IF((PriorPlansTable[Market]=$CG$6)*(PriorPlansTable[Metal]=CH$7)*(INDIRECT("PriorPlansTable["&$BZ15&"]")>0),INDIRECT("PriorPlansTable["&$BZ15&"]"))) -> 189.44 | CI15: =MIN(IF((PriorPlansTable[Market]=$CG$6)*(PriorPlansTable[Metal]=CI$7)*(INDIRECT("PriorPlansTable["&$BZ15&"]")>0),INDIRECT("PriorPlansTable["&$BZ15&"]"))) -> 209.57 | CJ15: =MIN(IF((PriorPlansTable[Market]=$CG$6)*(PriorPlansTable[Metal]=CJ$7)*(INDIRECT("PriorPlansTable["&$BZ15&"]")>0),INDIRECT("PriorPlansTable["&$BZ15&"]"))) -> 246.05 | CK15: =MIN(IF((PriorPlansTable[Market]=$CG$6)*(PriorPlansTable[Metal]=CK$7)*(INDIRECT("PriorPlansTable["&$BZ15&"]")>0),INDIRECT("PriorPlansTable["&$BZ15&"]"))) -> 313.68 | CL15: =MIN(IF((PriorPlansTable[Market]=$CG$6)*(PriorPlansTable[Metal]="Silver")*(INDIRECT("PriorPlansTable["&$BZ15&"]")>CI15),INDIRECT("PriorPlansTable["&$BZ15&"]"))) -> 209.75
B16: Capital Blue Cross | C16: Capital Blue Cross | D16: Individual | E16: 82795PA0120001 | F16: Silver CareConnect 3000/0/35 | G16: Gatekeeper PPO | H16: Silver | I16: Off | J16: 0 | K16: 0 | L16: 0 | M16: 0 | N16: 0 | O16: 0 | P16: 0 | Q16: 0 | R16: 0 | S16: 0 | T16: 0 | U16: 0 | V16: 0 | W16: 0 | X16: 0 | Y16: 0 | Z16: 0 | AA16: 0 | AB16: 0 | AC16: 0 | AD16: 0 | AE16: 0 | AF16: 0 | AG16: 0 | AH16: 0 | AI16: 0 | AJ16: 0 | AK16: 0 | AL16: 0 | AM16: 0 | AN16: 0 | AO16: 0 | AP16: 0 | AQ16: 0 | AR16: 0 | AS16: 0 | AT16: 0 | AU16: 0 | AV16: 0 | AW16: 0 | AX16: 0 | AY16: 0 | AZ16: 0 | BA16: 0 | BB16: 0 | BC16: 0 | BD16: 0 | BE16: 0 | BF16: 0 | BG16: 0 | BH16: 0 | BI16: 0 | BJ16: 0 | BK16: 0 | BL16: 0 | BM16: 0 | BN16: 0 | BO16: 0 | BP16: 0 | BQ16: 0 | BR16: 438.75 | BS16: 438.75 | BT16: 0 | BU16: 0 | BV16: 0 | BW16: 0 | BX16: 438.75 | BZ16: Cameron | CA16: =MIN(IF((PriorPlansTable[Market]=$CA$6)*(PriorPlansTable[Metal]=CA$7)*(INDIRECT("PriorPlansTable["&$BZ16&"]")>0),INDIRECT("PriorPlansTable["&$BZ16&"]"))) -> 205.7 | CB16: =MIN(IF((PriorPlansTable[Market]=$CA$6)*(PriorPlansTable[Metal]=CB$7)*(INDIRECT("PriorPlansTable["&$BZ16&"]")>0),INDIRECT("PriorPlansTable["&$BZ16&"]"))) -> 205.78 | CC16: =MIN(IF((PriorPlansTable[Market]=$CA$6)*(PriorPlansTable[Metal]=CC$7)*(INDIRECT("PriorPlansTable["&$BZ16&"]")>0),INDIRECT("PriorPlansTable["&$BZ16&"]"))) -> 263.78 | CD16: =MIN(IF((PriorPlansTable[Market]=$CA$6)*(PriorPlansTable[Metal]=CD$7)*(INDIRECT("PriorPlansTable["&$BZ16&"]")>0),INDIRECT("PriorPlansTable["&$BZ16&"]"))) -> 332.61 | CE16: =MIN(IF((PriorPlansTable[Market]=$CA$6)*(PriorPlansTable[Metal]=CE$7)*(INDIRECT("PriorPlansTable["&$BZ16&"]")>0),INDIRECT("PriorPlansTable["&$BZ16&"]"))) -> 581.41 | CF16: =MIN(IF((PriorPlansTable[Market]=$CA$6)*(PriorPlansTable[Metal]="Silver")*(INDIRECT("PriorPlansTable["&$BZ16&"]")>CC16),INDIRECT("PriorPlansTable["&$BZ16&"]"))) -> 315.18 | CG16: =MIN(IF((PriorPlansTable[Market]=$CG$6)*(PriorPlansTable[Metal]=CG$7)*(INDIRECT("PriorPlansTable["&$BZ16&"]")>0),INDIRECT("PriorPlansTable["&$BZ16&"]"))) -> 0 | CH16: =MIN(IF((PriorPlansTable[Market]=$CG$6)*(PriorPlansTable[Metal]=CH$7)*(INDIRECT("PriorPlansTable["&$BZ16&"]")>0),INDIRECT("PriorPlansTable["&$BZ16&"]"))) -> 189.44 | CI16: =MIN(IF((PriorPlansTable[Market]=$CG$6)*(PriorPlansTable[Metal]=CI$7)*(INDIRECT("PriorPlansTable["&$BZ16&"]")>0),INDIRECT("PriorPlansTable["&$BZ16&"]"))) -> 209.57 | CJ16: =MIN(IF((PriorPlansTable[Market]=$CG$6)*(PriorPlansTable[Metal]=CJ$7)*(INDIRECT("PriorPlansTable["&$BZ16&"]")>0),INDIRECT("PriorPlansTable["&$BZ16&"]"))) -> 246.05 | CK16: =MIN(IF((PriorPlansTable[Market]=$CG$6)*(PriorPlansTable[Metal]=CK$7)*(INDIRECT("PriorPlansTable["&$BZ16&"]")>0),INDIRECT("PriorPlansTable["&$BZ16&"]"))) -> 328.68 | CL16: =MIN(IF((PriorPlansTable[Market]=$CG$6)*(PriorPlansTable[Metal]="Silver")*(INDIRECT("PriorPlansTable["&$BZ16&"]")>CI16),INDIRECT("PriorPlansTable["&$BZ16&"]"))) -> 209.75
B17: Capital Blue Cross | C17: Capital Blue Cross | D17: Individual | E17: 53789PA0100004 | F17: Catastrophic HMO 7350/0/75 | Combined w/Med | G17: HMO | H17: Catastrophic | I17: Off | J17: 0 | K17: 0 | L17: 0 | M17: 0 | N17: 0 | O17: 0 | P17: 0 | Q17: 0 | R17: 0 | S17: 0 | T17: 0 | U17: 0 | V17: 0 | W17: 0 | X17: 0 | Y17: 0 | Z17: 0 | AA17: 0 | AB17: 0 | AC17: 0 | AD17: 0 | AE17: 0 | AF17: 0 | AG17: 0 | AH17: 0 | AI17: 0 | AJ17: 0 | AK17: 0 | AL17: 0 | AM17: 0 | AN17: 0 | AO17: 0 | AP17: 0 | AQ17: 0 | AR17: 0 | AS17: 0 | AT17: 0 | AU17: 0 | AV17: 0 | AW17: 0 | AX17: 0 | AY17: 221.05 | AZ17: 221.05 | BA17: 221.05 | BB17: 221.05 | BC17: 0 | BD17: 221.05 | BE17: 221.05 | BF17: 221.05 | BG17: 221.05 | BH17: 221.05 | BI17: 227.68 | BJ17: 227.68 | BK17: 227.68 | BL17: 227.68 | BM17: 0 | BN17: 0 | BO17: 0 | BP17: 0 | BQ17: 0 | BR17: 238.73 | BS17: 238.73 | BT17: 238.73 | BU17: 238.73 | BV17: 238.73 | BW17: 0 | BX17: 238.73 | BZ17: Elk | CA17: =MIN(IF((PriorPlansTable[Market]=$CA$6)*(PriorPlansTable[Metal]=CA$7)*(INDIRECT("PriorPlansTable["&$BZ17&"]")>0),INDIRECT("PriorPlansTable["&$BZ17&"]"))) -> 205.7 | CB17: =MIN(IF((PriorPlansTable[Market]=$CA$6)*(PriorPlansTable[Metal]=CB$7)*(INDIRECT("PriorPlansTable["&$BZ17&"]")>0),INDIRECT("PriorPlansTable["&$BZ17&"]"))) -> 205.78 | CC17: =MIN(IF((PriorPlansTable[Market]=$CA$6)*(PriorPlansTable[Metal]=CC$7)*(INDIRECT("PriorPlansTable["&$BZ17&"]")>0),INDIRECT("PriorPlansTable["&$BZ17&"]"))) -> 263.78 | CD17: =MIN(IF((PriorPlansTable[Market]=$CA$6)*(PriorPlansTable[Metal]=CD$7)*(INDIRECT("PriorPlansTable["&$BZ17&"]")>0),INDIRECT("PriorPlansTable["&$BZ17&"]"))) -> 332.61 | CE17: =MIN(IF((PriorPlansTable[Market]=$CA$6)*(PriorPlansTable[Metal]=CE$7)*(INDIRECT("PriorPlansTable["&$BZ17&"]")>0),INDIRECT("PriorPlansTable["&$BZ17&"]"))) -> 581.41 | CF17: =MIN(IF((PriorPlansTable[Market]=$CA$6)*(PriorPlansTable[Metal]="Silver")*(INDIRECT("PriorPlansTable["&$BZ17&"]")>CC17),INDIRECT("PriorPlansTable["&$BZ17&"]"))) -> 345.42 | CG17: =MIN(IF((PriorPlansTable[Market]=$CG$6)*(PriorPlansTable[Metal]=CG$7)*(INDIRECT("PriorPlansTable["&$BZ17&"]")>0),INDIRECT("PriorPlansTable["&$BZ17&"]"))) -> 0 | CH17: =MIN(IF((PriorPlansTable[Market]=$CG$6)*(PriorPlansTable[Metal]=CH$7)*(INDIRECT("PriorPlansTable["&$BZ17&"]")>0),INDIRECT("PriorPlansTable["&$BZ17&"]"))) -> 189.44 | CI17: =MIN(IF((PriorPlansTable[Market]=$CG$6)*(PriorPlansTable[Metal]=CI$7)*(INDIRECT("PriorPlansTable["&$BZ17&"]")>0),INDIRECT("PriorPlansTable["&$BZ17&"]"))) -> 209.57 | CJ17: =MIN(IF((PriorPlansTable[Market]=$CG$6)*(PriorPlansTable[Metal]=CJ$7)*(INDIRECT("PriorPlansTable["&$BZ17&"]")>0),INDIRECT("PriorPlansTable["&$BZ17&"]"))) -> 246.05 | CK17: =MIN(IF((PriorPlansTable[Market]=$CG$6)*(PriorPlansTable[Metal]=CK$7)*(INDIRECT("PriorPlansTable["&$BZ17&"]")>0),INDIRECT("PriorPlansTable["&$BZ17&"]"))) -> 328.68 | CL17: =MIN(IF((PriorPlansTable[Market]=$CG$6)*(PriorPlansTable[Metal]="Silver")*(INDIRECT("PriorPlansTable["&$BZ17&"]")>CI17),INDIRECT("PriorPlansTable["&$BZ17&"]"))) -> 209.75
B18: Capital Blue Cross | C18: Capital Blue Cross | D18: Individual | E18: 53789PA0100008 | F18: Bronze HMO 7350/0/60 | Combined w/Med | G18: HMO | H18: Bronze | I18: Off | J18: 0 | K18: 0 | L18: 0 | M18: 0 | N18: 0 | O18: 0 | P18: 0 | Q18: 0 | R18: 0 | S18: 0 | T18: 0 | U18: 0 | V18: 0 | W18: 0 | X18: 0 | Y18: 0 | Z18: 0 | AA18: 0 | AB18: 0 | AC18: 0 | AD18: 0 | AE18: 0 | AF18: 0 | AG18: 0 | AH18: 0 | AI18: 0 | AJ18: 0 | AK18: 0 | AL18: 0 | AM18: 0 | AN18: 0 | AO18: 0 | AP18: 0 | AQ18: 0 | AR18: 0 | AS18: 0 | AT18: 0 | AU18: 0 | AV18: 0 | AW18: 0 | AX18: 0 | AY18: 356.54 | AZ18: 356.54 | BA18: 356.54 | BB18: 356.54 | BC18: 0 | BD18: 356.54 | BE18: 356.54 | BF18: 356.54 | BG18: 356.54 | BH18: 356.54 | BI18: 367.24 | BJ18: 367.24 | BK18: 367.24 | BL18: 367.24 | BM18: 0 | BN18: 0 | BO18: 0 | BP18: 0 | BQ18: 0 | BR18: 385.07 | BS18: 385.07 | BT18: 385.07 | BU18: 385.07 | BV18: 385.07 | BW18: 0 | BX18: 385.07 | BZ18: Potter | CA18: =MIN(IF((PriorPlansTable[Market]=$CA$6)*(PriorPlansTable[Metal]=CA$7)*(INDIRECT("PriorPlansTable["&$BZ18&"]")>0),INDIRECT("PriorPlansTable["&$BZ18&"]"))) -> 205.7 | CB18: =MIN(IF((PriorPlansTable[Market]=$CA$6)*(PriorPlansTable[Metal]=CB$7)*(INDIRECT("PriorPlansTable["&$BZ18&"]")>0),INDIRECT("PriorPlansTable["&$BZ18&"]"))) -> 205.78 | CC18: =MIN(IF((PriorPlansTable[Market]=$CA$6)*(PriorPlansTable[Metal]=CC$7)*(INDIRECT("PriorPlansTable["&$BZ18&"]")>0),INDIRECT("PriorPlansTable["&$BZ18&"]"))) -> 263.78 | CD18: =MIN(IF((PriorPlansTable[Market]=$CA$6)*(PriorPlansTable[Metal]=CD$7)*(INDIRECT("PriorPlansTable["&$BZ18&"]")>0),INDIRECT("PriorPlansTable["&$BZ18&"]"))) -> 332.61 | CE18: =MIN(IF((PriorPlansTable[Market]=$CA$6)*(PriorPlansTable[Metal]=CE$7)*(INDIRECT("PriorPlansTable["&$BZ18&"]")>0),INDIRECT("PriorPlansTable["&$BZ18&"]"))) -> 581.41 | CF18: =MIN(IF((PriorPlansTable[Market]=$CA$6)*(PriorPlansTable[Metal]="Silver")*(INDIRECT("PriorPlansTable["&$BZ18&"]")>CC18),INDIRECT("PriorPlansTable["&$BZ18&"]"))) -> 315.18 | CG18: =MIN(IF((PriorPlansTable[Market]=$CG$6)*(PriorPlansTable[Metal]=CG$7)*(INDIRECT("PriorPlansTable["&$BZ18&"]")>0),INDIRECT("PriorPlansTable["&$BZ18&"]"))) -> 0 | CH18: =MIN(IF((PriorPlansTable[Market]=$CG$6)*(PriorPlansTable[Metal]=CH$7)*(INDIRECT("PriorPlansTable["&$BZ18&"]")>0),INDIRECT("PriorPlansTable["&$BZ18&"]"))) -> 189.44 | CI18: =MIN(IF((PriorPlansTable[Market]=$CG$6)*(PriorPlansTable[Metal]=CI$7)*(INDIRECT("PriorPlansTable["&$BZ18&"]")>0),INDIRECT("PriorPlansTable["&$BZ18&"]"))) -> 209.57 | CJ18: =MIN(IF((PriorPlansTable[Market]=$CG$6)*(PriorPlansTable[Metal]=CJ$7)*(INDIRECT("PriorPlansTable["&$BZ18&"]")>0),INDIRECT("PriorPlansTable["&$BZ18&"]"))) -> 246.05 | CK18: =MIN(IF((PriorPlansTable[Market]=$CG$6)*(PriorPlansTable[Metal]=CK$7)*(INDIRECT("PriorPlansTable["&$BZ18&"]")>0),INDIRECT("PriorPlansTable["&$BZ18&"]"))) -> 328.68 | CL18: =MIN(IF((PriorPlansTable[Market]=$CG$6)*(PriorPlansTable[Metal]="Silver")*(INDIRECT("PriorPlansTable["&$BZ18&"]")>CI18),INDIRECT("PriorPlansTable["&$BZ18&"]"))) -> 209.75
B19: Capital Blue Cross | C19: Capital Blue Cross | D19: Small Group | E19: 45127PA0010054 | F19: Platinum PPO 0/0/15 | Rx 250 | G19: PPO | H19: Platinum | I19: Off | J19: 0 | K19: 0 | L19: 0 | M19: 0 | N19: 0 | O19: 0 | P19: 0 | Q19: 0 | R19: 0 | S19: 0 | T19: 0 | U19: 0 | V19: 0 | W19: 0 | X19: 0 | Y19: 0 | Z19: 0 | AA19: 0 | AB19: 0 | AC19: 0 | AD19: 0 | AE19: 0 | AF19: 0 | AG19: 0 | AH19: 0 | AI19: 0 | AJ19: 0 | AK19: 0 | AL19: 0 | AM19: 0 | AN19: 0 | AO19: 0 | AP19: 0 | AQ19: 0 | AR19: 0 | AS19: 0 | AT19: 0 | AU19: 0 | AV19: 0 | AW19: 0 | AX19: 0 | AY19: 455.77 | AZ19: 455.77 | BA19: 455.77 | BB19: 455.77 | BC19: 455.77 | BD19: 455.77 | BE19: 455.77 | BF19: 455.77 | BG19: 455.77 | BH19: 455.77 | BI19: 469.44 | BJ19: 469.44 | BK19: 469.44 | BL19: 469.44 | BM19: 0 | BN19: 0 | BO19: 0 | BP19: 0 | BQ19: 0 | BR19: 492.23 | BS19: 492.23 | BT19: 492.23 | BU19: 492.23 | BV19: 492.23 | BW19: 492.23 | BX19: 492.23 | BZ19: Bradford | CA19: =MIN(IF((PriorPlansTable[Market]=$CA$6)*(PriorPlansTable[Metal]=CA$7)*(INDIRECT("PriorPlansTable["&$BZ19&"]")>0),INDIRECT("PriorPlansTable["&$BZ19&"]"))) -> 225.2 | CB19: =MIN(IF((PriorPlansTable[Market]=$CA$6)*(PriorPlansTable[Metal]=CB$7)*(INDIRECT("PriorPlansTable["&$BZ19&"]")>0),INDIRECT("PriorPlansTable["&$BZ19&"]"))) -> 270.35 | CC19: =MIN(IF((PriorPlansTable[Market]=$CA$6)*(PriorPlansTable[Metal]=CC$7)*(INDIRECT("PriorPlansTable["&$BZ19&"]")>0),INDIRECT("PriorPlansTable["&$BZ19&"]"))) -> 310.49 | CD19: =MIN(IF((PriorPlansTable[Market]=$CA$6)*(PriorPlansTable[Metal]=CD$7)*(INDIRECT("PriorPlansTable["&$BZ19&"]")>0),INDIRECT("PriorPlansTable["&$BZ19&"]"))) -> 391.22 | CE19: =MIN(IF((PriorPlansTable[Market]=$CA$6)*(PriorPlansTable[Metal]=CE$7)*(INDIRECT("PriorPlansTable["&$BZ19&"]")>0),INDIRECT("PriorPlansTable["&$BZ19&"]"))) -> 0 | CF19: =MIN(IF((PriorPlansTable[Market]=$CA$6)*(PriorPlansTable[Metal]="Silver")*(INDIRECT("PriorPlansTable["&$BZ19&"]")>CC19),INDIRECT("PriorPlansTable["&$BZ19&"]"))) -> 321.67 | CG19: =MIN(IF((PriorPlansTable[Market]=$CG$6)*(PriorPlansTable[Metal]=CG$7)*(INDIRECT("PriorPlansTable["&$BZ19&"]")>0),INDIRECT("PriorPlansTable["&$BZ19&"]"))) -> 0 | CH19: =MIN(IF((PriorPlansTable[Market]=$CG$6)*(PriorPlansTable[Metal]=CH$7)*(INDIRECT("PriorPlansTable["&$BZ19&"]")>0),INDIRECT("PriorPlansTable["&$BZ19&"]"))) -> 235.68 | CI19: =MIN(IF((PriorPlansTable[Market]=$CG$6)*(PriorPlansTable[Metal]=CI$7)*(INDIRECT("PriorPlansTable["&$BZ19&"]")>0),INDIRECT("PriorPlansTable["&$BZ19&"]"))) -> 262.77 | CJ19: =MIN(IF((PriorPlansTable[Market]=$CG$6)*(PriorPlansTable[Metal]=CJ$7)*(INDIRECT("PriorPlansTable["&$BZ19&"]")>0),INDIRECT("PriorPlansTable["&$BZ19&"]"))) -> 290.83 | CK19: =MIN(IF((PriorPlansTable[Market]=$CG$6)*(PriorPlansTable[Metal]=CK$7)*(INDIRECT("PriorPlansTable["&$BZ19&"]")>0),INDIRECT("PriorPlansTable["&$BZ19&"]"))) -> 358.63 | CL19: =MIN(IF((PriorPlansTable[Market]=$CG$6)*(PriorPlansTable[Metal]="Silver")*(INDIRECT("PriorPlansTable["&$BZ19&"]")>CI19),INDIRECT("PriorPlansTable["&$BZ19&"]"))) -> 262.92
B20: Capital Blue Cross | C20: Capital Blue Cross | D20: Small Group | E20: 45127PA0010055 | F20: Platinum PPO 0/0/15 | Rx 0 | G20: PPO | H20: Platinum | I20: Off | J20: 0 | K20: 0 | L20: 0 | M20: 0 | N20: 0 | O20: 0 | P20: 0 | Q20: 0 | R20: 0 | S20: 0 | T20: 0 | U20: 0 | V20: 0 | W20: 0 | X20: 0 | Y20: 0 | Z20: 0 | AA20: 0 | AB20: 0 | AC20: 0 | AD20: 0 | AE20: 0 | AF20: 0 | AG20: 0 | AH20: 0 | AI20: 0 | AJ20: 0 | AK20: 0 | AL20: 0 | AM20: 0 | AN20: 0 | AO20: 0 | AP20: 0 | AQ20: 0 | AR20: 0 | AS20: 0 | AT20: 0 | AU20: 0 | AV20: 0 | AW20: 0 | AX20: 0 | AY20: 462.4 | AZ20: 462.4 | BA20: 462.4 | BB20: 462.4 | BC20: 462.4 | BD20: 462.4 | BE20: 462.4 | BF20: 462.4 | BG20: 462.4 | BH20: 462.4 | BI20: 476.27 | BJ20: 476.27 | BK20: 476.27 | BL20: 476.27 | BM20: 0 | BN20: 0 | BO20: 0 | BP20: 0 | BQ20: 0 | BR20: 499.39 | BS20: 499.39 | BT20: 499.39 | BU20: 499.39 | BV20: 499.39 | BW20: 499.39 | BX20: 499.39 | BZ20: Carbon | CA20: =MIN(IF((PriorPlansTable[Market]=$CA$6)*(PriorPlansTable[Metal]=CA$7)*(INDIRECT("PriorPlansTable["&$BZ20&"]")>0),INDIRECT("PriorPlansTable["&$BZ20&"]"))) -> 225.2 | CB20: =MIN(IF((PriorPlansTable[Market]=$CA$6)*(PriorPlansTable[Metal]=CB$7)*(INDIRECT("PriorPlansTable["&$BZ20&"]")>0),INDIRECT("PriorPlansTable["&$BZ20&"]"))) -> 270.35 | CC20: =MIN(IF((PriorPlansTable[Market]=$CA$6)*(PriorPlansTable[Metal]=CC$7)*(INDIRECT("PriorPlansTable["&$BZ20&"]")>0),INDIRECT("PriorPlansTable["&$BZ20&"]"))) -> 310.49 | CD20: =MIN(IF((PriorPlansTable[Market]=$CA$6)*(PriorPlansTable[Metal]=CD$7)*(INDIRECT("PriorPlansTable["&$BZ20&"]")>0),INDIRECT("PriorPlansTable["&$BZ20&"]"))) -> 391.22 | CE20: =MIN(IF((PriorPlansTable[Market]=$CA$6)*(PriorPlansTable[Metal]=CE$7)*(INDIRECT("PriorPlansTable["&$BZ20&"]")>0),INDIRECT("PriorPlansTable["&$BZ20&"]"))) -> 0 | CF20: =MIN(IF((PriorPlansTable[Market]=$CA$6)*(PriorPlansTable[Metal]="Silver")*(INDIRECT("PriorPlansTable["&$BZ20&"]")>CC20),INDIRECT("PriorPlansTable["&$BZ20&"]"))) -> 321.67 | CG20: =MIN(IF((PriorPlansTable[Market]=$CG$6)*(PriorPlansTable[Metal]=CG$7)*(INDIRECT("PriorPlansTable["&$BZ20&"]")>0),INDIRECT("PriorPlansTable["&$BZ20&"]"))) -> 0 | CH20: =MIN(IF((PriorPlansTable[Market]=$CG$6)*(PriorPlansTable[Metal]=CH$7)*(INDIRECT("PriorPlansTable["&$BZ20&"]")>0),INDIRECT("PriorPlansTable["&$BZ20&"]"))) -> 235.68 | CI20: =MIN(IF((PriorPlansTable[Market]=$CG$6)*(PriorPlansTable[Metal]=CI$7)*(INDIRECT("PriorPlansTable["&$BZ20&"]")>0),INDIRECT("PriorPlansTable["&$BZ20&"]"))) -> 262.77 | CJ20: =MIN(IF((PriorPlansTable[Market]=$CG$6)*(PriorPlansTable[Metal]=CJ$7)*(INDIRECT("PriorPlansTable["&$BZ20&"]")>0),INDIRECT("PriorPlansTable["&$BZ20&"]"))) -> 290.83 | CK20: =MIN(IF((PriorPlansTable[Market]=$CG$6)*(PriorPlansTable[Metal]=CK$7)*(INDIRECT("PriorPlansTable["&$BZ20&"]")>0),INDIRECT("PriorPlansTable["&$BZ20&"]"))) -> 358.63 | CL20: =MIN(IF((PriorPlansTable[Market]=$CG$6)*(PriorPlansTable[Metal]="Silver")*(INDIRECT("PriorPlansTable["&$BZ20&"]")>CI20),INDIRECT("PriorPlansTable["&$BZ20&"]"))) -> 262.92
B21: Capital Blue Cross | C21: Capital Blue Cross | D21: Small Group | E21: 45127PA0010057 | F21: Platinum PPO 250/0/15 | Rx 250 | G21: PPO | H21: Platinum | I21: Off | J21: 0 | K21: 0 | L21: 0 | M21: 0 | N21: 0 | O21: 0 | P21: 0 | Q21: 0 | R21: 0 | S21: 0 | T21: 0 | U21: 0 | V21: 0 | W21: 0 | X21: 0 | Y21: 0 | Z21: 0 | AA21: 0 | AB21: 0 | AC21: 0 | AD21: 0 | AE21: 0 | AF21: 0 | AG21: 0 | AH21: 0 | AI21: 0 | AJ21: 0 | AK21: 0 | AL21: 0 | AM21: 0 | AN21: 0 | AO21: 0 | AP21: 0 | AQ21: 0 | AR21: 0 | AS21: 0 | AT21: 0 | AU21: 0 | AV21: 0 | AW21: 0 | AX21: 0 | AY21: 436.8 | AZ21: 436.8 | BA21: 436.8 | BB21: 436.8 | BC21: 436.8 | BD21: 436.8 | BE21: 436.8 | BF21: 436.8 | BG21: 436.8 | BH21: 436.8 | BI21: 449.9 | BJ21: 449.9 | BK21: 449.9 | BL21: 449.9 | BM21: 0 | BN21: 0 | BO21: 0 | BP21: 0 | BQ21: 0 | BR21: 471.74 | BS21: 471.74 | BT21: 471.74 | BU21: 471.74 | BV21: 471.74 | BW21: 471.74 | BX21: 471.74 | BZ21: Clinton | CA21: =MIN(IF((PriorPlansTable[Market]=$CA$6)*(PriorPlansTable[Metal]=CA$7)*(INDIRECT("PriorPlansTable["&$BZ21&"]")>0),INDIRECT("PriorPlansTable["&$BZ21&"]"))) -> 225.2 | CB21: =MIN(IF((PriorPlansTable[Market]=$CA$6)*(PriorPlansTable[Metal]=CB$7)*(INDIRECT("PriorPlansTable["&$BZ21&"]")>0),INDIRECT("PriorPlansTable["&$BZ21&"]"))) -> 256.83 | CC21: =MIN(IF((PriorPlansTable[Market]=$CA$6)*(PriorPlansTable[Metal]=CC$7)*(INDIRECT("PriorPlansTable["&$BZ21&"]")>0),INDIRECT("PriorPlansTable["&$BZ21&"]"))) -> 310.49 | CD21: =MIN(IF((PriorPlansTable[Market]=$CA$6)*(PriorPlansTable[Metal]=CD$7)*(INDIRECT("PriorPlansTable["&$BZ21&"]")>0),INDIRECT("PriorPlansTable["&$BZ21&"]"))) -> 363.65 | CE21: =MIN(IF((PriorPlansTable[Market]=$CA$6)*(PriorPlansTable[Metal]=CE$7)*(INDIRECT("PriorPlansTable["&$BZ21&"]")>0),INDIRECT("PriorPlansTable["&$BZ21&"]"))) -> 0 | CF21: =MIN(IF((PriorPlansTable[Market]=$CA$6)*(PriorPlansTable[Metal]="Silver")*(INDIRECT("PriorPlansTable["&$BZ21&"]")>CC21),INDIRECT("PriorPlansTable["&$BZ21&"]"))) -> 321.67 | CG21: =MIN(IF((PriorPlansTable[Market]=$CG$6)*(PriorPlansTable[Metal]=CG$7)*(INDIRECT("PriorPlansTable["&$BZ21&"]")>0),INDIRECT("PriorPlansTable["&$BZ21&"]"))) -> 0 | CH21: =MIN(IF((PriorPlansTable[Market]=$CG$6)*(PriorPlansTable[Metal]=CH$7)*(INDIRECT("PriorPlansTable["&$BZ21&"]")>0),INDIRECT("PriorPlansTable["&$BZ21&"]"))) -> 235.68 | CI21: =MIN(IF((PriorPlansTable[Market]=$CG$6)*(PriorPlansTable[Metal]=CI$7)*(INDIRECT("PriorPlansTable["&$BZ21&"]")>0),INDIRECT("PriorPlansTable["&$BZ21&"]"))) -> 262.77 | CJ21: =MIN(IF((PriorPlansTable[Market]=$CG$6)*(PriorPlansTable[Metal]=CJ$7)*(INDIRECT("PriorPlansTable["&$BZ21&"]")>0),INDIRECT("PriorPlansTable["&$BZ21&"]"))) -> 290.83 | CK21: =MIN(IF((PriorPlansTable[Market]=$CG$6)*(PriorPlansTable[Metal]=CK$7)*(INDIRECT("PriorPlansTable["&$BZ21&"]")>0),INDIRECT("PriorPlansTable["&$BZ21&"]"))) -> 358.63 | CL21: =MIN(IF((PriorPlansTable[Market]=$CG$6)*(PriorPlansTable[Metal]="Silver")*(INDIRECT("PriorPlansTable["&$BZ21&"]")>CI21),INDIRECT("PriorPlansTable["&$BZ21&"]"))) -> 262.92
B22: Capital Blue Cross | C22: Capital Blue Cross | D22: Small Group | E22: 45127PA0010058 | F22: Platinum PPO 250/0/15 | Rx 0 | G22: PPO | H22: Platinum | I22: Off | J22: 0 | K22: 0 | L22: 0 | M22: 0 | N22: 0 | O22: 0 | P22: 0 | Q22: 0 | R22: 0 | S22: 0 | T22: 0 | U22: 0 | V22: 0 | W22: 0 | X22: 0 | Y22: 0 | Z22: 0 | AA22: 0 | AB22: 0 | AC22: 0 | AD22: 0 | AE22: 0 | AF22: 0 | AG22: 0 | AH22: 0 | AI22: 0 | AJ22: 0 | AK22: 0 | AL22: 0 | AM22: 0 | AN22: 0 | AO22: 0 | AP22: 0 | AQ22: 0 | AR22: 0 | AS22: 0 | AT22: 0 | AU22: 0 | AV22: 0 | AW22: 0 | AX22: 0 | AY22: 443.43 | AZ22: 443.43 | BA22: 443.43 | BB22: 443.43 | BC22: 443.43 | BD22: 443.43 | BE22: 443.43 | BF22: 443.43 | BG22: 443.43 | BH22: 443.43 | BI22: 456.73 | BJ22: 456.73 | BK22: 456.73 | BL22: 456.73 | BM22: 0 | BN22: 0 | BO22: 0 | BP22: 0 | BQ22: 0 | BR22: 478.9 | BS22: 478.9 | BT22: 478.9 | BU22: 478.9 | BV22: 478.9 | BW22: 478.9 | BX22: 478.9 | BZ22: Lackawanna | CA22: =MIN(IF((PriorPlansTable[Market]=$CA$6)*(PriorPlansTable[Metal]=CA$7)*(INDIRECT("PriorPlansTable["&$BZ22&"]")>0),INDIRECT("PriorPlansTable["&$BZ22&"]"))) -> 225.2 | CB22: =MIN(IF((PriorPlansTable[Market]=$CA$6)*(PriorPlansTable[Metal]=CB$7)*(INDIRECT("PriorPlansTable["&$BZ22&"]")>0),INDIRECT("PriorPlansTable["&$BZ22&"]"))) -> 270.35 | CC22: =MIN(IF((PriorPlansTable[Market]=$CA$6)*(PriorPlansTable[Metal]=CC$7)*(INDIRECT("PriorPlansTable["&$BZ22&"]")>0),INDIRECT("PriorPlansTable["&$BZ22&"]"))) -> 310.49 | CD22: =MIN(IF((PriorPlansTable[Market]=$CA$6)*(PriorPlansTable[Metal]=CD$7)*(INDIRECT("PriorPlansTable["&$BZ22&"]")>0),INDIRECT("PriorPlansTable["&$BZ22&"]"))) -> 363.65 | CE22: =MIN(IF((PriorPlansTable[Market]=$CA$6)*(PriorPlansTable[Metal]=CE$7)*(INDIRECT("PriorPlansTable["&$BZ22&"]")>0),INDIRECT("PriorPlansTable["&$BZ22&"]"))) -> 0 | CF22: =MIN(IF((PriorPlansTable[Market]=$CA$6)*(PriorPlansTable[Metal]="Silver")*(INDIRECT("PriorPlansTable["&$BZ22&"]")>CC22),INDIRECT("PriorPlansTable["&$BZ22&"]"))) -> 321.67 | CG22: =MIN(IF((PriorPlansTable[Market]=$CG$6)*(PriorPlansTable[Metal]=CG$7)*(INDIRECT("PriorPlansTable["&$BZ22&"]")>0),INDIRECT("PriorPlansTable["&$BZ22&"]"))) -> 0 | CH22: =MIN(IF((PriorPlansTable[Market]=$CG$6)*(PriorPlansTable[Metal]=CH$7)*(INDIRECT("PriorPlansTable["&$BZ22&"]")>0),INDIRECT("PriorPlansTable["&$BZ22&"]"))) -> 235.68 | CI22: =MIN(IF((PriorPlansTable[Market]=$CG$6)*(PriorPlansTable[Metal]=CI$7)*(INDIRECT("PriorPlansTable["&$BZ22&"]")>0),INDIRECT("PriorPlansTable["&$BZ22&"]"))) -> 262.77 | CJ22: =MIN(IF((PriorPlansTable[Market]=$CG$6)*(PriorPlansTable[Metal]=CJ$7)*(INDIRECT("PriorPlansTable["&$BZ22&"]")>0),INDIRECT("PriorPlansTable["&$BZ22&"]"))) -> 290.83 | CK22: =MIN(IF((PriorPlansTable[Market]=$CG$6)*(PriorPlansTable[Metal]=CK$7)*(INDIRECT("PriorPlansTable["&$BZ22&"]")>0),INDIRECT("PriorPlansTable["&$BZ22&"]"))) -> 358.63 | CL22: =MIN(IF((PriorPlansTable[Market]=$CG$6)*(PriorPlansTable[Metal]="Silver")*(INDIRECT("PriorPlansTable["&$BZ22&"]")>CI22),INDIRECT("PriorPlansTable["&$BZ22&"]"))) -> 262.92
B23: Capital Blue Cross | C23: Capital Blue Cross | D23: Small Group | E23: 45127PA0010069 | F23: Gold PPO HRA 3000/0/45 - 800 | Rx 250 | G23: PPO | H23: Gold | I23: Off | J23: 0 | K23: 0 | L23: 0 | M23: 0 | N23: 0 | O23: 0 | P23: 0 | Q23: 0 | R23: 0 | S23: 0 | T23: 0 | U23: 0 | V23: 0 | W23: 0 | X23: 0 | Y23: 0 | Z23: 0 | AA23: 0 | AB23: 0 | AC23: 0 | AD23: 0 | AE23: 0 | AF23: 0 | AG23: 0 | AH23: 0 | AI23: 0 | AJ23: 0 | AK23: 0 | AL23: 0 | AM23: 0 | AN23: 0 | AO23: 0 | AP23: 0 | AQ23: 0 | AR23: 0 | AS23: 0 | AT23: 0 | AU23: 0 | AV23: 0 | AW23: 0 | AX23: 0 | AY23: 345.49 | AZ23: 345.49 | BA23: 345.49 | BB23: 345.49 | BC23: 345.49 | BD23: 345.49 | BE23: 345.49 | BF23: 345.49 | BG23: 345.49 | BH23: 345.49 | BI23: 355.85 | BJ23: 355.85 | BK23: 355.85 | BL23: 355.85 | BM23: 0 | BN23: 0 | BO23: 0 | BP23: 0 | BQ23: 0 | BR23: 373.13 | BS23: 373.13 | BT23: 373.13 | BU23: 373.13 | BV23: 373.13 | BW23: 373.13 | BX23: 373.13 | BZ23: Luzerne | CA23: =MIN(IF((PriorPlansTable[Market]=$CA$6)*(PriorPlansTable[Metal]=CA$7)*(INDIRECT("PriorPlansTable["&$BZ23&"]")>0),INDIRECT("PriorPlansTable["&$BZ23&"]"))) -> 225.2 | CB23: =MIN(IF((PriorPlansTable[Market]=$CA$6)*(PriorPlansTable[Metal]=CB$7)*(INDIRECT("PriorPlansTable["&$BZ23&"]")>0),INDIRECT("PriorPlansTable["&$BZ23&"]"))) -> 256.83 | CC23: =MIN(IF((PriorPlansTable[Market]=$CA$6)*(PriorPlansTable[Metal]=CC$7)*(INDIRECT("PriorPlansTable["&$BZ23&"]")>0),INDIRECT("PriorPlansTable["&$BZ23&"]"))) -> 310.49 | CD23: =MIN(IF((PriorPlansTable[Market]=$CA$6)*(PriorPlansTable[Metal]=CD$7)*(INDIRECT("PriorPlansTable["&$BZ23&"]")>0),INDIRECT("PriorPlansTable["&$BZ23&"]"))) -> 363.65 | CE23: =MIN(IF((PriorPlansTable[Market]=$CA$6)*(PriorPlansTable[Metal]=CE$7)*(INDIRECT("PriorPlansTable["&$BZ23&"]")>0),INDIRECT("PriorPlansTable["&$BZ23&"]"))) -> 0 | CF23: =MIN(IF((PriorPlansTable[Market]=$CA$6)*(PriorPlansTable[Metal]="Silver")*(INDIRECT("PriorPlansTable["&$BZ23&"]")>CC23),INDIRECT("PriorPlansTable["&$BZ23&"]"))) -> 321.67 | CG23: =MIN(IF((PriorPlansTable[Market]=$CG$6)*(PriorPlansTable[Metal]=CG$7)*(INDIRECT("PriorPlansTable["&$BZ23&"]")>0),INDIRECT("PriorPlansTable["&$BZ23&"]"))) -> 0 | CH23: =MIN(IF((PriorPlansTable[Market]=$CG$6)*(PriorPlansTable[Metal]=CH$7)*(INDIRECT("PriorPlansTable["&$BZ23&"]")>0),INDIRECT("PriorPlansTable["&$BZ23&"]"))) -> 235.68 | CI23: =MIN(IF((PriorPlansTable[Market]=$CG$6)*(PriorPlansTable[Metal]=CI$7)*(INDIRECT("PriorPlansTable["&$BZ23&"]")>0),INDIRECT("PriorPlansTable["&$BZ23&"]"))) -> 262.77 | CJ23: =MIN(IF((PriorPlansTable[Market]=$CG$6)*(PriorPlansTable[Metal]=CJ$7)*(INDIRECT("PriorPlansTable["&$BZ23&"]")>0),INDIRECT("PriorPlansTable["&$BZ23&"]"))) -> 290.83 | CK23: =MIN(IF((PriorPlansTable[Market]=$CG$6)*(PriorPlansTable[Metal]=CK$7)*(INDIRECT("PriorPlansTable["&$BZ23&"]")>0),INDIRECT("PriorPlansTable["&$BZ23&"]"))) -> 358.63 | CL23: =MIN(IF((PriorPlansTable[Market]=$CG$6)*(PriorPlansTable[Metal]="Silver")*(INDIRECT("PriorPlansTable["&$BZ23&"]")>CI23),INDIRECT("PriorPlansTable["&$BZ23&"]"))) -> 262.92
B24: Capital Blue Cross | C24: Capital Blue Cross | D24: Small Group | E24: 45127PA0010070 | F24: Gold PPO HRA 3000/0/45 - 800 | Rx 0 | G24: PPO | H24: Gold | I24: Off | J24: 0 | K24: 0 | L24: 0 | M24: 0 | N24: 0 | O24: 0 | P24: 0 | Q24: 0 | R24: 0 | S24: 0 | T24: 0 | U24: 0 | V24: 0 | W24: 0 | X24: 0 | Y24: 0 | Z24: 0 | AA24: 0 | AB24: 0 | AC24: 0 | AD24: 0 | AE24: 0 | AF24: 0 | AG24: 0 | AH24: 0 | AI24: 0 | AJ24: 0 | AK24: 0 | AL24: 0 | AM24: 0 | AN24: 0 | AO24: 0 | AP24: 0 | AQ24: 0 | AR24: 0 | AS24: 0 | AT24: 0 | AU24: 0 | AV24: 0 | AW24: 0 | AX24: 0 | AY24: 352.12 | AZ24: 352.12 | BA24: 352.12 | BB24: 352.12 | BC24: 352.12 | BD24: 352.12 | BE24: 352.12 | BF24: 352.12 | BG24: 352.12 | BH24: 352.12 | BI24: 362.68 | BJ24: 362.68 | BK24: 362.68 | BL24: 362.68 | BM24: 0 | BN24: 0 | BO24: 0 | BP24: 0 | BQ24: 0 | BR24: 380.29 | BS24: 380.29 | BT24: 380.29 | BU24: 380.29 | BV24: 380.29 | BW24: 380.29 | BX24: 380.29 | BZ24: Lycoming | CA24: =MIN(IF((PriorPlansTable[Market]=$CA$6)*(PriorPlansTable[Metal]=CA$7)*(INDIRECT("PriorPlansTable["&$BZ24&"]")>0),INDIRECT("PriorPlansTable["&$BZ24&"]"))) -> 205.89 | CB24: =MIN(IF((PriorPlansTable[Market]=$CA$6)*(PriorPlansTable[Metal]=CB$7)*(INDIRECT("PriorPlansTable["&$BZ24&"]")>0),INDIRECT("PriorPlansTable["&$BZ24&"]"))) -> 240.45 | CC24: =MIN(IF((PriorPlansTable[Market]=$CA$6)*(PriorPlansTable[Metal]=CC$7)*(INDIRECT("PriorPlansTable["&$BZ24&"]")>0),INDIRECT("PriorPlansTable["&$BZ24&"]"))) -> 264.01 | CD24: =MIN(IF((PriorPlansTable[Market]=$CA$6)*(PriorPlansTable[Metal]=CD$7)*(INDIRECT("PriorPlansTable["&$BZ24&"]")>0),INDIRECT("PriorPlansTable["&$BZ24&"]"))) -> 332.92 | CE24: =MIN(IF((PriorPlansTable[Market]=$CA$6)*(PriorPlansTable[Metal]=CE$7)*(INDIRECT("PriorPlansTable["&$BZ24&"]")>0),INDIRECT("PriorPlansTable["&$BZ24&"]"))) -> 581.95 | CF24: =MIN(IF((PriorPlansTable[Market]=$CA$6)*(PriorPlansTable[Metal]="Silver")*(INDIRECT("PriorPlansTable["&$BZ24&"]")>CC24),INDIRECT("PriorPlansTable["&$BZ24&"]"))) -> 310.49 | CG24: =MIN(IF((PriorPlansTable[Market]=$CG$6)*(PriorPlansTable[Metal]=CG$7)*(INDIRECT("PriorPlansTable["&$BZ24&"]")>0),INDIRECT("PriorPlansTable["&$BZ24&"]"))) -> 0 | CH24: =MIN(IF((PriorPlansTable[Market]=$CG$6)*(PriorPlansTable[Metal]=CH$7)*(INDIRECT("PriorPlansTable["&$BZ24&"]")>0),INDIRECT("PriorPlansTable["&$BZ24&"]"))) -> 235.68 | CI24: =MIN(IF((PriorPlansTable[Market]=$CG$6)*(PriorPlansTable[Metal]=CI$7)*(INDIRECT("PriorPlansTable["&$BZ24&"]")>0),INDIRECT("PriorPlansTable["&$BZ24&"]"))) -> 262.77 | CJ24: =MIN(IF((PriorPlansTable[Market]=$CG$6)*(PriorPlansTable[Metal]=CJ$7)*(INDIRECT("PriorPlansTable["&$BZ24&"]")>0),INDIRECT("PriorPlansTable["&$BZ24&"]"))) -> 290.83 | CK24: =MIN(IF((PriorPlansTable[Market]=$CG$6)*(PriorPlansTable[Metal]=CK$7)*(INDIRECT("PriorPlansTable["&$BZ24&"]")>0),INDIRECT("PriorPlansTable["&$BZ24&"]"))) -> 358.63 | CL24: =MIN(IF((PriorPlansTable[Market]=$CG$6)*(PriorPlansTable[Metal]="Silver")*(INDIRECT("PriorPlansTable["&$BZ24&"]")>CI24),INDIRECT("PriorPlansTable["&$BZ24&"]"))) -> 262.92
B25: Capital Blue Cross | C25: Capital Blue Cross | D25: Small Group | E25: 45127PA0010084 | F25: Gold PPO 1000/0/25 | Rx 250 | G25: PPO | H25: Gold | I25: Off | J25: 0 | K25: 0 | L25: 0 | M25: 0 | N25: 0 | O25: 0 | P25: 0 | Q25: 0 | R25: 0 | S25: 0 | T25: 0 | U25: 0 | V25: 0 | W25: 0 | X25: 0 | Y25: 0 | Z25: 0 | AA25: 0 | AB25: 0 | AC25: 0 | AD25: 0 | AE25: 0 | AF25: 0 | AG25: 0 | AH25: 0 | AI25: 0 | AJ25: 0 | AK25: 0 | AL25: 0 | AM25: 0 | AN25: 0 | AO25: 0 | AP25: 0 | AQ25: 0 | AR25: 0 | AS25: 0 | AT25: 0 | AU25: 0 | AV25: 0 | AW25: 0 | AX25: 0 | AY25: 400.94 | AZ25: 400.94 | BA25: 400.94 | BB25: 400.94 | BC25: 400.94 | BD25: 400.94 | BE25: 400.94 | BF25: 400.94 | BG25: 400.94 | BH25: 400.94 | BI25: 412.97 | BJ25: 412.97 | BK25: 412.97 | BL25: 412.97 | BM25: 0 | BN25: 0 | BO25: 0 | BP25: 0 | BQ25: 0 | BR25: 433.02 | BS25: 433.02 | BT25: 433.02 | BU25: 433.02 | BV25: 433.02 | BW25: 433.02 | BX25: 433.02 | BZ25: Monroe | CA25: =MIN(IF((PriorPlansTable[Market]=$CA$6)*(PriorPlansTable[Metal]=CA$7)*(INDIRECT("PriorPlansTable["&$BZ25&"]")>0),INDIRECT("PriorPlansTable["&$BZ25&"]"))) -> 225.2 | CB25: =MIN(IF((PriorPlansTable[Market]=$CA$6)*(PriorPlansTable[Metal]=CB$7)*(INDIRECT("PriorPlansTable["&$BZ25&"]")>0),INDIRECT("PriorPlansTable["&$BZ25&"]"))) -> 270.35 | CC25: =MIN(IF((PriorPlansTable[Market]=$CA$6)*(PriorPlansTable[Metal]=CC$7)*(INDIRECT("PriorPlansTable["&$BZ25&"]")>0),INDIRECT("PriorPlansTable["&$BZ25&"]"))) -> 310.49 | CD25: =MIN(IF((PriorPlansTable[Market]=$CA$6)*(PriorPlansTable[Metal]=CD$7)*(INDIRECT("PriorPlansTable["&$BZ25&"]")>0),INDIRECT("PriorPlansTable["&$BZ25&"]"))) -> 363.65 | CE25: =MIN(IF((PriorPlansTable[Market]=$CA$6)*(PriorPlansTable[Metal]=CE$7)*(INDIRECT("PriorPlansTable["&$BZ25&"]")>0),INDIRECT("PriorPlansTable["&$BZ25&"]"))) -> 0 | CF25: =MIN(IF((PriorPlansTable[Market]=$CA$6)*(PriorPlansTable[Metal]="Silver")*(INDIRECT("PriorPlansTable["&$BZ25&"]")>CC25),INDIRECT("PriorPlansTable["&$BZ25&"]"))) -> 321.67 | CG25: =MIN(IF((PriorPlansTable[Market]=$CG$6)*(PriorPlansTable[Metal]=CG$7)*(INDIRECT("PriorPlansTable["&$BZ25&"]")>0),INDIRECT("PriorPlansTable["&$BZ25&"]"))) -> 0 | CH25: =MIN(IF((PriorPlansTable[Market]=$CG$6)*(PriorPlansTable[Metal]=CH$7)*(INDIRECT("PriorPlansTable["&$BZ25&"]")>0),INDIRECT("PriorPlansTable["&$BZ25&"]"))) -> 235.68 | CI25: =MIN(IF((PriorPlansTable[Market]=$CG$6)*(PriorPlansTable[Metal]=CI$7)*(INDIRECT("PriorPlansTable["&$BZ25&"]")>0),INDIRECT("PriorPlansTable["&$BZ25&"]"))) -> 262.77 | CJ25: =MIN(IF((PriorPlansTable[Market]=$CG$6)*(PriorPlansTable[Metal]=CJ$7)*(INDIRECT("PriorPlansTable["&$BZ25&"]")>0),INDIRECT("PriorPlansTable["&$BZ25&"]"))) -> 290.83 | CK25: =MIN(IF((PriorPlansTable[Market]=$CG$6)*(PriorPlansTable[Metal]=CK$7)*(INDIRECT("PriorPlansTable["&$BZ25&"]")>0),INDIRECT("PriorPlansTable["&$BZ25&"]"))) -> 358.63 | CL25: =MIN(IF((PriorPlansTable[Market]=$CG$6)*(PriorPlansTable[Metal]="Silver")*(INDIRECT("PriorPlansTable["&$BZ25&"]")>CI25),INDIRECT("PriorPlansTable["&$BZ25&"]"))) -> 262.92
B26: Capital Blue Cross | C26: Capital Blue Cross | D26: Small Group | E26: 45127PA0010085 | F26: Gold PPO 1000/0/25 | Rx 0 | G26: PPO | H26: Gold | I26: Off | J26: 0 | K26: 0 | L26: 0 | M26: 0 | N26: 0 | O26: 0 | P26: 0 | Q26: 0 | R26: 0 | S26: 0 | T26: 0 | U26: 0 | V26: 0 | W26: 0 | X26: 0 | Y26: 0 | Z26: 0 | AA26: 0 | AB26: 0 | AC26: 0 | AD26: 0 | AE26: 0 | AF26: 0 | AG26: 0 | AH26: 0 | AI26: 0 | AJ26: 0 | AK26: 0 | AL26: 0 | AM26: 0 | AN26: 0 | AO26: 0 | AP26: 0 | AQ26: 0 | AR26: 0 | AS26: 0 | AT26: 0 | AU26: 0 | AV26: 0 | AW26: 0 | AX26: 0 | AY26: 407.58 | AZ26: 407.58 | BA26: 407.58 | BB26: 407.58 | BC26: 407.58 | BD26: 407.58 | BE26: 407.58 | BF26: 407.58 | BG26: 407.58 | BH26: 407.58 | BI26: 419.81 | BJ26: 419.81 | BK26: 419.81 | BL26: 419.81 | BM26: 0 | BN26: 0 | BO26: 0 | BP26: 0 | BQ26: 0 | BR26: 440.19 | BS26: 440.19 | BT26: 440.19 | BU26: 440.19 | BV26: 440.19 | BW26: 440.19 | BX26: 440.19 | BZ26: Pike | CA26: =MIN(IF((PriorPlansTable[Market]=$CA$6)*(PriorPlansTable[Metal]=CA$7)*(INDIRECT("PriorPlansTable["&$BZ26&"]")>0),INDIRECT("PriorPlansTable["&$BZ26&"]"))) -> 225.2 | CB26: =MIN(IF((PriorPlansTable[Market]=$CA$6)*(PriorPlansTable[Metal]=CB$7)*(INDIRECT("PriorPlansTable["&$BZ26&"]")>0),INDIRECT("PriorPlansTable["&$BZ26&"]"))) -> 270.35 | CC26: =MIN(IF((PriorPlansTable[Market]=$CA$6)*(PriorPlansTable[Metal]=CC$7)*(INDIRECT("PriorPlansTable["&$BZ26&"]")>0),INDIRECT("PriorPlansTable["&$BZ26&"]"))) -> 310.49 | CD26: =MIN(IF((PriorPlansTable[Market]=$CA$6)*(PriorPlansTable[Metal]=CD$7)*(INDIRECT("PriorPlansTable["&$BZ26&"]")>0),INDIRECT("PriorPlansTable["&$BZ26&"]"))) -> 391.22 | CE26: =MIN(IF((PriorPlansTable[Market]=$CA$6)*(PriorPlansTable[Metal]=CE$7)*(INDIRECT("PriorPlansTable["&$BZ26&"]")>0),INDIRECT("PriorPlansTable["&$BZ26&"]"))) -> 0 | CF26: =MIN(IF((PriorPlansTable[Market]=$CA$6)*(PriorPlansTable[Metal]="Silver")*(INDIRECT("PriorPlansTable["&$BZ26&"]")>CC26),INDIRECT("PriorPlansTable["&$BZ26&"]"))) -> 321.67 | CG26: =MIN(IF((PriorPlansTable[Market]=$CG$6)*(PriorPlansTable[Metal]=CG$7)*(INDIRECT("PriorPlansTable["&$BZ26&"]")>0),INDIRECT("PriorPlansTable["&$BZ26&"]"))) -> 0 | CH26: =MIN(IF((PriorPlansTable[Market]=$CG$6)*(PriorPlansTable[Metal]=CH$7)*(INDIRECT("PriorPlansTable["&$BZ26&"]")>0),INDIRECT("PriorPlansTable["&$BZ26&"]"))) -> 235.68 | CI26: =MIN(IF((PriorPlansTable[Market]=$CG$6)*(PriorPlansTable[Metal]=CI$7)*(INDIRECT("PriorPlansTable["&$BZ26&"]")>0),INDIRECT("PriorPlansTable["&$BZ26&"]"))) -> 262.77 | CJ26: =MIN(IF((PriorPlansTable[Market]=$CG$6)*(PriorPlansTable[Metal]=CJ$7)*(INDIRECT("PriorPlansTable["&$BZ26&"]")>0),INDIRECT("PriorPlansTable["&$BZ26&"]"))) -> 290.83 | CK26: =MIN(IF((PriorPlansTable[Market]=$CG$6)*(PriorPlansTable[Metal]=CK$7)*(INDIRECT("PriorPlansTable["&$BZ26&"]")>0),INDIRECT("PriorPlansTable["&$BZ26&"]"))) -> 358.63 | CL26: =MIN(IF((PriorPlansTable[Market]=$CG$6)*(PriorPlansTable[Metal]="Silver")*(INDIRECT("PriorPlansTable["&$BZ26&"]")>CI26),INDIRECT("PriorPlansTable["&$BZ26&"]"))) -> 262.92
B27: Capital Blue Cross | C27: Capital Blue Cross | D27: Small Group | E27: 45127PA0010089 | F27: Gold PPO 2000/0/25 | Rx 250 | G27: PPO | H27: Gold | I27: Off | J27: 0 | K27: 0 | L27: 0 | M27: 0 | N27: 0 | O27: 0 | P27: 0 | Q27: 0 | R27: 0 | S27: 0 | T27: 0 | U27: 0 | V27: 0 | W27: 0 | X27: 0 | Y27: 0 | Z27: 0 | AA27: 0 | AB27: 0 | AC27: 0 | AD27: 0 | AE27: 0 | AF27: 0 | AG27: 0 | AH27: 0 | AI27: 0 | AJ27: 0 | AK27: 0 | AL27: 0 | AM27: 0 | AN27: 0 | AO27: 0 | AP27: 0 | AQ27: 0 | AR27: 0 | AS27: 0 | AT27: 0 | AU27: 0 | AV27: 0 | AW27: 0 | AX27: 0 | AY27: 376.6 | AZ27: 376.6 | BA27: 376.6 | BB27: 376.6 | BC27: 376.6 | BD27: 376.6 | BE27: 376.6 | BF27: 376.6 | BG27: 376.6 | BH27: 376.6 | BI27: 387.9 | BJ27: 387.9 | BK27: 387.9 | BL27: 387.9 | BM27: 0 | BN27: 0 | BO27: 0 | BP27: 0 | BQ27: 0 | BR27: 406.73 | BS27: 406.73 | BT27: 406.73 | BU27: 406.73 | BV27: 406.73 | BW27: 406.73 | BX27: 406.73 | BZ27: Sullivan | CA27: =MIN(IF((PriorPlansTable[Market]=$CA$6)*(PriorPlansTable[Metal]=CA$7)*(INDIRECT("PriorPlansTable["&$BZ27&"]")>0),INDIRECT("PriorPlansTable["&$BZ27&"]"))) -> 225.2 | CB27: =MIN(IF((PriorPlansTable[Market]=$CA$6)*(PriorPlansTable[Metal]=CB$7)*(INDIRECT("PriorPlansTable["&$BZ27&"]")>0),INDIRECT("PriorPlansTable["&$BZ27&"]"))) -> 256.83 | CC27: =MIN(IF((PriorPlansTable[Market]=$CA$6)*(PriorPlansTable[Metal]=CC$7)*(INDIRECT("PriorPlansTable["&$BZ27&"]")>0),INDIRECT("PriorPlansTable["&$BZ27&"]"))) -> 310.49 | CD27: =MIN(IF((PriorPlansTable[Market]=$CA$6)*(PriorPlansTable[Metal]=CD$7)*(INDIRECT("PriorPlansTable["&$BZ27&"]")>0),INDIRECT("PriorPlansTable["&$BZ27&"]"))) -> 371.66 | CE27: =MIN(IF((PriorPlansTable[Market]=$CA$6)*(PriorPlansTable[Metal]=CE$7)*(INDIRECT("PriorPlansTable["&$BZ27&"]")>0),INDIRECT("PriorPlansTable["&$BZ27&"]"))) -> 0 | CF27: =MIN(IF((PriorPlansTable[Market]=$CA$6)*(PriorPlansTable[Metal]="Silver")*(INDIRECT("PriorPlansTable["&$BZ27&"]")>CC27),INDIRECT("PriorPlansTable["&$BZ27&"]"))) -> 321.67 | CG27: =MIN(IF((PriorPlansTable[Market]=$CG$6)*(PriorPlansTable[Metal]=CG$7)*(INDIRECT("PriorPlansTable["&$BZ27&"]")>0),INDIRECT("PriorPlansTable["&$BZ27&"]"))) -> 0 | CH27: =MIN(IF((PriorPlansTable[Market]=$CG$6)*(PriorPlansTable[Metal]=CH$7)*(INDIRECT("PriorPlansTable["&$BZ27&"]")>0),INDIRECT("PriorPlansTable["&$BZ27&"]"))) -> 235.68 | CI27: =MIN(IF((PriorPlansTable[Market]=$CG$6)*(PriorPlansTable[Metal]=CI$7)*(INDIRECT("PriorPlansTable["&$BZ27&"]")>0),INDIRECT("PriorPlansTable["&$BZ27&"]"))) -> 262.77 | CJ27: =MIN(IF((PriorPlansTable[Market]=$CG$6)*(PriorPlansTable[Metal]=CJ$7)*(INDIRECT("PriorPlansTable["&$BZ27&"]")>0),INDIRECT("PriorPlansTable["&$BZ27&"]"))) -> 290.83 | CK27: =MIN(IF((PriorPlansTable[Market]=$CG$6)*(PriorPlansTable[Metal]=CK$7)*(INDIRECT("PriorPlansTable["&$BZ27&"]")>0),INDIRECT("PriorPlansTable["&$BZ27&"]"))) -> 358.63 | CL27: =MIN(IF((PriorPlansTable[Market]=$CG$6)*(PriorPlansTable[Metal]="Silver")*(INDIRECT("PriorPlansTable["&$BZ27&"]")>CI27),INDIRECT("PriorPlansTable["&$BZ27&"]"))) -> 262.92
B28: Capital Blue Cross | C28: Capital Blue Cross | D28: Small Group | E28: 45127PA0010090 | F28: Gold PPO 2000/0/25 | Rx 0 | G28: PPO | H28: Gold | I28: Off | J28: 0 | K28: 0 | L28: 0 | M28: 0 | N28: 0 | O28: 0 | P28: 0 | Q28: 0 | R28: 0 | S28: 0 | T28: 0 | U28: 0 | V28: 0 | W28: 0 | X28: 0 | Y28: 0 | Z28: 0 | AA28: 0 | AB28: 0 | AC28: 0 | AD28: 0 | AE28: 0 | AF28: 0 | AG28: 0 | AH28: 0 | AI28: 0 | AJ28: 0 | AK28: 0 | AL28: 0 | AM28: 0 | AN28: 0 | AO28: 0 | AP28: 0 | AQ28: 0 | AR28: 0 | AS28: 0 | AT28: 0 | AU28: 0 | AV28: 0 | AW28: 0 | AX28: 0 | AY28: 383.24 | AZ28: 383.24 | BA28: 383.24 | BB28: 383.24 | BC28: 383.24 | BD28: 383.24 | BE28: 383.24 | BF28: 383.24 | BG28: 383.24 | BH28: 383.24 | BI28: 394.74 | BJ28: 394.74 | BK28: 394.74 | BL28: 394.74 | BM28: 0 | BN28: 0 | BO28: 0 | BP28: 0 | BQ28: 0 | BR28: 413.9 | BS28: 413.9 | BT28: 413.9 | BU28: 413.9 | BV28: 413.9 | BW28: 413.9 | BX28: 413.9 | BZ28: Susquehanna | CA28: =MIN(IF((PriorPlansTable[Market]=$CA$6)*(PriorPlansTable[Metal]=CA$7)*(INDIRECT("PriorPlansTable["&$BZ28&"]")>0),INDIRECT("PriorPlansTable["&$BZ28&"]"))) -> 225.2 | CB28: =MIN(IF((PriorPlansTable[Market]=$CA$6)*(PriorPlansTable[Metal]=CB$7)*(INDIRECT("PriorPlansTable["&$BZ28&"]")>0),INDIRECT("PriorPlansTable["&$BZ28&"]"))) -> 256.83 | CC28: =MIN(IF((PriorPlansTable[Market]=$CA$6)*(PriorPlansTable[Metal]=CC$7)*(INDIRECT("PriorPlansTable["&$BZ28&"]")>0),INDIRECT("PriorPlansTable["&$BZ28&"]"))) -> 310.49 | CD28: =MIN(IF((PriorPlansTable[Market]=$CA$6)*(PriorPlansTable[Metal]=CD$7)*(INDIRECT("PriorPlansTable["&$BZ28&"]")>0),INDIRECT("PriorPlansTable["&$BZ28&"]"))) -> 363.65 | CE28: =MIN(IF((PriorPlansTable[Market]=$CA$6)*(PriorPlansTable[Metal]=CE$7)*(INDIRECT("PriorPlansTable["&$BZ28&"]")>0),INDIRECT("PriorPlansTable["&$BZ28&"]"))) -> 0 | CF28: =MIN(IF((PriorPlansTable[Market]=$CA$6)*(PriorPlansTable[Metal]="Silver")*(INDIRECT("PriorPlansTable["&$BZ28&"]")>CC28),INDIRECT("PriorPlansTable["&$BZ28&"]"))) -> 321.67 | CG28: =MIN(IF((PriorPlansTable[Market]=$CG$6)*(PriorPlansTable[Metal]=CG$7)*(INDIRECT("PriorPlansTable["&$BZ28&"]")>0),INDIRECT("PriorPlansTable["&$BZ28&"]"))) -> 0 | CH28: =MIN(IF((PriorPlansTable[Market]=$CG$6)*(PriorPlansTable[Metal]=CH$7)*(INDIRECT("PriorPlansTable["&$BZ28&"]")>0),INDIRECT("PriorPlansTable["&$BZ28&"]"))) -> 235.68 | CI28: =MIN(IF((PriorPlansTable[Market]=$CG$6)*(PriorPlansTable[Metal]=CI$7)*(INDIRECT("PriorPlansTable["&$BZ28&"]")>0),INDIRECT("PriorPlansTable["&$BZ28&"]"))) -> 262.77 | CJ28: =MIN(IF((PriorPlansTable[Market]=$CG$6)*(PriorPlansTable[Metal]=CJ$7)*(INDIRECT("PriorPlansTable["&$BZ28&"]")>0),INDIRECT("PriorPlansTable["&$BZ28&"]"))) -> 290.83 | CK28: =MIN(IF((PriorPlansTable[Market]=$CG$6)*(PriorPlansTable[Metal]=CK$7)*(INDIRECT("PriorPlansTable["&$BZ28&"]")>0),INDIRECT("PriorPlansTable["&$BZ28&"]"))) -> 358.63 | CL28: =MIN(IF((PriorPlansTable[Market]=$CG$6)*(PriorPlansTable[Metal]="Silver")*(INDIRECT("PriorPlansTable["&$BZ28&"]")>CI28),INDIRECT("PriorPlansTable["&$BZ28&"]"))) -> 262.92
B29: Capital Blue Cross | C29: Capital Blue Cross | D29: Small Group | E29: 45127PA0010100 | F29: Gold PPO 0/0/35 | Rx 250 | G29: PPO | H29: Gold | I29: Off | J29: 0 | K29: 0 | L29: 0 | M29: 0 | N29: 0 | O29: 0 | P29: 0 | Q29: 0 | R29: 0 | S29: 0 | T29: 0 | U29: 0 | V29: 0 | W29: 0 | X29: 0 | Y29: 0 | Z29: 0 | AA29: 0 | AB29: 0 | AC29: 0 | AD29: 0 | AE29: 0 | AF29: 0 | AG29: 0 | AH29: 0 | AI29: 0 | AJ29: 0 | AK29: 0 | AL29: 0 | AM29: 0 | AN29: 0 | AO29: 0 | AP29: 0 | AQ29: 0 | AR29: 0 | AS29: 0 | AT29: 0 | AU29: 0 | AV29: 0 | AW29: 0 | AX29: 0 | AY29: 414.96 | AZ29: 414.96 | BA29: 414.96 | BB29: 414.96 | BC29: 414.96 | BD29: 414.96 | BE29: 414.96 | BF29: 414.96 | BG29: 414.96 | BH29: 414.96 | BI29: 427.41 | BJ29: 427.41 | BK29: 427.41 | BL29: 427.41 | BM29: 0 | BN29: 0 | BO29: 0 | BP29: 0 | BQ29: 0 | BR29: 448.16 | BS29: 448.16 | BT29: 448.16 | BU29: 448.16 | BV29: 448.16 | BW29: 448.16 | BX29: 448.16 | BZ29: Tioga | CA29: =MIN(IF((PriorPlansTable[Market]=$CA$6)*(PriorPlansTable[Metal]=CA$7)*(INDIRECT("PriorPlansTable["&$BZ29&"]")>0),INDIRECT("PriorPlansTable["&$BZ29&"]"))) -> 205.89 | CB29: =MIN(IF((PriorPlansTable[Market]=$CA$6)*(PriorPlansTable[Metal]=CB$7)*(INDIRECT("PriorPlansTable["&$BZ29&"]")>0),INDIRECT("PriorPlansTable["&$BZ29&"]"))) -> 240.45 | CC29: =MIN(IF((PriorPlansTable[Market]=$CA$6)*(PriorPlansTable[Metal]=CC$7)*(INDIRECT("PriorPlansTable["&$BZ29&"]")>0),INDIRECT("PriorPlansTable["&$BZ29&"]"))) -> 264.01 | CD29: =MIN(IF((PriorPlansTable[Market]=$CA$6)*(PriorPlansTable[Metal]=CD$7)*(INDIRECT("PriorPlansTable["&$BZ29&"]")>0),INDIRECT("PriorPlansTable["&$BZ29&"]"))) -> 332.92 | CE29: =MIN(IF((PriorPlansTable[Market]=$CA$6)*(PriorPlansTable[Metal]=CE$7)*(INDIRECT("PriorPlansTable["&$BZ29&"]")>0),INDIRECT("PriorPlansTable["&$BZ29&"]"))) -> 581.95 | CF29: =MIN(IF((PriorPlansTable[Market]=$CA$6)*(PriorPlansTable[Metal]="Silver")*(INDIRECT("PriorPlansTable["&$BZ29&"]")>CC29),INDIRECT("PriorPlansTable["&$BZ29&"]"))) -> 310.49 | CG29: =MIN(IF((PriorPlansTable[Market]=$CG$6)*(PriorPlansTable[Metal]=CG$7)*(INDIRECT("PriorPlansTable["&$BZ29&"]")>0),INDIRECT("PriorPlansTable["&$BZ29&"]"))) -> 0 | CH29: =MIN(IF((PriorPlansTable[Market]=$CG$6)*(PriorPlansTable[Metal]=CH$7)*(INDIRECT("PriorPlansTable["&$BZ29&"]")>0),INDIRECT("PriorPlansTable["&$BZ29&"]"))) -> 235.68 | CI29: =MIN(IF((PriorPlansTable[Market]=$CG$6)*(PriorPlansTable[Metal]=CI$7)*(INDIRECT("PriorPlansTable["&$BZ29&"]")>0),INDIRECT("PriorPlansTable["&$BZ29&"]"))) -> 262.77 | CJ29: =MIN(IF((PriorPlansTable[Market]=$CG$6)*(PriorPlansTable[Metal]=CJ$7)*(INDIRECT("PriorPlansTable["&$BZ29&"]")>0),INDIRECT("PriorPlansTable["&$BZ29&"]"))) -> 290.83 | CK29: =MIN(IF((PriorPlansTable[Market]=$CG$6)*(PriorPlansTable[Metal]=CK$7)*(INDIRECT("PriorPlansTable["&$BZ29&"]")>0),INDIRECT("PriorPlansTable["&$BZ29&"]"))) -> 358.63 | CL29: =MIN(IF((PriorPlansTable[Market]=$CG$6)*(PriorPlansTable[Metal]="Silver")*(INDIRECT("PriorPlansTable["&$BZ29&"]")>CI29),INDIRECT("PriorPlansTable["&$BZ29&"]"))) -> 262.92
B30: Capital Blue Cross | C30: Capital Blue Cross | D30: Small Group | E30: 45127PA0010101 | F30: Gold PPO 0/0/35 | Rx 0 | G30: PPO | H30: Gold | I30: Off | J30: 0 | K30: 0 | L30: 0 | M30: 0 | N30: 0 | O30: 0 | P30: 0 | Q30: 0 | R30: 0 | S30: 0 | T30: 0 | U30: 0 | V30: 0 | W30: 0 | X30: 0 | Y30: 0 | Z30: 0 | AA30: 0 | AB30: 0 | AC30: 0 | AD30: 0 | AE30: 0 | AF30: 0 | AG30: 0 | AH30: 0 | AI30: 0 | AJ30: 0 | AK30: 0 | AL30: 0 | AM30: 0 | AN30: 0 | AO30: 0 | AP30: 0 | AQ30: 0 | AR30: 0 | AS30: 0 | AT30: 0 | AU30: 0 | AV30: 0 | AW30: 0 | AX30: 0 | AY30: 421.59 | AZ30: 421.59 | BA30: 421.59 | BB30: 421.59 | BC30: 421.59 | BD30: 421.59 | BE30: 421.59 | BF30: 421.59 | BG30: 421.59 | BH30: 421.59 | BI30: 434.24 | BJ30: 434.24 | BK30: 434.24 | BL30: 434.24 | BM30: 0 | BN30: 0 | BO30: 0 | BP30: 0 | BQ30: 0 | BR30: 455.32 | BS30: 455.32 | BT30: 455.32 | BU30: 455.32 | BV30: 455.32 | BW30: 455.32 | BX30: 455.32 | BZ30: Wayne | CA30: =MIN(IF((PriorPlansTable[Market]=$CA$6)*(PriorPlansTable[Metal]=CA$7)*(INDIRECT("PriorPlansTable["&$BZ30&"]")>0),INDIRECT("PriorPlansTable["&$BZ30&"]"))) -> 225.2 | CB30: =MIN(IF((PriorPlansTable[Market]=$CA$6)*(PriorPlansTable[Metal]=CB$7)*(INDIRECT("PriorPlansTable["&$BZ30&"]")>0),INDIRECT("PriorPlansTable["&$BZ30&"]"))) -> 256.83 | CC30: =MIN(IF((PriorPlansTable[Market]=$CA$6)*(PriorPlansTable[Metal]=CC$7)*(INDIRECT("PriorPlansTable["&$BZ30&"]")>0),INDIRECT("PriorPlansTable["&$BZ30&"]"))) -> 310.49 | CD30: =MIN(IF((PriorPlansTable[Market]=$CA$6)*(PriorPlansTable[Metal]=CD$7)*(INDIRECT("PriorPlansTable["&$BZ30&"]")>0),INDIRECT("PriorPlansTable["&$BZ30&"]"))) -> 363.65 | CE30: =MIN(IF((PriorPlansTable[Market]=$CA$6)*(PriorPlansTable[Metal]=CE$7)*(INDIRECT("PriorPlansTable["&$BZ30&"]")>0),INDIRECT("PriorPlansTable["&$BZ30&"]"))) -> 0 | CF30: =MIN(IF((PriorPlansTable[Market]=$CA$6)*(PriorPlansTable[Metal]="Silver")*(INDIRECT("PriorPlansTable["&$BZ30&"]")>CC30),INDIRECT("PriorPlansTable["&$BZ30&"]"))) -> 321.67 | CG30: =MIN(IF((PriorPlansTable[Market]=$CG$6)*(PriorPlansTable[Metal]=CG$7)*(INDIRECT("PriorPlansTable["&$BZ30&"]")>0),INDIRECT("PriorPlansTable["&$BZ30&"]"))) -> 0 | CH30: =MIN(IF((PriorPlansTable[Market]=$CG$6)*(PriorPlansTable[Metal]=CH$7)*(INDIRECT("PriorPlansTable["&$BZ30&"]")>0),INDIRECT("PriorPlansTable["&$BZ30&"]"))) -> 235.68 | CI30: =MIN(IF((PriorPlansTable[Market]=$CG$6)*(PriorPlansTable[Metal]=CI$7)*(INDIRECT("PriorPlansTable["&$BZ30&"]")>0),INDIRECT("PriorPlansTable["&$BZ30&"]"))) -> 262.77 | CJ30: =MIN(IF((PriorPlansTable[Market]=$CG$6)*(PriorPlansTable[Metal]=CJ$7)*(INDIRECT("PriorPlansTable["&$BZ30&"]")>0),INDIRECT("PriorPlansTable["&$BZ30&"]"))) -> 290.83 | CK30: =MIN(IF((PriorPlansTable[Market]=$CG$6)*(PriorPlansTable[Metal]=CK$7)*(INDIRECT("PriorPlansTable["&$BZ30&"]")>0),INDIRECT("PriorPlansTable["&$BZ30&"]"))) -> 358.63 | CL30: =MIN(IF((PriorPlansTable[Market]=$CG$6)*(PriorPlansTable[Metal]="Silver")*(INDIRECT("PriorPlansTable["&$BZ30&"]")>CI30),INDIRECT("PriorPlansTable["&$BZ30&"]"))) -> 262.92
B31: Capital Blue Cross | C31: Capital Blue Cross | D31: Small Group | E31: 45127PA0010116 | F31: Gold PPO 500/0/40 | Rx 250 | G31: PPO | H31: Gold | I31: Off | J31: 0 | K31: 0 | L31: 0 | M31: 0 | N31: 0 | O31: 0 | P31: 0 | Q31: 0 | R31: 0 | S31: 0 | T31: 0 | U31: 0 | V31: 0 | W31: 0 | X31: 0 | Y31: 0 | Z31: 0 | AA31: 0 | AB31: 0 | AC31: 0 | AD31: 0 | AE31: 0 | AF31: 0 | AG31: 0 | AH31: 0 | AI31: 0 | AJ31: 0 | AK31: 0 | AL31: 0 | AM31: 0 | AN31: 0 | AO31: 0 | AP31: 0 | AQ31: 0 | AR31: 0 | AS31: 0 | AT31: 0 | AU31: 0 | AV31: 0 | AW31: 0 | AX31: 0 | AY31: 411.7 | AZ31: 411.7 | BA31: 411.7 | BB31: 411.7 | BC31: 411.7 | BD31: 411.7 | BE31: 411.7 | BF31: 411.7 | BG31: 411.7 | BH31: 411.7 | BI31: 424.05 | BJ31: 424.05 | BK31: 424.05 | BL31: 424.05 | BM31: 0 | BN31: 0 | BO31: 0 | BP31: 0 | BQ31: 0 | BR31: 444.64 | BS31: 444.64 | BT31: 444.64 | BU31: 444.64 | BV31: 444.64 | BW31: 444.64 | BX31: 444.64 | BZ31: Wyoming | CA31: =MIN(IF((PriorPlansTable[Market]=$CA$6)*(PriorPlansTable[Metal]=CA$7)*(INDIRECT("PriorPlansTable["&$BZ31&"]")>0),INDIRECT("PriorPlansTable["&$BZ31&"]"))) -> 225.2 | CB31: =MIN(IF((PriorPlansTable[Market]=$CA$6)*(PriorPlansTable[Metal]=CB$7)*(INDIRECT("PriorPlansTable["&$BZ31&"]")>0),INDIRECT("PriorPlansTable["&$BZ31&"]"))) -> 270.35 | CC31: =MIN(IF((PriorPlansTable[Market]=$CA$6)*(PriorPlansTable[Metal]=CC$7)*(INDIRECT("PriorPlansTable["&$BZ31&"]")>0),INDIRECT("PriorPlansTable["&$BZ31&"]"))) -> 310.49 | CD31: =MIN(IF((PriorPlansTable[Market]=$CA$6)*(PriorPlansTable[Metal]=CD$7)*(INDIRECT("PriorPlansTable["&$BZ31&"]")>0),INDIRECT("PriorPlansTable["&$BZ31&"]"))) -> 363.65 | CE31: =MIN(IF((PriorPlansTable[Market]=$CA$6)*(PriorPlansTable[Metal]=CE$7)*(INDIRECT("PriorPlansTable["&$BZ31&"]")>0),INDIRECT("PriorPlansTable["&$BZ31&"]"))) -> 0 | CF31: =MIN(IF((PriorPlansTable[Market]=$CA$6)*(PriorPlansTable[Metal]="Silver")*(INDIRECT("PriorPlansTable["&$BZ31&"]")>CC31),INDIRECT("PriorPlansTable["&$BZ31&"]"))) -> 321.67 | CG31: =MIN(IF((PriorPlansTable[Market]=$CG$6)*(PriorPlansTable[Metal]=CG$7)*(INDIRECT("PriorPlansTable["&$BZ31&"]")>0),INDIRECT("PriorPlansTable["&$BZ31&"]"))) -> 0 | CH31: =MIN(IF((PriorPlansTable[Market]=$CG$6)*(PriorPlansTable[Metal]=CH$7)*(INDIRECT("PriorPlansTable["&$BZ31&"]")>0),INDIRECT("PriorPlansTable["&$BZ31&"]"))) -> 235.68 | CI31: =MIN(IF((PriorPlansTable[Market]=$CG$6)*(PriorPlansTable[Metal]=CI$7)*(INDIRECT("PriorPlansTable["&$BZ31&"]")>0),INDIRECT("PriorPlansTable["&$BZ31&"]"))) -> 262.77 | CJ31: =MIN(IF((PriorPlansTable[Market]=$CG$6)*(PriorPlansTable[Metal]=CJ$7)*(INDIRECT("PriorPlansTable["&$BZ31&"]")>0),INDIRECT("PriorPlansTable["&$BZ31&"]"))) -> 290.83 | CK31: =MIN(IF((PriorPlansTable[Market]=$CG$6)*(PriorPlansTable[Metal]=CK$7)*(INDIRECT("PriorPlansTable["&$BZ31&"]")>0),INDIRECT("PriorPlansTable["&$BZ31&"]"))) -> 358.63 | CL31: =MIN(IF((PriorPlansTable[Market]=$CG$6)*(PriorPlansTable[Metal]="Silver")*(INDIRECT("PriorPlansTable["&$BZ31&"]")>CI31),INDIRECT("PriorPlansTable["&$BZ31&"]"))) -> 262.92
B32: Capital Blue Cross | C32: Capital Blue Cross | D32: Small Group | E32: 45127PA0010117 | F32: Gold PPO 500/0/40 | Rx 0 | G32: PPO | H32: Gold | I32: Off | J32: 0 | K32: 0 | L32: 0 | M32: 0 | N32: 0 | O32: 0 | P32: 0 | Q32: 0 | R32: 0 | S32: 0 | T32: 0 | U32: 0 | V32: 0 | W32: 0 | X32: 0 | Y32: 0 | Z32: 0 | AA32: 0 | AB32: 0 | AC32: 0 | AD32: 0 | AE32: 0 | AF32: 0 | AG32: 0 | AH32: 0 | AI32: 0 | AJ32: 0 | AK32: 0 | AL32: 0 | AM32: 0 | AN32: 0 | AO32: 0 | AP32: 0 | AQ32: 0 | AR32: 0 | AS32: 0 | AT32: 0 | AU32: 0 | AV32: 0 | AW32: 0 | AX32: 0 | AY32: 418.33 | AZ32: 418.33 | BA32: 418.33 | BB32: 418.33 | BC32: 418.33 | BD32: 418.33 | BE32: 418.33 | BF32: 418.33 | BG32: 418.33 | BH32: 418.33 | BI32: 430.88 | BJ32: 430.88 | BK32: 430.88 | BL32: 430.88 | BM32: 0 | BN32: 0 | BO32: 0 | BP32: 0 | BQ32: 0 | BR32: 451.8 | BS32: 451.8 | BT32: 451.8 | BU32: 451.8 | BV32: 451.8 | BW32: 451.8 | BX32: 451.8 | BZ32: Allegheny | CA32: =MIN(IF((PriorPlansTable[Market]=$CA$6)*(PriorPlansTable[Metal]=CA$7)*(INDIRECT("PriorPlansTable["&$BZ32&"]")>0),INDIRECT("PriorPlansTable["&$BZ32&"]"))) -> 162.98 | CB32: =MIN(IF((PriorPlansTable[Market]=$CA$6)*(PriorPlansTable[Metal]=CB$7)*(INDIRECT("PriorPlansTable["&$BZ32&"]")>0),INDIRECT("PriorPlansTable["&$BZ32&"]"))) -> 190.33 | CC32: =MIN(IF((PriorPlansTable[Market]=$CA$6)*(PriorPlansTable[Metal]=CC$7)*(INDIRECT("PriorPlansTable["&$BZ32&"]")>0),INDIRECT("PriorPlansTable["&$BZ32&"]"))) -> 208.98 | CD32: =MIN(IF((PriorPlansTable[Market]=$CA$6)*(PriorPlansTable[Metal]=CD$7)*(INDIRECT("PriorPlansTable["&$BZ32&"]")>0),INDIRECT("PriorPlansTable["&$BZ32&"]"))) -> 263.53 | CE32: =MIN(IF((PriorPlansTable[Market]=$CA$6)*(PriorPlansTable[Metal]=CE$7)*(INDIRECT("PriorPlansTable["&$BZ32&"]")>0),INDIRECT("PriorPlansTable["&$BZ32&"]"))) -> 460.65 | CF32: =MIN(IF((PriorPlansTable[Market]=$CA$6)*(PriorPlansTable[Metal]="Silver")*(INDIRECT("PriorPlansTable["&$BZ32&"]")>CC32),INDIRECT("PriorPlansTable["&$BZ32&"]"))) -> 219.84 | CG32: =MIN(IF((PriorPlansTable[Market]=$CG$6)*(PriorPlansTable[Metal]=CG$7)*(INDIRECT("PriorPlansTable["&$BZ32&"]")>0),INDIRECT("PriorPlansTable["&$BZ32&"]"))) -> 0 | CH32: =MIN(IF((PriorPlansTable[Market]=$CG$6)*(PriorPlansTable[Metal]=CH$7)*(INDIRECT("PriorPlansTable["&$BZ32&"]")>0),INDIRECT("PriorPlansTable["&$BZ32&"]"))) -> 189.44 | CI32: =MIN(IF((PriorPlansTable[Market]=$CG$6)*(PriorPlansTable[Metal]=CI$7)*(INDIRECT("PriorPlansTable["&$BZ32&"]")>0),INDIRECT("PriorPlansTable["&$BZ32&"]"))) -> 201.72 | CJ32: =MIN(IF((PriorPlansTable[Market]=$CG$6)*(PriorPlansTable[Metal]=CJ$7)*(INDIRECT("PriorPlansTable["&$BZ32&"]")>0),INDIRECT("PriorPlansTable["&$BZ32&"]"))) -> 245.5 | CK32: =MIN(IF((PriorPlansTable[Market]=$CG$6)*(PriorPlansTable[Metal]=CK$7)*(INDIRECT("PriorPlansTable["&$BZ32&"]")>0),INDIRECT("PriorPlansTable["&$BZ32&"]"))) -> 324.71 | CL32: =MIN(IF((PriorPlansTable[Market]=$CG$6)*(PriorPlansTable[Metal]="Silver")*(INDIRECT("PriorPlansTable["&$BZ32&"]")>CI32),INDIRECT("PriorPlansTable["&$BZ32&"]"))) -> 202.06
B33: Capital Blue Cross | C33: Capital Blue Cross | D33: Small Group | E33: 45127PA0010124 | F33: Silver HSA 2250/0/25 | Combined | G33: PPO | H33: Silver | I33: Off | J33: 0 | K33: 0 | L33: 0 | M33: 0 | N33: 0 | O33: 0 | P33: 0 | Q33: 0 | R33: 0 | S33: 0 | T33: 0 | U33: 0 | V33: 0 | W33: 0 | X33: 0 | Y33: 0 | Z33: 0 | AA33: 0 | AB33: 0 | AC33: 0 | AD33: 0 | AE33: 0 | AF33: 0 | AG33: 0 | AH33: 0 | AI33: 0 | AJ33: 0 | AK33: 0 | AL33: 0 | AM33: 0 | AN33: 0 | AO33: 0 | AP33: 0 | AQ33: 0 | AR33: 0 | AS33: 0 | AT33: 0 | AU33: 0 | AV33: 0 | AW33: 0 | AX33: 0 | AY33: 355.61 | AZ33: 355.61 | BA33: 355.61 | BB33: 355.61 | BC33: 355.61 | BD33: 355.61 | BE33: 355.61 | BF33: 355.61 | BG33: 355.61 | BH33: 355.61 | BI33: 366.28 | BJ33: 366.28 | BK33: 366.28 | BL33: 366.28 | BM33: 0 | BN33: 0 | BO33: 0 | BP33: 0 | BQ33: 0 | BR33: 384.06 | BS33: 384.06 | BT33: 384.06 | BU33: 384.06 | BV33: 384.06 | BW33: 384.06 | BX33: 384.06 | BZ33: Armstrong | CA33: =MIN(IF((PriorPlansTable[Market]=$CA$6)*(PriorPlansTable[Metal]=CA$7)*(INDIRECT("PriorPlansTable["&$BZ33&"]")>0),INDIRECT("PriorPlansTable["&$BZ33&"]"))) -> 205.7 | CB33: =MIN(IF((PriorPlansTable[Market]=$CA$6)*(PriorPlansTable[Metal]=CB$7)*(INDIRECT("PriorPlansTable["&$BZ33&"]")>0),INDIRECT("PriorPlansTable["&$BZ33&"]"))) -> 205.78 | CC33: =MIN(IF((PriorPlansTable[Market]=$CA$6)*(PriorPlansTable[Metal]=CC$7)*(INDIRECT("PriorPlansTable["&$BZ33&"]")>0),INDIRECT("PriorPlansTable["&$BZ33&"]"))) -> 263.78 | CD33: =MIN(IF((PriorPlansTable[Market]=$CA$6)*(PriorPlansTable[Metal]=CD$7)*(INDIRECT("PriorPlansTable["&$BZ33&"]")>0),INDIRECT("PriorPlansTable["&$BZ33&"]"))) -> 332.61 | CE33: =MIN(IF((PriorPlansTable[Market]=$CA$6)*(PriorPlansTable[Metal]=CE$7)*(INDIRECT("PriorPlansTable["&$BZ33&"]")>0),INDIRECT("PriorPlansTable["&$BZ33&"]"))) -> 581.41 | CF33: =MIN(IF((PriorPlansTable[Market]=$CA$6)*(PriorPlansTable[Metal]="Silver")*(INDIRECT("PriorPlansTable["&$BZ33&"]")>CC33),INDIRECT("PriorPlansTable["&$BZ33&"]"))) -> 345.42 | CG33: =MIN(IF((PriorPlansTable[Market]=$CG$6)*(PriorPlansTable[Metal]=CG$7)*(INDIRECT("PriorPlansTable["&$BZ33&"]")>0),INDIRECT("PriorPlansTable["&$BZ33&"]"))) -> 0 | CH33: =MIN(IF((PriorPlansTable[Market]=$CG$6)*(PriorPlansTable[Metal]=CH$7)*(INDIRECT("PriorPlansTable["&$BZ33&"]")>0),INDIRECT("PriorPlansTable["&$BZ33&"]"))) -> 189.44 | CI33: =MIN(IF((PriorPlansTable[Market]=$CG$6)*(PriorPlansTable[Metal]=CI$7)*(INDIRECT("PriorPlansTable["&$BZ33&"]")>0),INDIRECT("PriorPlansTable["&$BZ33&"]"))) -> 209.57 | CJ33: =MIN(IF((PriorPlansTable[Market]=$CG$6)*(PriorPlansTable[Metal]=CJ$7)*(INDIRECT("PriorPlansTable["&$BZ33&"]")>0),INDIRECT("PriorPlansTable["&$BZ33&"]"))) -> 246.05 | CK33: =MIN(IF((PriorPlansTable[Market]=$CG$6)*(PriorPlansTable[Metal]=CK$7)*(INDIRECT("PriorPlansTable["&$BZ33&"]")>0),INDIRECT("PriorPlansTable["&$BZ33&"]"))) -> 324.71 | CL33: =MIN(IF((PriorPlansTable[Market]=$CG$6)*(PriorPlansTable[Metal]="Silver")*(INDIRECT("PriorPlansTable["&$BZ33&"]")>CI33),INDIRECT("PriorPlansTable["&$BZ33&"]"))) -> 209.75
B34: Capital Blue Cross | C34: Capital Blue Cross | D34: Small Group | E34: 45127PA0010131 | F34: Silver PPO 4000/0/30 | Rx 250 | G34: PPO | H34: Silver | I34: Off | J34: 0 | K34: 0 | L34: 0 | M34: 0 | N34: 0 | O34: 0 | P34: 0 | Q34: 0 | R34: 0 | S34: 0 | T34: 0 | U34: 0 | V34: 0 | W34: 0 | X34: 0 | Y34: 0 | Z34: 0 | AA34: 0 | AB34: 0 | AC34: 0 | AD34: 0 | AE34: 0 | AF34: 0 | AG34: 0 | AH34: 0 | AI34: 0 | AJ34: 0 | AK34: 0 | AL34: 0 | AM34: 0 | AN34: 0 | AO34: 0 | AP34: 0 | AQ34: 0 | AR34: 0 | AS34: 0 | AT34: 0 | AU34: 0 | AV34: 0 | AW34: 0 | AX34: 0 | AY34: 335.74 | AZ34: 335.74 | BA34: 335.74 | BB34: 335.74 | BC34: 335.74 | BD34: 335.74 | BE34: 335.74 | BF34: 335.74 | BG34: 335.74 | BH34: 335.74 | BI34: 345.81 | BJ34: 345.81 | BK34: 345.81 | BL34: 345.81 | BM34: 0 | BN34: 0 | BO34: 0 | BP34: 0 | BQ34: 0 | BR34: 362.6 | BS34: 362.6 | BT34: 362.6 | BU34: 362.6 | BV34: 362.6 | BW34: 362.6 | BX34: 362.6 | BZ34: Beaver | CA34: =MIN(IF((PriorPlansTable[Market]=$CA$6)*(PriorPlansTable[Metal]=CA$7)*(INDIRECT("PriorPlansTable["&$BZ34&"]")>0),INDIRECT("PriorPlansTable["&$BZ34&"]"))) -> 171.44 | CB34: =MIN(IF((PriorPlansTable[Market]=$CA$6)*(PriorPlansTable[Metal]=CB$7)*(INDIRECT("PriorPlansTable["&$BZ34&"]")>0),INDIRECT("PriorPlansTable["&$BZ34&"]"))) -> 200.21 | CC34: =MIN(IF((PriorPlansTable[Market]=$CA$6)*(PriorPlansTable[Metal]=CC$7)*(INDIRECT("PriorPlansTable["&$BZ34&"]")>0),INDIRECT("PriorPlansTable["&$BZ34&"]"))) -> 219.84 | CD34: =MIN(IF((PriorPlansTable[Market]=$CA$6)*(PriorPlansTable[Metal]=CD$7)*(INDIRECT("PriorPlansTable["&$BZ34&"]")>0),INDIRECT("PriorPlansTable["&$BZ34&"]"))) -> 277.21 | CE34: =MIN(IF((PriorPlansTable[Market]=$CA$6)*(PriorPlansTable[Metal]=CE$7)*(INDIRECT("PriorPlansTable["&$BZ34&"]")>0),INDIRECT("PriorPlansTable["&$BZ34&"]"))) -> 484.58 | CF34: =MIN(IF((PriorPlansTable[Market]=$CA$6)*(PriorPlansTable[Metal]="Silver")*(INDIRECT("PriorPlansTable["&$BZ34&"]")>CC34),INDIRECT("PriorPlansTable["&$BZ34&"]"))) -> 263.78 | CG34: =MIN(IF((PriorPlansTable[Market]=$CG$6)*(PriorPlansTable[Metal]=CG$7)*(INDIRECT("PriorPlansTable["&$BZ34&"]")>0),INDIRECT("PriorPlansTable["&$BZ34&"]"))) -> 0 | CH34: =MIN(IF((PriorPlansTable[Market]=$CG$6)*(PriorPlansTable[Metal]=CH$7)*(INDIRECT("PriorPlansTable["&$BZ34&"]")>0),INDIRECT("PriorPlansTable["&$BZ34&"]"))) -> 189.44 | CI34: =MIN(IF((PriorPlansTable[Market]=$CG$6)*(PriorPlansTable[Metal]=CI$7)*(INDIRECT("PriorPlansTable["&$BZ34&"]")>0),INDIRECT("PriorPlansTable["&$BZ34&"]"))) -> 201.72 | CJ34: =MIN(IF((PriorPlansTable[Market]=$CG$6)*(PriorPlansTable[Metal]=CJ$7)*(INDIRECT("PriorPlansTable["&$BZ34&"]")>0),INDIRECT("PriorPlansTable["&$BZ34&"]"))) -> 245.5 | CK34: =MIN(IF((PriorPlansTable[Market]=$CG$6)*(PriorPlansTable[Metal]=CK$7)*(INDIRECT("PriorPlansTable["&$BZ34&"]")>0),INDIRECT("PriorPlansTable["&$BZ34&"]"))) -> 324.71 | CL34: =MIN(IF((PriorPlansTable[Market]=$CG$6)*(PriorPlansTable[Metal]="Silver")*(INDIRECT("PriorPlansTable["&$BZ34&"]")>CI34),INDIRECT("PriorPlansTable["&$BZ34&"]"))) -> 202.06
B35: Capital Blue Cross | C35: Capital Blue Cross | D35: Small Group | E35: 45127PA0010132 | F35: Silver PPO 4000/0/30 | Rx 0 | G35: PPO | H35: Silver | I35: Off | J35: 0 | K35: 0 | L35: 0 | M35: 0 | N35: 0 | O35: 0 | P35: 0 | Q35: 0 | R35: 0 | S35: 0 | T35: 0 | U35: 0 | V35: 0 | W35: 0 | X35: 0 | Y35: 0 | Z35: 0 | AA35: 0 | AB35: 0 | AC35: 0 | AD35: 0 | AE35: 0 | AF35: 0 | AG35: 0 | AH35: 0 | AI35: 0 | AJ35: 0 | AK35: 0 | AL35: 0 | AM35: 0 | AN35: 0 | AO35: 0 | AP35: 0 | AQ35: 0 | AR35: 0 | AS35: 0 | AT35: 0 | AU35: 0 | AV35: 0 | AW35: 0 | AX35: 0 | AY35: 342.37 | AZ35: 342.37 | BA35: 342.37 | BB35: 342.37 | BC35: 342.37 | BD35: 342.37 | BE35: 342.37 | BF35: 342.37 | BG35: 342.37 | BH35: 342.37 | BI35: 352.64 | BJ35: 352.64 | BK35: 352.64 | BL35: 352.64 | BM35: 0 | BN35: 0 | BO35: 0 | BP35: 0 | BQ35: 0 | BR35: 369.76 | BS35: 369.76 | BT35: 369.76 | BU35: 369.76 | BV35: 369.76 | BW35: 369.76 | BX35: 369.76 | BZ35: Butler | CA35: =MIN(IF((PriorPlansTable[Market]=$CA$6)*(PriorPlansTable[Metal]=CA$7)*(INDIRECT("PriorPlansTable["&$BZ35&"]")>0),INDIRECT("PriorPlansTable["&$BZ35&"]"))) -> 171.44 | CB35: =MIN(IF((PriorPlansTable[Market]=$CA$6)*(PriorPlansTable[Metal]=CB$7)*(INDIRECT("PriorPlansTable["&$BZ35&"]")>0),INDIRECT("PriorPlansTable["&$BZ35&"]"))) -> 200.21 | CC35: =MIN(IF((PriorPlansTable[Market]=$CA$6)*(PriorPlansTable[Metal]=CC$7)*(INDIRECT("PriorPlansTable["&$BZ35&"]")>0),INDIRECT("PriorPlansTable["&$BZ35&"]"))) -> 219.84 | CD35: =MIN(IF((PriorPlansTable[Market]=$CA$6)*(PriorPlansTable[Metal]=CD$7)*(INDIRECT("PriorPlansTable["&$BZ35&"]")>0),INDIRECT("PriorPlansTable["&$BZ35&"]"))) -> 277.21 | CE35: =MIN(IF((PriorPlansTable[Market]=$CA$6)*(PriorPlansTable[Metal]=CE$7)*(INDIRECT("PriorPlansTable["&$BZ35&"]")>0),INDIRECT("PriorPlansTable["&$BZ35&"]"))) -> 484.58 | CF35: =MIN(IF((PriorPlansTable[Market]=$CA$6)*(PriorPlansTable[Metal]="Silver")*(INDIRECT("PriorPlansTable["&$BZ35&"]")>CC35),INDIRECT("PriorPlansTable["&$BZ35&"]"))) -> 263.78 | CG35: =MIN(IF((PriorPlansTable[Market]=$CG$6)*(PriorPlansTable[Metal]=CG$7)*(INDIRECT("PriorPlansTable["&$BZ35&"]")>0),INDIRECT("PriorPlansTable["&$BZ35&"]"))) -> 0 | CH35: =MIN(IF((PriorPlansTable[Market]=$CG$6)*(PriorPlansTable[Metal]=CH$7)*(INDIRECT("PriorPlansTable["&$BZ35&"]")>0),INDIRECT("PriorPlansTable["&$BZ35&"]"))) -> 189.44 | CI35: =MIN(IF((PriorPlansTable[Market]=$CG$6)*(PriorPlansTable[Metal]=CI$7)*(INDIRECT("PriorPlansTable["&$BZ35&"]")>0),INDIRECT("PriorPlansTable["&$BZ35&"]"))) -> 201.72 | CJ35: =MIN(IF((PriorPlansTable[Market]=$CG$6)*(PriorPlansTable[Metal]=CJ$7)*(INDIRECT("PriorPlansTable["&$BZ35&"]")>0),INDIRECT("PriorPlansTable["&$BZ35&"]"))) -> 245.5 | CK35: =MIN(IF((PriorPlansTable[Market]=$CG$6)*(PriorPlansTable[Metal]=CK$7)*(INDIRECT("PriorPlansTable["&$BZ35&"]")>0),INDIRECT("PriorPlansTable["&$BZ35&"]"))) -> 324.71 | CL35: =MIN(IF((PriorPlansTable[Market]=$CG$6)*(PriorPlansTable[Metal]="Silver")*(INDIRECT("PriorPlansTable["&$BZ35&"]")>CI35),INDIRECT("PriorPlansTable["&$BZ35&"]"))) -> 202.06
B36: Capital Blue Cross | C36: Capital Blue Cross | D36: Small Group | E36: 45127PA0010135 | F36: Bronze HSA 6350/0/0 | Combined | G36: PPO | H36: Bronze | I36: Off | J36: 0 | K36: 0 | L36: 0 | M36: 0 | N36: 0 | O36: 0 | P36: 0 | Q36: 0 | R36: 0 | S36: 0 | T36: 0 | U36: 0 | V36: 0 | W36: 0 | X36: 0 | Y36: 0 | Z36: 0 | AA36: 0 | AB36: 0 | AC36: 0 | AD36: 0 | AE36: 0 | AF36: 0 | AG36: 0 | AH36: 0 | AI36: 0 | AJ36: 0 | AK36: 0 | AL36: 0 | AM36: 0 | AN36: 0 | AO36: 0 | AP36: 0 | AQ36: 0 | AR36: 0 | AS36: 0 | AT36: 0 | AU36: 0 | AV36: 0 | AW36: 0 | AX36: 0 | AY36: 279.63 | AZ36: 279.63 | BA36: 279.63 | BB36: 279.63 | BC36: 279.63 | BD36: 279.63 | BE36: 279.63 | BF36: 279.63 | BG36: 279.63 | BH36: 279.63 | BI36: 288.02 | BJ36: 288.02 | BK36: 288.02 | BL36: 288.02 | BM36: 0 | BN36: 0 | BO36: 0 | BP36: 0 | BQ36: 0 | BR36: 302 | BS36: 302 | BT36: 302 | BU36: 302 | BV36: 302 | BW36: 302 | BX36: 302 | BZ36: Fayette | CA36: =MIN(IF((PriorPlansTable[Market]=$CA$6)*(PriorPlansTable[Metal]=CA$7)*(INDIRECT("PriorPlansTable["&$BZ36&"]")>0),INDIRECT("PriorPlansTable["&$BZ36&"]"))) -> 171.44 | CB36: =MIN(IF((PriorPlansTable[Market]=$CA$6)*(PriorPlansTable[Metal]=CB$7)*(INDIRECT("PriorPlansTable["&$BZ36&"]")>0),INDIRECT("PriorPlansTable["&$BZ36&"]"))) -> 200.21 | CC36: =MIN(IF((PriorPlansTable[Market]=$CA$6)*(PriorPlansTable[Metal]=CC$7)*(INDIRECT("PriorPlansTable["&$BZ36&"]")>0),INDIRECT("PriorPlansTable["&$BZ36&"]"))) -> 219.84 | CD36: =MIN(IF((PriorPlansTable[Market]=$CA$6)*(PriorPlansTable[Metal]=CD$7)*(INDIRECT("PriorPlansTable["&$BZ36&"]")>0),INDIRECT("PriorPlansTable["&$BZ36&"]"))) -> 277.21 | CE36: =MIN(IF((PriorPlansTable[Market]=$CA$6)*(PriorPlansTable[Metal]=CE$7)*(INDIRECT("PriorPlansTable["&$BZ36&"]")>0),INDIRECT("PriorPlansTable["&$BZ36&"]"))) -> 484.58 | CF36: =MIN(IF((PriorPlansTable[Market]=$CA$6)*(PriorPlansTable[Metal]="Silver")*(INDIRECT("PriorPlansTable["&$BZ36&"]")>CC36),INDIRECT("PriorPlansTable["&$BZ36&"]"))) -> 263.78 | CG36: =MIN(IF((PriorPlansTable[Market]=$CG$6)*(PriorPlansTable[Metal]=CG$7)*(INDIRECT("PriorPlansTable["&$BZ36&"]")>0),INDIRECT("PriorPlansTable["&$BZ36&"]"))) -> 0 | CH36: =MIN(IF((PriorPlansTable[Market]=$CG$6)*(PriorPlansTable[Metal]=CH$7)*(INDIRECT("PriorPlansTable["&$BZ36&"]")>0),INDIRECT("PriorPlansTable["&$BZ36&"]"))) -> 189.44 | CI36: =MIN(IF((PriorPlansTable[Market]=$CG$6)*(PriorPlansTable[Metal]=CI$7)*(INDIRECT("PriorPlansTable["&$BZ36&"]")>0),INDIRECT("PriorPlansTable["&$BZ36&"]"))) -> 201.72 | CJ36: =MIN(IF((PriorPlansTable[Market]=$CG$6)*(PriorPlansTable[Metal]=CJ$7)*(INDIRECT("PriorPlansTable["&$BZ36&"]")>0),INDIRECT("PriorPlansTable["&$BZ36&"]"))) -> 245.5 | CK36: =MIN(IF((PriorPlansTable[Market]=$CG$6)*(PriorPlansTable[Metal]=CK$7)*(INDIRECT("PriorPlansTable["&$BZ36&"]")>0),INDIRECT("PriorPlansTable["&$BZ36&"]"))) -> 324.71 | CL36: =MIN(IF((PriorPlansTable[Market]=$CG$6)*(PriorPlansTable[Metal]="Silver")*(INDIRECT("PriorPlansTable["&$BZ36&"]")>CI36),INDIRECT("PriorPlansTable["&$BZ36&"]"))) -> 202.06
B37: Capital Blue Cross | C37: Capital Blue Cross | D37: Small Group | E37: 45127PA0010143 | F37: Silver PPO 3000/0/45 | Rx 250 | G37: PPO | H37: Silver | I37: Off | J37: 0 | K37: 0 | L37: 0 | M37: 0 | N37: 0 | O37: 0 | P37: 0 | Q37: 0 | R37: 0 | S37: 0 | T37: 0 | U37: 0 | V37: 0 | W37: 0 | X37: 0 | Y37: 0 | Z37: 0 | AA37: 0 | AB37: 0 | AC37: 0 | AD37: 0 | AE37: 0 | AF37: 0 | AG37: 0 | AH37: 0 | AI37: 0 | AJ37: 0 | AK37: 0 | AL37: 0 | AM37: 0 | AN37: 0 | AO37: 0 | AP37: 0 | AQ37: 0 | AR37: 0 | AS37: 0 | AT37: 0 | AU37: 0 | AV37: 0 | AW37: 0 | AX37: 0 | AY37: 342.81 | AZ37: 342.81 | BA37: 342.81 | BB37: 342.81 | BC37: 342.81 | BD37: 342.81 | BE37: 342.81 | BF37: 342.81 | BG37: 342.81 | BH37: 342.81 | BI37: 353.09 | BJ37: 353.09 | BK37: 353.09 | BL37: 353.09 | BM37: 0 | BN37: 0 | BO37: 0 | BP37: 0 | BQ37: 0 | BR37: 370.23 | BS37: 370.23 | BT37: 370.23 | BU37: 370.23 | BV37: 370.23 | BW37: 370.23 | BX37: 370.23 | BZ37: Greene | CA37: =MIN(IF((PriorPlansTable[Market]=$CA$6)*(PriorPlansTable[Metal]=CA$7)*(INDIRECT("PriorPlansTable["&$BZ37&"]")>0),INDIRECT("PriorPlansTable["&$BZ37&"]"))) -> 205.7 | CB37: =MIN(IF((PriorPlansTable[Market]=$CA$6)*(PriorPlansTable[Metal]=CB$7)*(INDIRECT("PriorPlansTable["&$BZ37&"]")>0),INDIRECT("PriorPlansTable["&$BZ37&"]"))) -> 205.78 | CC37: =MIN(IF((PriorPlansTable[Market]=$CA$6)*(PriorPlansTable[Metal]=CC$7)*(INDIRECT("PriorPlansTable["&$BZ37&"]")>0),INDIRECT("PriorPlansTable["&$BZ37&"]"))) -> 263.78 | CD37: =MIN(IF((PriorPlansTable[Market]=$CA$6)*(PriorPlansTable[Metal]=CD$7)*(INDIRECT("PriorPlansTable["&$BZ37&"]")>0),INDIRECT("PriorPlansTable["&$BZ37&"]"))) -> 332.61 | CE37: =MIN(IF((PriorPlansTable[Market]=$CA$6)*(PriorPlansTable[Metal]=CE$7)*(INDIRECT("PriorPlansTable["&$BZ37&"]")>0),INDIRECT("PriorPlansTable["&$BZ37&"]"))) -> 581.41 | CF37: =MIN(IF((PriorPlansTable[Market]=$CA$6)*(PriorPlansTable[Metal]="Silver")*(INDIRECT("PriorPlansTable["&$BZ37&"]")>CC37),INDIRECT("PriorPlansTable["&$BZ37&"]"))) -> 345.42 | CG37: =MIN(IF((PriorPlansTable[Market]=$CG$6)*(PriorPlansTable[Metal]=CG$7)*(INDIRECT("PriorPlansTable["&$BZ37&"]")>0),INDIRECT("PriorPlansTable["&$BZ37&"]"))) -> 0 | CH37: =MIN(IF((PriorPlansTable[Market]=$CG$6)*(PriorPlansTable[Metal]=CH$7)*(INDIRECT("PriorPlansTable["&$BZ37&"]")>0),INDIRECT("PriorPlansTable["&$BZ37&"]"))) -> 189.44 | CI37: =MIN(IF((PriorPlansTable[Market]=$CG$6)*(PriorPlansTable[Metal]=CI$7)*(INDIRECT("PriorPlansTable["&$BZ37&"]")>0),INDIRECT("PriorPlansTable["&$BZ37&"]"))) -> 209.57 | CJ37: =MIN(IF((PriorPlansTable[Market]=$CG$6)*(PriorPlansTable[Metal]=CJ$7)*(INDIRECT("PriorPlansTable["&$BZ37&"]")>0),INDIRECT("PriorPlansTable["&$BZ37&"]"))) -> 246.05 | CK37: =MIN(IF((PriorPlansTable[Market]=$CG$6)*(PriorPlansTable[Metal]=CK$7)*(INDIRECT("PriorPlansTable["&$BZ37&"]")>0),INDIRECT("PriorPlansTable["&$BZ37&"]"))) -> 324.71 | CL37: =MIN(IF((PriorPlansTable[Market]=$CG$6)*(PriorPlansTable[Metal]="Silver")*(INDIRECT("PriorPlansTable["&$BZ37&"]")>CI37),INDIRECT("PriorPlansTable["&$BZ37&"]"))) -> 209.75
B38: Capital Blue Cross | C38: Capital Blue Cross | D38: Small Group | E38: 45127PA0010144 | F38: Silver PPO 3000/0/45 | Rx 0 | G38: PPO | H38: Silver | I38: Off | J38: 0 | K38: 0 | L38: 0 | M38: 0 | N38: 0 | O38: 0 | P38: 0 | Q38: 0 | R38: 0 | S38: 0 | T38: 0 | U38: 0 | V38: 0 | W38: 0 | X38: 0 | Y38: 0 | Z38: 0 | AA38: 0 | AB38: 0 | AC38: 0 | AD38: 0 | AE38: 0 | AF38: 0 | AG38: 0 | AH38: 0 | AI38: 0 | AJ38: 0 | AK38: 0 | AL38: 0 | AM38: 0 | AN38: 0 | AO38: 0 | AP38: 0 | AQ38: 0 | AR38: 0 | AS38: 0 | AT38: 0 | AU38: 0 | AV38: 0 | AW38: 0 | AX38: 0 | AY38: 349.44 | AZ38: 349.44 | BA38: 349.44 | BB38: 349.44 | BC38: 349.44 | BD38: 349.44 | BE38: 349.44 | BF38: 349.44 | BG38: 349.44 | BH38: 349.44 | BI38: 359.92 | BJ38: 359.92 | BK38: 359.92 | BL38: 359.92 | BM38: 0 | BN38: 0 | BO38: 0 | BP38: 0 | BQ38: 0 | BR38: 377.4 | BS38: 377.4 | BT38: 377.4 | BU38: 377.4 | BV38: 377.4 | BW38: 377.4 | BX38: 377.4 | BZ38: Indiana | CA38: =MIN(IF((PriorPlansTable[Market]=$CA$6)*(PriorPlansTable[Metal]=CA$7)*(INDIRECT("PriorPlansTable["&$BZ38&"]")>0),INDIRECT("PriorPlansTable["&$BZ38&"]"))) -> 205.7 | CB38: =MIN(IF((PriorPlansTable[Market]=$CA$6)*(PriorPlansTable[Metal]=CB$7)*(INDIRECT("PriorPlansTable["&$BZ38&"]")>0),INDIRECT("PriorPlansTable["&$BZ38&"]"))) -> 205.78 | CC38: =MIN(IF((PriorPlansTable[Market]=$CA$6)*(PriorPlansTable[Metal]=CC$7)*(INDIRECT("PriorPlansTable["&$BZ38&"]")>0),INDIRECT("PriorPlansTable["&$BZ38&"]"))) -> 263.78 | CD38: =MIN(IF((PriorPlansTable[Market]=$CA$6)*(PriorPlansTable[Metal]=CD$7)*(INDIRECT("PriorPlansTable["&$BZ38&"]")>0),INDIRECT("PriorPlansTable["&$BZ38&"]"))) -> 332.61 | CE38: =MIN(IF((PriorPlansTable[Market]=$CA$6)*(PriorPlansTable[Metal]=CE$7)*(INDIRECT("PriorPlansTable["&$BZ38&"]")>0),INDIRECT("PriorPlansTable["&$BZ38&"]"))) -> 581.41 | CF38: =MIN(IF((PriorPlansTable[Market]=$CA$6)*(PriorPlansTable[Metal]="Silver")*(INDIRECT("PriorPlansTable["&$BZ38&"]")>CC38),INDIRECT("PriorPlansTable["&$BZ38&"]"))) -> 345.42 | CG38: =MIN(IF((PriorPlansTable[Market]=$CG$6)*(PriorPlansTable[Metal]=CG$7)*(INDIRECT("PriorPlansTable["&$BZ38&"]")>0),INDIRECT("PriorPlansTable["&$BZ38&"]"))) -> 0 | CH38: =MIN(IF((PriorPlansTable[Market]=$CG$6)*(PriorPlansTable[Metal]=CH$7)*(INDIRECT("PriorPlansTable["&$BZ38&"]")>0),INDIRECT("PriorPlansTable["&$BZ38&"]"))) -> 189.44 | CI38: =MIN(IF((PriorPlansTable[Market]=$CG$6)*(PriorPlansTable[Metal]=CI$7)*(INDIRECT("PriorPlansTable["&$BZ38&"]")>0),INDIRECT("PriorPlansTable["&$BZ38&"]"))) -> 209.57 | CJ38: =MIN(IF((PriorPlansTable[Market]=$CG$6)*(PriorPlansTable[Metal]=CJ$7)*(INDIRECT("PriorPlansTable["&$BZ38&"]")>0),INDIRECT("PriorPlansTable["&$BZ38&"]"))) -> 246.05 | CK38: =MIN(IF((PriorPlansTable[Market]=$CG$6)*(PriorPlansTable[Metal]=CK$7)*(INDIRECT("PriorPlansTable["&$BZ38&"]")>0),INDIRECT("PriorPlansTable["&$BZ38&"]"))) -> 324.71 | CL38: =MIN(IF((PriorPlansTable[Market]=$CG$6)*(PriorPlansTable[Metal]="Silver")*(INDIRECT("PriorPlansTable["&$BZ38&"]")>CI38),INDIRECT("PriorPlansTable["&$BZ38&"]"))) -> 209.75
B39: Capital Blue Cross | C39: Capital Blue Cross | D39: Small Group | E39: 45127PA0010161 | F39: Gold HSA 1500/0/15 | Combined | G39: PPO | H39: Gold | I39: Off | J39: 0 | K39: 0 | L39: 0 | M39: 0 | N39: 0 | O39: 0 | P39: 0 | Q39: 0 | R39: 0 | S39: 0 | T39: 0 | U39: 0 | V39: 0 | W39: 0 | X39: 0 | Y39: 0 | Z39: 0 | AA39: 0 | AB39: 0 | AC39: 0 | AD39: 0 | AE39: 0 | AF39: 0 | AG39: 0 | AH39: 0 | AI39: 0 | AJ39: 0 | AK39: 0 | AL39: 0 | AM39: 0 | AN39: 0 | AO39: 0 | AP39: 0 | AQ39: 0 | AR39: 0 | AS39: 0 | AT39: 0 | AU39: 0 | AV39: 0 | AW39: 0 | AX39: 0 | AY39: 386.47 | AZ39: 386.47 | BA39: 386.47 | BB39: 386.47 | BC39: 386.47 | BD39: 386.47 | BE39: 386.47 | BF39: 386.47 | BG39: 386.47 | BH39: 386.47 | BI39: 398.06 | BJ39: 398.06 | BK39: 398.06 | BL39: 398.06 | BM39: 0 | BN39: 0 | BO39: 0 | BP39: 0 | BQ39: 0 | BR39: 417.39 | BS39: 417.39 | BT39: 417.39 | BU39: 417.39 | BV39: 417.39 | BW39: 417.39 | BX39: 417.39 | BZ39: Lawrence | CA39: =MIN(IF((PriorPlansTable[Market]=$CA$6)*(PriorPlansTable[Metal]=CA$7)*(INDIRECT("PriorPlansTable["&$BZ39&"]")>0),INDIRECT("PriorPlansTable["&$BZ39&"]"))) -> 162.98 | CB39: =MIN(IF((PriorPlansTable[Market]=$CA$6)*(PriorPlansTable[Metal]=CB$7)*(INDIRECT("PriorPlansTable["&$BZ39&"]")>0),INDIRECT("PriorPlansTable["&$BZ39&"]"))) -> 190.33 | CC39: =MIN(IF((PriorPlansTable[Market]=$CA$6)*(PriorPlansTable[Metal]=CC$7)*(INDIRECT("PriorPlansTable["&$BZ39&"]")>0),INDIRECT("PriorPlansTable["&$BZ39&"]"))) -> 208.98 | CD39: =MIN(IF((PriorPlansTable[Market]=$CA$6)*(PriorPlansTable[Metal]=CD$7)*(INDIRECT("PriorPlansTable["&$BZ39&"]")>0),INDIRECT("PriorPlansTable["&$BZ39&"]"))) -> 263.53 | CE39: =MIN(IF((PriorPlansTable[Market]=$CA$6)*(PriorPlansTable[Metal]=CE$7)*(INDIRECT("PriorPlansTable["&$BZ39&"]")>0),INDIRECT("PriorPlansTable["&$BZ39&"]"))) -> 460.65 | CF39: =MIN(IF((PriorPlansTable[Market]=$CA$6)*(PriorPlansTable[Metal]="Silver")*(INDIRECT("PriorPlansTable["&$BZ39&"]")>CC39),INDIRECT("PriorPlansTable["&$BZ39&"]"))) -> 263.78 | CG39: =MIN(IF((PriorPlansTable[Market]=$CG$6)*(PriorPlansTable[Metal]=CG$7)*(INDIRECT("PriorPlansTable["&$BZ39&"]")>0),INDIRECT("PriorPlansTable["&$BZ39&"]"))) -> 0 | CH39: =MIN(IF((PriorPlansTable[Market]=$CG$6)*(PriorPlansTable[Metal]=CH$7)*(INDIRECT("PriorPlansTable["&$BZ39&"]")>0),INDIRECT("PriorPlansTable["&$BZ39&"]"))) -> 189.44 | CI39: =MIN(IF((PriorPlansTable[Market]=$CG$6)*(PriorPlansTable[Metal]=CI$7)*(INDIRECT("PriorPlansTable["&$BZ39&"]")>0),INDIRECT("PriorPlansTable["&$BZ39&"]"))) -> 201.72 | CJ39: =MIN(IF((PriorPlansTable[Market]=$CG$6)*(PriorPlansTable[Metal]=CJ$7)*(INDIRECT("PriorPlansTable["&$BZ39&"]")>0),INDIRECT("PriorPlansTable["&$BZ39&"]"))) -> 245.5 | CK39: =MIN(IF((PriorPlansTable[Market]=$CG$6)*(PriorPlansTable[Metal]=CK$7)*(INDIRECT("PriorPlansTable["&$BZ39&"]")>0),INDIRECT("PriorPlansTable["&$BZ39&"]"))) -> 324.71 | CL39: =MIN(IF((PriorPlansTable[Market]=$CG$6)*(PriorPlansTable[Metal]="Silver")*(INDIRECT("PriorPlansTable["&$BZ39&"]")>CI39),INDIRECT("PriorPlansTable["&$BZ39&"]"))) -> 202.06
B40: Capital Blue Cross | C40: Capital Blue Cross | D40: Small Group | E40: 45127PA0010170 | F40: Silver HSA 3500/0/15 | Combined | G40: PPO | H40: Silver | I40: Off | J40: 0 | K40: 0 | L40: 0 | M40: 0 | N40: 0 | O40: 0 | P40: 0 | Q40: 0 | R40: 0 | S40: 0 | T40: 0 | U40: 0 | V40: 0 | W40: 0 | X40: 0 | Y40: 0 | Z40: 0 | AA40: 0 | AB40: 0 | AC40: 0 | AD40: 0 | AE40: 0 | AF40: 0 | AG40: 0 | AH40: 0 | AI40: 0 | AJ40: 0 | AK40: 0 | AL40: 0 | AM40: 0 | AN40: 0 | AO40: 0 | AP40: 0 | AQ40: 0 | AR40: 0 | AS40: 0 | AT40: 0 | AU40: 0 | AV40: 0 | AW40: 0 | AX40: 0 | AY40: 329.12 | AZ40: 329.12 | BA40: 329.12 | BB40: 329.12 | BC40: 329.12 | BD40: 329.12 | BE40: 329.12 | BF40: 329.12 | BG40: 329.12 | BH40: 329.12 | BI40: 338.99 | BJ40: 338.99 | BK40: 338.99 | BL40: 338.99 | BM40: 0 | BN40: 0 | BO40: 0 | BP40: 0 | BQ40: 0 | BR40: 355.45 | BS40: 355.45 | BT40: 355.45 | BU40: 355.45 | BV40: 355.45 | BW40: 355.45 | BX40: 355.45 | BZ40: Washington | CA40: =MIN(IF((PriorPlansTable[Market]=$CA$6)*(PriorPlansTable[Metal]=CA$7)*(INDIRECT("PriorPlansTable["&$BZ40&"]")>0),INDIRECT("PriorPlansTable["&$BZ40&"]"))) -> 171.44 | CB40: =MIN(IF((PriorPlansTable[Market]=$CA$6)*(PriorPlansTable[Metal]=CB$7)*(INDIRECT("PriorPlansTable["&$BZ40&"]")>0),INDIRECT("PriorPlansTable["&$BZ40&"]"))) -> 200.21 | CC40: =MIN(IF((PriorPlansTable[Market]=$CA$6)*(PriorPlansTable[Metal]=CC$7)*(INDIRECT("PriorPlansTable["&$BZ40&"]")>0),INDIRECT("PriorPlansTable["&$BZ40&"]"))) -> 219.84 | CD40: =MIN(IF((PriorPlansTable[Market]=$CA$6)*(PriorPlansTable[Metal]=CD$7)*(INDIRECT("PriorPlansTable["&$BZ40&"]")>0),INDIRECT("PriorPlansTable["&$BZ40&"]"))) -> 277.21 | CE40: =MIN(IF((PriorPlansTable[Market]=$CA$6)*(PriorPlansTable[Metal]=CE$7)*(INDIRECT("PriorPlansTable["&$BZ40&"]")>0),INDIRECT("PriorPlansTable["&$BZ40&"]"))) -> 484.58 | CF40: =MIN(IF((PriorPlansTable[Market]=$CA$6)*(PriorPlansTable[Metal]="Silver")*(INDIRECT("PriorPlansTable["&$BZ40&"]")>CC40),INDIRECT("PriorPlansTable["&$BZ40&"]"))) -> 263.78 | CG40: =MIN(IF((PriorPlansTable[Market]=$CG$6)*(PriorPlansTable[Metal]=CG$7)*(INDIRECT("PriorPlansTable["&$BZ40&"]")>0),INDIRECT("PriorPlansTable["&$BZ40&"]"))) -> 0 | CH40: =MIN(IF((PriorPlansTable[Market]=$CG$6)*(PriorPlansTable[Metal]=CH$7)*(INDIRECT("PriorPlansTable["&$BZ40&"]")>0),INDIRECT("PriorPlansTable["&$BZ40&"]"))) -> 189.44 | CI40: =MIN(IF((PriorPlansTable[Market]=$CG$6)*(PriorPlansTable[Metal]=CI$7)*(INDIRECT("PriorPlansTable["&$BZ40&"]")>0),INDIRECT("PriorPlansTable["&$BZ40&"]"))) -> 201.72 | CJ40: =MIN(IF((PriorPlansTable[Market]=$CG$6)*(PriorPlansTable[Metal]=CJ$7)*(INDIRECT("PriorPlansTable["&$BZ40&"]")>0),INDIRECT("PriorPlansTable["&$BZ40&"]"))) -> 245.5 | CK40: =MIN(IF((PriorPlansTable[Market]=$CG$6)*(PriorPlansTable[Metal]=CK$7)*(INDIRECT("PriorPlansTable["&$BZ40&"]")>0),INDIRECT("PriorPlansTable["&$BZ40&"]"))) -> 324.71 | CL40: =MIN(IF((PriorPlansTable[Market]=$CG$6)*(PriorPlansTable[Metal]="Silver")*(INDIRECT("PriorPlansTable["&$BZ40&"]")>CI40),INDIRECT("PriorPlansTable["&$BZ40&"]"))) -> 202.06
B41: Capital Blue Cross | C41: Capital Blue Cross | D41: Small Group | E41: 45127PA0010184 | F41: Silver PPO 5000/0/30 | Rx 250 | G41: PPO | H41: Silver | I41: Off | J41: 0 | K41: 0 | L41: 0 | M41: 0 | N41: 0 | O41: 0 | P41: 0 | Q41: 0 | R41: 0 | S41: 0 | T41: 0 | U41: 0 | V41: 0 | W41: 0 | X41: 0 | Y41: 0 | Z41: 0 | AA41: 0 | AB41: 0 | AC41: 0 | AD41: 0 | AE41: 0 | AF41: 0 | AG41: 0 | AH41: 0 | AI41: 0 | AJ41: 0 | AK41: 0 | AL41: 0 | AM41: 0 | AN41: 0 | AO41: 0 | AP41: 0 | AQ41: 0 | AR41: 0 | AS41: 0 | AT41: 0 | AU41: 0 | AV41: 0 | AW41: 0 | AX41: 0 | AY41: 328.81 | AZ41: 328.81 | BA41: 328.81 | BB41: 328.81 | BC41: 328.81 | BD41: 328.81 | BE41: 328.81 | BF41: 328.81 | BG41: 328.81 | BH41: 328.81 | BI41: 338.67 | BJ41: 338.67 | BK41: 338.67 | BL41: 338.67 | BM41: 0 | BN41: 0 | BO41: 0 | BP41: 0 | BQ41: 0 | BR41: 355.11 | BS41: 355.11 | BT41: 355.11 | BU41: 355.11 | BV41: 355.11 | BW41: 355.11 | BX41: 355.11 | BZ41: Westmoreland | CA41: =MIN(IF((PriorPlansTable[Market]=$CA$6)*(PriorPlansTable[Metal]=CA$7)*(INDIRECT("PriorPlansTable["&$BZ41&"]")>0),INDIRECT("PriorPlansTable["&$BZ41&"]"))) -> 171.44 | CB41: =MIN(IF((PriorPlansTable[Market]=$CA$6)*(PriorPlansTable[Metal]=CB$7)*(INDIRECT("PriorPlansTable["&$BZ41&"]")>0),INDIRECT("PriorPlansTable["&$BZ41&"]"))) -> 200.21 | CC41: =MIN(IF((PriorPlansTable[Market]=$CA$6)*(PriorPlansTable[Metal]=CC$7)*(INDIRECT("PriorPlansTable["&$BZ41&"]")>0),INDIRECT("PriorPlansTable["&$BZ41&"]"))) -> 219.84 | CD41: =MIN(IF((PriorPlansTable[Market]=$CA$6)*(PriorPlansTable[Metal]=CD$7)*(INDIRECT("PriorPlansTable["&$BZ41&"]")>0),INDIRECT("PriorPlansTable["&$BZ41&"]"))) -> 277.21 | CE41: =MIN(IF((PriorPlansTable[Market]=$CA$6)*(PriorPlansTable[Metal]=CE$7)*(INDIRECT("PriorPlansTable["&$BZ41&"]")>0),INDIRECT("PriorPlansTable["&$BZ41&"]"))) -> 484.58 | CF41: =MIN(IF((PriorPlansTable[Market]=$CA$6)*(PriorPlansTable[Metal]="Silver")*(INDIRECT("PriorPlansTable["&$BZ41&"]")>CC41),INDIRECT("PriorPlansTable["&$BZ41&"]"))) -> 263.78 | CG41: =MIN(IF((PriorPlansTable[Market]=$CG$6)*(PriorPlansTable[Metal]=CG$7)*(INDIRECT("PriorPlansTable["&$BZ41&"]")>0),INDIRECT("PriorPlansTable["&$BZ41&"]"))) -> 0 | CH41: =MIN(IF((PriorPlansTable[Market]=$CG$6)*(PriorPlansTable[Metal]=CH$7)*(INDIRECT("PriorPlansTable["&$BZ41&"]")>0),INDIRECT("PriorPlansTable["&$BZ41&"]"))) -> 189.44 | CI41: =MIN(IF((PriorPlansTable[Market]=$CG$6)*(PriorPlansTable[Metal]=CI$7)*(INDIRECT("PriorPlansTable["&$BZ41&"]")>0),INDIRECT("PriorPlansTable["&$BZ41&"]"))) -> 201.72 | CJ41: =MIN(IF((PriorPlansTable[Market]=$CG$6)*(PriorPlansTable[Metal]=CJ$7)*(INDIRECT("PriorPlansTable["&$BZ41&"]")>0),INDIRECT("PriorPlansTable["&$BZ41&"]"))) -> 245.5 | CK41: =MIN(IF((PriorPlansTable[Market]=$CG$6)*(PriorPlansTable[Metal]=CK$7)*(INDIRECT("PriorPlansTable["&$BZ41&"]")>0),INDIRECT("PriorPlansTable["&$BZ41&"]"))) -> 324.71 | CL41: =MIN(IF((PriorPlansTable[Market]=$CG$6)*(PriorPlansTable[Metal]="Silver")*(INDIRECT("PriorPlansTable["&$BZ41&"]")>CI41),INDIRECT("PriorPlansTable["&$BZ41&"]"))) -> 202.06
B42: Capital Blue Cross | C42: Capital Blue Cross | D42: Small Group | E42: 45127PA0010185 | F42: Silver PPO 5000/0/30 | Rx 0 | G42: PPO | H42: Silver | I42: Off | J42: 0 | K42: 0 | L42: 0 | M42: 0 | N42: 0 | O42: 0 | P42: 0 | Q42: 0 | R42: 0 | S42: 0 | T42: 0 | U42: 0 | V42: 0 | W42: 0 | X42: 0 | Y42: 0 | Z42: 0 | AA42: 0 | AB42: 0 | AC42: 0 | AD42: 0 | AE42: 0 | AF42: 0 | AG42: 0 | AH42: 0 | AI42: 0 | AJ42: 0 | AK42: 0 | AL42: 0 | AM42: 0 | AN42: 0 | AO42: 0 | AP42: 0 | AQ42: 0 | AR42: 0 | AS42: 0 | AT42: 0 | AU42: 0 | AV42: 0 | AW42: 0 | AX42: 0 | AY42: 335.44 | AZ42: 335.44 | BA42: 335.44 | BB42: 335.44 | BC42: 335.44 | BD42: 335.44 | BE42: 335.44 | BF42: 335.44 | BG42: 335.44 | BH42: 335.44 | BI42: 345.5 | BJ42: 345.5 | BK42: 345.5 | BL42: 345.5 | BM42: 0 | BN42: 0 | BO42: 0 | BP42: 0 | BQ42: 0 | BR42: 362.28 | BS42: 362.28 | BT42: 362.28 | BU42: 362.28 | BV42: 362.28 | BW42: 362.28 | BX42: 362.28 | BZ42: Bedford | CA42: =MIN(IF((PriorPlansTable[Market]=$CA$6)*(PriorPlansTable[Metal]=CA$7)*(INDIRECT("PriorPlansTable["&$BZ42&"]")>0),INDIRECT("PriorPlansTable["&$BZ42&"]"))) -> 162.98 | CB42: =MIN(IF((PriorPlansTable[Market]=$CA$6)*(PriorPlansTable[Metal]=CB$7)*(INDIRECT("PriorPlansTable["&$BZ42&"]")>0),INDIRECT("PriorPlansTable["&$BZ42&"]"))) -> 190.33 | CC42: =MIN(IF((PriorPlansTable[Market]=$CA$6)*(PriorPlansTable[Metal]=CC$7)*(INDIRECT("PriorPlansTable["&$BZ42&"]")>0),INDIRECT("PriorPlansTable["&$BZ42&"]"))) -> 208.98 | CD42: =MIN(IF((PriorPlansTable[Market]=$CA$6)*(PriorPlansTable[Metal]=CD$7)*(INDIRECT("PriorPlansTable["&$BZ42&"]")>0),INDIRECT("PriorPlansTable["&$BZ42&"]"))) -> 263.53 | CE42: =MIN(IF((PriorPlansTable[Market]=$CA$6)*(PriorPlansTable[Metal]=CE$7)*(INDIRECT("PriorPlansTable["&$BZ42&"]")>0),INDIRECT("PriorPlansTable["&$BZ42&"]"))) -> 460.65 | CF42: =MIN(IF((PriorPlansTable[Market]=$CA$6)*(PriorPlansTable[Metal]="Silver")*(INDIRECT("PriorPlansTable["&$BZ42&"]")>CC42),INDIRECT("PriorPlansTable["&$BZ42&"]"))) -> 263.78 | CG42: =MIN(IF((PriorPlansTable[Market]=$CG$6)*(PriorPlansTable[Metal]=CG$7)*(INDIRECT("PriorPlansTable["&$BZ42&"]")>0),INDIRECT("PriorPlansTable["&$BZ42&"]"))) -> 0 | CH42: =MIN(IF((PriorPlansTable[Market]=$CG$6)*(PriorPlansTable[Metal]=CH$7)*(INDIRECT("PriorPlansTable["&$BZ42&"]")>0),INDIRECT("PriorPlansTable["&$BZ42&"]"))) -> 189.44 | CI42: =MIN(IF((PriorPlansTable[Market]=$CG$6)*(PriorPlansTable[Metal]=CI$7)*(INDIRECT("PriorPlansTable["&$BZ42&"]")>0),INDIRECT("PriorPlansTable["&$BZ42&"]"))) -> 201.72 | CJ42: =MIN(IF((PriorPlansTable[Market]=$CG$6)*(PriorPlansTable[Metal]=CJ$7)*(INDIRECT("PriorPlansTable["&$BZ42&"]")>0),INDIRECT("PriorPlansTable["&$BZ42&"]"))) -> 245.5 | CK42: =MIN(IF((PriorPlansTable[Market]=$CG$6)*(PriorPlansTable[Metal]=CK$7)*(INDIRECT("PriorPlansTable["&$BZ42&"]")>0),INDIRECT("PriorPlansTable["&$BZ42&"]"))) -> 327.03 | CL42: =MIN(IF((PriorPlansTable[Market]=$CG$6)*(PriorPlansTable[Metal]="Silver")*(INDIRECT("PriorPlansTable["&$BZ42&"]")>CI42),INDIRECT("PriorPlansTable["&$BZ42&"]"))) -> 202.06
B43: Capital Blue Cross | C43: Capital Blue Cross | D43: Small Group | E43: 45127PA0010186 | F43: Silver PPO 6000/0/35 | Rx 250 | G43: PPO | H43: Silver | I43: Off | J43: 0 | K43: 0 | L43: 0 | M43: 0 | N43: 0 | O43: 0 | P43: 0 | Q43: 0 | R43: 0 | S43: 0 | T43: 0 | U43: 0 | V43: 0 | W43: 0 | X43: 0 | Y43: 0 | Z43: 0 | AA43: 0 | AB43: 0 | AC43: 0 | AD43: 0 | AE43: 0 | AF43: 0 | AG43: 0 | AH43: 0 | AI43: 0 | AJ43: 0 | AK43: 0 | AL43: 0 | AM43: 0 | AN43: 0 | AO43: 0 | AP43: 0 | AQ43: 0 | AR43: 0 | AS43: 0 | AT43: 0 | AU43: 0 | AV43: 0 | AW43: 0 | AX43: 0 | AY43: 324.33 | AZ43: 324.33 | BA43: 324.33 | BB43: 324.33 | BC43: 324.33 | BD43: 324.33 | BE43: 324.33 | BF43: 324.33 | BG43: 324.33 | BH43: 324.33 | BI43: 334.06 | BJ43: 334.06 | BK43: 334.06 | BL43: 334.06 | BM43: 0 | BN43: 0 | BO43: 0 | BP43: 0 | BQ43: 0 | BR43: 350.28 | BS43: 350.28 | BT43: 350.28 | BU43: 350.28 | BV43: 350.28 | BW43: 350.28 | BX43: 350.28 | BZ43: Blair | CA43: =MIN(IF((PriorPlansTable[Market]=$CA$6)*(PriorPlansTable[Metal]=CA$7)*(INDIRECT("PriorPlansTable["&$BZ43&"]")>0),INDIRECT("PriorPlansTable["&$BZ43&"]"))) -> 162.98 | CB43: =MIN(IF((PriorPlansTable[Market]=$CA$6)*(PriorPlansTable[Metal]=CB$7)*(INDIRECT("PriorPlansTable["&$BZ43&"]")>0),INDIRECT("PriorPlansTable["&$BZ43&"]"))) -> 190.33 | CC43: =MIN(IF((PriorPlansTable[Market]=$CA$6)*(PriorPlansTable[Metal]=CC$7)*(INDIRECT("PriorPlansTable["&$BZ43&"]")>0),INDIRECT("PriorPlansTable["&$BZ43&"]"))) -> 208.98 | CD43: =MIN(IF((PriorPlansTable[Market]=$CA$6)*(PriorPlansTable[Metal]=CD$7)*(INDIRECT("PriorPlansTable["&$BZ43&"]")>0),INDIRECT("PriorPlansTable["&$BZ43&"]"))) -> 263.53 | CE43: =MIN(IF((PriorPlansTable[Market]=$CA$6)*(PriorPlansTable[Metal]=CE$7)*(INDIRECT("PriorPlansTable["&$BZ43&"]")>0),INDIRECT("PriorPlansTable["&$BZ43&"]"))) -> 460.65 | CF43: =MIN(IF((PriorPlansTable[Market]=$CA$6)*(PriorPlansTable[Metal]="Silver")*(INDIRECT("PriorPlansTable["&$BZ43&"]")>CC43),INDIRECT("PriorPlansTable["&$BZ43&"]"))) -> 263.78 | CG43: =MIN(IF((PriorPlansTable[Market]=$CG$6)*(PriorPlansTable[Metal]=CG$7)*(INDIRECT("PriorPlansTable["&$BZ43&"]")>0),INDIRECT("PriorPlansTable["&$BZ43&"]"))) -> 0 | CH43: =MIN(IF((PriorPlansTable[Market]=$CG$6)*(PriorPlansTable[Metal]=CH$7)*(INDIRECT("PriorPlansTable["&$BZ43&"]")>0),INDIRECT("PriorPlansTable["&$BZ43&"]"))) -> 189.44 | CI43: =MIN(IF((PriorPlansTable[Market]=$CG$6)*(PriorPlansTable[Metal]=CI$7)*(INDIRECT("PriorPlansTable["&$BZ43&"]")>0),INDIRECT("PriorPlansTable["&$BZ43&"]"))) -> 201.72 | CJ43: =MIN(IF((PriorPlansTable[Market]=$CG$6)*(PriorPlansTable[Metal]=CJ$7)*(INDIRECT("PriorPlansTable["&$BZ43&"]")>0),INDIRECT("PriorPlansTable["&$BZ43&"]"))) -> 245.5 | CK43: =MIN(IF((PriorPlansTable[Market]=$CG$6)*(PriorPlansTable[Metal]=CK$7)*(INDIRECT("PriorPlansTable["&$BZ43&"]")>0),INDIRECT("PriorPlansTable["&$BZ43&"]"))) -> 327.03 | CL43: =MIN(IF((PriorPlansTable[Market]=$CG$6)*(PriorPlansTable[Metal]="Silver")*(INDIRECT("PriorPlansTable["&$BZ43&"]")>CI43),INDIRECT("PriorPlansTable["&$BZ43&"]"))) -> 202.06
B44: Capital Blue Cross | C44: Capital Blue Cross | D44: Small Group | E44: 45127PA0010187 | F44: Silver PPO 6000/0/35 | Rx 0 | G44: PPO | H44: Silver | I44: Off | J44: 0 | K44: 0 | L44: 0 | M44: 0 | N44: 0 | O44: 0 | P44: 0 | Q44: 0 | R44: 0 | S44: 0 | T44: 0 | U44: 0 | V44: 0 | W44: 0 | X44: 0 | Y44: 0 | Z44: 0 | AA44: 0 | AB44: 0 | AC44: 0 | AD44: 0 | AE44: 0 | AF44: 0 | AG44: 0 | AH44: 0 | AI44: 0 | AJ44: 0 | AK44: 0 | AL44: 0 | AM44: 0 | AN44: 0 | AO44: 0 | AP44: 0 | AQ44: 0 | AR44: 0 | AS44: 0 | AT44: 0 | AU44: 0 | AV44: 0 | AW44: 0 | AX44: 0 | AY44: 330.96 | AZ44: 330.96 | BA44: 330.96 | BB44: 330.96 | BC44: 330.96 | BD44: 330.96 | BE44: 330.96 | BF44: 330.96 | BG44: 330.96 | BH44: 330.96 | BI44: 340.89 | BJ44: 340.89 | BK44: 340.89 | BL44: 340.89 | BM44: 0 | BN44: 0 | BO44: 0 | BP44: 0 | BQ44: 0 | BR44: 357.44 | BS44: 357.44 | BT44: 357.44 | BU44: 357.44 | BV44: 357.44 | BW44: 357.44 | BX44: 357.44 | BZ44: Cambria | CA44: =MIN(IF((PriorPlansTable[Market]=$CA$6)*(PriorPlansTable[Metal]=CA$7)*(INDIRECT("PriorPlansTable["&$BZ44&"]")>0),INDIRECT("PriorPlansTable["&$BZ44&"]"))) -> 205.7 | CB44: =MIN(IF((PriorPlansTable[Market]=$CA$6)*(PriorPlansTable[Metal]=CB$7)*(INDIRECT("PriorPlansTable["&$BZ44&"]")>0),INDIRECT("PriorPlansTable["&$BZ44&"]"))) -> 205.78 | CC44: =MIN(IF((PriorPlansTable[Market]=$CA$6)*(PriorPlansTable[Metal]=CC$7)*(INDIRECT("PriorPlansTable["&$BZ44&"]")>0),INDIRECT("PriorPlansTable["&$BZ44&"]"))) -> 263.78 | CD44: =MIN(IF((PriorPlansTable[Market]=$CA$6)*(PriorPlansTable[Metal]=CD$7)*(INDIRECT("PriorPlansTable["&$BZ44&"]")>0),INDIRECT("PriorPlansTable["&$BZ44&"]"))) -> 332.61 | CE44: =MIN(IF((PriorPlansTable[Market]=$CA$6)*(PriorPlansTable[Metal]=CE$7)*(INDIRECT("PriorPlansTable["&$BZ44&"]")>0),INDIRECT("PriorPlansTable["&$BZ44&"]"))) -> 581.41 | CF44: =MIN(IF((PriorPlansTable[Market]=$CA$6)*(PriorPlansTable[Metal]="Silver")*(INDIRECT("PriorPlansTable["&$BZ44&"]")>CC44),INDIRECT("PriorPlansTable["&$BZ44&"]"))) -> 320.34 | CG44: =MIN(IF((PriorPlansTable[Market]=$CG$6)*(PriorPlansTable[Metal]=CG$7)*(INDIRECT("PriorPlansTable["&$BZ44&"]")>0),INDIRECT("PriorPlansTable["&$BZ44&"]"))) -> 0 | CH44: =MIN(IF((PriorPlansTable[Market]=$CG$6)*(PriorPlansTable[Metal]=CH$7)*(INDIRECT("PriorPlansTable["&$BZ44&"]")>0),INDIRECT("PriorPlansTable["&$BZ44&"]"))) -> 189.44 | CI44: =MIN(IF((PriorPlansTable[Market]=$CG$6)*(PriorPlansTable[Metal]=CI$7)*(INDIRECT("PriorPlansTable["&$BZ44&"]")>0),INDIRECT("PriorPlansTable["&$BZ44&"]"))) -> 209.57 | CJ44: =MIN(IF((PriorPlansTable[Market]=$CG$6)*(PriorPlansTable[Metal]=CJ$7)*(INDIRECT("PriorPlansTable["&$BZ44&"]")>0),INDIRECT("PriorPlansTable["&$BZ44&"]"))) -> 246.05 | CK44: =MIN(IF((PriorPlansTable[Market]=$CG$6)*(PriorPlansTable[Metal]=CK$7)*(INDIRECT("PriorPlansTable["&$BZ44&"]")>0),INDIRECT("PriorPlansTable["&$BZ44&"]"))) -> 330.39 | CL44: =MIN(IF((PriorPlansTable[Market]=$CG$6)*(PriorPlansTable[Metal]="Silver")*(INDIRECT("PriorPlansTable["&$BZ44&"]")>CI44),INDIRECT("PriorPlansTable["&$BZ44&"]"))) -> 209.75
B45: Capital Blue Cross | C45: Capital Blue Cross | D45: Small Group | E45: 45127PA0010188 | F45: Gold Shared Deductible PPO 5000/0 - 500 | Rx 250 | G45: PPO | H45: Gold | I45: Off | J45: 0 | K45: 0 | L45: 0 | M45: 0 | N45: 0 | O45: 0 | P45: 0 | Q45: 0 | R45: 0 | S45: 0 | T45: 0 | U45: 0 | V45: 0 | W45: 0 | X45: 0 | Y45: 0 | Z45: 0 | AA45: 0 | AB45: 0 | AC45: 0 | AD45: 0 | AE45: 0 | AF45: 0 | AG45: 0 | AH45: 0 | AI45: 0 | AJ45: 0 | AK45: 0 | AL45: 0 | AM45: 0 | AN45: 0 | AO45: 0 | AP45: 0 | AQ45: 0 | AR45: 0 | AS45: 0 | AT45: 0 | AU45: 0 | AV45: 0 | AW45: 0 | AX45: 0 | AY45: 393.13 | AZ45: 393.13 | BA45: 393.13 | BB45: 393.13 | BC45: 393.13 | BD45: 393.13 | BE45: 393.13 | BF45: 393.13 | BG45: 393.13 | BH45: 393.13 | BI45: 404.92 | BJ45: 404.92 | BK45: 404.92 | BL45: 404.92 | BM45: 0 | BN45: 0 | BO45: 0 | BP45: 0 | BQ45: 0 | BR45: 424.58 | BS45: 424.58 | BT45: 424.58 | BU45: 424.58 | BV45: 424.58 | BW45: 424.58 | BX45: 424.58 | BZ45: Clearfield | CA45: =MIN(IF((PriorPlansTable[Market]=$CA$6)*(PriorPlansTable[Metal]=CA$7)*(INDIRECT("PriorPlansTable["&$BZ45&"]")>0),INDIRECT("PriorPlansTable["&$BZ45&"]"))) -> 205.7 | CB45: =MIN(IF((PriorPlansTable[Market]=$CA$6)*(PriorPlansTable[Metal]=CB$7)*(INDIRECT("PriorPlansTable["&$BZ45&"]")>0),INDIRECT("PriorPlansTable["&$BZ45&"]"))) -> 205.78 | CC45: =MIN(IF((PriorPlansTable[Market]=$CA$6)*(PriorPlansTable[Metal]=CC$7)*(INDIRECT("PriorPlansTable["&$BZ45&"]")>0),INDIRECT("PriorPlansTable["&$BZ45&"]"))) -> 263.78 | CD45: =MIN(IF((PriorPlansTable[Market]=$CA$6)*(PriorPlansTable[Metal]=CD$7)*(INDIRECT("PriorPlansTable["&$BZ45&"]")>0),INDIRECT("PriorPlansTable["&$BZ45&"]"))) -> 332.61 | CE45: =MIN(IF((PriorPlansTable[Market]=$CA$6)*(PriorPlansTable[Metal]=CE$7)*(INDIRECT("PriorPlansTable["&$BZ45&"]")>0),INDIRECT("PriorPlansTable["&$BZ45&"]"))) -> 581.41 | CF45: =MIN(IF((PriorPlansTable[Market]=$CA$6)*(PriorPlansTable[Metal]="Silver")*(INDIRECT("PriorPlansTable["&$BZ45&"]")>CC45),INDIRECT("PriorPlansTable["&$BZ45&"]"))) -> 322.55 | CG45: =MIN(IF((PriorPlansTable[Market]=$CG$6)*(PriorPlansTable[Metal]=CG$7)*(INDIRECT("PriorPlansTable["&$BZ45&"]")>0),INDIRECT("PriorPlansTable["&$BZ45&"]"))) -> 0 | CH45: =MIN(IF((PriorPlansTable[Market]=$CG$6)*(PriorPlansTable[Metal]=CH$7)*(INDIRECT("PriorPlansTable["&$BZ45&"]")>0),INDIRECT("PriorPlansTable["&$BZ45&"]"))) -> 189.44 | CI45: =MIN(IF((PriorPlansTable[Market]=$CG$6)*(PriorPlansTable[Metal]=CI$7)*(INDIRECT("PriorPlansTable["&$BZ45&"]")>0),INDIRECT("PriorPlansTable["&$BZ45&"]"))) -> 209.57 | CJ45: =MIN(IF((PriorPlansTable[Market]=$CG$6)*(PriorPlansTable[Metal]=CJ$7)*(INDIRECT("PriorPlansTable["&$BZ45&"]")>0),INDIRECT("PriorPlansTable["&$BZ45&"]"))) -> 246.05 | CK45: =MIN(IF((PriorPlansTable[Market]=$CG$6)*(PriorPlansTable[Metal]=CK$7)*(INDIRECT("PriorPlansTable["&$BZ45&"]")>0),INDIRECT("PriorPlansTable["&$BZ45&"]"))) -> 330.39 | CL45: =MIN(IF((PriorPlansTable[Market]=$CG$6)*(PriorPlansTable[Metal]="Silver")*(INDIRECT("PriorPlansTable["&$BZ45&"]")>CI45),INDIRECT("PriorPlansTable["&$BZ45&"]"))) -> 209.75
B46: Capital Blue Cross | C46: Capital Blue Cross | D46: Small Group | E46: 45127PA0010189 | F46: Gold Shared Deductible PPO 5000/0 - 500 | Rx 0 | G46: PPO | H46: Gold | I46: Off | J46: 0 | K46: 0 | L46: 0 | M46: 0 | N46: 0 | O46: 0 | P46: 0 | Q46: 0 | R46: 0 | S46: 0 | T46: 0 | U46: 0 | V46: 0 | W46: 0 | X46: 0 | Y46: 0 | Z46: 0 | AA46: 0 | AB46: 0 | AC46: 0 | AD46: 0 | AE46: 0 | AF46: 0 | AG46: 0 | AH46: 0 | AI46: 0 | AJ46: 0 | AK46: 0 | AL46: 0 | AM46: 0 | AN46: 0 | AO46: 0 | AP46: 0 | AQ46: 0 | AR46: 0 | AS46: 0 | AT46: 0 | AU46: 0 | AV46: 0 | AW46: 0 | AX46: 0 | AY46: 399.76 | AZ46: 399.76 | BA46: 399.76 | BB46: 399.76 | BC46: 399.76 | BD46: 399.76 | BE46: 399.76 | BF46: 399.76 | BG46: 399.76 | BH46: 399.76 | BI46: 411.75 | BJ46: 411.75 | BK46: 411.75 | BL46: 411.75 | BM46: 0 | BN46: 0 | BO46: 0 | BP46: 0 | BQ46: 0 | BR46: 431.74 | BS46: 431.74 | BT46: 431.74 | BU46: 431.74 | BV46: 431.74 | BW46: 431.74 | BX46: 431.74 | BZ46: Huntingdon | CA46: =MIN(IF((PriorPlansTable[Market]=$CA$6)*(PriorPlansTable[Metal]=CA$7)*(INDIRECT("PriorPlansTable["&$BZ46&"]")>0),INDIRECT("PriorPlansTable["&$BZ46&"]"))) -> 205.7 | CB46: =MIN(IF((PriorPlansTable[Market]=$CA$6)*(PriorPlansTable[Metal]=CB$7)*(INDIRECT("PriorPlansTable["&$BZ46&"]")>0),INDIRECT("PriorPlansTable["&$BZ46&"]"))) -> 205.78 | CC46: =MIN(IF((PriorPlansTable[Market]=$CA$6)*(PriorPlansTable[Metal]=CC$7)*(INDIRECT("PriorPlansTable["&$BZ46&"]")>0),INDIRECT("PriorPlansTable["&$BZ46&"]"))) -> 263.78 | CD46: =MIN(IF((PriorPlansTable[Market]=$CA$6)*(PriorPlansTable[Metal]=CD$7)*(INDIRECT("PriorPlansTable["&$BZ46&"]")>0),INDIRECT("PriorPlansTable["&$BZ46&"]"))) -> 332.61 | CE46: =MIN(IF((PriorPlansTable[Market]=$CA$6)*(PriorPlansTable[Metal]=CE$7)*(INDIRECT("PriorPlansTable["&$BZ46&"]")>0),INDIRECT("PriorPlansTable["&$BZ46&"]"))) -> 581.41 | CF46: =MIN(IF((PriorPlansTable[Market]=$CA$6)*(PriorPlansTable[Metal]="Silver")*(INDIRECT("PriorPlansTable["&$BZ46&"]")>CC46),INDIRECT("PriorPlansTable["&$BZ46&"]"))) -> 322.55 | CG46: =MIN(IF((PriorPlansTable[Market]=$CG$6)*(PriorPlansTable[Metal]=CG$7)*(INDIRECT("PriorPlansTable["&$BZ46&"]")>0),INDIRECT("PriorPlansTable["&$BZ46&"]"))) -> 0 | CH46: =MIN(IF((PriorPlansTable[Market]=$CG$6)*(PriorPlansTable[Metal]=CH$7)*(INDIRECT("PriorPlansTable["&$BZ46&"]")>0),INDIRECT("PriorPlansTable["&$BZ46&"]"))) -> 189.44 | CI46: =MIN(IF((PriorPlansTable[Market]=$CG$6)*(PriorPlansTable[Metal]=CI$7)*(INDIRECT("PriorPlansTable["&$BZ46&"]")>0),INDIRECT("PriorPlansTable["&$BZ46&"]"))) -> 209.57 | CJ46: =MIN(IF((PriorPlansTable[Market]=$CG$6)*(PriorPlansTable[Metal]=CJ$7)*(INDIRECT("PriorPlansTable["&$BZ46&"]")>0),INDIRECT("PriorPlansTable["&$BZ46&"]"))) -> 246.05 | CK46: =MIN(IF((PriorPlansTable[Market]=$CG$6)*(PriorPlansTable[Metal]=CK$7)*(INDIRECT("PriorPlansTable["&$BZ46&"]")>0),INDIRECT("PriorPlansTable["&$BZ46&"]"))) -> 330.39 | CL46: =MIN(IF((PriorPlansTable[Market]=$CG$6)*(PriorPlansTable[Metal]="Silver")*(INDIRECT("PriorPlansTable["&$BZ46&"]")>CI46),INDIRECT("PriorPlansTable["&$BZ46&"]"))) -> 209.75
B47: Capital Blue Cross | C47: Capital Blue Cross | D47: Small Group | E47: 45127PA0130001 | F47: Gold Valley Advantage EPO 1000/0/15 | Rx 250 | G47: EPO | H47: Gold | I47: Off | J47: 0 | K47: 0 | L47: 0 | M47: 0 | N47: 0 | O47: 0 | P47: 0 | Q47: 0 | R47: 0 | S47: 0 | T47: 0 | U47: 0 | V47: 0 | W47: 0 | X47: 0 | Y47: 0 | Z47: 0 | AA47: 0 | AB47: 0 | AC47: 0 | AD47: 0 | AE47: 0 | AF47: 0 | AG47: 0 | AH47: 0 | AI47: 0 | AJ47: 0 | AK47: 0 | AL47: 0 | AM47: 0 | AN47: 0 | AO47: 0 | AP47: 0 | AQ47: 0 | AR47: 0 | AS47: 0 | AT47: 0 | AU47: 0 | AV47: 0 | AW47: 0 | AX47: 0 | AY47: 371.08 | AZ47: 371.08 | BA47: 371.08 | BB47: 371.08 | BC47: 371.08 | BD47: 371.08 | BE47: 371.08 | BF47: 371.08 | BG47: 371.08 | BH47: 371.08 | BI47: 382.21 | BJ47: 382.21 | BK47: 382.21 | BL47: 382.21 | BM47: 0 | BN47: 0 | BO47: 0 | BP47: 0 | BQ47: 0 | BR47: 400.77 | BS47: 400.77 | BT47: 400.77 | BU47: 400.77 | BV47: 400.77 | BW47: 400.77 | BX47: 400.77 | BZ47: Jefferson | CA47: =MIN(IF((PriorPlansTable[Market]=$CA$6)*(PriorPlansTable[Metal]=CA$7)*(INDIRECT("PriorPlansTable["&$BZ47&"]")>0),INDIRECT("PriorPlansTable["&$BZ47&"]"))) -> 205.7 | CB47: =MIN(IF((PriorPlansTable[Market]=$CA$6)*(PriorPlansTable[Metal]=CB$7)*(INDIRECT("PriorPlansTable["&$BZ47&"]")>0),INDIRECT("PriorPlansTable["&$BZ47&"]"))) -> 205.78 | CC47: =MIN(IF((PriorPlansTable[Market]=$CA$6)*(PriorPlansTable[Metal]=CC$7)*(INDIRECT("PriorPlansTable["&$BZ47&"]")>0),INDIRECT("PriorPlansTable["&$BZ47&"]"))) -> 263.78 | CD47: =MIN(IF((PriorPlansTable[Market]=$CA$6)*(PriorPlansTable[Metal]=CD$7)*(INDIRECT("PriorPlansTable["&$BZ47&"]")>0),INDIRECT("PriorPlansTable["&$BZ47&"]"))) -> 332.61 | CE47: =MIN(IF((PriorPlansTable[Market]=$CA$6)*(PriorPlansTable[Metal]=CE$7)*(INDIRECT("PriorPlansTable["&$BZ47&"]")>0),INDIRECT("PriorPlansTable["&$BZ47&"]"))) -> 581.41 | CF47: =MIN(IF((PriorPlansTable[Market]=$CA$6)*(PriorPlansTable[Metal]="Silver")*(INDIRECT("PriorPlansTable["&$BZ47&"]")>CC47),INDIRECT("PriorPlansTable["&$BZ47&"]"))) -> 322.55 | CG47: =MIN(IF((PriorPlansTable[Market]=$CG$6)*(PriorPlansTable[Metal]=CG$7)*(INDIRECT("PriorPlansTable["&$BZ47&"]")>0),INDIRECT("PriorPlansTable["&$BZ47&"]"))) -> 0 | CH47: =MIN(IF((PriorPlansTable[Market]=$CG$6)*(PriorPlansTable[Metal]=CH$7)*(INDIRECT("PriorPlansTable["&$BZ47&"]")>0),INDIRECT("PriorPlansTable["&$BZ47&"]"))) -> 189.44 | CI47: =MIN(IF((PriorPlansTable[Market]=$CG$6)*(PriorPlansTable[Metal]=CI$7)*(INDIRECT("PriorPlansTable["&$BZ47&"]")>0),INDIRECT("PriorPlansTable["&$BZ47&"]"))) -> 209.57 | CJ47: =MIN(IF((PriorPlansTable[Market]=$CG$6)*(PriorPlansTable[Metal]=CJ$7)*(INDIRECT("PriorPlansTable["&$BZ47&"]")>0),INDIRECT("PriorPlansTable["&$BZ47&"]"))) -> 246.05 | CK47: =MIN(IF((PriorPlansTable[Market]=$CG$6)*(PriorPlansTable[Metal]=CK$7)*(INDIRECT("PriorPlansTable["&$BZ47&"]")>0),INDIRECT("PriorPlansTable["&$BZ47&"]"))) -> 330.39 | CL47: =MIN(IF((PriorPlansTable[Market]=$CG$6)*(PriorPlansTable[Metal]="Silver")*(INDIRECT("PriorPlansTable["&$BZ47&"]")>CI47),INDIRECT("PriorPlansTable["&$BZ47&"]"))) -> 209.75
B48: Capital Blue Cross | C48: Capital Blue Cross | D48: Small Group | E48: 45127PA0130002 | F48: Gold Valley Advantage EPO 1000/0/15 | Rx 0 | G48: EPO | H48: Gold | I48: Off | J48: 0 | K48: 0 | L48: 0 | M48: 0 | N48: 0 | O48: 0 | P48: 0 | Q48: 0 | R48: 0 | S48: 0 | T48: 0 | U48: 0 | V48: 0 | W48: 0 | X48: 0 | Y48: 0 | Z48: 0 | AA48: 0 | AB48: 0 | AC48: 0 | AD48: 0 | AE48: 0 | AF48: 0 | AG48: 0 | AH48: 0 | AI48: 0 | AJ48: 0 | AK48: 0 | AL48: 0 | AM48: 0 | AN48: 0 | AO48: 0 | AP48: 0 | AQ48: 0 | AR48: 0 | AS48: 0 | AT48: 0 | AU48: 0 | AV48: 0 | AW48: 0 | AX48: 0 | AY48: 377.71 | AZ48: 377.71 | BA48: 377.71 | BB48: 377.71 | BC48: 377.71 | BD48: 377.71 | BE48: 377.71 | BF48: 377.71 | BG48: 377.71 | BH48: 377.71 | BI48: 389.04 | BJ48: 389.04 | BK48: 389.04 | BL48: 389.04 | BM48: 0 | BN48: 0 | BO48: 0 | BP48: 0 | BQ48: 0 | BR48: 407.93 | BS48: 407.93 | BT48: 407.93 | BU48: 407.93 | BV48: 407.93 | BW48: 407.93 | BX48: 407.93 | BZ48: Somerset | CA48: =MIN(IF((PriorPlansTable[Market]=$CA$6)*(PriorPlansTable[Metal]=CA$7)*(INDIRECT("PriorPlansTable["&$BZ48&"]")>0),INDIRECT("PriorPlansTable["&$BZ48&"]"))) -> 205.7 | CB48: =MIN(IF((PriorPlansTable[Market]=$CA$6)*(PriorPlansTable[Metal]=CB$7)*(INDIRECT("PriorPlansTable["&$BZ48&"]")>0),INDIRECT("PriorPlansTable["&$BZ48&"]"))) -> 205.78 | CC48: =MIN(IF((PriorPlansTable[Market]=$CA$6)*(PriorPlansTable[Metal]=CC$7)*(INDIRECT("PriorPlansTable["&$BZ48&"]")>0),INDIRECT("PriorPlansTable["&$BZ48&"]"))) -> 263.78 | CD48: =MIN(IF((PriorPlansTable[Market]=$CA$6)*(PriorPlansTable[Metal]=CD$7)*(INDIRECT("PriorPlansTable["&$BZ48&"]")>0),INDIRECT("PriorPlansTable["&$BZ48&"]"))) -> 332.61 | CE48: =MIN(IF((PriorPlansTable[Market]=$CA$6)*(PriorPlansTable[Metal]=CE$7)*(INDIRECT("PriorPlansTable["&$BZ48&"]")>0),INDIRECT("PriorPlansTable["&$BZ48&"]"))) -> 581.41 | CF48: =MIN(IF((PriorPlansTable[Market]=$CA$6)*(PriorPlansTable[Metal]="Silver")*(INDIRECT("PriorPlansTable["&$BZ48&"]")>CC48),INDIRECT("PriorPlansTable["&$BZ48&"]"))) -> 320.34 | CG48: =MIN(IF((PriorPlansTable[Market]=$CG$6)*(PriorPlansTable[Metal]=CG$7)*(INDIRECT("PriorPlansTable["&$BZ48&"]")>0),INDIRECT("PriorPlansTable["&$BZ48&"]"))) -> 0 | CH48: =MIN(IF((PriorPlansTable[Market]=$CG$6)*(PriorPlansTable[Metal]=CH$7)*(INDIRECT("PriorPlansTable["&$BZ48&"]")>0),INDIRECT("PriorPlansTable["&$BZ48&"]"))) -> 189.44 | CI48: =MIN(IF((PriorPlansTable[Market]=$CG$6)*(PriorPlansTable[Metal]=CI$7)*(INDIRECT("PriorPlansTable["&$BZ48&"]")>0),INDIRECT("PriorPlansTable["&$BZ48&"]"))) -> 209.57 | CJ48: =MIN(IF((PriorPlansTable[Market]=$CG$6)*(PriorPlansTable[Metal]=CJ$7)*(INDIRECT("PriorPlansTable["&$BZ48&"]")>0),INDIRECT("PriorPlansTable["&$BZ48&"]"))) -> 246.05 | CK48: =MIN(IF((PriorPlansTable[Market]=$CG$6)*(PriorPlansTable[Metal]=CK$7)*(INDIRECT("PriorPlansTable["&$BZ48&"]")>0),INDIRECT("PriorPlansTable["&$BZ48&"]"))) -> 330.39 | CL48: =MIN(IF((PriorPlansTable[Market]=$CG$6)*(PriorPlansTable[Metal]="Silver")*(INDIRECT("PriorPlansTable["&$BZ48&"]")>CI48),INDIRECT("PriorPlansTable["&$BZ48&"]"))) -> 209.75
B49: Capital Blue Cross | C49: Capital Blue Cross | D49: Small Group | E49: 45127PA0130003 | F49: Silver Valley Advantage EPO 3000/0/45 | Rx 250 | G49: EPO | H49: Silver | I49: Off | J49: 0 | K49: 0 | L49: 0 | M49: 0 | N49: 0 | O49: 0 | P49: 0 | Q49: 0 | R49: 0 | S49: 0 | T49: 0 | U49: 0 | V49: 0 | W49: 0 | X49: 0 | Y49: 0 | Z49: 0 | AA49: 0 | AB49: 0 | AC49: 0 | AD49: 0 | AE49: 0 | AF49: 0 | AG49: 0 | AH49: 0 | AI49: 0 | AJ49: 0 | AK49: 0 | AL49: 0 | AM49: 0 | AN49: 0 | AO49: 0 | AP49: 0 | AQ49: 0 | AR49: 0 | AS49: 0 | AT49: 0 | AU49: 0 | AV49: 0 | AW49: 0 | AX49: 0 | AY49: 322.17 | AZ49: 322.17 | BA49: 322.17 | BB49: 322.17 | BC49: 322.17 | BD49: 322.17 | BE49: 322.17 | BF49: 322.17 | BG49: 322.17 | BH49: 322.17 | BI49: 331.84 | BJ49: 331.84 | BK49: 331.84 | BL49: 331.84 | BM49: 0 | BN49: 0 | BO49: 0 | BP49: 0 | BQ49: 0 | BR49: 347.94 | BS49: 347.94 | BT49: 347.94 | BU49: 347.94 | BV49: 347.94 | BW49: 347.94 | BX49: 347.94 | BZ49: Centre | CA49: =MIN(IF((PriorPlansTable[Market]=$CA$6)*(PriorPlansTable[Metal]=CA$7)*(INDIRECT("PriorPlansTable["&$BZ49&"]")>0),INDIRECT("PriorPlansTable["&$BZ49&"]"))) -> 205.7 | CB49: =MIN(IF((PriorPlansTable[Market]=$CA$6)*(PriorPlansTable[Metal]=CB$7)*(INDIRECT("PriorPlansTable["&$BZ49&"]")>0),INDIRECT("PriorPlansTable["&$BZ49&"]"))) -> 240.21 | CC49: =MIN(IF((PriorPlansTable[Market]=$CA$6)*(PriorPlansTable[Metal]=CC$7)*(INDIRECT("PriorPlansTable["&$BZ49&"]")>0),INDIRECT("PriorPlansTable["&$BZ49&"]"))) -> 263.78 | CD49: =MIN(IF((PriorPlansTable[Market]=$CA$6)*(PriorPlansTable[Metal]=CD$7)*(INDIRECT("PriorPlansTable["&$BZ49&"]")>0),INDIRECT("PriorPlansTable["&$BZ49&"]"))) -> 332.61 | CE49: =MIN(IF((PriorPlansTable[Market]=$CA$6)*(PriorPlansTable[Metal]=CE$7)*(INDIRECT("PriorPlansTable["&$BZ49&"]")>0),INDIRECT("PriorPlansTable["&$BZ49&"]"))) -> 581.41 | CF49: =MIN(IF((PriorPlansTable[Market]=$CA$6)*(PriorPlansTable[Metal]="Silver")*(INDIRECT("PriorPlansTable["&$BZ49&"]")>CC49),INDIRECT("PriorPlansTable["&$BZ49&"]"))) -> 345.42 | CG49: =MIN(IF((PriorPlansTable[Market]=$CG$6)*(PriorPlansTable[Metal]=CG$7)*(INDIRECT("PriorPlansTable["&$BZ49&"]")>0),INDIRECT("PriorPlansTable["&$BZ49&"]"))) -> 0 | CH49: =MIN(IF((PriorPlansTable[Market]=$CG$6)*(PriorPlansTable[Metal]=CH$7)*(INDIRECT("PriorPlansTable["&$BZ49&"]")>0),INDIRECT("PriorPlansTable["&$BZ49&"]"))) -> 193.94 | CI49: =MIN(IF((PriorPlansTable[Market]=$CG$6)*(PriorPlansTable[Metal]=CI$7)*(INDIRECT("PriorPlansTable["&$BZ49&"]")>0),INDIRECT("PriorPlansTable["&$BZ49&"]"))) -> 214.55 | CJ49: =MIN(IF((PriorPlansTable[Market]=$CG$6)*(PriorPlansTable[Metal]=CJ$7)*(INDIRECT("PriorPlansTable["&$BZ49&"]")>0),INDIRECT("PriorPlansTable["&$BZ49&"]"))) -> 251.89 | CK49: =MIN(IF((PriorPlansTable[Market]=$CG$6)*(PriorPlansTable[Metal]=CK$7)*(INDIRECT("PriorPlansTable["&$BZ49&"]")>0),INDIRECT("PriorPlansTable["&$BZ49&"]"))) -> 340.06 | CL49: =MIN(IF((PriorPlansTable[Market]=$CG$6)*(PriorPlansTable[Metal]="Silver")*(INDIRECT("PriorPlansTable["&$BZ49&"]")>CI49),INDIRECT("PriorPlansTable["&$BZ49&"]"))) -> 214.73
B50: Capital Blue Cross | C50: Capital Blue Cross | D50: Small Group | E50: 45127PA0130004 | F50: Silver Valley Advantage EPO 3000/0/45 | Rx 0 | G50: EPO | H50: Silver | I50: Off | J50: 0 | K50: 0 | L50: 0 | M50: 0 | N50: 0 | O50: 0 | P50: 0 | Q50: 0 | R50: 0 | S50: 0 | T50: 0 | U50: 0 | V50: 0 | W50: 0 | X50: 0 | Y50: 0 | Z50: 0 | AA50: 0 | AB50: 0 | AC50: 0 | AD50: 0 | AE50: 0 | AF50: 0 | AG50: 0 | AH50: 0 | AI50: 0 | AJ50: 0 | AK50: 0 | AL50: 0 | AM50: 0 | AN50: 0 | AO50: 0 | AP50: 0 | AQ50: 0 | AR50: 0 | AS50: 0 | AT50: 0 | AU50: 0 | AV50: 0 | AW50: 0 | AX50: 0 | AY50: 328.81 | AZ50: 328.81 | BA50: 328.81 | BB50: 328.81 | BC50: 328.81 | BD50: 328.81 | BE50: 328.81 | BF50: 328.81 | BG50: 328.81 | BH50: 328.81 | BI50: 338.67 | BJ50: 338.67 | BK50: 338.67 | BL50: 338.67 | BM50: 0 | BN50: 0 | BO50: 0 | BP50: 0 | BQ50: 0 | BR50: 355.11 | BS50: 355.11 | BT50: 355.11 | BU50: 355.11 | BV50: 355.11 | BW50: 355.11 | BX50: 355.11 | BZ50: Columbia | CA50: =MIN(IF((PriorPlansTable[Market]=$CA$6)*(PriorPlansTable[Metal]=CA$7)*(INDIRECT("PriorPlansTable["&$BZ50&"]")>0),INDIRECT("PriorPlansTable["&$BZ50&"]"))) -> 221.05 | CB50: =MIN(IF((PriorPlansTable[Market]=$CA$6)*(PriorPlansTable[Metal]=CB$7)*(INDIRECT("PriorPlansTable["&$BZ50&"]")>0),INDIRECT("PriorPlansTable["&$BZ50&"]"))) -> 352.59 | CC50: =MIN(IF((PriorPlansTable[Market]=$CA$6)*(PriorPlansTable[Metal]=CC$7)*(INDIRECT("PriorPlansTable["&$BZ50&"]")>0),INDIRECT("PriorPlansTable["&$BZ50&"]"))) -> 404.94 | CD50: =MIN(IF((PriorPlansTable[Market]=$CA$6)*(PriorPlansTable[Metal]=CD$7)*(INDIRECT("PriorPlansTable["&$BZ50&"]")>0),INDIRECT("PriorPlansTable["&$BZ50&"]"))) -> 474.27 | CE50: =MIN(IF((PriorPlansTable[Market]=$CA$6)*(PriorPlansTable[Metal]=CE$7)*(INDIRECT("PriorPlansTable["&$BZ50&"]")>0),INDIRECT("PriorPlansTable["&$BZ50&"]"))) -> 0 | CF50: =MIN(IF((PriorPlansTable[Market]=$CA$6)*(PriorPlansTable[Metal]="Silver")*(INDIRECT("PriorPlansTable["&$BZ50&"]")>CC50),INDIRECT("PriorPlansTable["&$BZ50&"]"))) -> 419.52 | CG50: =MIN(IF((PriorPlansTable[Market]=$CG$6)*(PriorPlansTable[Metal]=CG$7)*(INDIRECT("PriorPlansTable["&$BZ50&"]")>0),INDIRECT("PriorPlansTable["&$BZ50&"]"))) -> 0 | CH50: =MIN(IF((PriorPlansTable[Market]=$CG$6)*(PriorPlansTable[Metal]=CH$7)*(INDIRECT("PriorPlansTable["&$BZ50&"]")>0),INDIRECT("PriorPlansTable["&$BZ50&"]"))) -> 244.53 | CI50: =MIN(IF((PriorPlansTable[Market]=$CG$6)*(PriorPlansTable[Metal]=CI$7)*(INDIRECT("PriorPlansTable["&$BZ50&"]")>0),INDIRECT("PriorPlansTable["&$BZ50&"]"))) -> 285.85 | CJ50: =MIN(IF((PriorPlansTable[Market]=$CG$6)*(PriorPlansTable[Metal]=CJ$7)*(INDIRECT("PriorPlansTable["&$BZ50&"]")>0),INDIRECT("PriorPlansTable["&$BZ50&"]"))) -> 323.41 | CK50: =MIN(IF((PriorPlansTable[Market]=$CG$6)*(PriorPlansTable[Metal]=CK$7)*(INDIRECT("PriorPlansTable["&$BZ50&"]")>0),INDIRECT("PriorPlansTable["&$BZ50&"]"))) -> 392.6 | CL50: =MIN(IF((PriorPlansTable[Market]=$CG$6)*(PriorPlansTable[Metal]="Silver")*(INDIRECT("PriorPlansTable["&$BZ50&"]")>CI50),INDIRECT("PriorPlansTable["&$BZ50&"]"))) -> 290.29
B51: Capital Blue Cross | C51: Capital Blue Cross | D51: Small Group | E51: 82795PA0110007 | F51: Silver CareConnect PinnacleHealth 3000/0/35 | CareConnect Rx | G51: Gatekeeper PPO | H51: Silver | I51: Off | J51: 0 | K51: 0 | L51: 0 | M51: 0 | N51: 0 | O51: 0 | P51: 0 | Q51: 0 | R51: 0 | S51: 0 | T51: 0 | U51: 0 | V51: 0 | W51: 0 | X51: 0 | Y51: 0 | Z51: 0 | AA51: 0 | AB51: 0 | AC51: 0 | AD51: 0 | AE51: 0 | AF51: 0 | AG51: 0 | AH51: 0 | AI51: 0 | AJ51: 0 | AK51: 0 | AL51: 0 | AM51: 0 | AN51: 0 | AO51: 0 | AP51: 0 | AQ51: 0 | AR51: 0 | AS51: 0 | AT51: 0 | AU51: 0 | AV51: 0 | AW51: 0 | AX51: 0 | AY51: 0 | AZ51: 0 | BA51: 0 | BB51: 0 | BC51: 0 | BD51: 0 | BE51: 0 | BF51: 0 | BG51: 0 | BH51: 0 | BI51: 0 | BJ51: 0 | BK51: 0 | BL51: 0 | BM51: 0 | BN51: 0 | BO51: 0 | BP51: 0 | BQ51: 0 | BR51: 348.97 | BS51: 348.97 | BT51: 0 | BU51: 0 | BV51: 0 | BW51: 0 | BX51: 348.97 | BZ51: Lehigh | CA51: =MIN(IF((PriorPlansTable[Market]=$CA$6)*(PriorPlansTable[Metal]=CA$7)*(INDIRECT("PriorPlansTable["&$BZ51&"]")>0),INDIRECT("PriorPlansTable["&$BZ51&"]"))) -> 221.05 | CB51: =MIN(IF((PriorPlansTable[Market]=$CA$6)*(PriorPlansTable[Metal]=CB$7)*(INDIRECT("PriorPlansTable["&$BZ51&"]")>0),INDIRECT("PriorPlansTable["&$BZ51&"]"))) -> 334.96 | CC51: =MIN(IF((PriorPlansTable[Market]=$CA$6)*(PriorPlansTable[Metal]=CC$7)*(INDIRECT("PriorPlansTable["&$BZ51&"]")>0),INDIRECT("PriorPlansTable["&$BZ51&"]"))) -> 404.94 | CD51: =MIN(IF((PriorPlansTable[Market]=$CA$6)*(PriorPlansTable[Metal]=CD$7)*(INDIRECT("PriorPlansTable["&$BZ51&"]")>0),INDIRECT("PriorPlansTable["&$BZ51&"]"))) -> 484.72 | CE51: =MIN(IF((PriorPlansTable[Market]=$CA$6)*(PriorPlansTable[Metal]=CE$7)*(INDIRECT("PriorPlansTable["&$BZ51&"]")>0),INDIRECT("PriorPlansTable["&$BZ51&"]"))) -> 0 | CF51: =MIN(IF((PriorPlansTable[Market]=$CA$6)*(PriorPlansTable[Metal]="Silver")*(INDIRECT("PriorPlansTable["&$BZ51&"]")>CC51),INDIRECT("PriorPlansTable["&$BZ51&"]"))) -> 465.55 | CG51: =MIN(IF((PriorPlansTable[Market]=$CG$6)*(PriorPlansTable[Metal]=CG$7)*(INDIRECT("PriorPlansTable["&$BZ51&"]")>0),INDIRECT("PriorPlansTable["&$BZ51&"]"))) -> 0 | CH51: =MIN(IF((PriorPlansTable[Market]=$CG$6)*(PriorPlansTable[Metal]=CH$7)*(INDIRECT("PriorPlansTable["&$BZ51&"]")>0),INDIRECT("PriorPlansTable["&$BZ51&"]"))) -> 244.53 | CI51: =MIN(IF((PriorPlansTable[Market]=$CG$6)*(PriorPlansTable[Metal]=CI$7)*(INDIRECT("PriorPlansTable["&$BZ51&"]")>0),INDIRECT("PriorPlansTable["&$BZ51&"]"))) -> 285.85 | CJ51: =MIN(IF((PriorPlansTable[Market]=$CG$6)*(PriorPlansTable[Metal]=CJ$7)*(INDIRECT("PriorPlansTable["&$BZ51&"]")>0),INDIRECT("PriorPlansTable["&$BZ51&"]"))) -> 310.59 | CK51: =MIN(IF((PriorPlansTable[Market]=$CG$6)*(PriorPlansTable[Metal]=CK$7)*(INDIRECT("PriorPlansTable["&$BZ51&"]")>0),INDIRECT("PriorPlansTable["&$BZ51&"]"))) -> 379.25 | CL51: =MIN(IF((PriorPlansTable[Market]=$CG$6)*(PriorPlansTable[Metal]="Silver")*(INDIRECT("PriorPlansTable["&$BZ51&"]")>CI51),INDIRECT("PriorPlansTable["&$BZ51&"]"))) -> 290.29
B52: Capital Blue Cross | C52: Capital Blue Cross | D52: Small Group | E52: 53789PA0090004 | F52: Bronze HMO 7000/0/60 | Combined | G52: HMO | H52: Bronze | I52: Off | J52: 0 | K52: 0 | L52: 0 | M52: 0 | N52: 0 | O52: 0 | P52: 0 | Q52: 0 | R52: 0 | S52: 0 | T52: 0 | U52: 0 | V52: 0 | W52: 0 | X52: 0 | Y52: 0 | Z52: 0 | AA52: 0 | AB52: 0 | AC52: 0 | AD52: 0 | AE52: 0 | AF52: 0 | AG52: 0 | AH52: 0 | AI52: 0 | AJ52: 0 | AK52: 0 | AL52: 0 | AM52: 0 | AN52: 0 | AO52: 0 | AP52: 0 | AQ52: 0 | AR52: 0 | AS52: 0 | AT52: 0 | AU52: 0 | AV52: 0 | AW52: 0 | AX52: 0 | AY52: 274.02 | AZ52: 274.02 | BA52: 274.02 | BB52: 274.02 | BC52: 274.02 | BD52: 274.02 | BE52: 274.02 | BF52: 274.02 | BG52: 274.02 | BH52: 274.02 | BI52: 282.24 | BJ52: 282.24 | BK52: 282.24 | BL52: 282.24 | BM52: 0 | BN52: 0 | BO52: 0 | BP52: 0 | BQ52: 0 | BR52: 295.94 | BS52: 295.94 | BT52: 295.94 | BU52: 295.94 | BV52: 295.94 | BW52: 295.94 | BX52: 295.94 | BZ52: Mifflin | CA52: =MIN(IF((PriorPlansTable[Market]=$CA$6)*(PriorPlansTable[Metal]=CA$7)*(INDIRECT("PriorPlansTable["&$BZ52&"]")>0),INDIRECT("PriorPlansTable["&$BZ52&"]"))) -> 221.05 | CB52: =MIN(IF((PriorPlansTable[Market]=$CA$6)*(PriorPlansTable[Metal]=CB$7)*(INDIRECT("PriorPlansTable["&$BZ52&"]")>0),INDIRECT("PriorPlansTable["&$BZ52&"]"))) -> 352.59 | CC52: =MIN(IF((PriorPlansTable[Market]=$CA$6)*(PriorPlansTable[Metal]=CC$7)*(INDIRECT("PriorPlansTable["&$BZ52&"]")>0),INDIRECT("PriorPlansTable["&$BZ52&"]"))) -> 404.94 | CD52: =MIN(IF((PriorPlansTable[Market]=$CA$6)*(PriorPlansTable[Metal]=CD$7)*(INDIRECT("PriorPlansTable["&$BZ52&"]")>0),INDIRECT("PriorPlansTable["&$BZ52&"]"))) -> 474.27 | CE52: =MIN(IF((PriorPlansTable[Market]=$CA$6)*(PriorPlansTable[Metal]=CE$7)*(INDIRECT("PriorPlansTable["&$BZ52&"]")>0),INDIRECT("PriorPlansTable["&$BZ52&"]"))) -> 0 | CF52: =MIN(IF((PriorPlansTable[Market]=$CA$6)*(PriorPlansTable[Metal]="Silver")*(INDIRECT("PriorPlansTable["&$BZ52&"]")>CC52),INDIRECT("PriorPlansTable["&$BZ52&"]"))) -> 419.52 | CG52: =MIN(IF((PriorPlansTable[Market]=$CG$6)*(PriorPlansTable[Metal]=CG$7)*(INDIRECT("PriorPlansTable["&$BZ52&"]")>0),INDIRECT("PriorPlansTable["&$BZ52&"]"))) -> 0 | CH52: =MIN(IF((PriorPlansTable[Market]=$CG$6)*(PriorPlansTable[Metal]=CH$7)*(INDIRECT("PriorPlansTable["&$BZ52&"]")>0),INDIRECT("PriorPlansTable["&$BZ52&"]"))) -> 244.53 | CI52: =MIN(IF((PriorPlansTable[Market]=$CG$6)*(PriorPlansTable[Metal]=CI$7)*(INDIRECT("PriorPlansTable["&$BZ52&"]")>0),INDIRECT("PriorPlansTable["&$BZ52&"]"))) -> 285.85 | CJ52: =MIN(IF((PriorPlansTable[Market]=$CG$6)*(PriorPlansTable[Metal]=CJ$7)*(INDIRECT("PriorPlansTable["&$BZ52&"]")>0),INDIRECT("PriorPlansTable["&$BZ52&"]"))) -> 323.41 | CK52: =MIN(IF((PriorPlansTable[Market]=$CG$6)*(PriorPlansTable[Metal]=CK$7)*(INDIRECT("PriorPlansTable["&$BZ52&"]")>0),INDIRECT("PriorPlansTable["&$BZ52&"]"))) -> 392.6 | CL52: =MIN(IF((PriorPlansTable[Market]=$CG$6)*(PriorPlansTable[Metal]="Silver")*(INDIRECT("PriorPlansTable["&$BZ52&"]")>CI52),INDIRECT("PriorPlansTable["&$BZ52&"]"))) -> 290.29
B53: Geisinger Health | C53: Geisinger Health | D53: Individual | E53: 22444PA0010035 | F53: Geisinger Marketplace HMO 20/40/3000 | G53: HMO | H53: Gold | I53: On/Off | J53: 0 | K53: 0 | L53: 0 | M53: 0 | N53: 0 | O53: 0 | P53: 0 | Q53: 0 | R53: 397.13 | S53: 0 | T53: 397.13 | U53: 391.22 | V53: 391.22 | W53: 391.22 | X53: 391.22 | Y53: 391.22 | Z53: 391.22 | AA53: 391.22 | AB53: 391.22 | AC53: 391.22 | AD53: 391.22 | AE53: 391.22 | AF53: 391.22 | AG53: 391.22 | AH53: 0 | AI53: 0 | AJ53: 0 | AK53: 0 | AL53: 0 | AM53: 0 | AN53: 0 | AO53: 0 | AP53: 0 | AQ53: 0 | AR53: 0 | AS53: 406.42 | AT53: 406.42 | AU53: 406.42 | AV53: 406.42 | AW53: 406.42 | AX53: 406.42 | AY53: 510.23 | AZ53: 510.23 | BA53: 0 | BB53: 510.23 | BC53: 510.23 | BD53: 0 | BE53: 510.23 | BF53: 510.23 | BG53: 510.23 | BH53: 510.23 | BI53: 0 | BJ53: 0 | BK53: 0 | BL53: 0 | BM53: 0 | BN53: 0 | BO53: 0 | BP53: 0 | BQ53: 0 | BR53: 0 | BS53: 0 | BT53: 0 | BU53: 0 | BV53: 0 | BW53: 0 | BX53: 0 | BZ53: Montour | CA53: =MIN(IF((PriorPlansTable[Market]=$CA$6)*(PriorPlansTable[Metal]=CA$7)*(INDIRECT("PriorPlansTable["&$BZ53&"]")>0),INDIRECT("PriorPlansTable["&$BZ53&"]"))) -> 293.7 | CB53: =MIN(IF((PriorPlansTable[Market]=$CA$6)*(PriorPlansTable[Metal]=CB$7)*(INDIRECT("PriorPlansTable["&$BZ53&"]")>0),INDIRECT("PriorPlansTable["&$BZ53&"]"))) -> 352.59 | CC53: =MIN(IF((PriorPlansTable[Market]=$CA$6)*(PriorPlansTable[Metal]=CC$7)*(INDIRECT("PriorPlansTable["&$BZ53&"]")>0),INDIRECT("PriorPlansTable["&$BZ53&"]"))) -> 404.94 | CD53: =MIN(IF((PriorPlansTable[Market]=$CA$6)*(PriorPlansTable[Metal]=CD$7)*(INDIRECT("PriorPlansTable["&$BZ53&"]")>0),INDIRECT("PriorPlansTable["&$BZ53&"]"))) -> 474.27 | CE53: =MIN(IF((PriorPlansTable[Market]=$CA$6)*(PriorPlansTable[Metal]=CE$7)*(INDIRECT("PriorPlansTable["&$BZ53&"]")>0),INDIRECT("PriorPlansTable["&$BZ53&"]"))) -> 0 | CF53: =MIN(IF((PriorPlansTable[Market]=$CA$6)*(PriorPlansTable[Metal]="Silver")*(INDIRECT("PriorPlansTable["&$BZ53&"]")>CC53),INDIRECT("PriorPlansTable["&$BZ53&"]"))) -> 419.52 | CG53: =MIN(IF((PriorPlansTable[Market]=$CG$6)*(PriorPlansTable[Metal]=CG$7)*(INDIRECT("PriorPlansTable["&$BZ53&"]")>0),INDIRECT("PriorPlansTable["&$BZ53&"]"))) -> 0 | CH53: =MIN(IF((PriorPlansTable[Market]=$CG$6)*(PriorPlansTable[Metal]=CH$7)*(INDIRECT("PriorPlansTable["&$BZ53&"]")>0),INDIRECT("PriorPlansTable["&$BZ53&"]"))) -> 244.53 | CI53: =MIN(IF((PriorPlansTable[Market]=$CG$6)*(PriorPlansTable[Metal]=CI$7)*(INDIRECT("PriorPlansTable["&$BZ53&"]")>0),INDIRECT("PriorPlansTable["&$BZ53&"]"))) -> 285.85 | CJ53: =MIN(IF((PriorPlansTable[Market]=$CG$6)*(PriorPlansTable[Metal]=CJ$7)*(INDIRECT("PriorPlansTable["&$BZ53&"]")>0),INDIRECT("PriorPlansTable["&$BZ53&"]"))) -> 323.41 | CK53: =MIN(IF((PriorPlansTable[Market]=$CG$6)*(PriorPlansTable[Metal]=CK$7)*(INDIRECT("PriorPlansTable["&$BZ53&"]")>0),INDIRECT("PriorPlansTable["&$BZ53&"]"))) -> 392.6 | CL53: =MIN(IF((PriorPlansTable[Market]=$CG$6)*(PriorPlansTable[Metal]="Silver")*(INDIRECT("PriorPlansTable["&$BZ53&"]")>CI53),INDIRECT("PriorPlansTable["&$BZ53&"]"))) -> 290.29
B54: Geisinger Health | C54: Geisinger Health | D54: Individual | E54: 22444PA0010036 | F54: Geisinger Marketplace HMO 20/40/3000 | G54: HMO | H54: Gold | I54: On/Off | J54: 0 | K54: 0 | L54: 0 | M54: 0 | N54: 0 | O54: 0 | P54: 0 | Q54: 0 | R54: 0 | S54: 0 | T54: 0 | U54: 0 | V54: 0 | W54: 0 | X54: 0 | Y54: 0 | Z54: 0 | AA54: 0 | AB54: 0 | AC54: 0 | AD54: 0 | AE54: 0 | AF54: 0 | AG54: 0 | AH54: 0 | AI54: 0 | AJ54: 0 | AK54: 0 | AL54: 0 | AM54: 0 | AN54: 0 | AO54: 0 | AP54: 0 | AQ54: 0 | AR54: 0 | AS54: 0 | AT54: 0 | AU54: 0 | AV54: 0 | AW54: 0 | AX54: 0 | AY54: 0 | AZ54: 0 | BA54: 510.23 | BB54: 0 | BC54: 0 | BD54: 510.23 | BE54: 0 | BF54: 0 | BG54: 0 | BH54: 0 | BI54: 0 | BJ54: 0 | BK54: 0 | BL54: 0 | BM54: 0 | BN54: 0 | BO54: 0 | BP54: 0 | BQ54: 0 | BR54: 0 | BS54: 0 | BT54: 0 | BU54: 0 | BV54: 0 | BW54: 0 | BX54: 0 | BZ54: Northampton | CA54: =MIN(IF((PriorPlansTable[Market]=$CA$6)*(PriorPlansTable[Metal]=CA$7)*(INDIRECT("PriorPlansTable["&$BZ54&"]")>0),INDIRECT("PriorPlansTable["&$BZ54&"]"))) -> 221.05 | CB54: =MIN(IF((PriorPlansTable[Market]=$CA$6)*(PriorPlansTable[Metal]=CB$7)*(INDIRECT("PriorPlansTable["&$BZ54&"]")>0),INDIRECT("PriorPlansTable["&$BZ54&"]"))) -> 334.96 | CC54: =MIN(IF((PriorPlansTable[Market]=$CA$6)*(PriorPlansTable[Metal]=CC$7)*(INDIRECT("PriorPlansTable["&$BZ54&"]")>0),INDIRECT("PriorPlansTable["&$BZ54&"]"))) -> 404.94 | CD54: =MIN(IF((PriorPlansTable[Market]=$CA$6)*(PriorPlansTable[Metal]=CD$7)*(INDIRECT("PriorPlansTable["&$BZ54&"]")>0),INDIRECT("PriorPlansTable["&$BZ54&"]"))) -> 484.72 | CE54: =MIN(IF((PriorPlansTable[Market]=$CA$6)*(PriorPlansTable[Metal]=CE$7)*(INDIRECT("PriorPlansTable["&$BZ54&"]")>0),INDIRECT("PriorPlansTable["&$BZ54&"]"))) -> 0 | CF54: =MIN(IF((PriorPlansTable[Market]=$CA$6)*(PriorPlansTable[Metal]="Silver")*(INDIRECT("PriorPlansTable["&$BZ54&"]")>CC54),INDIRECT("PriorPlansTable["&$BZ54&"]"))) -> 465.55 | CG54: =MIN(IF((PriorPlansTable[Market]=$CG$6)*(PriorPlansTable[Metal]=CG$7)*(INDIRECT("PriorPlansTable["&$BZ54&"]")>0),INDIRECT("PriorPlansTable["&$BZ54&"]"))) -> 0 | CH54: =MIN(IF((PriorPlansTable[Market]=$CG$6)*(PriorPlansTable[Metal]=CH$7)*(INDIRECT("PriorPlansTable["&$BZ54&"]")>0),INDIRECT("PriorPlansTable["&$BZ54&"]"))) -> 244.53 | CI54: =MIN(IF((PriorPlansTable[Market]=$CG$6)*(PriorPlansTable[Metal]=CI$7)*(INDIRECT("PriorPlansTable["&$BZ54&"]")>0),INDIRECT("PriorPlansTable["&$BZ54&"]"))) -> 285.85 | CJ54: =MIN(IF((PriorPlansTable[Market]=$CG$6)*(PriorPlansTable[Metal]=CJ$7)*(INDIRECT("PriorPlansTable["&$BZ54&"]")>0),INDIRECT("PriorPlansTable["&$BZ54&"]"))) -> 310.59 | CK54: =MIN(IF((PriorPlansTable[Market]=$CG$6)*(PriorPlansTable[Metal]=CK$7)*(INDIRECT("PriorPlansTable["&$BZ54&"]")>0),INDIRECT("PriorPlansTable["&$BZ54&"]"))) -> 379.25 | CL54: =MIN(IF((PriorPlansTable[Market]=$CG$6)*(PriorPlansTable[Metal]="Silver")*(INDIRECT("PriorPlansTable["&$BZ54&"]")>CI54),INDIRECT("PriorPlansTable["&$BZ54&"]"))) -> 290.29
B55: Geisinger Health | C55: Geisinger Health | D55: Individual | E55: 22444PA0010037 | F55: Geisinger Marketplace HMO 20/40/3000 | G55: HMO | H55: Gold | I55: On/Off | J55: 0 | K55: 0 | L55: 0 | M55: 0 | N55: 0 | O55: 0 | P55: 0 | Q55: 0 | R55: 0 | S55: 0 | T55: 0 | U55: 0 | V55: 0 | W55: 0 | X55: 0 | Y55: 0 | Z55: 0 | AA55: 0 | AB55: 0 | AC55: 0 | AD55: 0 | AE55: 0 | AF55: 0 | AG55: 0 | AH55: 0 | AI55: 0 | AJ55: 0 | AK55: 0 | AL55: 0 | AM55: 0 | AN55: 0 | AO55: 0 | AP55: 0 | AQ55: 0 | AR55: 0 | AS55: 0 | AT55: 0 | AU55: 0 | AV55: 0 | AW55: 0 | AX55: 0 | AY55: 0 | AZ55: 0 | BA55: 0 | BB55: 0 | BC55: 0 | BD55: 0 | BE55: 0 | BF55: 0 | BG55: 0 | BH55: 0 | BI55: 518.67 | BJ55: 518.67 | BK55: 518.67 | BL55: 518.67 | BM55: 0 | BN55: 0 | BO55: 0 | BP55: 0 | BQ55: 0 | BR55: 0 | BS55: 0 | BT55: 0 | BU55: 460.86 | BV55: 0 | BW55: 0 | BX55: 0 | BZ55: Northumberland | CA55: =MIN(IF((PriorPlansTable[Market]=$CA$6)*(PriorPlansTable[Metal]=CA$7)*(INDIRECT("PriorPlansTable["&$BZ55&"]")>0),INDIRECT("PriorPlansTable["&$BZ55&"]"))) -> 221.05 | CB55: =MIN(IF((PriorPlansTable[Market]=$CA$6)*(PriorPlansTable[Metal]=CB$7)*(INDIRECT("PriorPlansTable["&$BZ55&"]")>0),INDIRECT("PriorPlansTable["&$BZ55&"]"))) -> 352.59 | CC55: =MIN(IF((PriorPlansTable[Market]=$CA$6)*(PriorPlansTable[Metal]=CC$7)*(INDIRECT("PriorPlansTable["&$BZ55&"]")>0),INDIRECT("PriorPlansTable["&$BZ55&"]"))) -> 404.94 | CD55: =MIN(IF((PriorPlansTable[Market]=$CA$6)*(PriorPlansTable[Metal]=CD$7)*(INDIRECT("PriorPlansTable["&$BZ55&"]")>0),INDIRECT("PriorPlansTable["&$BZ55&"]"))) -> 474.27 | CE55: =MIN(IF((PriorPlansTable[Market]=$CA$6)*(PriorPlansTable[Metal]=CE$7)*(INDIRECT("PriorPlansTable["&$BZ55&"]")>0),INDIRECT("PriorPlansTable["&$BZ55&"]"))) -> 0 | CF55: =MIN(IF((PriorPlansTable[Market]=$CA$6)*(PriorPlansTable[Metal]="Silver")*(INDIRECT("PriorPlansTable["&$BZ55&"]")>CC55),INDIRECT("PriorPlansTable["&$BZ55&"]"))) -> 419.52 | CG55: =MIN(IF((PriorPlansTable[Market]=$CG$6)*(PriorPlansTable[Metal]=CG$7)*(INDIRECT("PriorPlansTable["&$BZ55&"]")>0),INDIRECT("PriorPlansTable["&$BZ55&"]"))) -> 0 | CH55: =MIN(IF((PriorPlansTable[Market]=$CG$6)*(PriorPlansTable[Metal]=CH$7)*(INDIRECT("PriorPlansTable["&$BZ55&"]")>0),INDIRECT("PriorPlansTable["&$BZ55&"]"))) -> 244.53 | CI55: =MIN(IF((PriorPlansTable[Market]=$CG$6)*(PriorPlansTable[Metal]=CI$7)*(INDIRECT("PriorPlansTable["&$BZ55&"]")>0),INDIRECT("PriorPlansTable["&$BZ55&"]"))) -> 285.85 | CJ55: =MIN(IF((PriorPlansTable[Market]=$CG$6)*(PriorPlansTable[Metal]=CJ$7)*(INDIRECT("PriorPlansTable["&$BZ55&"]")>0),INDIRECT("PriorPlansTable["&$BZ55&"]"))) -> 323.41 | CK55: =MIN(IF((PriorPlansTable[Market]=$CG$6)*(PriorPlansTable[Metal]=CK$7)*(INDIRECT("PriorPlansTable["&$BZ55&"]")>0),INDIRECT("PriorPlansTable["&$BZ55&"]"))) -> 392.6 | CL55: =MIN(IF((PriorPlansTable[Market]=$CG$6)*(PriorPlansTable[Metal]="Silver")*(INDIRECT("PriorPlansTable["&$BZ55&"]")>CI55),INDIRECT("PriorPlansTable["&$BZ55&"]"))) -> 290.29
B56: Geisinger Health | C56: Geisinger Health | D56: Individual | E56: 22444PA0010038 | F56: Geisinger Marketplace HMO 30/60/4650 | G56: HMO | H56: Silver | I56: On/Off | J56: 0 | K56: 0 | L56: 0 | M56: 0 | N56: 0 | O56: 0 | P56: 0 | Q56: 0 | R56: 422.85 | S56: 0 | T56: 422.85 | U56: 416.56 | V56: 416.56 | W56: 416.56 | X56: 416.56 | Y56: 416.56 | Z56: 416.56 | AA56: 416.56 | AB56: 416.56 | AC56: 416.56 | AD56: 416.56 | AE56: 416.56 | AF56: 416.56 | AG56: 416.56 | AH56: 0 | AI56: 0 | AJ56: 0 | AK56: 0 | AL56: 0 | AM56: 0 | AN56: 0 | AO56: 0 | AP56: 0 | AQ56: 0 | AR56: 0 | AS56: 432.74 | AT56: 432.74 | AU56: 432.74 | AV56: 432.74 | AW56: 432.74 | AX56: 432.74 | AY56: 543.28 | AZ56: 543.28 | BA56: 0 | BB56: 543.28 | BC56: 543.28 | BD56: 0 | BE56: 543.28 | BF56: 543.28 | BG56: 543.28 | BH56: 543.28 | BI56: 0 | BJ56: 0 | BK56: 0 | BL56: 0 | BM56: 0 | BN56: 0 | BO56: 0 | BP56: 0 | BQ56: 0 | BR56: 0 | BS56: 0 | BT56: 0 | BU56: 0 | BV56: 0 | BW56: 0 | BX56: 0 | BZ56: Schuylkill | CA56: =MIN(IF((PriorPlansTable[Market]=$CA$6)*(PriorPlansTable[Metal]=CA$7)*(INDIRECT("PriorPlansTable["&$BZ56&"]")>0),INDIRECT("PriorPlansTable["&$BZ56&"]"))) -> 221.05 | CB56: =MIN(IF((PriorPlansTable[Market]=$CA$6)*(PriorPlansTable[Metal]=CB$7)*(INDIRECT("PriorPlansTable["&$BZ56&"]")>0),INDIRECT("PriorPlansTable["&$BZ56&"]"))) -> 352.59 | CC56: =MIN(IF((PriorPlansTable[Market]=$CA$6)*(PriorPlansTable[Metal]=CC$7)*(INDIRECT("PriorPlansTable["&$BZ56&"]")>0),INDIRECT("PriorPlansTable["&$BZ56&"]"))) -> 404.94 | CD56: =MIN(IF((PriorPlansTable[Market]=$CA$6)*(PriorPlansTable[Metal]=CD$7)*(INDIRECT("PriorPlansTable["&$BZ56&"]")>0),INDIRECT("PriorPlansTable["&$BZ56&"]"))) -> 474.27 | CE56: =MIN(IF((PriorPlansTable[Market]=$CA$6)*(PriorPlansTable[Metal]=CE$7)*(INDIRECT("PriorPlansTable["&$BZ56&"]")>0),INDIRECT("PriorPlansTable["&$BZ56&"]"))) -> 0 | CF56: =MIN(IF((PriorPlansTable[Market]=$CA$6)*(PriorPlansTable[Metal]="Silver")*(INDIRECT("PriorPlansTable["&$BZ56&"]")>CC56),INDIRECT("PriorPlansTable["&$BZ56&"]"))) -> 419.52 | CG56: =MIN(IF((PriorPlansTable[Market]=$CG$6)*(PriorPlansTable[Metal]=CG$7)*(INDIRECT("PriorPlansTable["&$BZ56&"]")>0),INDIRECT("PriorPlansTable["&$BZ56&"]"))) -> 0 | CH56: =MIN(IF((PriorPlansTable[Market]=$CG$6)*(PriorPlansTable[Metal]=CH$7)*(INDIRECT("PriorPlansTable["&$BZ56&"]")>0),INDIRECT("PriorPlansTable["&$BZ56&"]"))) -> 244.53 | CI56: =MIN(IF((PriorPlansTable[Market]=$CG$6)*(PriorPlansTable[Metal]=CI$7)*(INDIRECT("PriorPlansTable["&$BZ56&"]")>0),INDIRECT("PriorPlansTable["&$BZ56&"]"))) -> 285.85 | CJ56: =MIN(IF((PriorPlansTable[Market]=$CG$6)*(PriorPlansTable[Metal]=CJ$7)*(INDIRECT("PriorPlansTable["&$BZ56&"]")>0),INDIRECT("PriorPlansTable["&$BZ56&"]"))) -> 310.59 | CK56: =MIN(IF((PriorPlansTable[Market]=$CG$6)*(PriorPlansTable[Metal]=CK$7)*(INDIRECT("PriorPlansTable["&$BZ56&"]")>0),INDIRECT("PriorPlansTable["&$BZ56&"]"))) -> 379.25 | CL56: =MIN(IF((PriorPlansTable[Market]=$CG$6)*(PriorPlansTable[Metal]="Silver")*(INDIRECT("PriorPlansTable["&$BZ56&"]")>CI56),INDIRECT("PriorPlansTable["&$BZ56&"]"))) -> 290.29
B57: Geisinger Health | C57: Geisinger Health | D57: Individual | E57: 22444PA0010039 | F57: Geisinger Marketplace HMO 30/60/4650 | G57: HMO | H57: Silver | I57: On/Off | J57: 0 | K57: 0 | L57: 0 | M57: 0 | N57: 0 | O57: 0 | P57: 0 | Q57: 0 | R57: 0 | S57: 0 | T57: 0 | U57: 0 | V57: 0 | W57: 0 | X57: 0 | Y57: 0 | Z57: 0 | AA57: 0 | AB57: 0 | AC57: 0 | AD57: 0 | AE57: 0 | AF57: 0 | AG57: 0 | AH57: 0 | AI57: 0 | AJ57: 0 | AK57: 0 | AL57: 0 | AM57: 0 | AN57: 0 | AO57: 0 | AP57: 0 | AQ57: 0 | AR57: 0 | AS57: 0 | AT57: 0 | AU57: 0 | AV57: 0 | AW57: 0 | AX57: 0 | AY57: 0 | AZ57: 0 | BA57: 0 | BB57: 0 | BC57: 0 | BD57: 0 | BE57: 0 | BF57: 0 | BG57: 0 | BH57: 0 | BI57: 0 | BJ57: 0 | BK57: 0 | BL57: 0 | BM57: 0 | BN57: 0 | BO57: 0 | BP57: 0 | BQ57: 0 | BR57: 490.71 | BS57: 490.71 | BT57: 0 | BU57: 0 | BV57: 490.71 | BW57: 0 | BX57: 490.71 | BZ57: Snyder | CA57: =MIN(IF((PriorPlansTable[Market]=$CA$6)*(PriorPlansTable[Metal]=CA$7)*(INDIRECT("PriorPlansTable["&$BZ57&"]")>0),INDIRECT("PriorPlansTable["&$BZ57&"]"))) -> 221.05 | CB57: =MIN(IF((PriorPlansTable[Market]=$CA$6)*(PriorPlansTable[Metal]=CB$7)*(INDIRECT("PriorPlansTable["&$BZ57&"]")>0),INDIRECT("PriorPlansTable["&$BZ57&"]"))) -> 352.59 | CC57: =MIN(IF((PriorPlansTable[Market]=$CA$6)*(PriorPlansTable[Metal]=CC$7)*(INDIRECT("PriorPlansTable["&$BZ57&"]")>0),INDIRECT("PriorPlansTable["&$BZ57&"]"))) -> 404.94 | CD57: =MIN(IF((PriorPlansTable[Market]=$CA$6)*(PriorPlansTable[Metal]=CD$7)*(INDIRECT("PriorPlansTable["&$BZ57&"]")>0),INDIRECT("PriorPlansTable["&$BZ57&"]"))) -> 474.27 | CE57: =MIN(IF((PriorPlansTable[Market]=$CA$6)*(PriorPlansTable[Metal]=CE$7)*(INDIRECT("PriorPlansTable["&$BZ57&"]")>0),INDIRECT("PriorPlansTable["&$BZ57&"]"))) -> 0 | CF57: =MIN(IF((PriorPlansTable[Market]=$CA$6)*(PriorPlansTable[Metal]="Silver")*(INDIRECT("PriorPlansTable["&$BZ57&"]")>CC57),INDIRECT("PriorPlansTable["&$BZ57&"]"))) -> 419.52 | CG57: =MIN(IF((PriorPlansTable[Market]=$CG$6)*(PriorPlansTable[Metal]=CG$7)*(INDIRECT("PriorPlansTable["&$BZ57&"]")>0),INDIRECT("PriorPlansTable["&$BZ57&"]"))) -> 0 | CH57: =MIN(IF((PriorPlansTable[Market]=$CG$6)*(PriorPlansTable[Metal]=CH$7)*(INDIRECT("PriorPlansTable["&$BZ57&"]")>0),INDIRECT("PriorPlansTable["&$BZ57&"]"))) -> 244.53 | CI57: =MIN(IF((PriorPlansTable[Market]=$CG$6)*(PriorPlansTable[Metal]=CI$7)*(INDIRECT("PriorPlansTable["&$BZ57&"]")>0),INDIRECT("PriorPlansTable["&$BZ57&"]"))) -> 285.85 | CJ57: =MIN(IF((PriorPlansTable[Market]=$CG$6)*(PriorPlansTable[Metal]=CJ$7)*(INDIRECT("PriorPlansTable["&$BZ57&"]")>0),INDIRECT("PriorPlansTable["&$BZ57&"]"))) -> 323.41 | CK57: =MIN(IF((PriorPlansTable[Market]=$CG$6)*(PriorPlansTable[Metal]=CK$7)*(INDIRECT("PriorPlansTable["&$BZ57&"]")>0),INDIRECT("PriorPlansTable["&$BZ57&"]"))) -> 392.6 | CL57: =MIN(IF((PriorPlansTable[Market]=$CG$6)*(PriorPlansTable[Metal]="Silver")*(INDIRECT("PriorPlansTable["&$BZ57&"]")>CI57),INDIRECT("PriorPlansTable["&$BZ57&"]"))) -> 290.29
B58: Geisinger Health | C58: Geisinger Health | D58: Individual | E58: 22444PA0010040 | F58: Geisinger Marketplace HMO 30/60/4650 | G58: HMO | H58: Silver | I58: On/Off | J58: 0 | K58: 0 | L58: 0 | M58: 0 | N58: 0 | O58: 0 | P58: 0 | Q58: 0 | R58: 0 | S58: 0 | T58: 0 | U58: 0 | V58: 0 | W58: 0 | X58: 0 | Y58: 0 | Z58: 0 | AA58: 0 | AB58: 0 | AC58: 0 | AD58: 0 | AE58: 0 | AF58: 0 | AG58: 0 | AH58: 0 | AI58: 0 | AJ58: 0 | AK58: 0 | AL58: 0 | AM58: 0 | AN58: 0 | AO58: 0 | AP58: 0 | AQ58: 0 | AR58: 0 | AS58: 0 | AT58: 0 | AU58: 0 | AV58: 0 | AW58: 0 | AX58: 0 | AY58: 0 | AZ58: 0 | BA58: 543.28 | BB58: 0 | BC58: 0 | BD58: 543.28 | BE58: 0 | BF58: 0 | BG58: 0 | BH58: 0 | BI58: 0 | BJ58: 0 | BK58: 0 | BL58: 0 | BM58: 0 | BN58: 0 | BO58: 0 | BP58: 0 | BQ58: 0 | BR58: 0 | BS58: 0 | BT58: 0 | BU58: 0 | BV58: 0 | BW58: 0 | BX58: 0 | BZ58: Union | CA58: =MIN(IF((PriorPlansTable[Market]=$CA$6)*(PriorPlansTable[Metal]=CA$7)*(INDIRECT("PriorPlansTable["&$BZ58&"]")>0),INDIRECT("PriorPlansTable["&$BZ58&"]"))) -> 221.05 | CB58: =MIN(IF((PriorPlansTable[Market]=$CA$6)*(PriorPlansTable[Metal]=CB$7)*(INDIRECT("PriorPlansTable["&$BZ58&"]")>0),INDIRECT("PriorPlansTable["&$BZ58&"]"))) -> 352.59 | CC58: =MIN(IF((PriorPlansTable[Market]=$CA$6)*(PriorPlansTable[Metal]=CC$7)*(INDIRECT("PriorPlansTable["&$BZ58&"]")>0),INDIRECT("PriorPlansTable["&$BZ58&"]"))) -> 404.94 | CD58: =MIN(IF((PriorPlansTable[Market]=$CA$6)*(PriorPlansTable[Metal]=CD$7)*(INDIRECT("PriorPlansTable["&$BZ58&"]")>0),INDIRECT("PriorPlansTable["&$BZ58&"]"))) -> 474.27 | CE58: =MIN(IF((PriorPlansTable[Market]=$CA$6)*(PriorPlansTable[Metal]=CE$7)*(INDIRECT("PriorPlansTable["&$BZ58&"]")>0),INDIRECT("PriorPlansTable["&$BZ58&"]"))) -> 0 | CF58: =MIN(IF((PriorPlansTable[Market]=$CA$6)*(PriorPlansTable[Metal]="Silver")*(INDIRECT("PriorPlansTable["&$BZ58&"]")>CC58),INDIRECT("PriorPlansTable["&$BZ58&"]"))) -> 419.52 | CG58: =MIN(IF((PriorPlansTable[Market]=$CG$6)*(PriorPlansTable[Metal]=CG$7)*(INDIRECT("PriorPlansTable["&$BZ58&"]")>0),INDIRECT("PriorPlansTable["&$BZ58&"]"))) -> 0 | CH58: =MIN(IF((PriorPlansTable[Market]=$CG$6)*(PriorPlansTable[Metal]=CH$7)*(INDIRECT("PriorPlansTable["&$BZ58&"]")>0),INDIRECT("PriorPlansTable["&$BZ58&"]"))) -> 244.53 | CI58: =MIN(IF((PriorPlansTable[Market]=$CG$6)*(PriorPlansTable[Metal]=CI$7)*(INDIRECT("PriorPlansTable["&$BZ58&"]")>0),INDIRECT("PriorPlansTable["&$BZ58&"]"))) -> 285.85 | CJ58: =MIN(IF((PriorPlansTable[Market]=$CG$6)*(PriorPlansTable[Metal]=CJ$7)*(INDIRECT("PriorPlansTable["&$BZ58&"]")>0),INDIRECT("PriorPlansTable["&$BZ58&"]"))) -> 323.41 | CK58: =MIN(IF((PriorPlansTable[Market]=$CG$6)*(PriorPlansTable[Metal]=CK$7)*(INDIRECT("PriorPlansTable["&$BZ58&"]")>0),INDIRECT("PriorPlansTable["&$BZ58&"]"))) -> 392.6 | CL58: =MIN(IF((PriorPlansTable[Market]=$CG$6)*(PriorPlansTable[Metal]="Silver")*(INDIRECT("PriorPlansTable["&$BZ58&"]")>CI58),INDIRECT("PriorPlansTable["&$BZ58&"]"))) -> 290.29
B59: Geisinger Health | C59: Geisinger Health | D59: Individual | E59: 22444PA0010041 | F59: Geisinger Marketplace HMO 30/60/4650 | G59: HMO | H59: Silver | I59: On/Off | J59: 0 | K59: 0 | L59: 0 | M59: 0 | N59: 0 | O59: 0 | P59: 0 | Q59: 0 | R59: 0 | S59: 0 | T59: 0 | U59: 0 | V59: 0 | W59: 0 | X59: 0 | Y59: 0 | Z59: 0 | AA59: 0 | AB59: 0 | AC59: 0 | AD59: 0 | AE59: 0 | AF59: 0 | AG59: 0 | AH59: 0 | AI59: 0 | AJ59: 0 | AK59: 0 | AL59: 0 | AM59: 0 | AN59: 0 | AO59: 0 | AP59: 0 | AQ59: 0 | AR59: 0 | AS59: 0 | AT59: 0 | AU59: 0 | AV59: 0 | AW59: 0 | AX59: 0 | AY59: 0 | AZ59: 0 | BA59: 0 | BB59: 0 | BC59: 0 | BD59: 0 | BE59: 0 | BF59: 0 | BG59: 0 | BH59: 0 | BI59: 552.27 | BJ59: 552.27 | BK59: 552.27 | BL59: 552.27 | BM59: 0 | BN59: 0 | BO59: 0 | BP59: 0 | BQ59: 0 | BR59: 0 | BS59: 0 | BT59: 0 | BU59: 490.71 | BV59: 0 | BW59: 0 | BX59: 0 | BZ59: Adams | CA59: =MIN(IF((PriorPlansTable[Market]=$CA$6)*(PriorPlansTable[Metal]=CA$7)*(INDIRECT("PriorPlansTable["&$BZ59&"]")>0),INDIRECT("PriorPlansTable["&$BZ59&"]"))) -> 227.68 | CB59: =MIN(IF((PriorPlansTable[Market]=$CA$6)*(PriorPlansTable[Metal]=CB$7)*(INDIRECT("PriorPlansTable["&$BZ59&"]")>0),INDIRECT("PriorPlansTable["&$BZ59&"]"))) -> 358.42 | CC59: =MIN(IF((PriorPlansTable[Market]=$CA$6)*(PriorPlansTable[Metal]=CC$7)*(INDIRECT("PriorPlansTable["&$BZ59&"]")>0),INDIRECT("PriorPlansTable["&$BZ59&"]"))) -> 411.64 | CD59: =MIN(IF((PriorPlansTable[Market]=$CA$6)*(PriorPlansTable[Metal]=CD$7)*(INDIRECT("PriorPlansTable["&$BZ59&"]")>0),INDIRECT("PriorPlansTable["&$BZ59&"]"))) -> 518.67 | CE59: =MIN(IF((PriorPlansTable[Market]=$CA$6)*(PriorPlansTable[Metal]=CE$7)*(INDIRECT("PriorPlansTable["&$BZ59&"]")>0),INDIRECT("PriorPlansTable["&$BZ59&"]"))) -> 0 | CF59: =MIN(IF((PriorPlansTable[Market]=$CA$6)*(PriorPlansTable[Metal]="Silver")*(INDIRECT("PriorPlansTable["&$BZ59&"]")>CC59),INDIRECT("PriorPlansTable["&$BZ59&"]"))) -> 483.09 | CG59: =MIN(IF((PriorPlansTable[Market]=$CG$6)*(PriorPlansTable[Metal]=CG$7)*(INDIRECT("PriorPlansTable["&$BZ59&"]")>0),INDIRECT("PriorPlansTable["&$BZ59&"]"))) -> 0 | CH59: =MIN(IF((PriorPlansTable[Market]=$CG$6)*(PriorPlansTable[Metal]=CH$7)*(INDIRECT("PriorPlansTable["&$BZ59&"]")>0),INDIRECT("PriorPlansTable["&$BZ59&"]"))) -> 259.19 | CI59: =MIN(IF((PriorPlansTable[Market]=$CG$6)*(PriorPlansTable[Metal]=CI$7)*(INDIRECT("PriorPlansTable["&$BZ59&"]")>0),INDIRECT("PriorPlansTable["&$BZ59&"]"))) -> 302.98 | CJ59: =MIN(IF((PriorPlansTable[Market]=$CG$6)*(PriorPlansTable[Metal]=CJ$7)*(INDIRECT("PriorPlansTable["&$BZ59&"]")>0),INDIRECT("PriorPlansTable["&$BZ59&"]"))) -> 342.8 | CK59: =MIN(IF((PriorPlansTable[Market]=$CG$6)*(PriorPlansTable[Metal]=CK$7)*(INDIRECT("PriorPlansTable["&$BZ59&"]")>0),INDIRECT("PriorPlansTable["&$BZ59&"]"))) -> 426.28 | CL59: =MIN(IF((PriorPlansTable[Market]=$CG$6)*(PriorPlansTable[Metal]="Silver")*(INDIRECT("PriorPlansTable["&$BZ59&"]")>CI59),INDIRECT("PriorPlansTable["&$BZ59&"]"))) -> 307.68
B60: Geisinger Health | C60: Geisinger Health | D60: Individual | E60: 22444PA0010042 | F60: Geisinger Marketplace HMO 20/40/3000 | G60: HMO | H60: Gold | I60: On/Off | J60: 0 | K60: 0 | L60: 0 | M60: 0 | N60: 0 | O60: 0 | P60: 0 | Q60: 0 | R60: 0 | S60: 0 | T60: 0 | U60: 0 | V60: 0 | W60: 0 | X60: 0 | Y60: 0 | Z60: 0 | AA60: 0 | AB60: 0 | AC60: 0 | AD60: 0 | AE60: 0 | AF60: 0 | AG60: 0 | AH60: 0 | AI60: 0 | AJ60: 0 | AK60: 0 | AL60: 0 | AM60: 0 | AN60: 0 | AO60: 0 | AP60: 0 | AQ60: 0 | AR60: 0 | AS60: 0 | AT60: 0 | AU60: 0 | AV60: 0 | AW60: 0 | AX60: 0 | AY60: 0 | AZ60: 0 | BA60: 0 | BB60: 0 | BC60: 0 | BD60: 0 | BE60: 0 | BF60: 0 | BG60: 0 | BH60: 0 | BI60: 0 | BJ60: 0 | BK60: 0 | BL60: 0 | BM60: 0 | BN60: 0 | BO60: 0 | BP60: 0 | BQ60: 0 | BR60: 460.86 | BS60: 460.86 | BT60: 0 | BU60: 0 | BV60: 460.86 | BW60: 0 | BX60: 460.86 | BZ60: Berks | CA60: =MIN(IF((PriorPlansTable[Market]=$CA$6)*(PriorPlansTable[Metal]=CA$7)*(INDIRECT("PriorPlansTable["&$BZ60&"]")>0),INDIRECT("PriorPlansTable["&$BZ60&"]"))) -> 227.68 | CB60: =MIN(IF((PriorPlansTable[Market]=$CA$6)*(PriorPlansTable[Metal]=CB$7)*(INDIRECT("PriorPlansTable["&$BZ60&"]")>0),INDIRECT("PriorPlansTable["&$BZ60&"]"))) -> 328.1 | CC60: =MIN(IF((PriorPlansTable[Market]=$CA$6)*(PriorPlansTable[Metal]=CC$7)*(INDIRECT("PriorPlansTable["&$BZ60&"]")>0),INDIRECT("PriorPlansTable["&$BZ60&"]"))) -> 367.58 | CD60: =MIN(IF((PriorPlansTable[Market]=$CA$6)*(PriorPlansTable[Metal]=CD$7)*(INDIRECT("PriorPlansTable["&$BZ60&"]")>0),INDIRECT("PriorPlansTable["&$BZ60&"]"))) -> 454.31 | CE60: =MIN(IF((PriorPlansTable[Market]=$CA$6)*(PriorPlansTable[Metal]=CE$7)*(INDIRECT("PriorPlansTable["&$BZ60&"]")>0),INDIRECT("PriorPlansTable["&$BZ60&"]"))) -> 0 | CF60: =MIN(IF((PriorPlansTable[Market]=$CA$6)*(PriorPlansTable[Metal]="Silver")*(INDIRECT("PriorPlansTable["&$BZ60&"]")>CC60),INDIRECT("PriorPlansTable["&$BZ60&"]"))) -> 411.64 | CG60: =MIN(IF((PriorPlansTable[Market]=$CG$6)*(PriorPlansTable[Metal]=CG$7)*(INDIRECT("PriorPlansTable["&$BZ60&"]")>0),INDIRECT("PriorPlansTable["&$BZ60&"]"))) -> 0 | CH60: =MIN(IF((PriorPlansTable[Market]=$CG$6)*(PriorPlansTable[Metal]=CH$7)*(INDIRECT("PriorPlansTable["&$BZ60&"]")>0),INDIRECT("PriorPlansTable["&$BZ60&"]"))) -> 259.19 | CI60: =MIN(IF((PriorPlansTable[Market]=$CG$6)*(PriorPlansTable[Metal]=CI$7)*(INDIRECT("PriorPlansTable["&$BZ60&"]")>0),INDIRECT("PriorPlansTable["&$BZ60&"]"))) -> 293.05 | CJ60: =MIN(IF((PriorPlansTable[Market]=$CG$6)*(PriorPlansTable[Metal]=CJ$7)*(INDIRECT("PriorPlansTable["&$BZ60&"]")>0),INDIRECT("PriorPlansTable["&$BZ60&"]"))) -> 342.8 | CK60: =MIN(IF((PriorPlansTable[Market]=$CG$6)*(PriorPlansTable[Metal]=CK$7)*(INDIRECT("PriorPlansTable["&$BZ60&"]")>0),INDIRECT("PriorPlansTable["&$BZ60&"]"))) -> 426.28 | CL60: =MIN(IF((PriorPlansTable[Market]=$CG$6)*(PriorPlansTable[Metal]="Silver")*(INDIRECT("PriorPlansTable["&$BZ60&"]")>CI60),INDIRECT("PriorPlansTable["&$BZ60&"]"))) -> 302.98
B61: Geisinger Health | C61: Geisinger Health | D61: Individual | E61: 22444PA0010043 | F61: Geisinger Marketplace Select HMO 20/40/3000 | G61: HMO | H61: Gold | I61: On/Off | J61: 0 | K61: 0 | L61: 0 | M61: 0 | N61: 0 | O61: 0 | P61: 0 | Q61: 0 | R61: 0 | S61: 0 | T61: 0 | U61: 0 | V61: 0 | W61: 371.66 | X61: 0 | Y61: 371.66 | Z61: 0 | AA61: 0 | AB61: 0 | AC61: 371.66 | AD61: 371.66 | AE61: 0 | AF61: 371.66 | AG61: 0 | AH61: 0 | AI61: 0 | AJ61: 0 | AK61: 0 | AL61: 0 | AM61: 0 | AN61: 0 | AO61: 0 | AP61: 0 | AQ61: 0 | AR61: 0 | AS61: 0 | AT61: 0 | AU61: 0 | AV61: 0 | AW61: 0 | AX61: 0 | AY61: 0 | AZ61: 0 | BA61: 484.72 | BB61: 0 | BC61: 0 | BD61: 484.72 | BE61: 0 | BF61: 0 | BG61: 0 | BH61: 0 | BI61: 0 | BJ61: 0 | BK61: 0 | BL61: 0 | BM61: 0 | BN61: 0 | BO61: 0 | BP61: 0 | BQ61: 0 | BR61: 0 | BS61: 0 | BT61: 0 | BU61: 0 | BV61: 0 | BW61: 0 | BX61: 0 | BZ61: Lancaster | CA61: =MIN(IF((PriorPlansTable[Market]=$CA$6)*(PriorPlansTable[Metal]=CA$7)*(INDIRECT("PriorPlansTable["&$BZ61&"]")>0),INDIRECT("PriorPlansTable["&$BZ61&"]"))) -> 227.68 | CB61: =MIN(IF((PriorPlansTable[Market]=$CA$6)*(PriorPlansTable[Metal]=CB$7)*(INDIRECT("PriorPlansTable["&$BZ61&"]")>0),INDIRECT("PriorPlansTable["&$BZ61&"]"))) -> 358.42 | CC61: =MIN(IF((PriorPlansTable[Market]=$CA$6)*(PriorPlansTable[Metal]=CC$7)*(INDIRECT("PriorPlansTable["&$BZ61&"]")>0),INDIRECT("PriorPlansTable["&$BZ61&"]"))) -> 411.64 | CD61: =MIN(IF((PriorPlansTable[Market]=$CA$6)*(PriorPlansTable[Metal]=CD$7)*(INDIRECT("PriorPlansTable["&$BZ61&"]")>0),INDIRECT("PriorPlansTable["&$BZ61&"]"))) -> 518.67 | CE61: =MIN(IF((PriorPlansTable[Market]=$CA$6)*(PriorPlansTable[Metal]=CE$7)*(INDIRECT("PriorPlansTable["&$BZ61&"]")>0),INDIRECT("PriorPlansTable["&$BZ61&"]"))) -> 0 | CF61: =MIN(IF((PriorPlansTable[Market]=$CA$6)*(PriorPlansTable[Metal]="Silver")*(INDIRECT("PriorPlansTable["&$BZ61&"]")>CC61),INDIRECT("PriorPlansTable["&$BZ61&"]"))) -> 447.64 | CG61: =MIN(IF((PriorPlansTable[Market]=$CG$6)*(PriorPlansTable[Metal]=CG$7)*(INDIRECT("PriorPlansTable["&$BZ61&"]")>0),INDIRECT("PriorPlansTable["&$BZ61&"]"))) -> 0 | CH61: =MIN(IF((PriorPlansTable[Market]=$CG$6)*(PriorPlansTable[Metal]=CH$7)*(INDIRECT("PriorPlansTable["&$BZ61&"]")>0),INDIRECT("PriorPlansTable["&$BZ61&"]"))) -> 259.19 | CI61: =MIN(IF((PriorPlansTable[Market]=$CG$6)*(PriorPlansTable[Metal]=CI$7)*(INDIRECT("PriorPlansTable["&$BZ61&"]")>0),INDIRECT("PriorPlansTable["&$BZ61&"]"))) -> 302.98 | CJ61: =MIN(IF((PriorPlansTable[Market]=$CG$6)*(PriorPlansTable[Metal]=CJ$7)*(INDIRECT("PriorPlansTable["&$BZ61&"]")>0),INDIRECT("PriorPlansTable["&$BZ61&"]"))) -> 342.8 | CK61: =MIN(IF((PriorPlansTable[Market]=$CG$6)*(PriorPlansTable[Metal]=CK$7)*(INDIRECT("PriorPlansTable["&$BZ61&"]")>0),INDIRECT("PriorPlansTable["&$BZ61&"]"))) -> 426.28 | CL61: =MIN(IF((PriorPlansTable[Market]=$CG$6)*(PriorPlansTable[Metal]="Silver")*(INDIRECT("PriorPlansTable["&$BZ61&"]")>CI61),INDIRECT("PriorPlansTable["&$BZ61&"]"))) -> 307.68
B62: Geisinger Health | C62: Geisinger Health | D62: Individual | E62: 22444PA0010044 | F62: Geisinger Marketplace Select HMO 30/60/4650 | G62: HMO | H62: Silver | I62: On/Off | J62: 0 | K62: 0 | L62: 0 | M62: 0 | N62: 0 | O62: 0 | P62: 0 | Q62: 0 | R62: 0 | S62: 0 | T62: 0 | U62: 0 | V62: 0 | W62: 395.73 | X62: 0 | Y62: 395.73 | Z62: 0 | AA62: 0 | AB62: 0 | AC62: 395.73 | AD62: 395.73 | AE62: 0 | AF62: 395.73 | AG62: 0 | AH62: 0 | AI62: 0 | AJ62: 0 | AK62: 0 | AL62: 0 | AM62: 0 | AN62: 0 | AO62: 0 | AP62: 0 | AQ62: 0 | AR62: 0 | AS62: 0 | AT62: 0 | AU62: 0 | AV62: 0 | AW62: 0 | AX62: 0 | AY62: 0 | AZ62: 0 | BA62: 516.12 | BB62: 0 | BC62: 0 | BD62: 516.12 | BE62: 0 | BF62: 0 | BG62: 0 | BH62: 0 | BI62: 0 | BJ62: 0 | BK62: 0 | BL62: 0 | BM62: 0 | BN62: 0 | BO62: 0 | BP62: 0 | BQ62: 0 | BR62: 0 | BS62: 0 | BT62: 0 | BU62: 0 | BV62: 0 | BW62: 0 | BX62: 0 | BZ62: York | CA62: =MIN(IF((PriorPlansTable[Market]=$CA$6)*(PriorPlansTable[Metal]=CA$7)*(INDIRECT("PriorPlansTable["&$BZ62&"]")>0),INDIRECT("PriorPlansTable["&$BZ62&"]"))) -> 227.68 | CB62: =MIN(IF((PriorPlansTable[Market]=$CA$6)*(PriorPlansTable[Metal]=CB$7)*(INDIRECT("PriorPlansTable["&$BZ62&"]")>0),INDIRECT("PriorPlansTable["&$BZ62&"]"))) -> 358.42 | CC62: =MIN(IF((PriorPlansTable[Market]=$CA$6)*(PriorPlansTable[Metal]=CC$7)*(INDIRECT("PriorPlansTable["&$BZ62&"]")>0),INDIRECT("PriorPlansTable["&$BZ62&"]"))) -> 411.64 | CD62: =MIN(IF((PriorPlansTable[Market]=$CA$6)*(PriorPlansTable[Metal]=CD$7)*(INDIRECT("PriorPlansTable["&$BZ62&"]")>0),INDIRECT("PriorPlansTable["&$BZ62&"]"))) -> 518.67 | CE62: =MIN(IF((PriorPlansTable[Market]=$CA$6)*(PriorPlansTable[Metal]=CE$7)*(INDIRECT("PriorPlansTable["&$BZ62&"]")>0),INDIRECT("PriorPlansTable["&$BZ62&"]"))) -> 0 | CF62: =MIN(IF((PriorPlansTable[Market]=$CA$6)*(PriorPlansTable[Metal]="Silver")*(INDIRECT("PriorPlansTable["&$BZ62&"]")>CC62),INDIRECT("PriorPlansTable["&$BZ62&"]"))) -> 483.09 | CG62: =MIN(IF((PriorPlansTable[Market]=$CG$6)*(PriorPlansTable[Metal]=CG$7)*(INDIRECT("PriorPlansTable["&$BZ62&"]")>0),INDIRECT("PriorPlansTable["&$BZ62&"]"))) -> 0 | CH62: =MIN(IF((PriorPlansTable[Market]=$CG$6)*(PriorPlansTable[Metal]=CH$7)*(INDIRECT("PriorPlansTable["&$BZ62&"]")>0),INDIRECT("PriorPlansTable["&$BZ62&"]"))) -> 259.19 | CI62: =MIN(IF((PriorPlansTable[Market]=$CG$6)*(PriorPlansTable[Metal]=CI$7)*(INDIRECT("PriorPlansTable["&$BZ62&"]")>0),INDIRECT("PriorPlansTable["&$BZ62&"]"))) -> 302.98 | CJ62: =MIN(IF((PriorPlansTable[Market]=$CG$6)*(PriorPlansTable[Metal]=CJ$7)*(INDIRECT("PriorPlansTable["&$BZ62&"]")>0),INDIRECT("PriorPlansTable["&$BZ62&"]"))) -> 342.8 | CK62: =MIN(IF((PriorPlansTable[Market]=$CG$6)*(PriorPlansTable[Metal]=CK$7)*(INDIRECT("PriorPlansTable["&$BZ62&"]")>0),INDIRECT("PriorPlansTable["&$BZ62&"]"))) -> 426.28 | CL62: =MIN(IF((PriorPlansTable[Market]=$CG$6)*(PriorPlansTable[Metal]="Silver")*(INDIRECT("PriorPlansTable["&$BZ62&"]")>CI62),INDIRECT("PriorPlansTable["&$BZ62&"]"))) -> 307.68
... 77 more rows

Sheet Prior Issuers (hidden)
A1: PRIOR ISSUERS BY RATING AREA AND COUNTY
B4: Inputs Tab | C4: Inputs Tab | D4: Inputs Tab | E4: Prior Plans Tab | F4: Prior Plans Tab | G4: Prior Plans Tab | H4: Prior Plans Tab | I4: Prior Plans Tab | J4: Calc | K4: Prior Plans Tab | L4: Prior Plans Tab | M4: Prior Plans Tab | N4: Prior Plans Tab | O4: Prior Plans Tab | P4: Prior Plans Tab | Q4: Prior Plans Tab | R4: Prior Plans Tab | S4: Prior Plans Tab | T4: Prior Plans Tab | U4: Prior Plans Tab | V4: Prior Plans Tab | W4: Prior Plans Tab | X4: Prior Plans Tab | Y4: Prior Plans Tab | Z4: Prior Plans Tab | AA4: Prior Plans Tab | AB4: Prior Plans Tab | AC4: Prior Plans Tab | AD4: Prior Plans Tab | AE4: Prior Plans Tab | AF4: Prior Plans Tab | AG4: Prior Plans Tab | AH4: Prior Plans Tab | AI4: Prior Plans Tab | AJ4: Prior Plans Tab | AK4: Prior Plans Tab | AL4: Prior Plans Tab | AM4: Prior Plans Tab | AN4: Prior Plans Tab | AO4: Prior Plans Tab | AP4: Prior Plans Tab | AQ4: Prior Plans Tab | AR4: Prior Plans Tab | AS4: Prior Plans Tab | AT4: Prior Plans Tab | AU4: Prior Plans Tab | AV4: Prior Plans Tab | AW4: Prior Plans Tab | AX4: Prior Plans Tab | AY4: Prior Plans Tab | AZ4: Prior Plans Tab | BA4: Prior Plans Tab | BB4: Prior Plans Tab | BC4: Prior Plans Tab | BD4: Prior Plans Tab | BE4: Prior Plans Tab | BF4: Prior Plans Tab | BG4: Prior Plans Tab | BH4: Prior Plans Tab | BI4: Prior Plans Tab | BJ4: Prior Plans Tab | BK4: Prior Plans Tab | BL4: Prior Plans Tab | BM4: Prior Plans Tab | BN4: Prior Plans Tab | BO4: Prior Plans Tab | BP4: Prior Plans Tab | BQ4: Prior Plans Tab | BR4: Prior Plans Tab | BS4: Prior Plans Tab | BT4: Prior Plans Tab | BU4: Prior Plans Tab | BV4: Prior Plans Tab | BW4: Prior Plans Tab | BX4: Prior Plans Tab | BY4: Prior Plans Tab | BZ4: Calc | CA4: Calc | CB4: Calc | CC4: Calc | CD4: Calc | CE4: Calc | CF4: Calc | CG4: Calc | CH4: Calc | CI4: Calc | CJ4: Calc | CK4: Calc | CL4: Calc | CM4: Calc | CN4: Calc | CO4: Calc | CP4: Calc | CQ4: Calc | CR4: Calc | CS4: Calc | CT4: Calc | CU4: Calc | CV4: Calc | CW4: Calc | CX4: Calc | CY4: Calc | CZ4: Calc | DA4: Calc | DB4: Calc | DC4: Calc | DD4: Calc | DE4: Calc | DF4: Calc | DG4: Calc | DH4: Calc | DI4: Calc | DJ4: Calc | DK4: Calc | DL4: Calc | DM4: Calc | DN4: Calc | DO4: Calc | DP4: Calc | DQ4: Calc | DR4: Calc | DS4: Calc | DT4: Calc | DU4: Calc | DV4: Calc | DW4: Calc | DX4: Calc | DY4: Calc | DZ4: Calc | EA4: Calc | EB4: Calc | EC4: Calc | ED4: Calc | EE4: Calc | EF4: Calc | EG4: Calc | EH4: Calc | EI4: Calc | EJ4: Calc | EK4: Calc | EL4: Calc | EM4: Calc | EN4: Calc
K5: By Metal Level | BZ5: Overall (No Metal Split)
K6: =INDEX(Lookups!$B:$B,MATCH(K$7,Lookups!$A:$A,0),1) -> Rating Area 1 | L6: =INDEX(Lookups!$B:$B,MATCH(L$7,Lookups!$A:$A,0),1) -> Rating Area 1 | M6: =INDEX(Lookups!$B:$B,MATCH(M$7,Lookups!$A:$A,0),1) -> Rating Area 1 | N6: =INDEX(Lookups!$B:$B,MATCH(N$7,Lookups!$A:$A,0),1) -> Rating Area 1 | O6: =INDEX(Lookups!$B:$B,MATCH(O$7,Lookups!$A:$A,0),1) -> Rating Area 1 | P6: =INDEX(Lookups!$B:$B,MATCH(P$7,Lookups!$A:$A,0),1) -> Rating Area 1 | Q6: =INDEX(Lookups!$B:$B,MATCH(Q$7,Lookups!$A:$A,0),1) -> Rating Area 1 | R6: =INDEX(Lookups!$B:$B,MATCH(R$7,Lookups!$A:$A,0),1) -> Rating Area 1 | S6: =INDEX(Lookups!$B:$B,MATCH(S$7,Lookups!$A:$A,0),1) -> Rating Area 2 | T6: =INDEX(Lookups!$B:$B,MATCH(T$7,Lookups!$A:$A,0),1) -> Rating Area 2 | U6: =INDEX(Lookups!$B:$B,MATCH(U$7,Lookups!$A:$A,0),1) -> Rating Area 2 | V6: =INDEX(Lookups!$B:$B,MATCH(V$7,Lookups!$A:$A,0),1) -> Rating Area 3 | W6: =INDEX(Lookups!$B:$B,MATCH(W$7,Lookups!$A:$A,0),1) -> Rating Area 3 | X6: =INDEX(Lookups!$B:$B,MATCH(X$7,Lookups!$A:$A,0),1) -> Rating Area 3 | Y6: =INDEX(Lookups!$B:$B,MATCH(Y$7,Lookups!$A:$A,0),1) -> Rating Area 3 | Z6: =INDEX(Lookups!$B:$B,MATCH(Z$7,Lookups!$A:$A,0),1) -> Rating Area 3 | AA6: =INDEX(Lookups!$B:$B,MATCH(AA$7,Lookups!$A:$A,0),1) -> Rating Area 3 | AB6: =INDEX(Lookups!$B:$B,MATCH(AB$7,Lookups!$A:$A,0),1) -> Rating Area 3 | AC6: =INDEX(Lookups!$B:$B,MATCH(AC$7,Lookups!$A:$A,0),1) -> Rating Area 3 | AD6: =INDEX(Lookups!$B:$B,MATCH(AD$7,Lookups!$A:$A,0),1) -> Rating Area 3 | AE6: =INDEX(Lookups!$B:$B,MATCH(AE$7,Lookups!$A:$A,0),1) -> Rating Area 3 | AF6: =INDEX(Lookups!$B:$B,MATCH(AF$7,Lookups!$A:$A,0),1) -> Rating Area 3 | AG6: =INDEX(Lookups!$B:$B,MATCH(AG$7,Lookups!$A:$A,0),1) -> Rating Area 3 | AH6: =INDEX(Lookups!$B:$B,MATCH(AH$7,Lookups!$A:$A,0),1) -> Rating Area 3 | AI6: =INDEX(Lookups!$B:$B,MATCH(AI$7,Lookups!$A:$A,0),1) -> Rating Area 4 | AJ6: =INDEX(Lookups!$B:$B,MATCH(AJ$7,Lookups!$A:$A,0),1) -> Rating Area 4 | AK6: =INDEX(Lookups!$B:$B,MATCH(AK$7,Lookups!$A:$A,0),1) -> Rating Area 4 | AL6: =INDEX(Lookups!$B:$B,MATCH(AL$7,Lookups!$A:$A,0),1) -> Rating Area 4 | AM6: =INDEX(Lookups!$B:$B,MATCH(AM$7,Lookups!$A:$A,0),1) -> Rating Area 4 | AN6: =INDEX(Lookups!$B:$B,MATCH(AN$7,Lookups!$A:$A,0),1) -> Rating Area 4 | AO6: =INDEX(Lookups!$B:$B,MATCH(AO$7,Lookups!$A:$A,0),1) -> Rating Area 4 | AP6: =INDEX(Lookups!$B:$B,MATCH(AP$7,Lookups!$A:$A,0),1) -> Rating Area 4 | AQ6: =INDEX(Lookups!$B:$B,MATCH(AQ$7,Lookups!$A:$A,0),1) -> Rating Area 4 | AR6: =INDEX(Lookups!$B:$B,MATCH(AR$7,Lookups!$A:$A,0),1) -> Rating Area 4 | AS6: =INDEX(Lookups!$B:$B,MATCH(AS$7,Lookups!$A:$A,0),1) -> Rating Area 5 | AT6: =INDEX(Lookups!$B:$B,MATCH(AT$7,Lookups!$A:$A,0),1) -> Rating Area 5 | AU6: =INDEX(Lookups!$B:$B,MATCH(AU$7,Lookups!$A:$A,0),1) -> Rating Area 5 | AV6: =INDEX(Lookups!$B:$B,MATCH(AV$7,Lookups!$A:$A,0),1) -> Rating Area 5 | AW6: =INDEX(Lookups!$B:$B,MATCH(AW$7,Lookups!$A:$A,0),1) -> Rating Area 5 | AX6: =INDEX(Lookups!$B:$B,MATCH(AX$7,Lookups!$A:$A,0),1) -> Rating Area 5 | AY6: =INDEX(Lookups!$B:$B,MATCH(AY$7,Lookups!$A:$A,0),1) -> Rating Area 5 | AZ6: =INDEX(Lookups!$B:$B,MATCH(AZ$7,Lookups!$A:$A,0),1) -> Rating Area 6 | BA6: =INDEX(Lookups!$B:$B,MATCH(BA$7,Lookups!$A:$A,0),1) -> Rating Area 6 | BB6: =INDEX(Lookups!$B:$B,MATCH(BB$7,Lookups!$A:$A,0),1) -> Rating Area 6 | BC6: =INDEX(Lookups!$B:$B,MATCH(BC$7,Lookups!$A:$A,0),1) -> Rating Area 6 | BD6: =INDEX(Lookups!$B:$B,MATCH(BD$7,Lookups!$A:$A,0),1) -> Rating Area 6 | BE6: =INDEX(Lookups!$B:$B,MATCH(BE$7,Lookups!$A:$A,0),1) -> Rating Area 6 | BF6: =INDEX(Lookups!$B:$B,MATCH(BF$7,Lookups!$A:$A,0),1) -> Rating Area 6 | BG6: =INDEX(Lookups!$B:$B,MATCH(BG$7,Lookups!$A:$A,0),1) -> Rating Area 6 | BH6: =INDEX(Lookups!$B:$B,MATCH(BH$7,Lookups!$A:$A,0),1) -> Rating Area 6 | BI6: =INDEX(Lookups!$B:$B,MATCH(BI$7,Lookups!$A:$A,0),1) -> Rating Area 6 | BJ6: =INDEX(Lookups!$B:$B,MATCH(BJ$7,Lookups!$A:$A,0),1) -> Rating Area 7 | BK6: =INDEX(Lookups!$B:$B,MATCH(BK$7,Lookups!$A:$A,0),1) -> Rating Area 7 | BL6: =INDEX(Lookups!$B:$B,MATCH(BL$7,Lookups!$A:$A,0),1) -> Rating Area 7 | BM6: =INDEX(Lookups!$B:$B,MATCH(BM$7,Lookups!$A:$A,0),1) -> Rating Area 7 | BN6: =INDEX(Lookups!$B:$B,MATCH(BN$7,Lookups!$A:$A,0),1) -> Rating Area 8 | BO6: =INDEX(Lookups!$B:$B,MATCH(BO$7,Lookups!$A:$A,0),1) -> Rating Area 8 | BP6: =INDEX(Lookups!$B:$B,MATCH(BP$7,Lookups!$A:$A,0),1) -> Rating Area 8 | BQ6: =INDEX(Lookups!$B:$B,MATCH(BQ$7,Lookups!$A:$A,0),1) -> Rating Area 8 | BR6: =INDEX(Lookups!$B:$B,MATCH(BR$7,Lookups!$A:$A,0),1) -> Rating Area 8 | BS6: =INDEX(Lookups!$B:$B,MATCH(BS$7,Lookups!$A:$A,0),1) -> Rating Area 9 | BT6: =INDEX(Lookups!$B:$B,MATCH(BT$7,Lookups!$A:$A,0),1) -> Rating Area 9 | BU6: =INDEX(Lookups!$B:$B,MATCH(BU$7,Lookups!$A:$A,0),1) -> Rating Area 9 | BV6: =INDEX(Lookups!$B:$B,MATCH(BV$7,Lookups!$A:$A,0),1) -> Rating Area 9 | BW6: =INDEX(Lookups!$B:$B,MATCH(BW$7,Lookups!$A:$A,0),1) -> Rating Area 9 | BX6: =INDEX(Lookups!$B:$B,MATCH(BX$7,Lookups!$A:$A,0),1) -> Rating Area 9 | BY6: =INDEX(Lookups!$B:$B,MATCH(BY$7,Lookups!$A:$A,0),1) -> Rating Area 9 | BZ6: =INDEX(Lookups!$B:$B,MATCH(LEFT(BZ$7,LEN(BZ$7)-1),Lookups!$A:$A,0),1) -> Rating Area 1 | CA6: =INDEX(Lookups!$B:$B,MATCH(LEFT(CA$7,LEN(CA$7)-1),Lookups!$A:$A,0),1) -> Rating Area 1 | CB6: =INDEX(Lookups!$B:$B,MATCH(LEFT(CB$7,LEN(CB$7)-1),Lookups!$A:$A,0),1) -> Rating Area 1 | CC6: =INDEX(Lookups!$B:$B,MATCH(LEFT(CC$7,LEN(CC$7)-1),Lookups!$A:$A,0),1) -> Rating Area 1 | CD6: =INDEX(Lookups!$B:$B,MATCH(LEFT(CD$7,LEN(CD$7)-1),Lookups!$A:$A,0),1) -> Rating Area 1 | CE6: =INDEX(Lookups!$B:$B,MATCH(LEFT(CE$7,LEN(CE$7)-1),Lookups!$A:$A,0),1) -> Rating Area 1 | CF6: =INDEX(Lookups!$B:$B,MATCH(LEFT(CF$7,LEN(CF$7)-1),Lookups!$A:$A,0),1) -> Rating Area 1 | CG6: =INDEX(Lookups!$B:$B,MATCH(LEFT(CG$7,LEN(CG$7)-1),Lookups!$A:$A,0),1) -> Rating Area 1 | CH6: =INDEX(Lookups!$B:$B,MATCH(LEFT(CH$7,LEN(CH$7)-1),Lookups!$A:$A,0),1) -> Rating Area 2 | CI6: =INDEX(Lookups!$B:$B,MATCH(LEFT(CI$7,LEN(CI$7)-1),Lookups!$A:$A,0),1) -> Rating Area 2 | CJ6: =INDEX(Lookups!$B:$B,MATCH(LEFT(CJ$7,LEN(CJ$7)-1),Lookups!$A:$A,0),1) -> Rating Area 2 | CK6: =INDEX(Lookups!$B:$B,MATCH(LEFT(CK$7,LEN(CK$7)-1),Lookups!$A:$A,0),1) -> Rating Area 3 | CL6: =INDEX(Lookups!$B:$B,MATCH(LEFT(CL$7,LEN(CL$7)-1),Lookups!$A:$A,0),1) -> Rating Area 3 | CM6: =INDEX(Lookups!$B:$B,MATCH(LEFT(CM$7,LEN(CM$7)-1),Lookups!$A:$A,0),1) -> Rating Area 3 | CN6: =INDEX(Lookups!$B:$B,MATCH(LEFT(CN$7,LEN(CN$7)-1),Lookups!$A:$A,0),1) -> Rating Area 3 | CO6: =INDEX(Lookups!$B:$B,MATCH(LEFT(CO$7,LEN(CO$7)-1),Lookups!$A:$A,0),1) -> Rating Area 3 | CP6: =INDEX(Lookups!$B:$B,MATCH(LEFT(CP$7,LEN(CP$7)-1),Lookups!$A:$A,0),1) -> Rating Area 3 | CQ6: =INDEX(Lookups!$B:$B,MATCH(LEFT(CQ$7,LEN(CQ$7)-1),Lookups!$A:$A,0),1) -> Rating Area 3 | CR6: =INDEX(Lookups!$B:$B,MATCH(LEFT(CR$7,LEN(CR$7)-1),Lookups!$A:$A,0),1) -> Rating Area 3 | CS6: =INDEX(Lookups!$B:$B,MATCH(LEFT(CS$7,LEN(CS$7)-1),Lookups!$A:$A,0),1) -> Rating Area 3 | CT6: =INDEX(Lookups!$B:$B,MATCH(LEFT(CT$7,LEN(CT$7)-1),Lookups!$A:$A,0),1) -> Rating Area 3 | CU6: =INDEX(Lookups!$B:$B,MATCH(LEFT(CU$7,LEN(CU$7)-1),Lookups!$A:$A,0),1) -> Rating Area 3 | CV6: =INDEX(Lookups!$B:$B,MATCH(LEFT(CV$7,LEN(CV$7)-1),Lookups!$A:$A,0),1) -> Rating Area 3 | CW6: =INDEX(Lookups!$B:$B,MATCH(LEFT(CW$7,LEN(CW$7)-1),Lookups!$A:$A,0),1) -> Rating Area 3 | CX6: =INDEX(Lookups!$B:$B,MATCH(LEFT(CX$7,LEN(CX$7)-1),Lookups!$A:$A,0),1) -> Rating Area 4 | CY6: =INDEX(Lookups!$B:$B,MATCH(LEFT(CY$7,LEN(CY$7)-1),Lookups!$A:$A,0),1) -> Rating Area 4 | CZ6: =INDEX(Lookups!$B:$B,MATCH(LEFT(CZ$7,LEN(CZ$7)-1),Lookups!$A:$A,0),1) -> Rating Area 4 | DA6: =INDEX(Lookups!$B:$B,MATCH(LEFT(DA$7,LEN(DA$7)-1),Lookups!$A:$A,0),1) -> Rating Area 4 | DB6: =INDEX(Lookups!$B:$B,MATCH(LEFT(DB$7,LEN(DB$7)-1),Lookups!$A:$A,0),1) -> Rating Area 4 | DC6: =INDEX(Lookups!$B:$B,MATCH(LEFT(DC$7,LEN(DC$7)-1),Lookups!$A:$A,0),1) -> Rating Area 4 | DD6: =INDEX(Lookups!$B:$B,MATCH(LEFT(DD$7,LEN(DD$7)-1),Lookups!$A:$A,0),1) -> Rating Area 4 | DE6: =INDEX(Lookups!$B:$B,MATCH(LEFT(DE$7,LEN(DE$7)-1),Lookups!$A:$A,0),1) -> Rating Area 4 | DF6: =INDEX(Lookups!$B:$B,MATCH(LEFT(DF$7,LEN(DF$7)-1),Lookups!$A:$A,0),1) -> Rating Area 4 | DG6: =INDEX(Lookups!$B:$B,MATCH(LEFT(DG$7,LEN(DG$7)-1),Lookups!$A:$A,0),1) -> Rating Area 4 | DH6: =INDEX(Lookups!$B:$B,MATCH(LEFT(DH$7,LEN(DH$7)-1),Lookups!$A:$A,0),1) -> Rating Area 5 | DI6: =INDEX(Lookups!$B:$B,MATCH(LEFT(DI$7,LEN(DI$7)-1),Lookups!$A:$A,0),1) -> Rating Area 5 | DJ6: =INDEX(Lookups!$B:$B,MATCH(LEFT(DJ$7,LEN(DJ$7)-1),Lookups!$A:$A,0),1) -> Rating Area 5 | DK6: =INDEX(Lookups!$B:$B,MATCH(LEFT(DK$7,LEN(DK$7)-1),Lookups!$A:$A,0),1) -> Rating Area 5 | DL6: =INDEX(Lookups!$B:$B,MATCH(LEFT(DL$7,LEN(DL$7)-1),Lookups!$A:$A,0),1) -> Rating Area 5 | DM6: =INDEX(Lookups!$B:$B,MATCH(LEFT(DM$7,LEN(DM$7)-1),Lookups!$A:$A,0),1) -> Rating Area 5 | DN6: =INDEX(Lookups!$B:$B,MATCH(LEFT(DN$7,LEN(DN$7)-1),Lookups!$A:$A,0),1) -> Rating Area 5 | DO6: =INDEX(Lookups!$B:$B,MATCH(LEFT(DO$7,LEN(DO$7)-1),Lookups!$A:$A,0),1) -> Rating Area 6 | DP6: =INDEX(Lookups!$B:$B,MATCH(LEFT(DP$7,LEN(DP$7)-1),Lookups!$A:$A,0),1) -> Rating Area 6 | DQ6: =INDEX(Lookups!$B:$B,MATCH(LEFT(DQ$7,LEN(DQ$7)-1),Lookups!$A:$A,0),1) -> Rating Area 6 | DR6: =INDEX(Lookups!$B:$B,MATCH(LEFT(DR$7,LEN(DR$7)-1),Lookups!$A:$A,0),1) -> Rating Area 6 | DS6: =INDEX(Lookups!$B:$B,MATCH(LEFT(DS$7,LEN(DS$7)-1),Lookups!$A:$A,0),1) -> Rating Area 6 | DT6: =INDEX(Lookups!$B:$B,MATCH(LEFT(DT$7,LEN(DT$7)-1),Lookups!$A:$A,0),1) -> Rating Area 6 | DU6: =INDEX(Lookups!$B:$B,MATCH(LEFT(DU$7,LEN(DU$7)-1),Lookups!$A:$A,0),1) -> Rating Area 6 | DV6: =INDEX(Lookups!$B:$B,MATCH(LEFT(DV$7,LEN(DV$7)-1),Lookups!$A:$A,0),1) -> Rating Area 6 | DW6: =INDEX(Lookups!$B:$B,MATCH(LEFT(DW$7,LEN(DW$7)-1),Lookups!$A:$A,0),1) -> Rating Area 6 | DX6: =INDEX(Lookups!$B:$B,MATCH(LEFT(DX$7,LEN(DX$7)-1),Lookups!$A:$A,0),1) -> Rating Area 6 | DY6: =INDEX(Lookups!$B:$B,MATCH(LEFT(DY$7,LEN(DY$7)-1),Lookups!$A:$A,0),1) -> Rating Area 7 | DZ6: =INDEX(Lookups!$B:$B,MATCH(LEFT(DZ$7,LEN(DZ$7)-1),Lookups!$A:$A,0),1) -> Rating Area 7 | EA6: =INDEX(Lookups!$B:$B,MATCH(LEFT(EA$7,LEN(EA$7)-1),Lookups!$A:$A,0),1) -> Rating Area 7 | EB6: =INDEX(Lookups!$B:$B,MATCH(LEFT(EB$7,LEN(EB$7)-1),Lookups!$A:$A,0),1) -> Rating Area 7 | EC6: =INDEX(Lookups!$B:$B,MATCH(LEFT(EC$7,LEN(EC$7)-1),Lookups!$A:$A,0),1) -> Rating Area 8 | ED6: =INDEX(Lookups!$B:$B,MATCH(LEFT(ED$7,LEN(ED$7)-1),Lookups!$A:$A,0),1) -> Rating Area 8 | EE6: =INDEX(Lookups!$B:$B,MATCH(LEFT(EE$7,LEN(EE$7)-1),Lookups!$A:$A,0),1) -> Rating Area 8 | EF6: =INDEX(Lookups!$B:$B,MATCH(LEFT(EF$7,LEN(EF$7)-1),Lookups!$A:$A,0),1) -> Rating Area 8 | EG6: =INDEX(Lookups!$B:$B,MATCH(LEFT(EG$7,LEN(EG$7)-1),Lookups!$A:$A,0),1) -> Rating Area 8 | EH6: =INDEX(Lookups!$B:$B,MATCH(LEFT(EH$7,LEN(EH$7)-1),Lookups!$A:$A,0),1) -> Rating Area 9 | EI6: =INDEX(Lookups!$B:$B,MATCH(LEFT(EI$7,LEN(EI$7)-1),Lookups!$A:$A,0),1) -> Rating Area 9 | EJ6: =INDEX(Lookups!$B:$B,MATCH(LEFT(EJ$7,LEN(EJ$7)-1),Lookups!$A:$A,0),1) -> Rating Area 9 | EK6: =INDEX(Lookups!$B:$B,MATCH(LEFT(EK$7,LEN(EK$7)-1),Lookups!$A:$A,0),1) -> Rating Area 9 | EL6: =INDEX(Lookups!$B:$B,MATCH(LEFT(EL$7,LEN(EL$7)-1),Lookups!$A:$A,0),1) -> Rating Area 9 | EM6: =INDEX(Lookups!$B:$B,MATCH(LEFT(EM$7,LEN(EM$7)-1),Lookups!$A:$A,0),1) -> Rating Area 9 | EN6: =INDEX(Lookups!$B:$B,MATCH(LEFT(EN$7,LEN(EN$7)-1),Lookups!$A:$A,0),1) -> Rating Area 9
B7: Parent Company | C7: Legal Entity | D7: Market | E7: HIOS Plan ID | F7: Plan Marketing Name | G7: Product | H7: Metal | I7: On/Off | J7: Issuers Exhibit Ind | K7: Clarion | L7: Crawford | M7: Erie | N7: Forest | O7: McKean | P7: Mercer | Q7: Venango | R7: Warren | S7: Cameron | T7: Elk | U7: Potter | V7: Bradford | W7: Carbon | X7: Clinton | Y7: Lackawanna | Z7: Luzerne | AA7: Lycoming | AB7: Monroe | AC7: Pike | AD7: Sullivan | AE7: Susquehanna | AF7: Tioga | AG7: Wayne | AH7: Wyoming | AI7: Allegheny | AJ7: Armstrong | AK7: Beaver | AL7: Butler | AM7: Fayette | AN7: Greene | AO7: Indiana | AP7: Lawrence | AQ7: Washington | AR7: Westmoreland | AS7: Bedford | AT7: Blair | AU7: Cambria | AV7: Clearfield | AW7: Huntingdon | AX7: Jefferson | AY7: Somerset | AZ7: Centre | BA7: Columbia | BB7: Lehigh | BC7: Mifflin | BD7: Montour | BE7: Northampton | BF7: Northumberland | BG7: Schuylkill | BH7: Snyder | BI7: Union | BJ7: Adams | BK7: Berks | BL7: Lancaster | BM7: York | BN7: Bucks | BO7: Chester | BP7: Delaware | BQ7: Montgomery | BR7: Philadelphia | BS7: Cumberland | BT7: Dauphin | BU7: Franklin | BV7: Fulton | BW7: Juniata | BX7: Lebanon | BY7: Perry | BZ7: Clarion2 | CA7: Crawford2 | CB7: Erie2 | CC7: Forest2 | CD7: McKean2 | CE7: Mercer2 | CF7: Venango2 | CG7: Warren2 | CH7: Cameron2 | CI7: Elk2 | CJ7: Potter2 | CK7: Bradford2 | CL7: Carbon2 | CM7: Clinton2 | CN7: Lackawanna2 | CO7: Luzerne2 | CP7: Lycoming2 | CQ7: Monroe2 | CR7: Pike2 | CS7: Sullivan2 | CT7: Susquehanna2 | CU7: Tioga2 | CV7: Wayne2 | CW7: Wyoming2 | CX7: Allegheny2 | CY7: Armstrong2 | CZ7: Beaver2 | DA7: Butler2 | DB7: Fayette2 | DC7: Greene2 | DD7: Indiana2 | DE7: Lawrence2 | DF7: Washington2 | DG7: Westmoreland2 | DH7: Bedford2 | DI7: Blair2 | DJ7: Cambria2 | DK7: Clearfield2 | DL7: Huntingdon2 | DM7: Jefferson2 | DN7: Somerset2 | DO7: Centre2 | DP7: Columbia2 | DQ7: Lehigh2 | DR7: Mifflin2 | DS7: Montour2 | DT7: Northampton2 | DU7: Northumberland2 | DV7: Schuylkill2 | DW7: Snyder2 | DX7: Union2 | DY7: Adams2 | DZ7: Berks2 | EA7: Lancaster2 | EB7: York2 | EC7: Bucks2 | ED7: Chester2 | EE7: Delaware2 | EF7: Montgomery2 | EG7: Philadelphia2 | EH7: Cumberland2 | EI7: Dauphin2 | EJ7: Franklin2 | EK7: Fulton2 | EL7: Juniata2 | EM7: Lebanon2 | EN7: Perry2
B8: Aetna | C8: Aetna | D8: Small Group | E8: 64844PA0060126 | F8: PA Silver QPOS 5000 80/50 | G8: QPOS | H8: Silver | I8: Off | J8: =IF(PriorIssTable[[#This Row],[Market]]<>Iss_Cnty_Mkt,0,IF(OR(Iss_Cnty_Exch="On/Off",PriorIssTable[[#This Row],[On/Off]]="On/Off"),1,IF(PriorIssTable[[#This Row],[On/Off]]<>Iss_Cnty_Exch,0,1))) -> 0 | K8: =IF(OR(PriorIssTable[[#This Row],[Issuers Exhibit Ind]]=0,'Prior Plans'!J8={0,""},COUNTIFS($C$8:$C8,PriorIssTable[[#This Row],[Legal Entity]],$J$8:$J8,PriorIssTable[[#This Row],[Issuers Exhibit Ind]],$H$8:$H8,PriorIssTable[[#This Row],[Metal]],'Prior Plans'!J$8:J8,">0")>1),0,1) -> 0 | L8: =IF(OR(PriorIssTable[[#This Row],[Issuers Exhibit Ind]]=0,'Prior Plans'!K8={0,""},COUNTIFS($C$8:$C8,PriorIssTable[[#This Row],[Legal Entity]],$J$8:$J8,PriorIssTable[[#This Row],[Issuers Exhibit Ind]],$H$8:$H8,PriorIssTable[[#This Row],[Metal]],'Prior Plans'!K$8:K8,">0")>1),0,1) -> 0 | M8: =IF(OR(PriorIssTable[[#This Row],[Issuers Exhibit Ind]]=0,'Prior Plans'!L8={0,""},COUNTIFS($C$8:$C8,PriorIssTable[[#This Row],[Legal Entity]],$J$8:$J8,PriorIssTable[[#This Row],[Issuers Exhibit Ind]],$H$8:$H8,PriorIssTable[[#This Row],[Metal]],'Prior Plans'!L$8:L8,">0")>1),0,1) -> 0 | N8: =IF(OR(PriorIssTable[[#This Row],[Issuers Exhibit Ind]]=0,'Prior Plans'!M8={0,""},COUNTIFS($C$8:$C8,PriorIssTable[[#This Row],[Legal Entity]],$J$8:$J8,PriorIssTable[[#This Row],[Issuers Exhibit Ind]],$H$8:$H8,PriorIssTable[[#This Row],[Metal]],'Prior Plans'!M$8:M8,">0")>1),0,1) -> 0 | O8: =IF(OR(PriorIssTable[[#This Row],[Issuers Exhibit Ind]]=0,'Prior Plans'!N8={0,""},COUNTIFS($C$8:$C8,PriorIssTable[[#This Row],[Legal Entity]],$J$8:$J8,PriorIssTable[[#This Row],[Issuers Exhibit Ind]],$H$8:$H8,PriorIssTable[[#This Row],[Metal]],'Prior Plans'!N$8:N8,">0")>1),0,1) -> 0 | P8: =IF(OR(PriorIssTable[[#This Row],[Issuers Exhibit Ind]]=0,'Prior Plans'!O8={0,""},COUNTIFS($C$8:$C8,PriorIssTable[[#This Row],[Legal Entity]],$J$8:$J8,PriorIssTable[[#This Row],[Issuers Exhibit Ind]],$H$8:$H8,PriorIssTable[[#This Row],[Metal]],'Prior Plans'!O$8:O8,">0")>1),0,1) -> 0 | Q8: =IF(OR(PriorIssTable[[#This Row],[Issuers Exhibit Ind]]=0,'Prior Plans'!P8={0,""},COUNTIFS($C$8:$C8,PriorIssTable[[#This Row],[Legal Entity]],$J$8:$J8,PriorIssTable[[#This Row],[Issuers Exhibit Ind]],$H$8:$H8,PriorIssTable[[#This Row],[Metal]],'Prior Plans'!P$8:P8,">0")>1),0,1) -> 0 | R8: =IF(OR(PriorIssTable[[#This Row],[Issuers Exhibit Ind]]=0,'Prior Plans'!Q8={0,""},COUNTIFS($C$8:$C8,PriorIssTable[[#This Row],[Legal Entity]],$J$8:$J8,PriorIssTable[[#This Row],[Issuers Exhibit Ind]],$H$8:$H8,PriorIssTable[[#This Row],[Metal]],'Prior Plans'!Q$8:Q8,">0")>1),0,1) -> 0 | S8: =IF(OR(PriorIssTable[[#This Row],[Issuers Exhibit Ind]]=0,'Prior Plans'!R8={0,""},COUNTIFS($C$8:$C8,PriorIssTable[[#This Row],[Legal Entity]],$J$8:$J8,PriorIssTable[[#This Row],[Issuers Exhibit Ind]],$H$8:$H8,PriorIssTable[[#This Row],[Metal]],'Prior Plans'!R$8:R8,">0")>1),0,1) -> 0 | T8: =IF(OR(PriorIssTable[[#This Row],[Issuers Exhibit Ind]]=0,'Prior Plans'!S8={0,""},COUNTIFS($C$8:$C8,PriorIssTable[[#This Row],[Legal Entity]],$J$8:$J8,PriorIssTable[[#This Row],[Issuers Exhibit Ind]],$H$8:$H8,PriorIssTable[[#This Row],[Metal]],'Prior Plans'!S$8:S8,">0")>1),0,1) -> 0 | U8: =IF(OR(PriorIssTable[[#This Row],[Issuers Exhibit Ind]]=0,'Prior Plans'!T8={0,""},COUNTIFS($C$8:$C8,PriorIssTable[[#This Row],[Legal Entity]],$J$8:$J8,PriorIssTable[[#This Row],[Issuers Exhibit Ind]],$H$8:$H8,PriorIssTable[[#This Row],[Metal]],'Prior Plans'!T$8:T8,">0")>1),0,1) -> 0 | V8: =IF(OR(PriorIssTable[[#This Row],[Issuers Exhibit Ind]]=0,'Prior Plans'!U8={0,""},COUNTIFS($C$8:$C8,PriorIssTable[[#This Row],[Legal Entity]],$J$8:$J8,PriorIssTable[[#This Row],[Issuers Exhibit Ind]],$H$8:$H8,PriorIssTable[[#This Row],[Metal]],'Prior Plans'!U$8:U8,">0")>1),0,1) -> 0 | W8: =IF(OR(PriorIssTable[[#This Row],[Issuers Exhibit Ind]]=0,'Prior Plans'!V8={0,""},COUNTIFS($C$8:$C8,PriorIssTable[[#This Row],[Legal Entity]],$J$8:$J8,PriorIssTable[[#This Row],[Issuers Exhibit Ind]],$H$8:$H8,PriorIssTable[[#This Row],[Metal]],'Prior Plans'!V$8:V8,">0")>1),0,1) -> 0 | X8: =IF(OR(PriorIssTable[[#This Row],[Issuers Exhibit Ind]]=0,'Prior Plans'!W8={0,""},COUNTIFS($C$8:$C8,PriorIssTable[[#This Row],[Legal Entity]],$J$8:$J8,PriorIssTable[[#This Row],[Issuers Exhibit Ind]],$H$8:$H8,PriorIssTable[[#This Row],[Metal]],'Prior Plans'!W$8:W8,">0")>1),0,1) -> 0 | Y8: =IF(OR(PriorIssTable[[#This Row],[Issuers Exhibit Ind]]=0,'Prior Plans'!X8={0,""},COUNTIFS($C$8:$C8,PriorIssTable[[#This Row],[Legal Entity]],$J$8:$J8,PriorIssTable[[#This Row],[Issuers Exhibit Ind]],$H$8:$H8,PriorIssTable[[#This Row],[Metal]],'Prior Plans'!X$8:X8,">0")>1),0,1) -> 0 | Z8: =IF(OR(PriorIssTable[[#This Row],[Issuers Exhibit Ind]]=0,'Prior Plans'!Y8={0,""},COUNTIFS($C$8:$C8,PriorIssTable[[#This Row],[Legal Entity]],$J$8:$J8,PriorIssTable[[#This Row],[Issuers Exhibit Ind]],$H$8:$H8,PriorIssTable[[#This Row],[Metal]],'Prior Plans'!Y$8:Y8,">0")>1),0,1) -> 0 | AA8: =IF(OR(PriorIssTable[[#This Row],[Issuers Exhibit Ind]]=0,'Prior Plans'!Z8={0,""},COUNTIFS($C$8:$C8,PriorIssTable[[#This Row],[Legal Entity]],$J$8:$J8,PriorIssTable[[#This Row],[Issuers Exhibit Ind]],$H$8:$H8,PriorIssTable[[#This Row],[Metal]],'Prior Plans'!Z$8:Z8,">0")>1),0,1) -> 0 | AB8: =IF(OR(PriorIssTable[[#This Row],[Issuers Exhibit Ind]]=0,'Prior Plans'!AA8={0,""},COUNTIFS($C$8:$C8,PriorIssTable[[#This Row],[Legal Entity]],$J$8:$J8,PriorIssTable[[#This Row],[Issuers Exhibit Ind]],$H$8:$H8,PriorIssTable[[#This Row],[Metal]],'Prior Plans'!AA$8:AA8,">0")>1),0,1) -> 0 | AC8: =IF(OR(PriorIssTable[[#This Row],[Issuers Exhibit Ind]]=0,'Prior Plans'!AB8={0,""},COUNTIFS($C$8:$C8,PriorIssTable[[#This Row],[Legal Entity]],$J$8:$J8,PriorIssTable[[#This Row],[Issuers Exhibit Ind]],$H$8:$H8,PriorIssTable[[#This Row],[Metal]],'Prior Plans'!AB$8:AB8,">0")>1),0,1) -> 0 | AD8: =IF(OR(PriorIssTable[[#This Row],[Issuers Exhibit Ind]]=0,'Prior Plans'!AC8={0,""},COUNTIFS($C$8:$C8,PriorIssTable[[#This Row],[Legal Entity]],$J$8:$J8,PriorIssTable[[#This Row],[Issuers Exhibit Ind]],$H$8:$H8,PriorIssTable[[#This Row],[Metal]],'Prior Plans'!AC$8:AC8,">0")>1),0,1) -> 0 | AE8: =IF(OR(PriorIssTable[[#This Row],[Issuers Exhibit Ind]]=0,'Prior Plans'!AD8={0,""},COUNTIFS($C$8:$C8,PriorIssTable[[#This Row],[Legal Entity]],$J$8:$J8,PriorIssTable[[#This Row],[Issuers Exhibit Ind]],$H$8:$H8,PriorIssTable[[#This Row],[Metal]],'Prior Plans'!AD$8:AD8,">0")>1),0,1) -> 0 | AF8: =IF(OR(PriorIssTable[[#This Row],[Issuers Exhibit Ind]]=0,'Prior Plans'!AE8={0,""},COUNTIFS($C$8:$C8,PriorIssTable[[#This Row],[Legal Entity]],$J$8:$J8,PriorIssTable[[#This Row],[Issuers Exhibit Ind]],$H$8:$H8,PriorIssTable[[#This Row],[Metal]],'Prior Plans'!AE$8:AE8,">0")>1),0,1) -> 0 | AG8: =IF(OR(PriorIssTable[[#This Row],[Issuers Exhibit Ind]]=0,'Prior Plans'!AF8={0,""},COUNTIFS($C$8:$C8,PriorIssTable[[#This Row],[Legal Entity]],$J$8:$J8,PriorIssTable[[#This Row],[Issuers Exhibit Ind]],$H$8:$H8,PriorIssTable[[#This Row],[Metal]],'Prior Plans'!AF$8:AF8,">0")>1),0,1) -> 0 | AH8: =IF(OR(PriorIssTable[[#This Row],[Issuers Exhibit Ind]]=0,'Prior Plans'!AG8={0,""},COUNTIFS($C$8:$C8,PriorIssTable[[#This Row],[Legal Entity]],$J$8:$J8,PriorIssTable[[#This Row],[Issuers Exhibit Ind]],$H$8:$H8,PriorIssTable[[#This Row],[Metal]],'Prior Plans'!AG$8:AG8,">0")>1),0,1) -> 0 | AI8: =IF(OR(PriorIssTable[[#This Row],[Issuers Exhibit Ind]]=0,'Prior Plans'!AH8={0,""},COUNTIFS($C$8:$C8,PriorIssTable[[#This Row],[Legal Entity]],$J$8:$J8,PriorIssTable[[#This Row],[Issuers Exhibit Ind]],$H$8:$H8,PriorIssTable[[#This Row],[Metal]],'Prior Plans'!AH$8:AH8,">0")>1),0,1) -> 0 | AJ8: =IF(OR(PriorIssTable[[#This Row],[Issuers Exhibit Ind]]=0,'Prior Plans'!AI8={0,""},COUNTIFS($C$8:$C8,PriorIssTable[[#This Row],[Legal Entity]],$J$8:$J8,PriorIssTable[[#This Row],[Issuers Exhibit Ind]],$H$8:$H8,PriorIssTable[[#This Row],[Metal]],'Prior Plans'!AI$8:AI8,">0")>1),0,1) -> 0 | AK8: =IF(OR(PriorIssTable[[#This Row],[Issuers Exhibit Ind]]=0,'Prior Plans'!AJ8={0,""},COUNTIFS($C$8:$C8,PriorIssTable[[#This Row],[Legal Entity]],$J$8:$J8,PriorIssTable[[#This Row],[Issuers Exhibit Ind]],$H$8:$H8,PriorIssTable[[#This Row],[Metal]],'Prior Plans'!AJ$8:AJ8,">0")>1),0,1) -> 0 | AL8: =IF(OR(PriorIssTable[[#This Row],[Issuers Exhibit Ind]]=0,'Prior Plans'!AK8={0,""},COUNTIFS($C$8:$C8,PriorIssTable[[#This Row],[Legal Entity]],$J$8:$J8,PriorIssTable[[#This Row],[Issuers Exhibit Ind]],$H$8:$H8,PriorIssTable[[#This Row],[Metal]],'Prior Plans'!AK$8:AK8,">0")>1),0,1) -> 0 | AM8: =IF(OR(PriorIssTable[[#This Row],[Issuers Exhibit Ind]]=0,'Prior Plans'!AL8={0,""},COUNTIFS($C$8:$C8,PriorIssTable[[#This Row],[Legal Entity]],$J$8:$J8,PriorIssTable[[#This Row],[Issuers Exhibit Ind]],$H$8:$H8,PriorIssTable[[#This Row],[Metal]],'Prior Plans'!AL$8:AL8,">0")>1),0,1) -> 0 | AN8: =IF(OR(PriorIssTable[[#This Row],[Issuers Exhibit Ind]]=0,'Prior Plans'!AM8={0,""},COUNTIFS($C$8:$C8,PriorIssTable[[#This Row],[Legal Entity]],$J$8:$J8,PriorIssTable[[#This Row],[Issuers Exhibit Ind]],$H$8:$H8,PriorIssTable[[#This Row],[Metal]],'Prior Plans'!AM$8:AM8,">0")>1),0,1) -> 0 | AO8: =IF(OR(PriorIssTable[[#This Row],[Issuers Exhibit Ind]]=0,'Prior Plans'!AN8={0,""},COUNTIFS($C$8:$C8,PriorIssTable[[#This Row],[Legal Entity]],$J$8:$J8,PriorIssTable[[#This Row],[Issuers Exhibit Ind]],$H$8:$H8,PriorIssTable[[#This Row],[Metal]],'Prior Plans'!AN$8:AN8,">0")>1),0,1) -> 0 | AP8: =IF(OR(PriorIssTable[[#This Row],[Issuers Exhibit Ind]]=0,'Prior Plans'!AO8={0,""},COUNTIFS($C$8:$C8,PriorIssTable[[#This Row],[Legal Entity]],$J$8:$J8,PriorIssTable[[#This Row],[Issuers Exhibit Ind]],$H$8:$H8,PriorIssTable[[#This Row],[Metal]],'Prior Plans'!AO$8:AO8,">0")>1),0,1) -> 0 | AQ8: =IF(OR(PriorIssTable[[#This Row],[Issuers Exhibit Ind]]=0,'Prior Plans'!AP8={0,""},COUNTIFS($C$8:$C8,PriorIssTable[[#This Row],[Legal Entity]],$J$8:$J8,PriorIssTable[[#This Row],[Issuers Exhibit Ind]],$H$8:$H8,PriorIssTable[[#This Row],[Metal]],'Prior Plans'!AP$8:AP8,">0")>1),0,1) -> 0 | AR8: =IF(OR(PriorIssTable[[#This Row],[Issuers Exhibit Ind]]=0,'Prior Plans'!AQ8={0,""},COUNTIFS($C$8:$C8,PriorIssTable[[#This Row],[Legal Entity]],$J$8:$J8,PriorIssTable[[#This Row],[Issuers Exhibit Ind]],$H$8:$H8,PriorIssTable[[#This Row],[Metal]],'Prior Plans'!AQ$8:AQ8,">0")>1),0,1) -> 0 | AS8: =IF(OR(PriorIssTable[[#This Row],[Issuers Exhibit Ind]]=0,'Prior Plans'!AR8={0,""},COUNTIFS($C$8:$C8,PriorIssTable[[#This Row],[Legal Entity]],$J$8:$J8,PriorIssTable[[#This Row],[Issuers Exhibit Ind]],$H$8:$H8,PriorIssTable[[#This Row],[Metal]],'Prior Plans'!AR$8:AR8,">0")>1),0,1) -> 0 | AT8: =IF(OR(PriorIssTable[[#This Row],[Issuers Exhibit Ind]]=0,'Prior Plans'!AS8={0,""},COUNTIFS($C$8:$C8,PriorIssTable[[#This Row],[Legal Entity]],$J$8:$J8,PriorIssTable[[#This Row],[Issuers Exhibit Ind]],$H$8:$H8,PriorIssTable[[#This Row],[Metal]],'Prior Plans'!AS$8:AS8,">0")>1),0,1) -> 0 | AU8: =IF(OR(PriorIssTable[[#This Row],[Issuers Exhibit Ind]]=0,'Prior Plans'!AT8={0,""},COUNTIFS($C$8:$C8,PriorIssTable[[#This Row],[Legal Entity]],$J$8:$J8,PriorIssTable[[#This Row],[Issuers Exhibit Ind]],$H$8:$H8,PriorIssTable[[#This Row],[Metal]],'Prior Plans'!AT$8:AT8,">0")>1),0,1) -> 0 | AV8: =IF(OR(PriorIssTable[[#This Row],[Issuers Exhibit Ind]]=0,'Prior Plans'!AU8={0,""},COUNTIFS($C$8:$C8,PriorIssTable[[#This Row],[Legal Entity]],$J$8:$J8,PriorIssTable[[#This Row],[Issuers Exhibit Ind]],$H$8:$H8,PriorIssTable[[#This Row],[Metal]],'Prior Plans'!AU$8:AU8,">0")>1),0,1) -> 0 | AW8: =IF(OR(PriorIssTable[[#This Row],[Issuers Exhibit Ind]]=0,'Prior Plans'!AV8={0,""},COUNTIFS($C$8:$C8,PriorIssTable[[#This Row],[Legal Entity]],$J$8:$J8,PriorIssTable[[#This Row],[Issuers Exhibit Ind]],$H$8:$H8,PriorIssTable[[#This Row],[Metal]],'Prior Plans'!AV$8:AV8,">0")>1),0,1) -> 0 | AX8: =IF(OR(PriorIssTable[[#This Row],[Issuers Exhibit Ind]]=0,'Prior Plans'!AW8={0,""},COUNTIFS($C$8:$C8,PriorIssTable[[#This Row],[Legal Entity]],$J$8:$J8,PriorIssTable[[#This Row],[Issuers Exhibit Ind]],$H$8:$H8,PriorIssTable[[#This Row],[Metal]],'Prior Plans'!AW$8:AW8,">0")>1),0,1) -> 0 | AY8: =IF(OR(PriorIssTable[[#This Row],[Issuers Exhibit Ind]]=0,'Prior Plans'!AX8={0,""},COUNTIFS($C$8:$C8,PriorIssTable[[#This Row],[Legal Entity]],$J$8:$J8,PriorIssTable[[#This Row],[Issuers Exhibit Ind]],$H$8:$H8,PriorIssTable[[#This Row],[Metal]],'Prior Plans'!AX$8:AX8,">0")>1),0,1) -> 0 | AZ8: =IF(OR(PriorIssTable[[#This Row],[Issuers Exhibit Ind]]=0,'Prior Plans'!AY8={0,""},COUNTIFS($C$8:$C8,PriorIssTable[[#This Row],[Legal Entity]],$J$8:$J8,PriorIssTable[[#This Row],[Issuers Exhibit Ind]],$H$8:$H8,PriorIssTable[[#This Row],[Metal]],'Prior Plans'!AY$8:AY8,">0")>1),0,1) -> 0 | BA8: =IF(OR(PriorIssTable[[#This Row],[Issuers Exhibit Ind]]=0,'Prior Plans'!AZ8={0,""},COUNTIFS($C$8:$C8,PriorIssTable[[#This Row],[Legal Entity]],$J$8:$J8,PriorIssTable[[#This Row],[Issuers Exhibit Ind]],$H$8:$H8,PriorIssTable[[#This Row],[Metal]],'Prior Plans'!AZ$8:AZ8,">0")>1),0,1) -> 0 | BB8: =IF(OR(PriorIssTable[[#This Row],[Issuers Exhibit Ind]]=0,'Prior Plans'!BA8={0,""},COUNTIFS($C$8:$C8,PriorIssTable[[#This Row],[Legal Entity]],$J$8:$J8,PriorIssTable[[#This Row],[Issuers Exhibit Ind]],$H$8:$H8,PriorIssTable[[#This Row],[Metal]],'Prior Plans'!BA$8:BA8,">0")>1),0,1) -> 0 | BC8: =IF(OR(PriorIssTable[[#This Row],[Issuers Exhibit Ind]]=0,'Prior Plans'!BB8={0,""},COUNTIFS($C$8:$C8,PriorIssTable[[#This Row],[Legal Entity]],$J$8:$J8,PriorIssTable[[#This Row],[Issuers Exhibit Ind]],$H$8:$H8,PriorIssTable[[#This Row],[Metal]],'Prior Plans'!BB$8:BB8,">0")>1),0,1) -> 0 | BD8: =IF(OR(PriorIssTable[[#This Row],[Issuers Exhibit Ind]]=0,'Prior Plans'!BC8={0,""},COUNTIFS($C$8:$C8,PriorIssTable[[#This Row],[Legal Entity]],$J$8:$J8,PriorIssTable[[#This Row],[Issuers Exhibit Ind]],$H$8:$H8,PriorIssTable[[#This Row],[Metal]],'Prior Plans'!BC$8:BC8,">0")>1),0,1) -> 0 | BE8: =IF(OR(PriorIssTable[[#This Row],[Issuers Exhibit Ind]]=0,'Prior Plans'!BD8={0,""},COUNTIFS($C$8:$C8,PriorIssTable[[#This Row],[Legal Entity]],$J$8:$J8,PriorIssTable[[#This Row],[Issuers Exhibit Ind]],$H$8:$H8,PriorIssTable[[#This Row],[Metal]],'Prior Plans'!BD$8:BD8,">0")>1),0,1) -> 0 | BF8: =IF(OR(PriorIssTable[[#This Row],[Issuers Exhibit Ind]]=0,'Prior Plans'!BE8={0,""},COUNTIFS($C$8:$C8,PriorIssTable[[#This Row],[Legal Entity]],$J$8:$J8,PriorIssTable[[#This Row],[Issuers Exhibit Ind]],$H$8:$H8,PriorIssTable[[#This Row],[Metal]],'Prior Plans'!BE$8:BE8,">0")>1),0,1) -> 0 | BG8: =IF(OR(PriorIssTable[[#This Row],[Issuers Exhibit Ind]]=0,'Prior Plans'!BF8={0,""},COUNTIFS($C$8:$C8,PriorIssTable[[#This Row],[Legal Entity]],$J$8:$J8,PriorIssTable[[#This Row],[Issuers Exhibit Ind]],$H$8:$H8,PriorIssTable[[#This Row],[Metal]],'Prior Plans'!BF$8:BF8,">0")>1),0,1) -> 0 | BH8: =IF(OR(PriorIssTable[[#This Row],[Issuers Exhibit Ind]]=0,'Prior Plans'!BG8={0,""},COUNTIFS($C$8:$C8,PriorIssTable[[#This Row],[Legal Entity]],$J$8:$J8,PriorIssTable[[#This Row],[Issuers Exhibit Ind]],$H$8:$H8,PriorIssTable[[#This Row],[Metal]],'Prior Plans'!BG$8:BG8,">0")>1),0,1) -> 0 | BI8: =IF(OR(PriorIssTable[[#This Row],[Issuers Exhibit Ind]]=0,'Prior Plans'!BH8={0,""},COUNTIFS($C$8:$C8,PriorIssTable[[#This Row],[Legal Entity]],$J$8:$J8,PriorIssTable[[#This Row],[Issuers Exhibit Ind]],$H$8:$H8,PriorIssTable[[#This Row],[Metal]],'Prior Plans'!BH$8:BH8,">0")>1),0,1) -> 0 | BJ8: =IF(OR(PriorIssTable[[#This Row],[Issuers Exhibit Ind]]=0,'Prior Plans'!BI8={0,""},COUNTIFS($C$8:$C8,PriorIssTable[[#This Row],[Legal Entity]],$J$8:$J8,PriorIssTable[[#This Row],[Issuers Exhibit Ind]],$H$8:$H8,PriorIssTable[[#This Row],[Metal]],'Prior Plans'!BI$8:BI8,">0")>1),0,1) -> 0 | BK8: =IF(OR(PriorIssTable[[#This Row],[Issuers Exhibit Ind]]=0,'Prior Plans'!BJ8={0,""},COUNTIFS($C$8:$C8,PriorIssTable[[#This Row],[Legal Entity]],$J$8:$J8,PriorIssTable[[#This Row],[Issuers Exhibit Ind]],$H$8:$H8,PriorIssTable[[#This Row],[Metal]],'Prior Plans'!BJ$8:BJ8,">0")>1),0,1) -> 0 | BL8: =IF(OR(PriorIssTable[[#This Row],[Issuers Exhibit Ind]]=0,'Prior Plans'!BK8={0,""},COUNTIFS($C$8:$C8,PriorIssTable[[#This Row],[Legal Entity]],$J$8:$J8,PriorIssTable[[#This Row],[Issuers Exhibit Ind]],$H$8:$H8,PriorIssTable[[#This Row],[Metal]],'Prior Plans'!BK$8:BK8,">0")>1),0,1) -> 0 | BM8: =IF(OR(PriorIssTable[[#This Row],[Issuers Exhibit Ind]]=0,'Prior Plans'!BL8={0,""},COUNTIFS($C$8:$C8,PriorIssTable[[#This Row],[Legal Entity]],$J$8:$J8,PriorIssTable[[#This Row],[Issuers Exhibit Ind]],$H$8:$H8,PriorIssTable[[#This Row],[Metal]],'Prior Plans'!BL$8:BL8,">0")>1),0,1) -> 0 | BN8: =IF(OR(PriorIssTable[[#This Row],[Issuers Exhibit Ind]]=0,'Prior Plans'!BM8={0,""},COUNTIFS($C$8:$C8,PriorIssTable[[#This Row],[Legal Entity]],$J$8:$J8,PriorIssTable[[#This Row],[Issuers Exhibit Ind]],$H$8:$H8,PriorIssTable[[#This Row],[Metal]],'Prior Plans'!BM$8:BM8,">0")>1),0,1) -> 0 | BO8: =IF(OR(PriorIssTable[[#This Row],[Issuers Exhibit Ind]]=0,'Prior Plans'!BN8={0,""},COUNTIFS($C$8:$C8,PriorIssTable[[#This Row],[Legal Entity]],$J$8:$J8,PriorIssTable[[#This Row],[Issuers Exhibit Ind]],$H$8:$H8,PriorIssTable[[#This Row],[Metal]],'Prior Plans'!BN$8:BN8,">0")>1),0,1) -> 0 | BP8: =IF(OR(PriorIssTable[[#This Row],[Issuers Exhibit Ind]]=0,'Prior Plans'!BO8={0,""},COUNTIFS($C$8:$C8,PriorIssTable[[#This Row],[Legal Entity]],$J$8:$J8,PriorIssTable[[#This Row],[Issuers Exhibit Ind]],$H$8:$H8,PriorIssTable[[#This Row],[Metal]],'Prior Plans'!BO$8:BO8,">0")>1),0,1) -> 0 | BQ8: =IF(OR(PriorIssTable[[#This Row],[Issuers Exhibit Ind]]=0,'Prior Plans'!BP8={0,""},COUNTIFS($C$8:$C8,PriorIssTable[[#This Row],[Legal Entity]],$J$8:$J8,PriorIssTable[[#This Row],[Issuers Exhibit Ind]],$H$8:$H8,PriorIssTable[[#This Row],[Metal]],'Prior Plans'!BP$8:BP8,">0")>1),0,1) -> 0 | BR8: =IF(OR(PriorIssTable[[#This Row],[Issuers Exhibit Ind]]=0,'Prior Plans'!BQ8={0,""},COUNTIFS($C$8:$C8,PriorIssTable[[#This Row],[Legal Entity]],$J$8:$J8,PriorIssTable[[#This Row],[Issuers Exhibit Ind]],$H$8:$H8,PriorIssTable[[#This Row],[Metal]],'Prior Plans'!BQ$8:BQ8,">0")>1),0,1) -> 0 | BS8: =IF(OR(PriorIssTable[[#This Row],[Issuers Exhibit Ind]]=0,'Prior Plans'!BR8={0,""},COUNTIFS($C$8:$C8,PriorIssTable[[#This Row],[Legal Entity]],$J$8:$J8,PriorIssTable[[#This Row],[Issuers Exhibit Ind]],$H$8:$H8,PriorIssTable[[#This Row],[Metal]],'Prior Plans'!BR$8:BR8,">0")>1),0,1) -> 0 | BT8: =IF(OR(PriorIssTable[[#This Row],[Issuers Exhibit Ind]]=0,'Prior Plans'!BS8={0,""},COUNTIFS($C$8:$C8,PriorIssTable[[#This Row],[Legal Entity]],$J$8:$J8,PriorIssTable[[#This Row],[Issuers Exhibit Ind]],$H$8:$H8,PriorIssTable[[#This Row],[Metal]],'Prior Plans'!BS$8:BS8,">0")>1),0,1) -> 0 | BU8: =IF(OR(PriorIssTable[[#This Row],[Issuers Exhibit Ind]]=0,'Prior Plans'!BT8={0,""},COUNTIFS($C$8:$C8,PriorIssTable[[#This Row],[Legal Entity]],$J$8:$J8,PriorIssTable[[#This Row],[Issuers Exhibit Ind]],$H$8:$H8,PriorIssTable[[#This Row],[Metal]],'Prior Plans'!BT$8:BT8,">0")>1),0,1) -> 0 | BV8: =IF(OR(PriorIssTable[[#This Row],[Issuers Exhibit Ind]]=0,'Prior Plans'!BU8={0,""},COUNTIFS($C$8:$C8,PriorIssTable[[#This Row],[Legal Entity]],$J$8:$J8,PriorIssTable[[#This Row],[Issuers Exhibit Ind]],$H$8:$H8,PriorIssTable[[#This Row],[Metal]],'Prior Plans'!BU$8:BU8,">0")>1),0,1) -> 0 | BW8: =IF(OR(PriorIssTable[[#This Row],[Issuers Exhibit Ind]]=0,'Prior Plans'!BV8={0,""},COUNTIFS($C$8:$C8,PriorIssTable[[#This Row],[Legal Entity]],$J$8:$J8,PriorIssTable[[#This Row],[Issuers Exhibit Ind]],$H$8:$H8,PriorIssTable[[#This Row],[Metal]],'Prior Plans'!BV$8:BV8,">0")>1),0,1) -> 0 | BX8: =IF(OR(PriorIssTable[[#This Row],[Issuers Exhibit Ind]]=0,'Prior Plans'!BW8={0,""},COUNTIFS($C$8:$C8,PriorIssTable[[#This Row],[Legal Entity]],$J$8:$J8,PriorIssTable[[#This Row],[Issuers Exhibit Ind]],$H$8:$H8,PriorIssTable[[#This Row],[Metal]],'Prior Plans'!BW$8:BW8,">0")>1),0,1) -> 0 | BY8: =IF(OR(PriorIssTable[[#This Row],[Issuers Exhibit Ind]]=0,'Prior Plans'!BX8={0,""},COUNTIFS($C$8:$C8,PriorIssTable[[#This Row],[Legal Entity]],$J$8:$J8,PriorIssTable[[#This Row],[Issuers Exhibit Ind]],$H$8:$H8,PriorIssTable[[#This Row],[Metal]],'Prior Plans'!BX$8:BX8,">0")>1),0,1) -> 0 | BZ8: =IF(OR(PriorIssTable[[#This Row],[Issuers Exhibit Ind]]=0,'Prior Plans'!J8=0,'Prior Plans'!J8="",COUNTIFS($C$8:$C8,PriorIssTable[[#This Row],[Legal Entity]],$J$8:$J8,PriorIssTable[[#This Row],[Issuers Exhibit Ind]],'Prior Plans'!J$8:J8,">0")>1),0,1) -> 0 | CA8: =IF(OR(PriorIssTable[[#This Row],[Issuers Exhibit Ind]]=0,'Prior Plans'!K8=0,'Prior Plans'!K8="",COUNTIFS($C$8:$C8,PriorIssTable[[#This Row],[Legal Entity]],$J$8:$J8,PriorIssTable[[#This Row],[Issuers Exhibit Ind]],'Prior Plans'!K$8:K8,">0")>1),0,1) -> 0 | CB8: =IF(OR(PriorIssTable[[#This Row],[Issuers Exhibit Ind]]=0,'Prior Plans'!L8=0,'Prior Plans'!L8="",COUNTIFS($C$8:$C8,PriorIssTable[[#This Row],[Legal Entity]],$J$8:$J8,PriorIssTable[[#This Row],[Issuers Exhibit Ind]],'Prior Plans'!L$8:L8,">0")>1),0,1) -> 0 | CC8: =IF(OR(PriorIssTable[[#This Row],[Issuers Exhibit Ind]]=0,'Prior Plans'!M8=0,'Prior Plans'!M8="",COUNTIFS($C$8:$C8,PriorIssTable[[#This Row],[Legal Entity]],$J$8:$J8,PriorIssTable[[#This Row],[Issuers Exhibit Ind]],'Prior Plans'!M$8:M8,">0")>1),0,1) -> 0 | CD8: =IF(OR(PriorIssTable[[#This Row],[Issuers Exhibit Ind]]=0,'Prior Plans'!N8=0,'Prior Plans'!N8="",COUNTIFS($C$8:$C8,PriorIssTable[[#This Row],[Legal Entity]],$J$8:$J8,PriorIssTable[[#This Row],[Issuers Exhibit Ind]],'Prior Plans'!N$8:N8,">0")>1),0,1) -> 0 | CE8: =IF(OR(PriorIssTable[[#This Row],[Issuers Exhibit Ind]]=0,'Prior Plans'!O8=0,'Prior Plans'!O8="",COUNTIFS($C$8:$C8,PriorIssTable[[#This Row],[Legal Entity]],$J$8:$J8,PriorIssTable[[#This Row],[Issuers Exhibit Ind]],'Prior Plans'!O$8:O8,">0")>1),0,1) -> 0 | CF8: =IF(OR(PriorIssTable[[#This Row],[Issuers Exhibit Ind]]=0,'Prior Plans'!P8=0,'Prior Plans'!P8="",COUNTIFS($C$8:$C8,PriorIssTable[[#This Row],[Legal Entity]],$J$8:$J8,PriorIssTable[[#This Row],[Issuers Exhibit Ind]],'Prior Plans'!P$8:P8,">0")>1),0,1) -> 0 | CG8: =IF(OR(PriorIssTable[[#This Row],[Issuers Exhibit Ind]]=0,'Prior Plans'!Q8=0,'Prior Plans'!Q8="",COUNTIFS($C$8:$C8,PriorIssTable[[#This Row],[Legal Entity]],$J$8:$J8,PriorIssTable[[#This Row],[Issuers Exhibit Ind]],'Prior Plans'!Q$8:Q8,">0")>1),0,1) -> 0 | CH8: =IF(OR(PriorIssTable[[#This Row],[Issuers Exhibit Ind]]=0,'Prior Plans'!R8=0,'Prior Plans'!R8="",COUNTIFS($C$8:$C8,PriorIssTable[[#This Row],[Legal Entity]],$J$8:$J8,PriorIssTable[[#This Row],[Issuers Exhibit Ind]],'Prior Plans'!R$8:R8,">0")>1),0,1) -> 0 | CI8: =IF(OR(PriorIssTable[[#This Row],[Issuers Exhibit Ind]]=0,'Prior Plans'!S8=0,'Prior Plans'!S8="",COUNTIFS($C$8:$C8,PriorIssTable[[#This Row],[Legal Entity]],$J$8:$J8,PriorIssTable[[#This Row],[Issuers Exhibit Ind]],'Prior Plans'!S$8:S8,">0")>1),0,1) -> 0 | CJ8: =IF(OR(PriorIssTable[[#This Row],[Issuers Exhibit Ind]]=0,'Prior Plans'!T8=0,'Prior Plans'!T8="",COUNTIFS($C$8:$C8,PriorIssTable[[#This Row],[Legal Entity]],$J$8:$J8,PriorIssTable[[#This Row],[Issuers Exhibit Ind]],'Prior Plans'!T$8:T8,">0")>1),0,1) -> 0 | CK8: =IF(OR(PriorIssTable[[#This Row],[Issuers Exhibit Ind]]=0,'Prior Plans'!U8=0,'Prior Plans'!U8="",COUNTIFS($C$8:$C8,PriorIssTable[[#This Row],[Legal Entity]],$J$8:$J8,PriorIssTable[[#This Row],[Issuers Exhibit Ind]],'Prior Plans'!U$8:U8,">0")>1),0,1) -> 0 | CL8: =IF(OR(PriorIssTable[[#This Row],[Issuers Exhibit Ind]]=0,'Prior Plans'!V8=0,'Prior Plans'!V8="",COUNTIFS($C$8:$C8,PriorIssTable[[#This Row],[Legal Entity]],$J$8:$J8,PriorIssTable[[#This Row],[Issuers Exhibit Ind]],'Prior Plans'!V$8:V8,">0")>1),0,1) -> 0 | CM8: =IF(OR(PriorIssTable[[#This Row],[Issuers Exhibit Ind]]=0,'Prior Plans'!W8=0,'Prior Plans'!W8="",COUNTIFS($C$8:$C8,PriorIssTable[[#This Row],[Legal Entity]],$J$8:$J8,PriorIssTable[[#This Row],[Issuers Exhibit Ind]],'Prior Plans'!W$8:W8,">0")>1),0,1) -> 0 | CN8: =IF(OR(PriorIssTable[[#This Row],[Issuers Exhibit Ind]]=0,'Prior Plans'!X8=0,'Prior Plans'!X8="",COUNTIFS($C$8:$C8,PriorIssTable[[#This Row],[Legal Entity]],$J$8:$J8,PriorIssTable[[#This Row],[Issuers Exhibit Ind]],'Prior Plans'!X$8:X8,">0")>1),0,1) -> 0 | CO8: =IF(OR(PriorIssTable[[#This Row],[Issuers Exhibit Ind]]=0,'Prior Plans'!Y8=0,'Prior Plans'!Y8="",COUNTIFS($C$8:$C8,PriorIssTable[[#This Row],[Legal Entity]],$J$8:$J8,PriorIssTable[[#This Row],[Issuers Exhibit Ind]],'Prior Plans'!Y$8:Y8,">0")>1),0,1) -> 0 | CP8: =IF(OR(PriorIssTable[[#This Row],[Issuers Exhibit Ind]]=0,'Prior Plans'!Z8=0,'Prior Plans'!Z8="",COUNTIFS($C$8:$C8,PriorIssTable[[#This Row],[Legal Entity]],$J$8:$J8,PriorIssTable[[#This Row],[Issuers Exhibit Ind]],'Prior Plans'!Z$8:Z8,">0")>1),0,1) -> 0 | CQ8: =IF(OR(PriorIssTable[[#This Row],[Issuers Exhibit Ind]]=0,'Prior Plans'!AA8=0,'Prior Plans'!AA8="",COUNTIFS($C$8:$C8,PriorIssTable[[#This Row],[Legal Entity]],$J$8:$J8,PriorIssTable[[#This Row],[Issuers Exhibit Ind]],'Prior Plans'!AA$8:AA8,">0")>1),0,1) -> 0 | CR8: =IF(OR(PriorIssTable[[#This Row],[Issuers Exhibit Ind]]=0,'Prior Plans'!AB8=0,'Prior Plans'!AB8="",COUNTIFS($C$8:$C8,PriorIssTable[[#This Row],[Legal Entity]],$J$8:$J8,PriorIssTable[[#This Row],[Issuers Exhibit Ind]],'Prior Plans'!AB$8:AB8,">0")>1),0,1) -> 0 | CS8: =IF(OR(PriorIssTable[[#This Row],[Issuers Exhibit Ind]]=0,'Prior Plans'!AC8=0,'Prior Plans'!AC8="",COUNTIFS($C$8:$C8,PriorIssTable[[#This Row],[Legal Entity]],$J$8:$J8,PriorIssTable[[#This Row],[Issuers Exhibit Ind]],'Prior Plans'!AC$8:AC8,">0")>1),0,1) -> 0 | CT8: =IF(OR(PriorIssTable[[#This Row],[Issuers Exhibit Ind]]=0,'Prior Plans'!AD8=0,'Prior Plans'!AD8="",COUNTIFS($C$8:$C8,PriorIssTable[[#This Row],[Legal Entity]],$J$8:$J8,PriorIssTable[[#This Row],[Issuers Exhibit Ind]],'Prior Plans'!AD$8:AD8,">0")>1),0,1) -> 0 | CU8: =IF(OR(PriorIssTable[[#This Row],[Issuers Exhibit Ind]]=0,'Prior Plans'!AE8=0,'Prior Plans'!AE8="",COUNTIFS($C$8:$C8,PriorIssTable[[#This Row],[Legal Entity]],$J$8:$J8,PriorIssTable[[#This Row],[Issuers Exhibit Ind]],'Prior Plans'!AE$8:AE8,">0")>1),0,1) -> 0 | CV8: =IF(OR(PriorIssTable[[#This Row],[Issuers Exhibit Ind]]=0,'Prior Plans'!AF8=0,'Prior Plans'!AF8="",COUNTIFS($C$8:$C8,PriorIssTable[[#This Row],[Legal Entity]],$J$8:$J8,PriorIssTable[[#This Row],[Issuers Exhibit Ind]],'Prior Plans'!AF$8:AF8,">0")>1),0,1) -> 0 | CW8: =IF(OR(PriorIssTable[[#This Row],[Issuers Exhibit Ind]]=0,'Prior Plans'!AG8=0,'Prior Plans'!AG8="",COUNTIFS($C$8:$C8,PriorIssTable[[#This Row],[Legal Entity]],$J$8:$J8,PriorIssTable[[#This Row],[Issuers Exhibit Ind]],'Prior Plans'!AG$8:AG8,">0")>1),0,1) -> 0 | CX8: =IF(OR(PriorIssTable[[#This Row],[Issuers Exhibit Ind]]=0,'Prior Plans'!AH8=0,'Prior Plans'!AH8="",COUNTIFS($C$8:$C8,PriorIssTable[[#This Row],[Legal Entity]],$J$8:$J8,PriorIssTable[[#This Row],[Issuers Exhibit Ind]],'Prior Plans'!AH$8:AH8,">0")>1),0,1) -> 0 | CY8: =IF(OR(PriorIssTable[[#This Row],[Issuers Exhibit Ind]]=0,'Prior Plans'!AI8=0,'Prior Plans'!AI8="",COUNTIFS($C$8:$C8,PriorIssTable[[#This Row],[Legal Entity]],$J$8:$J8,PriorIssTable[[#This Row],[Issuers Exhibit Ind]],'Prior Plans'!AI$8:AI8,">0")>1),0,1) -> 0 | CZ8: =IF(OR(PriorIssTable[[#This Row],[Issuers Exhibit Ind]]=0,'Prior Plans'!AJ8=0,'Prior Plans'!AJ8="",COUNTIFS($C$8:$C8,PriorIssTable[[#This Row],[Legal Entity]],$J$8:$J8,PriorIssTable[[#This Row],[Issuers Exhibit Ind]],'Prior Plans'!AJ$8:AJ8,">0")>1),0,1) -> 0 | DA8: =IF(OR(PriorIssTable[[#This Row],[Issuers Exhibit Ind]]=0,'Prior Plans'!AK8=0,'Prior Plans'!AK8="",COUNTIFS($C$8:$C8,PriorIssTable[[#This Row],[Legal Entity]],$J$8:$J8,PriorIssTable[[#This Row],[Issuers Exhibit Ind]],'Prior Plans'!AK$8:AK8,">0")>1),0,1) -> 0 | DB8: =IF(OR(PriorIssTable[[#This Row],[Issuers Exhibit Ind]]=0,'Prior Plans'!AL8=0,'Prior Plans'!AL8="",COUNTIFS($C$8:$C8,PriorIssTable[[#This Row],[Legal Entity]],$J$8:$J8,PriorIssTable[[#This Row],[Issuers Exhibit Ind]],'Prior Plans'!AL$8:AL8,">0")>1),0,1) -> 0 | DC8: =IF(OR(PriorIssTable[[#This Row],[Issuers Exhibit Ind]]=0,'Prior Plans'!AM8=0,'Prior Plans'!AM8="",COUNTIFS($C$8:$C8,PriorIssTable[[#This Row],[Legal Entity]],$J$8:$J8,PriorIssTable[[#This Row],[Issuers Exhibit Ind]],'Prior Plans'!AM$8:AM8,">0")>1),0,1) -> 0 | DD8: =IF(OR(PriorIssTable[[#This Row],[Issuers Exhibit Ind]]=0,'Prior Plans'!AN8=0,'Prior Plans'!AN8="",COUNTIFS($C$8:$C8,PriorIssTable[[#This Row],[Legal Entity]],$J$8:$J8,PriorIssTable[[#This Row],[Issuers Exhibit Ind]],'Prior Plans'!AN$8:AN8,">0")>1),0,1) -> 0 | DE8: =IF(OR(PriorIssTable[[#This Row],[Issuers Exhibit Ind]]=0,'Prior Plans'!AO8=0,'Prior Plans'!AO8="",COUNTIFS($C$8:$C8,PriorIssTable[[#This Row],[Legal Entity]],$J$8:$J8,PriorIssTable[[#This Row],[Issuers Exhibit Ind]],'Prior Plans'!AO$8:AO8,">0")>1),0,1) -> 0 | DF8: =IF(OR(PriorIssTable[[#This Row],[Issuers Exhibit Ind]]=0,'Prior Plans'!AP8=0,'Prior Plans'!AP8="",COUNTIFS($C$8:$C8,PriorIssTable[[#This Row],[Legal Entity]],$J$8:$J8,PriorIssTable[[#This Row],[Issuers Exhibit Ind]],'Prior Plans'!AP$8:AP8,">0")>1),0,1) -> 0 | DG8: =IF(OR(PriorIssTable[[#This Row],[Issuers Exhibit Ind]]=0,'Prior Plans'!AQ8=0,'Prior Plans'!AQ8="",COUNTIFS($C$8:$C8,PriorIssTable[[#This Row],[Legal Entity]],$J$8:$J8,PriorIssTable[[#This Row],[Issuers Exhibit Ind]],'Prior Plans'!AQ$8:AQ8,">0")>1),0,1) -> 0 | DH8: =IF(OR(PriorIssTable[[#This Row],[Issuers Exhibit Ind]]=0,'Prior Plans'!AR8=0,'Prior Plans'!AR8="",COUNTIFS($C$8:$C8,PriorIssTable[[#This Row],[Legal Entity]],$J$8:$J8,PriorIssTable[[#This Row],[Issuers Exhibit Ind]],'Prior Plans'!AR$8:AR8,">0")>1),0,1) -> 0 | DI8: =IF(OR(PriorIssTable[[#This Row],[Issuers Exhibit Ind]]=0,'Prior Plans'!AS8=0,'Prior Plans'!AS8="",COUNTIFS($C$8:$C8,PriorIssTable[[#This Row],[Legal Entity]],$J$8:$J8,PriorIssTable[[#This Row],[Issuers Exhibit Ind]],'Prior Plans'!AS$8:AS8,">0")>1),0,1) -> 0 | DJ8: =IF(OR(PriorIssTable[[#This Row],[Issuers Exhibit Ind]]=0,'Prior Plans'!AT8=0,'Prior Plans'!AT8="",COUNTIFS($C$8:$C8,PriorIssTable[[#This Row],[Legal Entity]],$J$8:$J8,PriorIssTable[[#This Row],[Issuers Exhibit Ind]],'Prior Plans'!AT$8:AT8,">0")>1),0,1) -> 0 | DK8: =IF(OR(PriorIssTable[[#This Row],[Issuers Exhibit Ind]]=0,'Prior Plans'!AU8=0,'Prior Plans'!AU8="",COUNTIFS($C$8:$C8,PriorIssTable[[#This Row],[Legal Entity]],$J$8:$J8,PriorIssTable[[#This Row],[Issuers Exhibit Ind]],'Prior Plans'!AU$8:AU8,">0")>1),0,1) -> 0 | DL8: =IF(OR(PriorIssTable[[#This Row],[Issuers Exhibit Ind]]=0,'Prior Plans'!AV8=0,'Prior Plans'!AV8="",COUNTIFS($C$8:$C8,PriorIssTable[[#This Row],[Legal Entity]],$J$8:$J8,PriorIssTable[[#This Row],[Issuers Exhibit Ind]],'Prior Plans'!AV$8:AV8,">0")>1),0,1) -> 0 | DM8: =IF(OR(PriorIssTable[[#This Row],[Issuers Exhibit Ind]]=0,'Prior Plans'!AW8=0,'Prior Plans'!AW8="",COUNTIFS($C$8:$C8,PriorIssTable[[#This Row],[Legal Entity]],$J$8:$J8,PriorIssTable[[#This Row],[Issuers Exhibit Ind]],'Prior Plans'!AW$8:AW8,">0")>1),0,1) -> 0 | DN8: =IF(OR(PriorIssTable[[#This Row],[Issuers Exhibit Ind]]=0,'Prior Plans'!AX8=0,'Prior Plans'!AX8="",COUNTIFS($C$8:$C8,PriorIssTable[[#This Row],[Legal Entity]],$J$8:$J8,PriorIssTable[[#This Row],[Issuers Exhibit Ind]],'Prior Plans'!AX$8:AX8,">0")>1),0,1) -> 0 | DO8: =IF(OR(PriorIssTable[[#This Row],[Issuers Exhibit Ind]]=0,'Prior Plans'!AY8=0,'Prior Plans'!AY8="",COUNTIFS($C$8:$C8,PriorIssTable[[#This Row],[Legal Entity]],$J$8:$J8,PriorIssTable[[#This Row],[Issuers Exhibit Ind]],'Prior Plans'!AY$8:AY8,">0")>1),0,1) -> 0 | DP8: =IF(OR(PriorIssTable[[#This Row],[Issuers Exhibit Ind]]=0,'Prior Plans'!AZ8=0,'Prior Plans'!AZ8="",COUNTIFS($C$8:$C8,PriorIssTable[[#This Row],[Legal Entity]],$J$8:$J8,PriorIssTable[[#This Row],[Issuers Exhibit Ind]],'Prior Plans'!AZ$8:AZ8,">0")>1),0,1) -> 0 | DQ8: =IF(OR(PriorIssTable[[#This Row],[Issuers Exhibit Ind]]=0,'Prior Plans'!BA8=0,'Prior Plans'!BA8="",COUNTIFS($C$8:$C8,PriorIssTable[[#This Row],[Legal Entity]],$J$8:$J8,PriorIssTable[[#This Row],[Issuers Exhibit Ind]],'Prior Plans'!BA$8:BA8,">0")>1),0,1) -> 0 | DR8: =IF(OR(PriorIssTable[[#This Row],[Issuers Exhibit Ind]]=0,'Prior Plans'!BB8=0,'Prior Plans'!BB8="",COUNTIFS($C$8:$C8,PriorIssTable[[#This Row],[Legal Entity]],$J$8:$J8,PriorIssTable[[#This Row],[Issuers Exhibit Ind]],'Prior Plans'!BB$8:BB8,">0")>1),0,1) -> 0 | DS8: =IF(OR(PriorIssTable[[#This Row],[Issuers Exhibit Ind]]=0,'Prior Plans'!BC8=0,'Prior Plans'!BC8="",COUNTIFS($C$8:$C8,PriorIssTable[[#This Row],[Legal Entity]],$J$8:$J8,PriorIssTable[[#This Row],[Issuers Exhibit Ind]],'Prior Plans'!BC$8:BC8,">0")>1),0,1) -> 0 | DT8: =IF(OR(PriorIssTable[[#This Row],[Issuers Exhibit Ind]]=0,'Prior Plans'!BD8=0,'Prior Plans'!BD8="",COUNTIFS($C$8:$C8,PriorIssTable[[#This Row],[Legal Entity]],$J$8:$J8,PriorIssTable[[#This Row],[Issuers Exhibit Ind]],'Prior Plans'!BD$8:BD8,">0")>1),0,1) -> 0 | DU8: =IF(OR(PriorIssTable[[#This Row],[Issuers Exhibit Ind]]=0,'Prior Plans'!BE8=0,'Prior Plans'!BE8="",COUNTIFS($C$8:$C8,PriorIssTable[[#This Row],[Legal Entity]],$J$8:$J8,PriorIssTable[[#This Row],[Issuers Exhibit Ind]],'Prior Plans'!BE$8:BE8,">0")>1),0,1) -> 0 | DV8: =IF(OR(PriorIssTable[[#This Row],[Issuers Exhibit Ind]]=0,'Prior Plans'!BF8=0,'Prior Plans'!BF8="",COUNTIFS($C$8:$C8,PriorIssTable[[#This Row],[Legal Entity]],$J$8:$J8,PriorIssTable[[#This Row],[Issuers Exhibit Ind]],'Prior Plans'!BF$8:BF8,">0")>1),0,1) -> 0 | DW8: =IF(OR(PriorIssTable[[#This Row],[Issuers Exhibit Ind]]=0,'Prior Plans'!BG8=0,'Prior Plans'!BG8="",COUNTIFS($C$8:$C8,PriorIssTable[[#This Row],[Legal Entity]],$J$8:$J8,PriorIssTable[[#This Row],[Issuers Exhibit Ind]],'Prior Plans'!BG$8:BG8,">0")>1),0,1) -> 0 | DX8: =IF(OR(PriorIssTable[[#This Row],[Issuers Exhibit Ind]]=0,'Prior Plans'!BH8=0,'Prior Plans'!BH8="",COUNTIFS($C$8:$C8,PriorIssTable[[#This Row],[Legal Entity]],$J$8:$J8,PriorIssTable[[#This Row],[Issuers Exhibit Ind]],'Prior Plans'!BH$8:BH8,">0")>1),0,1) -> 0 | DY8: =IF(OR(PriorIssTable[[#This Row],[Issuers Exhibit Ind]]=0,'Prior Plans'!BI8=0,'Prior Plans'!BI8="",COUNTIFS($C$8:$C8,PriorIssTable[[#This Row],[Legal Entity]],$J$8:$J8,PriorIssTable[[#This Row],[Issuers Exhibit Ind]],'Prior Plans'!BI$8:BI8,">0")>1),0,1) -> 0 | DZ8: =IF(OR(PriorIssTable[[#This Row],[Issuers Exhibit Ind]]=0,'Prior Plans'!BJ8=0,'Prior Plans'!BJ8="",COUNTIFS($C$8:$C8,PriorIssTable[[#This Row],[Legal Entity]],$J$8:$J8,PriorIssTable[[#This Row],[Issuers Exhibit Ind]],'Prior Plans'!BJ$8:BJ8,">0")>1),0,1) -> 0 | EA8: =IF(OR(PriorIssTable[[#This Row],[Issuers Exhibit Ind]]=0,'Prior Plans'!BK8=0,'Prior Plans'!BK8="",COUNTIFS($C$8:$C8,PriorIssTable[[#This Row],[Legal Entity]],$J$8:$J8,PriorIssTable[[#This Row],[Issuers Exhibit Ind]],'Prior Plans'!BK$8:BK8,">0")>1),0,1) -> 0 | EB8: =IF(OR(PriorIssTable[[#This Row],[Issuers Exhibit Ind]]=0,'Prior Plans'!BL8=0,'Prior Plans'!BL8="",COUNTIFS($C$8:$C8,PriorIssTable[[#This Row],[Legal Entity]],$J$8:$J8,PriorIssTable[[#This Row],[Issuers Exhibit Ind]],'Prior Plans'!BL$8:BL8,">0")>1),0,1) -> 0 | EC8: =IF(OR(PriorIssTable[[#This Row],[Issuers Exhibit Ind]]=0,'Prior Plans'!BM8=0,'Prior Plans'!BM8="",COUNTIFS($C$8:$C8,PriorIssTable[[#This Row],[Legal Entity]],$J$8:$J8,PriorIssTable[[#This Row],[Issuers Exhibit Ind]],'Prior Plans'!BM$8:BM8,">0")>1),0,1) -> 0 | ED8: =IF(OR(PriorIssTable[[#This Row],[Issuers Exhibit Ind]]=0,'Prior Plans'!BN8=0,'Prior Plans'!BN8="",COUNTIFS($C$8:$C8,PriorIssTable[[#This Row],[Legal Entity]],$J$8:$J8,PriorIssTable[[#This Row],[Issuers Exhibit Ind]],'Prior Plans'!BN$8:BN8,">0")>1),0,1) -> 0 | EE8: =IF(OR(PriorIssTable[[#This Row],[Issuers Exhibit Ind]]=0,'Prior Plans'!BO8=0,'Prior Plans'!BO8="",COUNTIFS($C$8:$C8,PriorIssTable[[#This Row],[Legal Entity]],$J$8:$J8,PriorIssTable[[#This Row],[Issuers Exhibit Ind]],'Prior Plans'!BO$8:BO8,">0")>1),0,1) -> 0 | EF8: =IF(OR(PriorIssTable[[#This Row],[Issuers Exhibit Ind]]=0,'Prior Plans'!BP8=0,'Prior Plans'!BP8="",COUNTIFS($C$8:$C8,PriorIssTable[[#This Row],[Legal Entity]],$J$8:$J8,PriorIssTable[[#This Row],[Issuers Exhibit Ind]],'Prior Plans'!BP$8:BP8,">0")>1),0,1) -> 0 | EG8: =IF(OR(PriorIssTable[[#This Row],[Issuers Exhibit Ind]]=0,'Prior Plans'!BQ8=0,'Prior Plans'!BQ8="",COUNTIFS($C$8:$C8,PriorIssTable[[#This Row],[Legal Entity]],$J$8:$J8,PriorIssTable[[#This Row],[Issuers Exhibit Ind]],'Prior Plans'!BQ$8:BQ8,">0")>1),0,1) -> 0 | EH8: =IF(OR(PriorIssTable[[#This Row],[Issuers Exhibit Ind]]=0,'Prior Plans'!BR8=0,'Prior Plans'!BR8="",COUNTIFS($C$8:$C8,PriorIssTable[[#This Row],[Legal Entity]],$J$8:$J8,PriorIssTable[[#This Row],[Issuers Exhibit Ind]],'Prior Plans'!BR$8:BR8,">0")>1),0,1) -> 0 | EI8: =IF(OR(PriorIssTable[[#This Row],[Issuers Exhibit Ind]]=0,'Prior Plans'!BS8=0,'Prior Plans'!BS8="",COUNTIFS($C$8:$C8,PriorIssTable[[#This Row],[Legal Entity]],$J$8:$J8,PriorIssTable[[#This Row],[Issuers Exhibit Ind]],'Prior Plans'!BS$8:BS8,">0")>1),0,1) -> 0 | EJ8: =IF(OR(PriorIssTable[[#This Row],[Issuers Exhibit Ind]]=0,'Prior Plans'!BT8=0,'Prior Plans'!BT8="",COUNTIFS($C$8:$C8,PriorIssTable[[#This Row],[Legal Entity]],$J$8:$J8,PriorIssTable[[#This Row],[Issuers Exhibit Ind]],'Prior Plans'!BT$8:BT8,">0")>1),0,1) -> 0 | EK8: =IF(OR(PriorIssTable[[#This Row],[Issuers Exhibit Ind]]=0,'Prior Plans'!BU8=0,'Prior Plans'!BU8="",COUNTIFS($C$8:$C8,PriorIssTable[[#This Row],[Legal Entity]],$J$8:$J8,PriorIssTable[[#This Row],[Issuers Exhibit Ind]],'Prior Plans'!BU$8:BU8,">0")>1),0,1) -> 0 | EL8: =IF(OR(PriorIssTable[[#This Row],[Issuers Exhibit Ind]]=0,'Prior Plans'!BV8=0,'Prior Plans'!BV8="",COUNTIFS($C$8:$C8,PriorIssTable[[#This Row],[Legal Entity]],$J$8:$J8,PriorIssTable[[#This Row],[Issuers Exhibit Ind]],'Prior Plans'!BV$8:BV8,">0")>1),0,1) -> 0 | EM8: =IF(OR(PriorIssTable[[#This Row],[Issuers Exhibit Ind]]=0,'Prior Plans'!BW8=0,'Prior Plans'!BW8="",COUNTIFS($C$8:$C8,PriorIssTable[[#This Row],[Legal Entity]],$J$8:$J8,PriorIssTable[[#This Row],[Issuers Exhibit Ind]],'Prior Plans'!BW$8:BW8,">0")>1),0,1) -> 0 | EN8: =IF(OR(PriorIssTable[[#This Row],[Issuers Exhibit Ind]]=0,'Prior Plans'!BX8=0,'Prior Plans'!BX8="",COUNTIFS($C$8:$C8,PriorIssTable[[#This Row],[Legal Entity]],$J$8:$J8,PriorIssTable[[#This Row],[Issuers Exhibit Ind]],'Prior Plans'!BX$8:BX8,">0")>1),0,1) -> 0
B9: Aetna | C9: Aetna | D9: Small Group | E9: 64844PA0070142 | F9: PA Silver HMO 5000 80% | G9: HMO | H9: Silver | I9: Off | J9: =IF(PriorIssTable[[#This Row],[Market]]<>Iss_Cnty_Mkt,0,IF(OR(Iss_Cnty_Exch="On/Off",PriorIssTable[[#This Row],[On/Off]]="On/Off"),1,IF(PriorIssTable[[#This Row],[On/Off]]<>Iss_Cnty_Exch,0,1))) -> 0 | K9: =IF(OR(PriorIssTable[[#This Row],[Issuers Exhibit Ind]]=0,'Prior Plans'!J9={0,""},COUNTIFS($C$8:$C9,PriorIssTable[[#This Row],[Legal Entity]],$J$8:$J9,PriorIssTable[[#This Row],[Issuers Exhibit Ind]],$H$8:$H9,PriorIssTable[[#This Row],[Metal]],'Prior Plans'!J$8:J9,">0")>1),0,1) -> 0 | L9: =IF(OR(PriorIssTable[[#This Row],[Issuers Exhibit Ind]]=0,'Prior Plans'!K9={0,""},COUNTIFS($C$8:$C9,PriorIssTable[[#This Row],[Legal Entity]],$J$8:$J9,PriorIssTable[[#This Row],[Issuers Exhibit Ind]],$H$8:$H9,PriorIssTable[[#This Row],[Metal]],'Prior Plans'!K$8:K9,">0")>1),0,1) -> 0 | M9: =IF(OR(PriorIssTable[[#This Row],[Issuers Exhibit Ind]]=0,'Prior Plans'!L9={0,""},COUNTIFS($C$8:$C9,PriorIssTable[[#This Row],[Legal Entity]],$J$8:$J9,PriorIssTable[[#This Row],[Issuers Exhibit Ind]],$H$8:$H9,PriorIssTable[[#This Row],[Metal]],'Prior Plans'!L$8:L9,">0")>1),0,1) -> 0 | N9: =IF(OR(PriorIssTable[[#This Row],[Issuers Exhibit Ind]]=0,'Prior Plans'!M9={0,""},COUNTIFS($C$8:$C9,PriorIssTable[[#This Row],[Legal Entity]],$J$8:$J9,PriorIssTable[[#This Row],[Issuers Exhibit Ind]],$H$8:$H9,PriorIssTable[[#This Row],[Metal]],'Prior Plans'!M$8:M9,">0")>1),0,1) -> 0 | O9: =IF(OR(PriorIssTable[[#This Row],[Issuers Exhibit Ind]]=0,'Prior Plans'!N9={0,""},COUNTIFS($C$8:$C9,PriorIssTable[[#This Row],[Legal Entity]],$J$8:$J9,PriorIssTable[[#This Row],[Issuers Exhibit Ind]],$H$8:$H9,PriorIssTable[[#This Row],[Metal]],'Prior Plans'!N$8:N9,">0")>1),0,1) -> 0 | P9: =IF(OR(PriorIssTable[[#This Row],[Issuers Exhibit Ind]]=0,'Prior Plans'!O9={0,""},COUNTIFS($C$8:$C9,PriorIssTable[[#This Row],[Legal Entity]],$J$8:$J9,PriorIssTable[[#This Row],[Issuers Exhibit Ind]],$H$8:$H9,PriorIssTable[[#This Row],[Metal]],'Prior Plans'!O$8:O9,">0")>1),0,1) -> 0 | Q9: =IF(OR(PriorIssTable[[#This Row],[Issuers Exhibit Ind]]=0,'Prior Plans'!P9={0,""},COUNTIFS($C$8:$C9,PriorIssTable[[#This Row],[Legal Entity]],$J$8:$J9,PriorIssTable[[#This Row],[Issuers Exhibit Ind]],$H$8:$H9,PriorIssTable[[#This Row],[Metal]],'Prior Plans'!P$8:P9,">0")>1),0,1) -> 0 | R9: =IF(OR(PriorIssTable[[#This Row],[Issuers Exhibit Ind]]=0,'Prior Plans'!Q9={0,""},COUNTIFS($C$8:$C9,PriorIssTable[[#This Row],[Legal Entity]],$J$8:$J9,PriorIssTable[[#This Row],[Issuers Exhibit Ind]],$H$8:$H9,PriorIssTable[[#This Row],[Metal]],'Prior Plans'!Q$8:Q9,">0")>1),0,1) -> 0 | S9: =IF(OR(PriorIssTable[[#This Row],[Issuers Exhibit Ind]]=0,'Prior Plans'!R9={0,""},COUNTIFS($C$8:$C9,PriorIssTable[[#This Row],[Legal Entity]],$J$8:$J9,PriorIssTable[[#This Row],[Issuers Exhibit Ind]],$H$8:$H9,PriorIssTable[[#This Row],[Metal]],'Prior Plans'!R$8:R9,">0")>1),0,1) -> 0 | T9: =IF(OR(PriorIssTable[[#This Row],[Issuers Exhibit Ind]]=0,'Prior Plans'!S9={0,""},COUNTIFS($C$8:$C9,PriorIssTable[[#This Row],[Legal Entity]],$J$8:$J9,PriorIssTable[[#This Row],[Issuers Exhibit Ind]],$H$8:$H9,PriorIssTable[[#This Row],[Metal]],'Prior Plans'!S$8:S9,">0")>1),0,1) -> 0 | U9: =IF(OR(PriorIssTable[[#This Row],[Issuers Exhibit Ind]]=0,'Prior Plans'!T9={0,""},COUNTIFS($C$8:$C9,PriorIssTable[[#This Row],[Legal Entity]],$J$8:$J9,PriorIssTable[[#This Row],[Issuers Exhibit Ind]],$H$8:$H9,PriorIssTable[[#This Row],[Metal]],'Prior Plans'!T$8:T9,">0")>1),0,1) -> 0 | V9: =IF(OR(PriorIssTable[[#This Row],[Issuers Exhibit Ind]]=0,'Prior Plans'!U9={0,""},COUNTIFS($C$8:$C9,PriorIssTable[[#This Row],[Legal Entity]],$J$8:$J9,PriorIssTable[[#This Row],[Issuers Exhibit Ind]],$H$8:$H9,PriorIssTable[[#This Row],[Metal]],'Prior Plans'!U$8:U9,">0")>1),0,1) -> 0 | W9: =IF(OR(PriorIssTable[[#This Row],[Issuers Exhibit Ind]]=0,'Prior Plans'!V9={0,""},COUNTIFS($C$8:$C9,PriorIssTable[[#This Row],[Legal Entity]],$J$8:$J9,PriorIssTable[[#This Row],[Issuers Exhibit Ind]],$H$8:$H9,PriorIssTable[[#This Row],[Metal]],'Prior Plans'!V$8:V9,">0")>1),0,1) -> 0 | X9: =IF(OR(PriorIssTable[[#This Row],[Issuers Exhibit Ind]]=0,'Prior Plans'!W9={0,""},COUNTIFS($C$8:$C9,PriorIssTable[[#This Row],[Legal Entity]],$J$8:$J9,PriorIssTable[[#This Row],[Issuers Exhibit Ind]],$H$8:$H9,PriorIssTable[[#This Row],[Metal]],'Prior Plans'!W$8:W9,">0")>1),0,1) -> 0 | Y9: =IF(OR(PriorIssTable[[#This Row],[Issuers Exhibit Ind]]=0,'Prior Plans'!X9={0,""},COUNTIFS($C$8:$C9,PriorIssTable[[#This Row],[Legal Entity]],$J$8:$J9,PriorIssTable[[#This Row],[Issuers Exhibit Ind]],$H$8:$H9,PriorIssTable[[#This Row],[Metal]],'Prior Plans'!X$8:X9,">0")>1),0,1) -> 0 | Z9: =IF(OR(PriorIssTable[[#This Row],[Issuers Exhibit Ind]]=0,'Prior Plans'!Y9={0,""},COUNTIFS($C$8:$C9,PriorIssTable[[#This Row],[Legal Entity]],$J$8:$J9,PriorIssTable[[#This Row],[Issuers Exhibit Ind]],$H$8:$H9,PriorIssTable[[#This Row],[Metal]],'Prior Plans'!Y$8:Y9,">0")>1),0,1) -> 0 | AA9: =IF(OR(PriorIssTable[[#This Row],[Issuers Exhibit Ind]]=0,'Prior Plans'!Z9={0,""},COUNTIFS($C$8:$C9,PriorIssTable[[#This Row],[Legal Entity]],$J$8:$J9,PriorIssTable[[#This Row],[Issuers Exhibit Ind]],$H$8:$H9,PriorIssTable[[#This Row],[Metal]],'Prior Plans'!Z$8:Z9,">0")>1),0,1) -> 0 | AB9: =IF(OR(PriorIssTable[[#This Row],[Issuers Exhibit Ind]]=0,'Prior Plans'!AA9={0,""},COUNTIFS($C$8:$C9,PriorIssTable[[#This Row],[Legal Entity]],$J$8:$J9,PriorIssTable[[#This Row],[Issuers Exhibit Ind]],$H$8:$H9,PriorIssTable[[#This Row],[Metal]],'Prior Plans'!AA$8:AA9,">0")>1),0,1) -> 0 | AC9: =IF(OR(PriorIssTable[[#This Row],[Issuers Exhibit Ind]]=0,'Prior Plans'!AB9={0,""},COUNTIFS($C$8:$C9,PriorIssTable[[#This Row],[Legal Entity]],$J$8:$J9,PriorIssTable[[#This Row],[Issuers Exhibit Ind]],$H$8:$H9,PriorIssTable[[#This Row],[Metal]],'Prior Plans'!AB$8:AB9,">0")>1),0,1) -> 0 | AD9: =IF(OR(PriorIssTable[[#This Row],[Issuers Exhibit Ind]]=0,'Prior Plans'!AC9={0,""},COUNTIFS($C$8:$C9,PriorIssTable[[#This Row],[Legal Entity]],$J$8:$J9,PriorIssTable[[#This Row],[Issuers Exhibit Ind]],$H$8:$H9,PriorIssTable[[#This Row],[Metal]],'Prior Plans'!AC$8:AC9,">0")>1),0,1) -> 0 | AE9: =IF(OR(PriorIssTable[[#This Row],[Issuers Exhibit Ind]]=0,'Prior Plans'!AD9={0,""},COUNTIFS($C$8:$C9,PriorIssTable[[#This Row],[Legal Entity]],$J$8:$J9,PriorIssTable[[#This Row],[Issuers Exhibit Ind]],$H$8:$H9,PriorIssTable[[#This Row],[Metal]],'Prior Plans'!AD$8:AD9,">0")>1),0,1) -> 0 | AF9: =IF(OR(PriorIssTable[[#This Row],[Issuers Exhibit Ind]]=0,'Prior Plans'!AE9={0,""},COUNTIFS($C$8:$C9,PriorIssTable[[#This Row],[Legal Entity]],$J$8:$J9,PriorIssTable[[#This Row],[Issuers Exhibit Ind]],$H$8:$H9,PriorIssTable[[#This Row],[Metal]],'Prior Plans'!AE$8:AE9,">0")>1),0,1) -> 0 | AG9: =IF(OR(PriorIssTable[[#This Row],[Issuers Exhibit Ind]]=0,'Prior Plans'!AF9={0,""},COUNTIFS($C$8:$C9,PriorIssTable[[#This Row],[Legal Entity]],$J$8:$J9,PriorIssTable[[#This Row],[Issuers Exhibit Ind]],$H$8:$H9,PriorIssTable[[#This Row],[Metal]],'Prior Plans'!AF$8:AF9,">0")>1),0,1) -> 0 | AH9: =IF(OR(PriorIssTable[[#This Row],[Issuers Exhibit Ind]]=0,'Prior Plans'!AG9={0,""},COUNTIFS($C$8:$C9,PriorIssTable[[#This Row],[Legal Entity]],$J$8:$J9,PriorIssTable[[#This Row],[Issuers Exhibit Ind]],$H$8:$H9,PriorIssTable[[#This Row],[Metal]],'Prior Plans'!AG$8:AG9,">0")>1),0,1) -> 0 | AI9: =IF(OR(PriorIssTable[[#This Row],[Issuers Exhibit Ind]]=0,'Prior Plans'!AH9={0,""},COUNTIFS($C$8:$C9,PriorIssTable[[#This Row],[Legal Entity]],$J$8:$J9,PriorIssTable[[#This Row],[Issuers Exhibit Ind]],$H$8:$H9,PriorIssTable[[#This Row],[Metal]],'Prior Plans'!AH$8:AH9,">0")>1),0,1) -> 0 | AJ9: =IF(OR(PriorIssTable[[#This Row],[Issuers Exhibit Ind]]=0,'Prior Plans'!AI9={0,""},COUNTIFS($C$8:$C9,PriorIssTable[[#This Row],[Legal Entity]],$J$8:$J9,PriorIssTable[[#This Row],[Issuers Exhibit Ind]],$H$8:$H9,PriorIssTable[[#This Row],[Metal]],'Prior Plans'!AI$8:AI9,">0")>1),0,1) -> 0 | AK9: =IF(OR(PriorIssTable[[#This Row],[Issuers Exhibit Ind]]=0,'Prior Plans'!AJ9={0,""},COUNTIFS($C$8:$C9,PriorIssTable[[#This Row],[Legal Entity]],$J$8:$J9,PriorIssTable[[#This Row],[Issuers Exhibit Ind]],$H$8:$H9,PriorIssTable[[#This Row],[Metal]],'Prior Plans'!AJ$8:AJ9,">0")>1),0,1) -> 0 | AL9: =IF(OR(PriorIssTable[[#This Row],[Issuers Exhibit Ind]]=0,'Prior Plans'!AK9={0,""},COUNTIFS($C$8:$C9,PriorIssTable[[#This Row],[Legal Entity]],$J$8:$J9,PriorIssTable[[#This Row],[Issuers Exhibit Ind]],$H$8:$H9,PriorIssTable[[#This Row],[Metal]],'Prior Plans'!AK$8:AK9,">0")>1),0,1) -> 0 | AM9: =IF(OR(PriorIssTable[[#This Row],[Issuers Exhibit Ind]]=0,'Prior Plans'!AL9={0,""},COUNTIFS($C$8:$C9,PriorIssTable[[#This Row],[Legal Entity]],$J$8:$J9,PriorIssTable[[#This Row],[Issuers Exhibit Ind]],$H$8:$H9,PriorIssTable[[#This Row],[Metal]],'Prior Plans'!AL$8:AL9,">0")>1),0,1) -> 0 | AN9: =IF(OR(PriorIssTable[[#This Row],[Issuers Exhibit Ind]]=0,'Prior Plans'!AM9={0,""},COUNTIFS($C$8:$C9,PriorIssTable[[#This Row],[Legal Entity]],$J$8:$J9,PriorIssTable[[#This Row],[Issuers Exhibit Ind]],$H$8:$H9,PriorIssTable[[#This Row],[Metal]],'Prior Plans'!AM$8:AM9,">0")>1),0,1) -> 0 | AO9: =IF(OR(PriorIssTable[[#This Row],[Issuers Exhibit Ind]]=0,'Prior Plans'!AN9={0,""},COUNTIFS($C$8:$C9,PriorIssTable[[#This Row],[Legal Entity]],$J$8:$J9,PriorIssTable[[#This Row],[Issuers Exhibit Ind]],$H$8:$H9,PriorIssTable[[#This Row],[Metal]],'Prior Plans'!AN$8:AN9,">0")>1),0,1) -> 0 | AP9: =IF(OR(PriorIssTable[[#This Row],[Issuers Exhibit Ind]]=0,'Prior Plans'!AO9={0,""},COUNTIFS($C$8:$C9,PriorIssTable[[#This Row],[Legal Entity]],$J$8:$J9,PriorIssTable[[#This Row],[Issuers Exhibit Ind]],$H$8:$H9,PriorIssTable[[#This Row],[Metal]],'Prior Plans'!AO$8:AO9,">0")>1),0,1) -> 0 | AQ9: =IF(OR(PriorIssTable[[#This Row],[Issuers Exhibit Ind]]=0,'Prior Plans'!AP9={0,""},COUNTIFS($C$8:$C9,PriorIssTable[[#This Row],[Legal Entity]],$J$8:$J9,PriorIssTable[[#This Row],[Issuers Exhibit Ind]],$H$8:$H9,PriorIssTable[[#This Row],[Metal]],'Prior Plans'!AP$8:AP9,">0")>1),0,1) -> 0 | AR9: =IF(OR(PriorIssTable[[#This Row],[Issuers Exhibit Ind]]=0,'Prior Plans'!AQ9={0,""},COUNTIFS($C$8:$C9,PriorIssTable[[#This Row],[Legal Entity]],$J$8:$J9,PriorIssTable[[#This Row],[Issuers Exhibit Ind]],$H$8:$H9,PriorIssTable[[#This Row],[Metal]],'Prior Plans'!AQ$8:AQ9,">0")>1),0,1) -> 0 | AS9: =IF(OR(PriorIssTable[[#This Row],[Issuers Exhibit Ind]]=0,'Prior Plans'!AR9={0,""},COUNTIFS($C$8:$C9,PriorIssTable[[#This Row],[Legal Entity]],$J$8:$J9,PriorIssTable[[#This Row],[Issuers Exhibit Ind]],$H$8:$H9,PriorIssTable[[#This Row],[Metal]],'Prior Plans'!AR$8:AR9,">0")>1),0,1) -> 0 | AT9: =IF(OR(PriorIssTable[[#This Row],[Issuers Exhibit Ind]]=0,'Prior Plans'!AS9={0,""},COUNTIFS($C$8:$C9,PriorIssTable[[#This Row],[Legal Entity]],$J$8:$J9,PriorIssTable[[#This Row],[Issuers Exhibit Ind]],$H$8:$H9,PriorIssTable[[#This Row],[Metal]],'Prior Plans'!AS$8:AS9,">0")>1),0,1) -> 0 | AU9: =IF(OR(PriorIssTable[[#This Row],[Issuers Exhibit Ind]]=0,'Prior Plans'!AT9={0,""},COUNTIFS($C$8:$C9,PriorIssTable[[#This Row],[Legal Entity]],$J$8:$J9,PriorIssTable[[#This Row],[Issuers Exhibit Ind]],$H$8:$H9,PriorIssTable[[#This Row],[Metal]],'Prior Plans'!AT$8:AT9,">0")>1),0,1) -> 0 | AV9: =IF(OR(PriorIssTable[[#This Row],[Issuers Exhibit Ind]]=0,'Prior Plans'!AU9={0,""},COUNTIFS($C$8:$C9,PriorIssTable[[#This Row],[Legal Entity]],$J$8:$J9,PriorIssTable[[#This Row],[Issuers Exhibit Ind]],$H$8:$H9,PriorIssTable[[#This Row],[Metal]],'Prior Plans'!AU$8:AU9,">0")>1),0,1) -> 0 | AW9: =IF(OR(PriorIssTable[[#This Row],[Issuers Exhibit Ind]]=0,'Prior Plans'!AV9={0,""},COUNTIFS($C$8:$C9,PriorIssTable[[#This Row],[Legal Entity]],$J$8:$J9,PriorIssTable[[#This Row],[Issuers Exhibit Ind]],$H$8:$H9,PriorIssTable[[#This Row],[Metal]],'Prior Plans'!AV$8:AV9,">0")>1),0,1) -> 0 | AX9: =IF(OR(PriorIssTable[[#This Row],[Issuers Exhibit Ind]]=0,'Prior Plans'!AW9={0,""},COUNTIFS($C$8:$C9,PriorIssTable[[#This Row],[Legal Entity]],$J$8:$J9,PriorIssTable[[#This Row],[Issuers Exhibit Ind]],$H$8:$H9,PriorIssTable[[#This Row],[Metal]],'Prior Plans'!AW$8:AW9,">0")>1),0,1) -> 0 | AY9: =IF(OR(PriorIssTable[[#This Row],[Issuers Exhibit Ind]]=0,'Prior Plans'!AX9={0,""},COUNTIFS($C$8:$C9,PriorIssTable[[#This Row],[Legal Entity]],$J$8:$J9,PriorIssTable[[#This Row],[Issuers Exhibit Ind]],$H$8:$H9,PriorIssTable[[#This Row],[Metal]],'Prior Plans'!AX$8:AX9,">0")>1),0,1) -> 0 | AZ9: =IF(OR(PriorIssTable[[#This Row],[Issuers Exhibit Ind]]=0,'Prior Plans'!AY9={0,""},COUNTIFS($C$8:$C9,PriorIssTable[[#This Row],[Legal Entity]],$J$8:$J9,PriorIssTable[[#This Row],[Issuers Exhibit Ind]],$H$8:$H9,PriorIssTable[[#This Row],[Metal]],'Prior Plans'!AY$8:AY9,">0")>1),0,1) -> 0 | BA9: =IF(OR(PriorIssTable[[#This Row],[Issuers Exhibit Ind]]=0,'Prior Plans'!AZ9={0,""},COUNTIFS($C$8:$C9,PriorIssTable[[#This Row],[Legal Entity]],$J$8:$J9,PriorIssTable[[#This Row],[Issuers Exhibit Ind]],$H$8:$H9,PriorIssTable[[#This Row],[Metal]],'Prior Plans'!AZ$8:AZ9,">0")>1),0,1) -> 0 | BB9: =IF(OR(PriorIssTable[[#This Row],[Issuers Exhibit Ind]]=0,'Prior Plans'!BA9={0,""},COUNTIFS($C$8:$C9,PriorIssTable[[#This Row],[Legal Entity]],$J$8:$J9,PriorIssTable[[#This Row],[Issuers Exhibit Ind]],$H$8:$H9,PriorIssTable[[#This Row],[Metal]],'Prior Plans'!BA$8:BA9,">0")>1),0,1) -> 0 | BC9: =IF(OR(PriorIssTable[[#This Row],[Issuers Exhibit Ind]]=0,'Prior Plans'!BB9={0,""},COUNTIFS($C$8:$C9,PriorIssTable[[#This Row],[Legal Entity]],$J$8:$J9,PriorIssTable[[#This Row],[Issuers Exhibit Ind]],$H$8:$H9,PriorIssTable[[#This Row],[Metal]],'Prior Plans'!BB$8:BB9,">0")>1),0,1) -> 0 | BD9: =IF(OR(PriorIssTable[[#This Row],[Issuers Exhibit Ind]]=0,'Prior Plans'!BC9={0,""},COUNTIFS($C$8:$C9,PriorIssTable[[#This Row],[Legal Entity]],$J$8:$J9,PriorIssTable[[#This Row],[Issuers Exhibit Ind]],$H$8:$H9,PriorIssTable[[#This Row],[Metal]],'Prior Plans'!BC$8:BC9,">0")>1),0,1) -> 0 | BE9: =IF(OR(PriorIssTable[[#This Row],[Issuers Exhibit Ind]]=0,'Prior Plans'!BD9={0,""},COUNTIFS($C$8:$C9,PriorIssTable[[#This Row],[Legal Entity]],$J$8:$J9,PriorIssTable[[#This Row],[Issuers Exhibit Ind]],$H$8:$H9,PriorIssTable[[#This Row],[Metal]],'Prior Plans'!BD$8:BD9,">0")>1),0,1) -> 0 | BF9: =IF(OR(PriorIssTable[[#This Row],[Issuers Exhibit Ind]]=0,'Prior Plans'!BE9={0,""},COUNTIFS($C$8:$C9,PriorIssTable[[#This Row],[Legal Entity]],$J$8:$J9,PriorIssTable[[#This Row],[Issuers Exhibit Ind]],$H$8:$H9,PriorIssTable[[#This Row],[Metal]],'Prior Plans'!BE$8:BE9,">0")>1),0,1) -> 0 | BG9: =IF(OR(PriorIssTable[[#This Row],[Issuers Exhibit Ind]]=0,'Prior Plans'!BF9={0,""},COUNTIFS($C$8:$C9,PriorIssTable[[#This Row],[Legal Entity]],$J$8:$J9,PriorIssTable[[#This Row],[Issuers Exhibit Ind]],$H$8:$H9,PriorIssTable[[#This Row],[Metal]],'Prior Plans'!BF$8:BF9,">0")>1),0,1) -> 0 | BH9: =IF(OR(PriorIssTable[[#This Row],[Issuers Exhibit Ind]]=0,'Prior Plans'!BG9={0,""},COUNTIFS($C$8:$C9,PriorIssTable[[#This Row],[Legal Entity]],$J$8:$J9,PriorIssTable[[#This Row],[Issuers Exhibit Ind]],$H$8:$H9,PriorIssTable[[#This Row],[Metal]],'Prior Plans'!BG$8:BG9,">0")>1),0,1) -> 0 | BI9: =IF(OR(PriorIssTable[[#This Row],[Issuers Exhibit Ind]]=0,'Prior Plans'!BH9={0,""},COUNTIFS($C$8:$C9,PriorIssTable[[#This Row],[Legal Entity]],$J$8:$J9,PriorIssTable[[#This Row],[Issuers Exhibit Ind]],$H$8:$H9,PriorIssTable[[#This Row],[Metal]],'Prior Plans'!BH$8:BH9,">0")>1),0,1) -> 0 | BJ9: =IF(OR(PriorIssTable[[#This Row],[Issuers Exhibit Ind]]=0,'Prior Plans'!BI9={0,""},COUNTIFS($C$8:$C9,PriorIssTable[[#This Row],[Legal Entity]],$J$8:$J9,PriorIssTable[[#This Row],[Issuers Exhibit Ind]],$H$8:$H9,PriorIssTable[[#This Row],[Metal]],'Prior Plans'!BI$8:BI9,">0")>1),0,1) -> 0 | BK9: =IF(OR(PriorIssTable[[#This Row],[Issuers Exhibit Ind]]=0,'Prior Plans'!BJ9={0,""},COUNTIFS($C$8:$C9,PriorIssTable[[#This Row],[Legal Entity]],$J$8:$J9,PriorIssTable[[#This Row],[Issuers Exhibit Ind]],$H$8:$H9,PriorIssTable[[#This Row],[Metal]],'Prior Plans'!BJ$8:BJ9,">0")>1),0,1) -> 0 | BL9: =IF(OR(PriorIssTable[[#This Row],[Issuers Exhibit Ind]]=0,'Prior Plans'!BK9={0,""},COUNTIFS($C$8:$C9,PriorIssTable[[#This Row],[Legal Entity]],$J$8:$J9,PriorIssTable[[#This Row],[Issuers Exhibit Ind]],$H$8:$H9,PriorIssTable[[#This Row],[Metal]],'Prior Plans'!BK$8:BK9,">0")>1),0,1) -> 0 | BM9: =IF(OR(PriorIssTable[[#This Row],[Issuers Exhibit Ind]]=0,'Prior Plans'!BL9={0,""},COUNTIFS($C$8:$C9,PriorIssTable[[#This Row],[Legal Entity]],$J$8:$J9,PriorIssTable[[#This Row],[Issuers Exhibit Ind]],$H$8:$H9,PriorIssTable[[#This Row],[Metal]],'Prior Plans'!BL$8:BL9,">0")>1),0,1) -> 0 | BN9: =IF(OR(PriorIssTable[[#This Row],[Issuers Exhibit Ind]]=0,'Prior Plans'!BM9={0,""},COUNTIFS($C$8:$C9,PriorIssTable[[#This Row],[Legal Entity]],$J$8:$J9,PriorIssTable[[#This Row],[Issuers Exhibit Ind]],$H$8:$H9,PriorIssTable[[#This Row],[Metal]],'Prior Plans'!BM$8:BM9,">0")>1),0,1) -> 0 | BO9: =IF(OR(PriorIssTable[[#This Row],[Issuers Exhibit Ind]]=0,'Prior Plans'!BN9={0,""},COUNTIFS($C$8:$C9,PriorIssTable[[#This Row],[Legal Entity]],$J$8:$J9,PriorIssTable[[#This Row],[Issuers Exhibit Ind]],$H$8:$H9,PriorIssTable[[#This Row],[Metal]],'Prior Plans'!BN$8:BN9,">0")>1),0,1) -> 0 | BP9: =IF(OR(PriorIssTable[[#This Row],[Issuers Exhibit Ind]]=0,'Prior Plans'!BO9={0,""},COUNTIFS($C$8:$C9,PriorIssTable[[#This Row],[Legal Entity]],$J$8:$J9,PriorIssTable[[#This Row],[Issuers Exhibit Ind]],$H$8:$H9,PriorIssTable[[#This Row],[Metal]],'Prior Plans'!BO$8:BO9,">0")>1),0,1) -> 0 | BQ9: =IF(OR(PriorIssTable[[#This Row],[Issuers Exhibit Ind]]=0,'Prior Plans'!BP9={0,""},COUNTIFS($C$8:$C9,PriorIssTable[[#This Row],[Legal Entity]],$J$8:$J9,PriorIssTable[[#This Row],[Issuers Exhibit Ind]],$H$8:$H9,PriorIssTable[[#This Row],[Metal]],'Prior Plans'!BP$8:BP9,">0")>1),0,1) -> 0 | BR9: =IF(OR(PriorIssTable[[#This Row],[Issuers Exhibit Ind]]=0,'Prior Plans'!BQ9={0,""},COUNTIFS($C$8:$C9,PriorIssTable[[#This Row],[Legal Entity]],$J$8:$J9,PriorIssTable[[#This Row],[Issuers Exhibit Ind]],$H$8:$H9,PriorIssTable[[#This Row],[Metal]],'Prior Plans'!BQ$8:BQ9,">0")>1),0,1) -> 0 | BS9: =IF(OR(PriorIssTable[[#This Row],[Issuers Exhibit Ind]]=0,'Prior Plans'!BR9={0,""},COUNTIFS($C$8:$C9,PriorIssTable[[#This Row],[Legal Entity]],$J$8:$J9,PriorIssTable[[#This Row],[Issuers Exhibit Ind]],$H$8:$H9,PriorIssTable[[#This Row],[Metal]],'Prior Plans'!BR$8:BR9,">0")>1),0,1) -> 0 | BT9: =IF(OR(PriorIssTable[[#This Row],[Issuers Exhibit Ind]]=0,'Prior Plans'!BS9={0,""},COUNTIFS($C$8:$C9,PriorIssTable[[#This Row],[Legal Entity]],$J$8:$J9,PriorIssTable[[#This Row],[Issuers Exhibit Ind]],$H$8:$H9,PriorIssTable[[#This Row],[Metal]],'Prior Plans'!BS$8:BS9,">0")>1),0,1) -> 0 | BU9: =IF(OR(PriorIssTable[[#This Row],[Issuers Exhibit Ind]]=0,'Prior Plans'!BT9={0,""},COUNTIFS($C$8:$C9,PriorIssTable[[#This Row],[Legal Entity]],$J$8:$J9,PriorIssTable[[#This Row],[Issuers Exhibit Ind]],$H$8:$H9,PriorIssTable[[#This Row],[Metal]],'Prior Plans'!BT$8:BT9,">0")>1),0,1) -> 0 | BV9: =IF(OR(PriorIssTable[[#This Row],[Issuers Exhibit Ind]]=0,'Prior Plans'!BU9={0,""},COUNTIFS($C$8:$C9,PriorIssTable[[#This Row],[Legal Entity]],$J$8:$J9,PriorIssTable[[#This Row],[Issuers Exhibit Ind]],$H$8:$H9,PriorIssTable[[#This Row],[Metal]],'Prior Plans'!BU$8:BU9,">0")>1),0,1) -> 0 | BW9: =IF(OR(PriorIssTable[[#This Row],[Issuers Exhibit Ind]]=0,'Prior Plans'!BV9={0,""},COUNTIFS($C$8:$C9,PriorIssTable[[#This Row],[Legal Entity]],$J$8:$J9,PriorIssTable[[#This Row],[Issuers Exhibit Ind]],$H$8:$H9,PriorIssTable[[#This Row],[Metal]],'Prior Plans'!BV$8:BV9,">0")>1),0,1) -> 0 | BX9: =IF(OR(PriorIssTable[[#This Row],[Issuers Exhibit Ind]]=0,'Prior Plans'!BW9={0,""},COUNTIFS($C$8:$C9,PriorIssTable[[#This Row],[Legal Entity]],$J$8:$J9,PriorIssTable[[#This Row],[Issuers Exhibit Ind]],$H$8:$H9,PriorIssTable[[#This Row],[Metal]],'Prior Plans'!BW$8:BW9,">0")>1),0,1) -> 0 | BY9: =IF(OR(PriorIssTable[[#This Row],[Issuers Exhibit Ind]]=0,'Prior Plans'!BX9={0,""},COUNTIFS($C$8:$C9,PriorIssTable[[#This Row],[Legal Entity]],$J$8:$J9,PriorIssTable[[#This Row],[Issuers Exhibit Ind]],$H$8:$H9,PriorIssTable[[#This Row],[Metal]],'Prior Plans'!BX$8:BX9,">0")>1),0,1) -> 0 | BZ9: =IF(OR(PriorIssTable[[#This Row],[Issuers Exhibit Ind]]=0,'Prior Plans'!J9=0,'Prior Plans'!J9="",COUNTIFS($C$8:$C9,PriorIssTable[[#This Row],[Legal Entity]],$J$8:$J9,PriorIssTable[[#This Row],[Issuers Exhibit Ind]],'Prior Plans'!J$8:J9,">0")>1),0,1) -> 0 | CA9: =IF(OR(PriorIssTable[[#This Row],[Issuers Exhibit Ind]]=0,'Prior Plans'!K9=0,'Prior Plans'!K9="",COUNTIFS($C$8:$C9,PriorIssTable[[#This Row],[Legal Entity]],$J$8:$J9,PriorIssTable[[#This Row],[Issuers Exhibit Ind]],'Prior Plans'!K$8:K9,">0")>1),0,1) -> 0 | CB9: =IF(OR(PriorIssTable[[#This Row],[Issuers Exhibit Ind]]=0,'Prior Plans'!L9=0,'Prior Plans'!L9="",COUNTIFS($C$8:$C9,PriorIssTable[[#This Row],[Legal Entity]],$J$8:$J9,PriorIssTable[[#This Row],[Issuers Exhibit Ind]],'Prior Plans'!L$8:L9,">0")>1),0,1) -> 0 | CC9: =IF(OR(PriorIssTable[[#This Row],[Issuers Exhibit Ind]]=0,'Prior Plans'!M9=0,'Prior Plans'!M9="",COUNTIFS($C$8:$C9,PriorIssTable[[#This Row],[Legal Entity]],$J$8:$J9,PriorIssTable[[#This Row],[Issuers Exhibit Ind]],'Prior Plans'!M$8:M9,">0")>1),0,1) -> 0 | CD9: =IF(OR(PriorIssTable[[#This Row],[Issuers Exhibit Ind]]=0,'Prior Plans'!N9=0,'Prior Plans'!N9="",COUNTIFS($C$8:$C9,PriorIssTable[[#This Row],[Legal Entity]],$J$8:$J9,PriorIssTable[[#This Row],[Issuers Exhibit Ind]],'Prior Plans'!N$8:N9,">0")>1),0,1) -> 0 | CE9: =IF(OR(PriorIssTable[[#This Row],[Issuers Exhibit Ind]]=0,'Prior Plans'!O9=0,'Prior Plans'!O9="",COUNTIFS($C$8:$C9,PriorIssTable[[#This Row],[Legal Entity]],$J$8:$J9,PriorIssTable[[#This Row],[Issuers Exhibit Ind]],'Prior Plans'!O$8:O9,">0")>1),0,1) -> 0 | CF9: =IF(OR(PriorIssTable[[#This Row],[Issuers Exhibit Ind]]=0,'Prior Plans'!P9=0,'Prior Plans'!P9="",COUNTIFS($C$8:$C9,PriorIssTable[[#This Row],[Legal Entity]],$J$8:$J9,PriorIssTable[[#This Row],[Issuers Exhibit Ind]],'Prior Plans'!P$8:P9,">0")>1),0,1) -> 0 | CG9: =IF(OR(PriorIssTable[[#This Row],[Issuers Exhibit Ind]]=0,'Prior Plans'!Q9=0,'Prior Plans'!Q9="",COUNTIFS($C$8:$C9,PriorIssTable[[#This Row],[Legal Entity]],$J$8:$J9,PriorIssTable[[#This Row],[Issuers Exhibit Ind]],'Prior Plans'!Q$8:Q9,">0")>1),0,1) -> 0 | CH9: =IF(OR(PriorIssTable[[#This Row],[Issuers Exhibit Ind]]=0,'Prior Plans'!R9=0,'Prior Plans'!R9="",COUNTIFS($C$8:$C9,PriorIssTable[[#This Row],[Legal Entity]],$J$8:$J9,PriorIssTable[[#This Row],[Issuers Exhibit Ind]],'Prior Plans'!R$8:R9,">0")>1),0,1) -> 0 | CI9: =IF(OR(PriorIssTable[[#This Row],[Issuers Exhibit Ind]]=0,'Prior Plans'!S9=0,'Prior Plans'!S9="",COUNTIFS($C$8:$C9,PriorIssTable[[#This Row],[Legal Entity]],$J$8:$J9,PriorIssTable[[#This Row],[Issuers Exhibit Ind]],'Prior Plans'!S$8:S9,">0")>1),0,1) -> 0 | CJ9: =IF(OR(PriorIssTable[[#This Row],[Issuers Exhibit Ind]]=0,'Prior Plans'!T9=0,'Prior Plans'!T9="",COUNTIFS($C$8:$C9,PriorIssTable[[#This Row],[Legal Entity]],$J$8:$J9,PriorIssTable[[#This Row],[Issuers Exhibit Ind]],'Prior Plans'!T$8:T9,">0")>1),0,1) -> 0 | CK9: =IF(OR(PriorIssTable[[#This Row],[Issuers Exhibit Ind]]=0,'Prior Plans'!U9=0,'Prior Plans'!U9="",COUNTIFS($C$8:$C9,PriorIssTable[[#This Row],[Legal Entity]],$J$8:$J9,PriorIssTable[[#This Row],[Issuers Exhibit Ind]],'Prior Plans'!U$8:U9,">0")>1),0,1) -> 0 | CL9: =IF(OR(PriorIssTable[[#This Row],[Issuers Exhibit Ind]]=0,'Prior Plans'!V9=0,'Prior Plans'!V9="",COUNTIFS($C$8:$C9,PriorIssTable[[#This Row],[Legal Entity]],$J$8:$J9,PriorIssTable[[#This Row],[Issuers Exhibit Ind]],'Prior Plans'!V$8:V9,">0")>1),0,1) -> 0 | CM9: =IF(OR(PriorIssTable[[#This Row],[Issuers Exhibit Ind]]=0,'Prior Plans'!W9=0,'Prior Plans'!W9="",COUNTIFS($C$8:$C9,PriorIssTable[[#This Row],[Legal Entity]],$J$8:$J9,PriorIssTable[[#This Row],[Issuers Exhibit Ind]],'Prior Plans'!W$8:W9,">0")>1),0,1) -> 0 | CN9: =IF(OR(PriorIssTable[[#This Row],[Issuers Exhibit Ind]]=0,'Prior Plans'!X9=0,'Prior Plans'!X9="",COUNTIFS($C$8:$C9,PriorIssTable[[#This Row],[Legal Entity]],$J$8:$J9,PriorIssTable[[#This Row],[Issuers Exhibit Ind]],'Prior Plans'!X$8:X9,">0")>1),0,1) -> 0 | CO9: =IF(OR(PriorIssTable[[#This Row],[Issuers Exhibit Ind]]=0,'Prior Plans'!Y9=0,'Prior Plans'!Y9="",COUNTIFS($C$8:$C9,PriorIssTable[[#This Row],[Legal Entity]],$J$8:$J9,PriorIssTable[[#This Row],[Issuers Exhibit Ind]],'Prior Plans'!Y$8:Y9,">0")>1),0,1) -> 0 | CP9: =IF(OR(PriorIssTable[[#This Row],[Issuers Exhibit Ind]]=0,'Prior Plans'!Z9=0,'Prior Plans'!Z9="",COUNTIFS($C$8:$C9,PriorIssTable[[#This Row],[Legal Entity]],$J$8:$J9,PriorIssTable[[#This Row],[Issuers Exhibit Ind]],'Prior Plans'!Z$8:Z9,">0")>1),0,1) -> 0 | CQ9: =IF(OR(PriorIssTable[[#This Row],[Issuers Exhibit Ind]]=0,'Prior Plans'!AA9=0,'Prior Plans'!AA9="",COUNTIFS($C$8:$C9,PriorIssTable[[#This Row],[Legal Entity]],$J$8:$J9,PriorIssTable[[#This Row],[Issuers Exhibit Ind]],'Prior Plans'!AA$8:AA9,">0")>1),0,1) -> 0 | CR9: =IF(OR(PriorIssTable[[#This Row],[Issuers Exhibit Ind]]=0,'Prior Plans'!AB9=0,'Prior Plans'!AB9="",COUNTIFS($C$8:$C9,PriorIssTable[[#This Row],[Legal Entity]],$J$8:$J9,PriorIssTable[[#This Row],[Issuers Exhibit Ind]],'Prior Plans'!AB$8:AB9,">0")>1),0,1) -> 0 | CS9: =IF(OR(PriorIssTable[[#This Row],[Issuers Exhibit Ind]]=0,'Prior Plans'!AC9=0,'Prior Plans'!AC9="",COUNTIFS($C$8:$C9,PriorIssTable[[#This Row],[Legal Entity]],$J$8:$J9,PriorIssTable[[#This Row],[Issuers Exhibit Ind]],'Prior Plans'!AC$8:AC9,">0")>1),0,1) -> 0 | CT9: =IF(OR(PriorIssTable[[#This Row],[Issuers Exhibit Ind]]=0,'Prior Plans'!AD9=0,'Prior Plans'!AD9="",COUNTIFS($C$8:$C9,PriorIssTable[[#This Row],[Legal Entity]],$J$8:$J9,PriorIssTable[[#This Row],[Issuers Exhibit Ind]],'Prior Plans'!AD$8:AD9,">0")>1),0,1) -> 0 | CU9: =IF(OR(PriorIssTable[[#This Row],[Issuers Exhibit Ind]]=0,'Prior Plans'!AE9=0,'Prior Plans'!AE9="",COUNTIFS($C$8:$C9,PriorIssTable[[#This Row],[Legal Entity]],$J$8:$J9,PriorIssTable[[#This Row],[Issuers Exhibit Ind]],'Prior Plans'!AE$8:AE9,">0")>1),0,1) -> 0 | CV9: =IF(OR(PriorIssTable[[#This Row],[Issuers Exhibit Ind]]=0,'Prior Plans'!AF9=0,'Prior Plans'!AF9="",COUNTIFS($C$8:$C9,PriorIssTable[[#This Row],[Legal Entity]],$J$8:$J9,PriorIssTable[[#This Row],[Issuers Exhibit Ind]],'Prior Plans'!AF$8:AF9,">0")>1),0,1) -> 0 | CW9: =IF(OR(PriorIssTable[[#This Row],[Issuers Exhibit Ind]]=0,'Prior Plans'!AG9=0,'Prior Plans'!AG9="",COUNTIFS($C$8:$C9,PriorIssTable[[#This Row],[Legal Entity]],$J$8:$J9,PriorIssTable[[#This Row],[Issuers Exhibit Ind]],'Prior Plans'!AG$8:AG9,">0")>1),0,1) -> 0 | CX9: =IF(OR(PriorIssTable[[#This Row],[Issuers Exhibit Ind]]=0,'Prior Plans'!AH9=0,'Prior Plans'!AH9="",COUNTIFS($C$8:$C9,PriorIssTable[[#This Row],[Legal Entity]],$J$8:$J9,PriorIssTable[[#This Row],[Issuers Exhibit Ind]],'Prior Plans'!AH$8:AH9,">0")>1),0,1) -> 0 | CY9: =IF(OR(PriorIssTable[[#This Row],[Issuers Exhibit Ind]]=0,'Prior Plans'!AI9=0,'Prior Plans'!AI9="",COUNTIFS($C$8:$C9,PriorIssTable[[#This Row],[Legal Entity]],$J$8:$J9,PriorIssTable[[#This Row],[Issuers Exhibit Ind]],'Prior Plans'!AI$8:AI9,">0")>1),0,1) -> 0 | CZ9: =IF(OR(PriorIssTable[[#This Row],[Issuers Exhibit Ind]]=0,'Prior Plans'!AJ9=0,'Prior Plans'!AJ9="",COUNTIFS($C$8:$C9,PriorIssTable[[#This Row],[Legal Entity]],$J$8:$J9,PriorIssTable[[#This Row],[Issuers Exhibit Ind]],'Prior Plans'!AJ$8:AJ9,">0")>1),0,1) -> 0 | DA9: =IF(OR(PriorIssTable[[#This Row],[Issuers Exhibit Ind]]=0,'Prior Plans'!AK9=0,'Prior Plans'!AK9="",COUNTIFS($C$8:$C9,PriorIssTable[[#This Row],[Legal Entity]],$J$8:$J9,PriorIssTable[[#This Row],[Issuers Exhibit Ind]],'Prior Plans'!AK$8:AK9,">0")>1),0,1) -> 0 | DB9: =IF(OR(PriorIssTable[[#This Row],[Issuers Exhibit Ind]]=0,'Prior Plans'!AL9=0,'Prior Plans'!AL9="",COUNTIFS($C$8:$C9,PriorIssTable[[#This Row],[Legal Entity]],$J$8:$J9,PriorIssTable[[#This Row],[Issuers Exhibit Ind]],'Prior Plans'!AL$8:AL9,">0")>1),0,1) -> 0 | DC9: =IF(OR(PriorIssTable[[#This Row],[Issuers Exhibit Ind]]=0,'Prior Plans'!AM9=0,'Prior Plans'!AM9="",COUNTIFS($C$8:$C9,PriorIssTable[[#This Row],[Legal Entity]],$J$8:$J9,PriorIssTable[[#This Row],[Issuers Exhibit Ind]],'Prior Plans'!AM$8:AM9,">0")>1),0,1) -> 0 | DD9: =IF(OR(PriorIssTable[[#This Row],[Issuers Exhibit Ind]]=0,'Prior Plans'!AN9=0,'Prior Plans'!AN9="",COUNTIFS($C$8:$C9,PriorIssTable[[#This Row],[Legal Entity]],$J$8:$J9,PriorIssTable[[#This Row],[Issuers Exhibit Ind]],'Prior Plans'!AN$8:AN9,">0")>1),0,1) -> 0 | DE9: =IF(OR(PriorIssTable[[#This Row],[Issuers Exhibit Ind]]=0,'Prior Plans'!AO9=0,'Prior Plans'!AO9="",COUNTIFS($C$8:$C9,PriorIssTable[[#This Row],[Legal Entity]],$J$8:$J9,PriorIssTable[[#This Row],[Issuers Exhibit Ind]],'Prior Plans'!AO$8:AO9,">0")>1),0,1) -> 0 | DF9: =IF(OR(PriorIssTable[[#This Row],[Issuers Exhibit Ind]]=0,'Prior Plans'!AP9=0,'Prior Plans'!AP9="",COUNTIFS($C$8:$C9,PriorIssTable[[#This Row],[Legal Entity]],$J$8:$J9,PriorIssTable[[#This Row],[Issuers Exhibit Ind]],'Prior Plans'!AP$8:AP9,">0")>1),0,1) -> 0 | DG9: =IF(OR(PriorIssTable[[#This Row],[Issuers Exhibit Ind]]=0,'Prior Plans'!AQ9=0,'Prior Plans'!AQ9="",COUNTIFS($C$8:$C9,PriorIssTable[[#This Row],[Legal Entity]],$J$8:$J9,PriorIssTable[[#This Row],[Issuers Exhibit Ind]],'Prior Plans'!AQ$8:AQ9,">0")>1),0,1) -> 0 | DH9: =IF(OR(PriorIssTable[[#This Row],[Issuers Exhibit Ind]]=0,'Prior Plans'!AR9=0,'Prior Plans'!AR9="",COUNTIFS($C$8:$C9,PriorIssTable[[#This Row],[Legal Entity]],$J$8:$J9,PriorIssTable[[#This Row],[Issuers Exhibit Ind]],'Prior Plans'!AR$8:AR9,">0")>1),0,1) -> 0 | DI9: =IF(OR(PriorIssTable[[#This Row],[Issuers Exhibit Ind]]=0,'Prior Plans'!AS9=0,'Prior Plans'!AS9="",COUNTIFS($C$8:$C9,PriorIssTable[[#This Row],[Legal Entity]],$J$8:$J9,PriorIssTable[[#This Row],[Issuers Exhibit Ind]],'Prior Plans'!AS$8:AS9,">0")>1),0,1) -> 0 | DJ9: =IF(OR(PriorIssTable[[#This Row],[Issuers Exhibit Ind]]=0,'Prior Plans'!AT9=0,'Prior Plans'!AT9="",COUNTIFS($C$8:$C9,PriorIssTable[[#This Row],[Legal Entity]],$J$8:$J9,PriorIssTable[[#This Row],[Issuers Exhibit Ind]],'Prior Plans'!AT$8:AT9,">0")>1),0,1) -> 0 | DK9: =IF(OR(PriorIssTable[[#This Row],[Issuers Exhibit Ind]]=0,'Prior Plans'!AU9=0,'Prior Plans'!AU9="",COUNTIFS($C$8:$C9,PriorIssTable[[#This Row],[Legal Entity]],$J$8:$J9,PriorIssTable[[#This Row],[Issuers Exhibit Ind]],'Prior Plans'!AU$8:AU9,">0")>1),0,1) -> 0 | DL9: =IF(OR(PriorIssTable[[#This Row],[Issuers Exhibit Ind]]=0,'Prior Plans'!AV9=0,'Prior Plans'!AV9="",COUNTIFS($C$8:$C9,PriorIssTable[[#This Row],[Legal Entity]],$J$8:$J9,PriorIssTable[[#This Row],[Issuers Exhibit Ind]],'Prior Plans'!AV$8:AV9,">0")>1),0,1) -> 0 | DM9: =IF(OR(PriorIssTable[[#This Row],[Issuers Exhibit Ind]]=0,'Prior Plans'!AW9=0,'Prior Plans'!AW9="",COUNTIFS($C$8:$C9,PriorIssTable[[#This Row],[Legal Entity]],$J$8:$J9,PriorIssTable[[#This Row],[Issuers Exhibit Ind]],'Prior Plans'!AW$8:AW9,">0")>1),0,1) -> 0 | DN9: =IF(OR(PriorIssTable[[#This Row],[Issuers Exhibit Ind]]=0,'Prior Plans'!AX9=0,'Prior Plans'!AX9="",COUNTIFS($C$8:$C9,PriorIssTable[[#This Row],[Legal Entity]],$J$8:$J9,PriorIssTable[[#This Row],[Issuers Exhibit Ind]],'Prior Plans'!AX$8:AX9,">0")>1),0,1) -> 0 | DO9: =IF(OR(PriorIssTable[[#This Row],[Issuers Exhibit Ind]]=0,'Prior Plans'!AY9=0,'Prior Plans'!AY9="",COUNTIFS($C$8:$C9,PriorIssTable[[#This Row],[Legal Entity]],$J$8:$J9,PriorIssTable[[#This Row],[Issuers Exhibit Ind]],'Prior Plans'!AY$8:AY9,">0")>1),0,1) -> 0 | DP9: =IF(OR(PriorIssTable[[#This Row],[Issuers Exhibit Ind]]=0,'Prior Plans'!AZ9=0,'Prior Plans'!AZ9="",COUNTIFS($C$8:$C9,PriorIssTable[[#This Row],[Legal Entity]],$J$8:$J9,PriorIssTable[[#This Row],[Issuers Exhibit Ind]],'Prior Plans'!AZ$8:AZ9,">0")>1),0,1) -> 0 | DQ9: =IF(OR(PriorIssTable[[#This Row],[Issuers Exhibit Ind]]=0,'Prior Plans'!BA9=0,'Prior Plans'!BA9="",COUNTIFS($C$8:$C9,PriorIssTable[[#This Row],[Legal Entity]],$J$8:$J9,PriorIssTable[[#This Row],[Issuers Exhibit Ind]],'Prior Plans'!BA$8:BA9,">0")>1),0,1) -> 0 | DR9: =IF(OR(PriorIssTable[[#This Row],[Issuers Exhibit Ind]]=0,'Prior Plans'!BB9=0,'Prior Plans'!BB9="",COUNTIFS($C$8:$C9,PriorIssTable[[#This Row],[Legal Entity]],$J$8:$J9,PriorIssTable[[#This Row],[Issuers Exhibit Ind]],'Prior Plans'!BB$8:BB9,">0")>1),0,1) -> 0 | DS9: =IF(OR(PriorIssTable[[#This Row],[Issuers Exhibit Ind]]=0,'Prior Plans'!BC9=0,'Prior Plans'!BC9="",COUNTIFS($C$8:$C9,PriorIssTable[[#This Row],[Legal Entity]],$J$8:$J9,PriorIssTable[[#This Row],[Issuers Exhibit Ind]],'Prior Plans'!BC$8:BC9,">0")>1),0,1) -> 0 | DT9: =IF(OR(PriorIssTable[[#This Row],[Issuers Exhibit Ind]]=0,'Prior Plans'!BD9=0,'Prior Plans'!BD9="",COUNTIFS($C$8:$C9,PriorIssTable[[#This Row],[Legal Entity]],$J$8:$J9,PriorIssTable[[#This Row],[Issuers Exhibit Ind]],'Prior Plans'!BD$8:BD9,">0")>1),0,1) -> 0 | DU9: =IF(OR(PriorIssTable[[#This Row],[Issuers Exhibit Ind]]=0,'Prior Plans'!BE9=0,'Prior Plans'!BE9="",COUNTIFS($C$8:$C9,PriorIssTable[[#This Row],[Legal Entity]],$J$8:$J9,PriorIssTable[[#This Row],[Issuers Exhibit Ind]],'Prior Plans'!BE$8:BE9,">0")>1),0,1) -> 0 | DV9: =IF(OR(PriorIssTable[[#This Row],[Issuers Exhibit Ind]]=0,'Prior Plans'!BF9=0,'Prior Plans'!BF9="",COUNTIFS($C$8:$C9,PriorIssTable[[#This Row],[Legal Entity]],$J$8:$J9,PriorIssTable[[#This Row],[Issuers Exhibit Ind]],'Prior Plans'!BF$8:BF9,">0")>1),0,1) -> 0 | DW9: =IF(OR(PriorIssTable[[#This Row],[Issuers Exhibit Ind]]=0,'Prior Plans'!BG9=0,'Prior Plans'!BG9="",COUNTIFS($C$8:$C9,PriorIssTable[[#This Row],[Legal Entity]],$J$8:$J9,PriorIssTable[[#This Row],[Issuers Exhibit Ind]],'Prior Plans'!BG$8:BG9,">0")>1),0,1) -> 0 | DX9: =IF(OR(PriorIssTable[[#This Row],[Issuers Exhibit Ind]]=0,'Prior Plans'!BH9=0,'Prior Plans'!BH9="",COUNTIFS($C$8:$C9,PriorIssTable[[#This Row],[Legal Entity]],$J$8:$J9,PriorIssTable[[#This Row],[Issuers Exhibit Ind]],'Prior Plans'!BH$8:BH9,">0")>1),0,1) -> 0 | DY9: =IF(OR(PriorIssTable[[#This Row],[Issuers Exhibit Ind]]=0,'Prior Plans'!BI9=0,'Prior Plans'!BI9="",COUNTIFS($C$8:$C9,PriorIssTable[[#This Row],[Legal Entity]],$J$8:$J9,PriorIssTable[[#This Row],[Issuers Exhibit Ind]],'Prior Plans'!BI$8:BI9,">0")>1),0,1) -> 0 | DZ9: =IF(OR(PriorIssTable[[#This Row],[Issuers Exhibit Ind]]=0,'Prior Plans'!BJ9=0,'Prior Plans'!BJ9="",COUNTIFS($C$8:$C9,PriorIssTable[[#This Row],[Legal Entity]],$J$8:$J9,PriorIssTable[[#This Row],[Issuers Exhibit Ind]],'Prior Plans'!BJ$8:BJ9,">0")>1),0,1) -> 0 | EA9: =IF(OR(PriorIssTable[[#This Row],[Issuers Exhibit Ind]]=0,'Prior Plans'!BK9=0,'Prior Plans'!BK9="",COUNTIFS($C$8:$C9,PriorIssTable[[#This Row],[Legal Entity]],$J$8:$J9,PriorIssTable[[#This Row],[Issuers Exhibit Ind]],'Prior Plans'!BK$8:BK9,">0")>1),0,1) -> 0 | EB9: =IF(OR(PriorIssTable[[#This Row],[Issuers Exhibit Ind]]=0,'Prior Plans'!BL9=0,'Prior Plans'!BL9="",COUNTIFS($C$8:$C9,PriorIssTable[[#This Row],[Legal Entity]],$J$8:$J9,PriorIssTable[[#This Row],[Issuers Exhibit Ind]],'Prior Plans'!BL$8:BL9,">0")>1),0,1) -> 0 | EC9: =IF(OR(PriorIssTable[[#This Row],[Issuers Exhibit Ind]]=0,'Prior Plans'!BM9=0,'Prior Plans'!BM9="",COUNTIFS($C$8:$C9,PriorIssTable[[#This Row],[Legal Entity]],$J$8:$J9,PriorIssTable[[#This Row],[Issuers Exhibit Ind]],'Prior Plans'!BM$8:BM9,">0")>1),0,1) -> 0 | ED9: =IF(OR(PriorIssTable[[#This Row],[Issuers Exhibit Ind]]=0,'Prior Plans'!BN9=0,'Prior Plans'!BN9="",COUNTIFS($C$8:$C9,PriorIssTable[[#This Row],[Legal Entity]],$J$8:$J9,PriorIssTable[[#This Row],[Issuers Exhibit Ind]],'Prior Plans'!BN$8:BN9,">0")>1),0,1) -> 0 | EE9: =IF(OR(PriorIssTable[[#This Row],[Issuers Exhibit Ind]]=0,'Prior Plans'!BO9=0,'Prior Plans'!BO9="",COUNTIFS($C$8:$C9,PriorIssTable[[#This Row],[Legal Entity]],$J$8:$J9,PriorIssTable[[#This Row],[Issuers Exhibit Ind]],'Prior Plans'!BO$8:BO9,">0")>1),0,1) -> 0 | EF9: =IF(OR(PriorIssTable[[#This Row],[Issuers Exhibit Ind]]=0,'Prior Plans'!BP9=0,'Prior Plans'!BP9="",COUNTIFS($C$8:$C9,PriorIssTable[[#This Row],[Legal Entity]],$J$8:$J9,PriorIssTable[[#This Row],[Issuers Exhibit Ind]],'Prior Plans'!BP$8:BP9,">0")>1),0,1) -> 0 | EG9: =IF(OR(PriorIssTable[[#This Row],[Issuers Exhibit Ind]]=0,'Prior Plans'!BQ9=0,'Prior Plans'!BQ9="",COUNTIFS($C$8:$C9,PriorIssTable[[#This Row],[Legal Entity]],$J$8:$J9,PriorIssTable[[#This Row],[Issuers Exhibit Ind]],'Prior Plans'!BQ$8:BQ9,">0")>1),0,1) -> 0 | EH9: =IF(OR(PriorIssTable[[#This Row],[Issuers Exhibit Ind]]=0,'Prior Plans'!BR9=0,'Prior Plans'!BR9="",COUNTIFS($C$8:$C9,PriorIssTable[[#This Row],[Legal Entity]],$J$8:$J9,PriorIssTable[[#This Row],[Issuers Exhibit Ind]],'Prior Plans'!BR$8:BR9,">0")>1),0,1) -> 0 | EI9: =IF(OR(PriorIssTable[[#This Row],[Issuers Exhibit Ind]]=0,'Prior Plans'!BS9=0,'Prior Plans'!BS9="",COUNTIFS($C$8:$C9,PriorIssTable[[#This Row],[Legal Entity]],$J$8:$J9,PriorIssTable[[#This Row],[Issuers Exhibit Ind]],'Prior Plans'!BS$8:BS9,">0")>1),0,1) -> 0 | EJ9: =IF(OR(PriorIssTable[[#This Row],[Issuers Exhibit Ind]]=0,'Prior Plans'!BT9=0,'Prior Plans'!BT9="",COUNTIFS($C$8:$C9,PriorIssTable[[#This Row],[Legal Entity]],$J$8:$J9,PriorIssTable[[#This Row],[Issuers Exhibit Ind]],'Prior Plans'!BT$8:BT9,">0")>1),0,1) -> 0 | EK9: =IF(OR(PriorIssTable[[#This Row],[Issuers Exhibit Ind]]=0,'Prior Plans'!BU9=0,'Prior Plans'!BU9="",COUNTIFS($C$8:$C9,PriorIssTable[[#This Row],[Legal Entity]],$J$8:$J9,PriorIssTable[[#This Row],[Issuers Exhibit Ind]],'Prior Plans'!BU$8:BU9,">0")>1),0,1) -> 0 | EL9: =IF(OR(PriorIssTable[[#This Row],[Issuers Exhibit Ind]]=0,'Prior Plans'!BV9=0,'Prior Plans'!BV9="",COUNTIFS($C$8:$C9,PriorIssTable[[#This Row],[Legal Entity]],$J$8:$J9,PriorIssTable[[#This Row],[Issuers Exhibit Ind]],'Prior Plans'!BV$8:BV9,">0")>1),0,1) -> 0 | EM9: =IF(OR(PriorIssTable[[#This Row],[Issuers Exhibit Ind]]=0,'Prior Plans'!BW9=0,'Prior Plans'!BW9="",COUNTIFS($C$8:$C9,PriorIssTable[[#This Row],[Legal Entity]],$J$8:$J9,PriorIssTable[[#This Row],[Issuers Exhibit Ind]],'Prior Plans'!BW$8:BW9,">0")>1),0,1) -> 0 | EN9: =IF(OR(PriorIssTable[[#This Row],[Issuers Exhibit Ind]]=0,'Prior Plans'!BX9=0,'Prior Plans'!BX9="",COUNTIFS($C$8:$C9,PriorIssTable[[#This Row],[Legal Entity]],$J$8:$J9,PriorIssTable[[#This Row],[Issuers Exhibit Ind]],'Prior Plans'!BX$8:BX9,">0")>1),0,1) -> 0
